Workbook

Sheet Intro
F2: Exploratory Software for Confidence Intervals
F3: ESCI Meta-Analysis | L3: www.thenewstatistics.com
G5: Geoff Cumming | N5: Copyright © Geoff Cumming 2011
H6: School of Psychological Science | N6: ESCI is free software: you can redistribute it and/or modify it under the terms of the GNU General Public License
H7: La Trobe University, Melbourne | N7: as published by the Free Software Foundation, either version 3 of the License, or (at your option) any later version.
H8: Australia 3086 | N8: This program is distributed in the hope that it will be useful, but WITHOUT ANY WARRANTY; without even the implied warranty of
H9: esci@latrobe.edu.au | N9: MERCHANTABILITY or FITNESS FOR A PARTICULAR PURPOSE. Scroll down to see the GNU General Public License for more details.
B12: ► ESCI Meta-Analysis accompanies the book Understanding The New Statistics: Effect Sizes, Confidence Intervals, and Meta-analysis (Routledge, 2012)
B13: ► For help, see the book's Appendix A.
B14: ► Use the tabs below to go to your page of choice.
B15: ► At any page, explore--with guidance from the relevant chapters of the book.
B19: Click the tabs at the bottom of the screen to go to these pages:
C21: Original 7 See Chapter 7. Meta-analysis of means, in original units, for up to 6 studies, plus one additional study.
C23: Original 31 See Chapter 8. Meta-analysis of means, in original units, for up to 30 studies, plus one additional study.
C25: Original two groups See Chapter 8. Meta-analysis of difference between two independent means, in original units, for up to 30 studies.
C27: Standard 7 See Chapter 8. Meta-analysis of means in original units, or d with s known, for up to 6 studies, plus one additional study.
C29: Standard 31 See Chapter 8. Meta-analysis of means in original units, or d with s known, for up to 30 studies, plus one additional study.
C31: d single group See Chapter 11. Meta-analysis of Cohen's d for a single group, for up to 30 studies.
C33: d two groups See Chapter 11. Meta-analysis of Cohen's d for two independent groups, for up to 30 studies.
C35: Subgroups See Chapter 9. Meta-analysis of means in original units, for up to 30 studies, plus analysis of two subgroups. See a funnel plot.
B42: Please scroll down to see the GNU General Public License below
B57: GNU GENERAL PUBLIC LICENSE
B58: Version 3, 29 June 2007
B60: Copyright (C) 2007 Free Software Foundation, Inc. <http://fsf.org/>
B61: Everyone is permitted to copy and distribute verbatim copies
B62: of this license document, but changing it is not allowed.
B64: Preamble
B66: The GNU General Public License is a free, copyleft license for
B67: software and other kinds of works.
B69: The licenses for most software and other practical works are designed
B70: to take away your freedom to share and change the works. By contrast,
B71: the GNU General Public License is intended to guarantee your freedom to
B72: share and change all versions of a program--to make sure it remains free
B73: software for all its users. We, the Free Software Foundation, use the
B74: GNU General Public License for most of our software; it applies also to
B75: any other work released this way by its authors. You can apply it to
B76: your programs, too.
B78: When we speak of free software, we are referring to freedom, not
B79: price. Our General Public Licenses are designed to make sure that you
B80: have the freedom to distribute copies of free software (and charge for
B81: them if you wish), that you receive source code or can get it if you
B82: want it, that you can change the software or use pieces of it in new
B83: free programs, and that you know you can do these things.
B85: To protect your rights, we need to prevent others from denying you
B86: these rights or asking you to surrender the rights. Therefore, you have
B87: certain responsibilities if you distribute copies of the software, or if
B88: you modify it: responsibilities to respect the freedom of others.
B90: For example, if you distribute copies of such a program, whether
B91: gratis or for a fee, you must pass on to the recipients the same
B92: freedoms that you received. You must make sure that they, too, receive
B93: or can get the source code. And you must show them these terms so they
B94: know their rights.
B96: Developers that use the GNU GPL protect your rights with two steps:
B97: (1) assert copyright on the software, and (2) offer you this License
B98: giving you legal permission to copy, distribute and/or modify it.
B100: For the developers' and authors' protection, the GPL clearly explains
B101: that there is no warranty for this free software. For both users' and
B102: authors' sake, the GPL requires that modified versions be marked as
B103: changed, so that their problems will not be attributed erroneously to
B104: authors of previous versions.
B106: Some devices are designed to deny users access to install or run
B107: modified versions of the software inside them, although the manufacturer
B108: can do so. This is fundamentally incompatible with the aim of
B109: protecting users' freedom to change the software. The systematic
B110: pattern of such abuse occurs in the area of products for individuals to
B111: use, which is precisely where it is most unacceptable. Therefore, we
B112: have designed this version of the GPL to prohibit the practice for those
B113: products. If such problems arise substantially in other domains, we
B114: stand ready to extend this provision to those domains in future versions
B115: of the GPL, as needed to protect the freedom of users.
B117: Finally, every program is threatened constantly by software patents.
B118: States should not allow patents to restrict development and use of
B119: software on general-purpose computers, but in those that do, we wish to
B120: avoid the special danger that patents applied to a free program could
B121: make it effectively proprietary. To prevent this, the GPL assures that
B122: patents cannot be used to render the program non-free.
B124: The precise terms and conditions for copying, distribution and
B125: modification follow.
B127: TERMS AND CONDITIONS
B129: 0. Definitions.
B131: "This License" refers to version 3 of the GNU General Public License.
B133: "Copyright" also means copyright-like laws that apply to other kinds of
B134: works, such as semiconductor masks.
B136: "The Program" refers to any copyrightable work licensed under this
B137: License. Each licensee is addressed as "you". "Licensees" and
B138: "recipients" may be individuals or organizations.
B140: To "modify" a work means to copy from or adapt all or part of the work
B141: in a fashion requiring copyright permission, other than the making of an
B142: exact copy. The resulting work is called a "modified version" of the
B143: earlier work or a work "based on" the earlier work.
B145: A "covered work" means either the unmodified Program or a work based
B146: on the Program.
B148: To "propagate" a work means to do anything with it that, without
B149: permission, would make you directly or secondarily liable for
B150: infringement under applicable copyright law, except executing it on a
B151: computer or modifying a private copy. Propagation includes copying,
B152: distribution (with or without modification), making available to the
B153: public, and in some countries other activities as well.
B155: To "convey" a work means any kind of propagation that enables other
B156: parties to make or receive copies. Mere interaction with a user through
B157: a computer network, with no transfer of a copy, is not conveying.
B159: An interactive user interface displays "Appropriate Legal Notices"
B160: to the extent that it includes a convenient and prominently visible
B161: feature that (1) displays an appropriate copyright notice, and (2)
B162: tells the user that there is no warranty for the work (except to the
B163: extent that warranties are provided), that licensees may convey the
B164: work under this License, and how to view a copy of this License. If
B165: the interface presents a list of user commands or options, such as a
B166: menu, a prominent item in the list meets this criterion.
B168: 1. Source Code.
B170: The "source code" for a work means the preferred form of the work
B171: for making modifications to it. "Object code" means any non-source
B172: form of a work.
B174: A "Standard Interface" means an interface that either is an official
B175: standard defined by a recognized standards body, or, in the case of
B176: interfaces specified for a particular programming language, one that
B177: is widely used among developers working in that language.
B179: The "System Libraries" of an executable work include anything, other
B180: than the work as a whole, that (a) is included in the normal form of
B181: packaging a Major Component, but which is not part of that Major
B182: Component, and (b) serves only to enable use of the work with that
B183: Major Component, or to implement a Standard Interface for which an
B184: implementation is available to the public in source code form. A
B185: "Major Component", in this context, means a major essential component
B186: (kernel, window system, and so on) of the specific operating system
B187: (if any) on which the executable work runs, or a compiler used to
B188: produce the work, or an object code interpreter used to run it.
B190: The "Corresponding Source" for a work in object code form means all
B191: the source code needed to generate, install, and (for an executable
B192: work) run the object code and to modify the work, including scripts to
B193: control those activities. However, it does not include the work's
B194: System Libraries, or general-purpose tools or generally available free
B195: programs which are used unmodified in performing those activities but
B196: which are not part of the work. For example, Corresponding Source
B197: includes interface definition files associated with source files for
B198: the work, and the source code for shared libraries and dynamically
B199: linked subprograms that the work is specifically designed to require,
B200: such as by intimate data communication or control flow between those
B201: subprograms and other parts of the work.
B203: The Corresponding Source need not include anything that users
B204: can regenerate automatically from other parts of the Corresponding
B205: Source.
B207: The Corresponding Source for a work in source code form is that
B208: same work.
B210: 2. Basic Permissions.
B212: All rights granted under this License are granted for the term of
B213: copyright on the Program, and are irrevocable provided the stated
B214: conditions are met. This License explicitly affirms your unlimited
B215: permission to run the unmodified Program. The output from running a
B216: covered work is covered by this License only if the output, given its
B217: content, constitutes a covered work. This License acknowledges your
B218: rights of fair use or other equivalent, as provided by copyright law.
B220: You may make, run and propagate covered works that you do not
B221: convey, without conditions so long as your license otherwise remains
B222: in force. You may convey covered works to others for the sole purpose
B223: of having them make modifications exclusively for you, or provide you
B224: with facilities for running those works, provided that you comply with
B225: the terms of this License in conveying all material for which you do
B226: not control copyright. Those thus making or running the covered works
B227: for you must do so exclusively on your behalf, under your direction
B228: and control, on terms that prohibit them from making any copies of
B229: your copyrighted material outside their relationship with you.
B231: Conveying under any other circumstances is permitted solely under
B232: the conditions stated below. Sublicensing is not allowed; section 10
B233: makes it unnecessary.
B235: 3. Protecting Users' Legal Rights From Anti-Circumvention Law.
B237: No covered work shall be deemed part of an effective technological
B238: measure under any applicable law fulfilling obligations under article
B239: 11 of the WIPO copyright treaty adopted on 20 December 1996, or
B240: similar laws prohibiting or restricting circumvention of such
B241: measures.
B243: When you convey a covered work, you waive any legal power to forbid
B244: circumvention of technological measures to the extent such circumvention
B245: is effected by exercising rights under this License with respect to
B246: the covered work, and you disclaim any intention to limit operation or
B247: modification of the work as a means of enforcing, against the work's
B248: users, your or third parties' legal rights to forbid circumvention of
B249: technological measures.
B251: 4. Conveying Verbatim Copies.
B253: You may convey verbatim copies of the Program's source code as you
B254: receive it, in any medium, provided that you conspicuously and
B255: appropriately publish on each copy an appropriate copyright notice;
B256: keep intact all notices stating that this License and any
B257: non-permissive terms added in accord with section 7 apply to the code;
B258: keep intact all notices of the absence of any warranty; and give all
B259: recipients a copy of this License along with the Program.
B261: You may charge any price or no price for each copy that you convey,
B262: and you may offer support or warranty protection for a fee.
B264: 5. Conveying Modified Source Versions.
B266: You may convey a work based on the Program, or the modifications to
B267: produce it from the Program, in the form of source code under the
B268: terms of section 4, provided that you also meet all of these conditions:
B270: a) The work must carry prominent notices stating that you modified
B271: it, and giving a relevant date.
B273: b) The work must carry prominent notices stating that it is
B274: released under this License and any conditions added under section
B275: 7. This requirement modifies the requirement in section 4 to
B276: "keep intact all notices".
B278: c) You must license the entire work, as a whole, under this
B279: License to anyone who comes into possession of a copy. This
... 374 more rows

Sheet Original 7
D1: Meta-Analysis of means, in original units | M1: 6 | S1: 7 | T1: m0 | U1: 300 | V1: =IF($G$6<>"",$G$6,"") -> ms | AB1: 20 ►► | AG1: Forest plot showing only included studies from first 6, plus meta-analysis as at 3 | AY1: show m0 line? | AZ1: FALSE | BB1: MA model? | BC1: 1 | BD1: 1=fixed, 2=random | BZ1: Weighted means, green | CJ1: Weighted means, green, squashed | CT1: squash
J2: 2 C | K2: 95 | M2: Display m0 line | Z2: 17 | AA2: Scroll right for additional forest plot | AY2: cumulate? | AZ2: FALSE | BA2: =IF(G6="","",G6)&"" -> ms | BD2: squash | BG2: Influence weighted? | BH2: FALSE | BI2: Show MA1 | BJ2: =IF(COUNT(AZ7:AZ12)>1,TRUE,FALSE) -> TRUE | BZ2: 3 | CA2: 4 | CB2: 6 | CC2: 7 | CD2: 9 | CE2: 10 | CF2: 12 | CG2: 13 | CH2: 15 | CJ2: 3 | CK2: 4 | CL2: 6 | CM2: 7 | CN2: 9 | CO2: 10 | CP2: 12 | CQ2: 13 | CR2: 15 | CT2: y disp
E3: 12 | F3: Display by weightings | H3: 13 | I3: Cumulate | AY3: Freeze scale? | AZ3: FALSE | BA3: =IF(AND(U1<>"",AZ1),U1,NA()) ->  | BB3: 0 | BC3: 13 | BD3: =BS13+0.5 -> 8.5 | BG3: results as diamond | BH3: FALSE | BI3: Show MA2 | BJ3: =IF(COUNT(AZ7:AZ12,AZ18)>1,TRUE,FALSE) -> TRUE | BR3: =AX4 ->  | BS3: =(CT9+1)/9 -> 1 | BZ3: =IF(AND(BG7<=$BT$18,$BH$2),G7,NA()) ->  | CA3: =IF(AND(BG7>$BT$18,BG7<=$BT$19,$BH$2),G7,NA()) ->  | CB3: =IF(AND(BG7>$BT$19,BG7<=$BT$20,$BH$2),G7,NA()) ->  | CC3: =IF(AND(BG7>$BT$20,BG7<=$BT$21,$BH$2),G7,NA()) ->  | CD3: =IF(AND(BG7>$BT$21,BG7<=$BT$22,$BH$2),G7,NA()) ->  | CE3: =IF(AND(BG7>$BT$22,BG7<=$BT$23,$BH$2),G7,NA()) ->  | CF3: =IF(AND(BG7>$BT$23,BG7<=$BT$24,$BH$2),G7,NA()) ->  | CG3: =IF(AND(BG7>$BT$24,BG7<=$BT$25,$BH$2),G7,NA()) ->  | CH3: =IF(AND(BG7<>"",BG7>$BT$25,$BH$2),G7,NA()) ->  | CI3: 1 | CJ3: =IF(AND(BG7<=$BT$18,$BH$2),G7,NA()) ->  | CK3: =IF(AND(BG7>$BT$18,BG7<=$BT$19,$BH$2),G7,NA()) ->  | CL3: =IF(AND(BG7>$BT$19,BG7<=$BT$20,$BH$2),G7,NA()) ->  | CM3: =IF(AND(BG7>$BT$20,BG7<=$BT$21,$BH$2),G7,NA()) ->  | CN3: =IF(AND(BG7>$BT$21,BG7<=$BT$22,$BH$2),G7,NA()) ->  | CO3: =IF(AND(BG7>$BT$22,BG7<=$BT$23,$BH$2),G7,NA()) ->  | CP3: =IF(AND(BG7>$BT$23,BG7<=$BT$24,$BH$2),G7,NA()) ->  | CQ3: =IF(AND(BG7>$BT$24,BG7<=$BT$25,$BH$2),G7,NA()) ->  | CR3: =IF(AND(BG7<>"",BG7>$BT$25,$BH$2),G7,NA()) ->  | CS3: =IF(AZ7="",0,1) -> 1 | CT3: =IF(CS3=0,NA(),SUM($CS$3:CS3)) -> 1
C4: 8 | E4: 1 | G4: Past research | J4: 11 | M4: CI | N4: 15 | O4: Study | Q4: =(U1+K2+I18)/100000 -> 0.00499 | R4: =$Q$4 -> 0.00499 | S4: 0.00499 | T4: 0.00499 | U4: 0.00499 | V4: 0.00499 | W4: 0.00499 | X4: 0.00499 | Z4: 10 CI | AE4: =IF(AZ2," Cumulate","") ->  | AW4: mu label | AX4: =BA3 ->  | AY4: 1 | AZ4: some t? | BA4: for NHST | BB4: FALSE | BG4: fixed or | BI4: Random | BJ4: TRUE | BZ4: =IF(AND(BG8<=$BT$18,$BH$2,NOT($AZ$2)),G8,NA()) ->  | CA4: =IF(AND(BG8>$BT$18,BG8<=$BT$19,$BH$2,NOT($AZ$2)),G8,NA()) ->  | CB4: =IF(AND(BG8>$BT$19,BG8<=$BT$20,$BH$2,NOT($AZ$2)),G8,NA()) ->  | CC4: =IF(AND(BG8>$BT$20,BG8<=$BT$21,$BH$2,NOT($AZ$2)),G8,NA()) ->  | CD4: =IF(AND(BG8>$BT$21,BG8<=$BT$22,$BH$2,NOT($AZ$2)),G8,NA()) ->  | CE4: =IF(AND(BG8>$BT$22,BG8<=$BT$23,$BH$2,NOT($AZ$2)),G8,NA()) ->  | CF4: =IF(AND(BG8>$BT$23,BG8<=$BT$24,$BH$2,NOT($AZ$2)),G8,NA()) ->  | CG4: =IF(AND(BG8>$BT$24,BG8<=$BT$25,$BH$2,NOT($AZ$2)),G8,NA()) ->  | CH4: =IF(AND(BG8<>"",BG8>$BT$25,$BH$2,NOT($AZ$2)),G8,NA()) ->  | CI4: 2 | CS4: 1 | CT4: =IF(CS4=0,NA(),SUM($CS$3:CS4)) -> 2
E5: Study | G5: Mean | H5: SD | J5: Study | K5: Variance | M5: MOE | O5: weighting | Q5: =$Q$4 -> 0.00499 | X5: =$Q$4 -> 0.00499 | Z5: LL | AB5: UL | AE5: 14 | AF5: =IF(AZ2,"CI","") ->  | AW5: Include | AX5: Valid | AY5: Valid | AZ5: =IF(OR(AZ7="",COUNT(AZ7:AZ12)=0),FALSE,TRUE) -> TRUE | BA5: Means | BC5: Bars for | BG5: random | BI5: Random effects model | BL5: First 30 | BO5: 30 + current | BR5: squash | BS5: squash | BT5: Grey | BV5: Cumulative | BZ5: =IF(AND(BG9<=$BT$18,$BH$2,NOT($AZ$2)),G9,NA()) ->  | CA5: =IF(AND(BG9>$BT$18,BG9<=$BT$19,$BH$2,NOT($AZ$2)),G9,NA()) ->  | CB5: =IF(AND(BG9>$BT$19,BG9<=$BT$20,$BH$2,NOT($AZ$2)),G9,NA()) ->  | CC5: =IF(AND(BG9>$BT$20,BG9<=$BT$21,$BH$2,NOT($AZ$2)),G9,NA()) ->  | CD5: =IF(AND(BG9>$BT$21,BG9<=$BT$22,$BH$2,NOT($AZ$2)),G9,NA()) ->  | CE5: =IF(AND(BG9>$BT$22,BG9<=$BT$23,$BH$2,NOT($AZ$2)),G9,NA()) ->  | CF5: =IF(AND(BG9>$BT$23,BG9<=$BT$24,$BH$2,NOT($AZ$2)),G9,NA()) ->  | CG5: =IF(AND(BG9>$BT$24,BG9<=$BT$25,$BH$2,NOT($AZ$2)),G9,NA()) ->  | CH5: =IF(AND(BG9<>"",BG9>$BT$25,$BH$2,NOT($AZ$2)),G9,NA()) ->  | CI5: 3 | CS5: 1 | CT5: =IF(CS5=0,NA(),SUM($CS$3:CS5)) -> 3
B6: =IF(BB4,"t","") ->  | C6: =IF(BB4,"p","") ->  | E6: no. | F6: Study name | G6: ms | I6: N | J6: in? | K6: of mean | M6: =IF($G$6<>"",$G$6,"") -> ms | O6: % | Q6: 0.00499 | X6: 0.00499 | AA6: =IF($G$6<>"",$G$6,"") -> ms | AE6: =IF(AZ2,"Mean","") ->  | AF6: =IF(AZ2,"MOE","") ->  | AW6: study? | AX6: Mean | AY6: N | AZ6: t | BA6: for display | BB6: y disp | BC6: display | BD6: SS | BE6: N-1 | BF6: Weight | BG6: Weight | BI6: Wt x M | BJ6: Wt^2 | BK6: WtxM^2 | BL6: V* | BM6: W* | BN6: W* x M | BO6: V* | BP6: W* | BQ6: W* x M | BR6: means | BS6: y disp | BT6: means | BV6: Mean | BX6: SE | BY6: Bars | BZ6: =IF(AND(BG10<=$BT$18,$BH$2,NOT($AZ$2)),G10,NA()) ->  | CA6: =IF(AND(BG10>$BT$18,BG10<=$BT$19,$BH$2,NOT($AZ$2)),G10,NA()) ->  | CB6: =IF(AND(BG10>$BT$19,BG10<=$BT$20,$BH$2,NOT($AZ$2)),G10,NA()) ->  | CC6: =IF(AND(BG10>$BT$20,BG10<=$BT$21,$BH$2,NOT($AZ$2)),G10,NA()) ->  | CD6: =IF(AND(BG10>$BT$21,BG10<=$BT$22,$BH$2,NOT($AZ$2)),G10,NA()) ->  | CE6: =IF(AND(BG10>$BT$22,BG10<=$BT$23,$BH$2,NOT($AZ$2)),G10,NA()) ->  | CF6: =IF(AND(BG10>$BT$23,BG10<=$BT$24,$BH$2,NOT($AZ$2)),G10,NA()) ->  | CG6: =IF(AND(BG10>$BT$24,BG10<=$BT$25,$BH$2,NOT($AZ$2)),G10,NA()) ->  | CH6: =IF(AND(BG10<>"",BG10>$BT$25,$BH$2,NOT($AZ$2)),G10,NA()) ->  | CI6: 4 | CS6: 1 | CT6: =IF(CS6=0,NA(),SUM($CS$3:CS6)) -> 4
B7: =IF(AND($AZ$5,$BB$4,$AZ$1,AZ7<>"",$U$1<>""), AZ7,"") ->  | C7: =IF(B7<>"",TDIST(ABS(AZ7),I7-1,2),"") ->  | D7: =IF(B7<>"",IF(C7<0.001,"***",(IF(C7<0.01,"**",(IF(C7<0.05,"*",(IF(C7<0.1,"?","ns"))))))),"") ->  | E7: 1 | F7: Aden (1993) | G7: 454 | H7: 142 | I7: 24 | K7: =IF(AZ7<>"",H7*H7/I7,"") -> 840.1666667 | M7: =IF(AZ7<>"",BC7,"") -> 59.96134124 | O7: =IF(AND(BF7<>"",$AZ$5,$BJ$2),IF(fixedrandom=1,100*BF7/SUM($BF$7:$BF$13),100*BP7/$BP$16),"") -> 28.75816872 | Q7: 0.00499 | X7: 0.00499 | Y7: [ | Z7: =IF(AZ7<>"",G7-M7,"") -> 394.0386588 | AA7: , | AB7: =IF(AZ7<>"",G7+M7,"") -> 513.9613412 | AC7: ] | AE7: =IF(AND(AZ2,$G$6<>""),$G$6,"") ->  | AV7: 1 | AW7: TRUE | AX7: =IF(AND($AZ$5,$AZ7<>""),G7,"") -> 454 | AY7: =IF($AZ7<>"",I7,"") -> 24 | AZ7: =IF(AND(I7>1,G7<>"",H7<>"",AW7), (G7-$U$1)*SQRT(I7)/H7,"") -> 5.312977752 | BA7: =IF($AZ$5,IF($BH$2,NA(),G7),NA()) -> 454 | BB7: =IF(AZ7<>"",AV7,NA()) -> 1 | BC7: =IF(AZ7<>"",H7*TINV((100-$K$2)/100,I7-1)/SQRT(I7),NA()) -> 59.96134124 | BD7: =IF(AZ7<>"",H7*H7*(I7-1),"") -> 463772 | BE7: =IF(AZ7<>"",(I7-1),"") -> 23 | BF7: =IF($AZ$5,IF(AZ7<>"",1/K7,""),"") -> 0.001190240032 | BG7: =IF(fixedrandom=1,BF7,BP7) -> 0.001190240032 | BI7: =IF(AND($BJ$4,BF7<>""),AX7*BF7,"") -> 0.5403689744 | BJ7: =IF(AND($BJ$4,BF7<>""),BF7*BF7,"") -> 1.416671333e-06 | BK7: =IF(AND($BJ$4,BF7<>""),AX7^2*BF7,"") -> 245.3275144 | BL7: =IF(AND($BJ$4,BF7<>""),1/BF7+$BI$24,"") -> 1769.540499 | BM7: =IF(AND($BJ$4,BF7<>""),1/BL7,"") -> 0.0005651184591 | BN7: =IF(AND($BJ$4,BF7<>""),BM7*AX7,"") -> 0.2565637805 | BO7: =IF(AND($BJ$4,BF7<>""),1/BF7+$BJ$24,"") -> 2204.003177 | BP7: =IF(AND($BJ$4,BF7<>""),1/BO7,"") -> 0.0004537198542 | BQ7: =IF(AND($BJ$4,BF7<>""),BP7*AX7,"") -> 0.2059888138 | BR7: =IF(AND($AZ$5,NOT($BH$2),$AZ7<>""),G7,NA()) -> 454 | BS7: =CT3 -> 1 | BW7: 0.25 | BZ7: =IF(AND(BG11<=$BT$18,$BH$2,NOT($AZ$2)),G11,NA()) ->  | CA7: =IF(AND(BG11>$BT$18,BG11<=$BT$19,$BH$2,NOT($AZ$2)),G11,NA()) ->  | CB7: =IF(AND(BG11>$BT$19,BG11<=$BT$20,$BH$2,NOT($AZ$2)),G11,NA()) ->  | CC7: =IF(AND(BG11>$BT$20,BG11<=$BT$21,$BH$2,NOT($AZ$2)),G11,NA()) ->  | CD7: =IF(AND(BG11>$BT$21,BG11<=$BT$22,$BH$2,NOT($AZ$2)),G11,NA()) ->  | CE7: =IF(AND(BG11>$BT$22,BG11<=$BT$23,$BH$2,NOT($AZ$2)),G11,NA()) ->  | CF7: =IF(AND(BG11>$BT$23,BG11<=$BT$24,$BH$2,NOT($AZ$2)),G11,NA()) ->  | CG7: =IF(AND(BG11>$BT$24,BG11<=$BT$25,$BH$2,NOT($AZ$2)),G11,NA()) ->  | CH7: =IF(AND(BG11<>"",BG11>$BT$25,$BH$2,NOT($AZ$2)),G11,NA()) ->  | CI7: 5 | CS7: 1 | CT7: =IF(CS7=0,NA(),SUM($CS$3:CS7)) -> 5
E8: 2 | F8: Buggs (1995) | G8: 317 | H8: 158 | I8: 7 | K8: 3566.285714 | M8: 146.1256282 | O8: 6.775019358 | Q8: 0.00499 | X8: 0.00499 | Y8: [ | Z8: 170.8743718 | AA8: , | AB8: 463.1256282 | AC8: ] | AD8: 2 | AE8: =IF(OR(AZ8="",ISNA(BV8)),"",BV8) ->  | AF8: =IF(OR(AZ8="",ISNA(BV8)),"",BY8) ->  | AV8: 2 | AW8: TRUE | AX8: 317 | AY8: 7 | AZ8: 0.2846694449 | BA8: =IF($AZ$5,IF(OR($BH$2,$AZ$2),NA(),G8),NA()) -> 317 | BB8: 2 | BC8: 146.1256282 | BD8: 149784 | BE8: 6 | BF8: 0.0002804037814 | BG8: 0.0002804037814 | BI8: 0.08888799872 | BJ8: 7.862628065e-08 | BK8: 28.17749559 | BL8: 4495.659546 | BM8: 0.0002224367726 | BN8: 0.0705124569 | BO8: 4930.122224 | BP8: 0.0002028347279 | BQ8: 0.06429860875 | BR8: 317 | BS8: 2 | BT8: =IF(AND($BC$1=1,$AZ$2,NOT($BH$2)),G8,NA()) ->  | BU8: =IF(AZ8<>"",AV8,NA()) -> 2 | BV8: =IF(AND($BC$1=1,AZ8<>"",$AZ$2,$AZ$5),SUMPRODUCT($AX$7:AX8,$BF$7:BF8)/SUM($BF$7:BF8),NA()) ->  | BW8: =AV8+$BW$7 -> 2.25 | BX8: =IF($AZ$5,SQRT(1/SUM($BF$7:BF8)),"") -> 26.07631687 | BY8: =IF(AZ8<>"",NORMSINV((100+$K$2)/200)*BX8,0) -> 51.10864192 | BZ8: =IF(AND(BG12<=$BT$18,$BH$2,NOT($AZ$2)),G12,NA()) ->  | CA8: =IF(AND(BG12>$BT$18,BG12<=$BT$19,$BH$2,NOT($AZ$2)),G12,NA()) ->  | CB8: =IF(AND(BG12>$BT$19,BG12<=$BT$20,$BH$2,NOT($AZ$2)),G12,NA()) ->  | CC8: =IF(AND(BG12>$BT$20,BG12<=$BT$21,$BH$2,NOT($AZ$2)),G12,NA()) ->  | CD8: =IF(AND(BG12>$BT$21,BG12<=$BT$22,$BH$2,NOT($AZ$2)),G12,NA()) ->  | CE8: =IF(AND(BG12>$BT$22,BG12<=$BT$23,$BH$2,NOT($AZ$2)),G12,NA()) ->  | CF8: =IF(AND(BG12>$BT$23,BG12<=$BT$24,$BH$2,NOT($AZ$2)),G12,NA()) ->  | CG8: =IF(AND(BG12>$BT$24,BG12<=$BT$25,$BH$2,NOT($AZ$2)),G12,NA()) ->  | CH8: =IF(AND(BG12<>"",BG12>$BT$25,$BH$2,NOT($AZ$2)),G12,NA()) ->  | CI8: 6 | CS8: 1 | CT8: =IF(CS8=0,NA(),SUM($CS$3:CS8)) -> 6
E9: 3 | F9: Crazed (1999) | G9: 430 | H9: 137 | I9: 20 | K9: 938.45 | M9: 64.11797368 | O9: 25.74634211 | Q9: 0.00499 | X9: 0.00499 | Y9: [ | Z9: 365.8820263 | AA9: , | AB9: 494.1179737 | AC9: ] | AD9: 3 | AE9: =IF(OR(AZ9="",ISNA(BV9)),"",BV9) ->  | AF9: =IF(OR(AZ9="",ISNA(BV9)),"",BY9) ->  | AV9: 3 | AW9: TRUE | AX9: 430 | AY9: 20 | AZ9: 4.243632658 | BA9: =IF($AZ$5,IF(OR($BH$2,$AZ$2),NA(),G9),NA()) -> 430 | BB9: 3 | BC9: 64.11797368 | BD9: 356611 | BE9: 19 | BF9: 0.001065586872 | BG9: 0.001065586872 | BI9: 0.4582023549 | BJ9: 1.135475382e-06 | BK9: 197.0270126 | BL9: 1867.823832 | BM9: 0.0005353823968 | BN9: 0.2302144306 | BO9: 2302.28651 | BP9: 0.0004343508054 | BQ9: 0.1867708463 | BR9: 430 | BS9: 3 | BT9: =IF(AND($BC$1=1,$AZ$2,NOT($BH$2)),G9,NA()) ->  | BU9: =IF(AZ9<>"",AV9,NA()) -> 3 | BV9: =IF(AND($BC$1=1,AZ9<>"",$AZ$2,$AZ$5),SUMPRODUCT($AX$7:AX9,$BF$7:BF9)/SUM($BF$7:BF9),NA()) ->  | BW9: =AV9+$BW$7 -> 3.25 | BX9: =IF($AZ$5,SQRT(1/SUM($BF$7:BF9)),"") -> 19.85663367 | BY9: =IF(AZ9<>"",NORMSINV((100+$K$2)/200)*BX9,0) -> 38.91828685 | BZ9: =IF(AND(BG13<=$BT$18,$BH$2),G16,NA()) ->  | CA9: =IF(AND(BG13>$BT$18,BG13<=$BT$19,$BH$2),G16,NA()) ->  | CB9: =IF(AND(BG13>$BT$19,BG13<=$BT$20,$BH$2),G16,NA()) ->  | CC9: =IF(AND(BG13>$BT$20,BG13<=$BT$21,$BH$2),G16,NA()) ->  | CD9: =IF(AND(BG13>$BT$21,BG13<=$BT$22,$BH$2),G16,NA()) ->  | CE9: =IF(AND(BG13>$BT$22,BG13<=$BT$23,$BH$2),G16,NA()) ->  | CF9: =IF(AND(BG13>$BT$23,BG13<=$BT$24,$BH$2),G16,NA()) ->  | CG9: =IF(AND(BG13>$BT$24,BG13<=$BT$25,$BH$2),G16,NA()) ->  | CH9: =IF(AND(BG13<>"",BG13>$BT$25,$BH$2),G16,NA()) ->  | CI9: 10 | CT9: =IF(AZ5,SUM(CS3:CS8)+2,NA()) -> 8
E10: 4 | F10: Dudley (2003) | G10: 525 | H10: 260 | I10: 8 | K10: 8450 | M10: 217.3654396 | O10: 2.859367426 | Q10: 0.00499 | X10: 0.00499 | Y10: [ | Z10: 307.6345604 | AA10: , | AB10: 742.3654396 | AC10: ] | AD10: 4 | AE10: =IF(OR(AZ10="",ISNA(BV10)),"",BV10) ->  | AF10: =IF(OR(AZ10="",ISNA(BV10)),"",BY10) ->  | AV10: 4 | AW10: TRUE | AX10: 525 | AY10: 8 | AZ10: 2.447677319 | BA10: =IF($AZ$5,IF(OR($BH$2,$AZ$2),NA(),G10),NA()) -> 525 | BB10: 4 | BC10: 217.3654396 | BD10: 473200 | BE10: 7 | BF10: 0.0001183431953 | BG10: 0.0001183431953 | BI10: 0.06213017751 | BJ10: 1.400511187e-08 | BK10: 32.6183432 | BL10: 9379.373832 | BM10: 0.0001066169254 | BN10: 0.05597388583 | BO10: 9813.83651 | BP10: 0.0001018969492 | BQ10: 0.05349589831 | BR10: 525 | BS10: 4 | BT10: =IF(AND($BC$1=1,$AZ$2,NOT($BH$2)),G10,NA()) ->  | BU10: =IF(AZ10<>"",AV10,NA()) -> 4 | BV10: =IF(AND($BC$1=1,AZ10<>"",$AZ$2,$AZ$5),SUMPRODUCT($AX$7:AX10,$BF$7:BF10)/SUM($BF$7:BF10),NA()) ->  | BW10: =AV10+$BW$7 -> 4.25 | BX10: =IF($AZ$5,SQRT(1/SUM($BF$7:BF10)),"") -> 19.4089746 | BY10: =IF(AZ10<>"",NORMSINV((100+$K$2)/200)*BX10,0) -> 38.04089118
E11: 5 | F11: Evers (2005) | G11: 479 | H11: 144 | I11: 14 | K11: 1481.142857 | M11: 83.14312466 | O11: 16.31284561 | Q11: 0.00499 | X11: 0.00499 | Y11: [ | Z11: 395.8568753 | AA11: , | AB11: 562.1431247 | AC11: ] | AD11: 5 | AE11: =IF(OR(AZ11="",ISNA(BV11)),"",BV11) ->  | AF11: =IF(OR(AZ11="",ISNA(BV11)),"",BY11) ->  | AV11: 5 | AW11: TRUE | AX11: 479 | AY11: 14 | AZ11: 4.651088002 | BA11: =IF($AZ$5,IF(OR($BH$2,$AZ$2),NA(),G11),NA()) -> 479 | BB11: 5 | BC11: 83.14312466 | BD11: 269568 | BE11: 13 | BF11: 0.000675154321 | BG11: 0.000675154321 | BI11: 0.3233989198 | BJ11: 4.558333571e-07 | BK11: 154.9080826 | BL11: 2410.516689 | BM11: 0.0004148488183 | BN11: 0.198712584 | BO11: 2844.979367 | BP11: 0.000351496398 | BQ11: 0.1683667746 | BR11: 479 | BS11: 5 | BT11: =IF(AND($BC$1=1,$AZ$2,NOT($BH$2)),G11,NA()) ->  | BU11: =IF(AZ11<>"",AV11,NA()) -> 5 | BV11: =IF(AND($BC$1=1,AZ11<>"",$AZ$2,$AZ$5),SUMPRODUCT($AX$7:AX11,$BF$7:BF11)/SUM($BF$7:BF11),NA()) ->  | BW11: =AV11+$BW$7 -> 5.25 | BX11: =IF($AZ$5,SQRT(1/SUM($BF$7:BF11)),"") -> 17.32988209 | BY11: =IF(AZ11<>"",NORMSINV((100+$K$2)/200)*BX11,0) -> 33.96594475 | BZ11: Weighted means, grey
E12: 6 | F12: Fox (2009) | G12: 387 | H12: 165 | I12: 13 | K12: 2094.230769 | M12: 99.70850209 | O12: 11.53724561 | Q12: 0.00499 | X12: 0.00499 | Y12: [ | Z12: 287.2914979 | AA12: , | AB12: 486.7085021 | AC12: ] | AD12: 6 | AE12: =IF(OR(AZ12="",ISNA(BV12)),"",BV12) ->  | AF12: =IF(OR(AZ12="",ISNA(BV12)),"",BY12) ->  | AV12: 6 | AW12: TRUE | AX12: 387 | AY12: 13 | AZ12: 1.901108854 | BA12: =IF($AZ$5,IF(OR($BH$2,$AZ$2),NA(),G12),NA()) -> 387 | BB12: 6 | BC12: 99.70850209 | BD12: 326700 | BE12: 12 | BF12: 0.0004775022957 | BG12: 0.0004775022957 | BI12: 0.1847933884 | BJ12: 2.280084424e-07 | BK12: 71.51504132 | BL12: 3023.604601 | BM12: 0.000330731075 | BN12: 0.127992926 | BO12: 3458.067279 | BP12: 0.0002891788734 | BQ12: 0.111912224 | BR12: 387 | BS12: 6 | BT12: =IF(AND($BC$1=1,$AZ$2,NOT($BH$2)),G12,NA()) ->  | BU12: =IF(AZ12<>"",AV12,NA()) -> 6 | BV12: =IF(AND($BC$1=1,AZ12<>"",$AZ$2,$AZ$5),SUMPRODUCT($AX$7:AX12,$BF$7:BF12)/SUM($BF$7:BF12),NA()) ->  | BW12: =AV12+$BW$7 -> 6.25 | BX12: =IF($AZ$5,SQRT(1/SUM($BF$7:BF12)),"") -> 16.20673066 | BY12: =IF(AZ12<>"",NORMSINV((100+$K$2)/200)*BX12,0) -> 31.7646084 | BZ12: =IF(AND($BC$1=1,BF8<=$BT$18,$AZ$2,$BH$2),G8,NA()) ->  | CA12: =IF(AND($BC$1=1,BF8>$BT$18,BF8<=$BT$19,$AZ$2,$BH$2),G8,NA()) ->  | CB12: =IF(AND($BC$1=1,BF8>$BT$19,BF8<=$BT$20,$AZ$2,$BH$2),G8,NA()) ->  | CC12: =IF(AND($BC$1=1,BF8>$BT$20,BF8<=$BT$21,$AZ$2,$BH$2),G8,NA()) ->  | CD12: =IF(AND($BC$1=1,BF8>$BT$21,BF8<=$BT$22,$AZ$2,$BH$2),G8,NA()) ->  | CE12: =IF(AND($BC$1=1,BF8>$BT$22,BF8<=$BT$23,$AZ$2,$BH$2),G8,NA()) ->  | CF12: =IF(AND($BC$1=1,BF8>$BT$23,BF8<=$BT$24,$AZ$2,$BH$2),G8,NA()) ->  | CG12: =IF(AND($BC$1=1,BF8>$BT$24,BF8<=$BT$25,$AZ$2,$BH$2),G8,NA()) ->  | CH12: =IF(AND($BC$1=1,BF8<>"",BF8>$BT$25,$AZ$2,$BH$2),G8,NA()) ->  | CI12: 2
E13: 3 | F13: Past research, meta-analyzed | K13: 9 | M13: Result as diamond | Q13: =$Q$4 -> 0.00499 | X13: =$Q$4 -> 0.00499 | AX13: =IF(AND($AZ$5,$AZ18<>""),G16,"") -> 531 | BA13: SE of mean | BB13: =IF($AZ$5,SQRT(1/SUM(BF7:BF12)),"") -> 16.20673066 | BF13: =IF(AZ18<>"",1/K16,"") -> 0.0003315588793 | BG13: 0.0003315588793 | BH13: =IF($BJ$4,SUM(BF7:BF12),"") -> 0.003807230497 | BI13: 0.1760577649 | BJ13: 1.099312905e-07 | BK13: 93.48667318 | BL13: 3945.429388 | BM13: 0.0002534578374 | BN13: 0.1345861116 | BO13: 4379.892066 | BP13: 0.0002283161286 | BQ13: 0.1212358643 | BS13: 8 | BZ13: =IF(AND($BC$1=1,BF9<=$BT$18,$AZ$2,$BH$2),G9,NA()) ->  | CA13: =IF(AND($BC$1=1,BF9>$BT$18,BF9<=$BT$19,$AZ$2,$BH$2),G9,NA()) ->  | CB13: =IF(AND($BC$1=1,BF9>$BT$19,BF9<=$BT$20,$AZ$2,$BH$2),G9,NA()) ->  | CC13: =IF(AND($BC$1=1,BF9>$BT$20,BF9<=$BT$21,$AZ$2,$BH$2),G9,NA()) ->  | CD13: =IF(AND($BC$1=1,BF9>$BT$21,BF9<=$BT$22,$AZ$2,$BH$2),G9,NA()) ->  | CE13: =IF(AND($BC$1=1,BF9>$BT$22,BF9<=$BT$23,$AZ$2,$BH$2),G9,NA()) ->  | CF13: =IF(AND($BC$1=1,BF9>$BT$23,BF9<=$BT$24,$AZ$2,$BH$2),G9,NA()) ->  | CG13: =IF(AND($BC$1=1,BF9>$BT$24,BF9<=$BT$25,$AZ$2,$BH$2),G9,NA()) ->  | CH13: =IF(AND($BC$1=1,BF9<>"",BF9>$BT$25,$AZ$2,$BH$2),G9,NA()) ->  | CI13: 3
B14: =IF(AND($AZ$5,$BB$4,$AZ$1,AZ15<>"",$U$1<>""), IF(fixedrandom=1,AZ15,BI32),"") ->  | C14: =IF(B14<>"",2*(1-NORMSDIST(ABS(B14))),"") ->  | D14: =IF(B14<>"",IF(C14<0.001,"***",(IF(C14<0.01,"**",(IF(C14<0.05,"*",(IF(C14<0.1,"?","ns"))))))),"") ->  | F14: =IF(AZ5,IF(fixedrandom=1,"Fixed effect ","Random effects "),"") -> Fixed effect | G14: =IF(AND($AZ$5,$BJ$2),IF(fixedrandom=1,SUMPRODUCT(AX7:AX12,BF7:BF12)/SUM(BF7:BF12),BI26),"") -> 435.4298525 | I14: =IF(AND($AZ$5,$BJ$2),SUM(AY7:AY12),"") -> 86 | K14: =IF(AND($AZ$5,$BJ$2),IF(fixedrandom=1,BB13^2,BI27),"") -> 262.6581187 | M14: =IF(AZ15<>"",BC15,"") -> 31.7646084 | Q14: 0.00499 | X14: 0.00499 | Y14: [ | Z14: =IF(AZ15<>"",G14-M14,"") -> 403.6652441 | AA14: , | AB14: =IF(AZ15<>"",G14+M14,"") -> 467.1944609 | AC14: ] | AZ14: z | BC14: bars | BF14: max weight | BG14: =IF(fixedrandom=1,MAX(BF7:BF13),MAX(BP7:BP13)) -> 0.001190240032 | BH14: =IF($BJ$4,SUM(BF7:BF13),"") -> 0.004138789376 | BZ14: =IF(AND($BC$1=1,BF10<=$BT$18,$AZ$2,$BH$2),G10,NA()) ->  | CA14: =IF(AND($BC$1=1,BF10>$BT$18,BF10<=$BT$19,$AZ$2,$BH$2),G10,NA()) ->  | CB14: =IF(AND($BC$1=1,BF10>$BT$19,BF10<=$BT$20,$AZ$2,$BH$2),G10,NA()) ->  | CC14: =IF(AND($BC$1=1,BF10>$BT$20,BF10<=$BT$21,$AZ$2,$BH$2),G10,NA()) ->  | CD14: =IF(AND($BC$1=1,BF10>$BT$21,BF10<=$BT$22,$AZ$2,$BH$2),G10,NA()) ->  | CE14: =IF(AND($BC$1=1,BF10>$BT$22,BF10<=$BT$23,$AZ$2,$BH$2),G10,NA()) ->  | CF14: =IF(AND($BC$1=1,BF10>$BT$23,BF10<=$BT$24,$AZ$2,$BH$2),G10,NA()) ->  | CG14: =IF(AND($BC$1=1,BF10>$BT$24,BF10<=$BT$25,$AZ$2,$BH$2),G10,NA()) ->  | CH14: =IF(AND($BC$1=1,BF10<>"",BF10>$BT$25,$AZ$2,$BH$2),G10,NA()) ->  | CI14: 4
E15: 4 | F15: Current study | Q15: 0.00499 | X15: 0.00499 | AX15: =IF($AZ15<>"",G14,"") -> 435.4298525 | AY15: =IF($AZ15<>"",I14,"") -> 86 | AZ15: =IF(AND(I14>1,G14<>""), (G14-$U$1)/BB13,"") -> 8.356395582 | BA15: =IF(AND($AZ$5,$BJ$2),IF(NOT(BH3),G14,NA()),NA()) -> 435.4298525 | BB15: =IF(AND(NOT(BH3),AZ15<>""),8,8) -> 8 | BC15: =IF(AZ15<>"",IF(fixedrandom=1,NORMSINV((100+$K$2)/200)*BB13,BI29),NA()) -> 31.7646084 | BD15: =IF(AZ15<>"",H14*H14*(I14-1),"") -> 0 | BE15: =IF(AZ15<>"",(I14-1),"") -> 85 | BH15: Total | BI15: =IF($BJ$4,SUM(BI7:BI12),"") -> 1.657781814 | BJ15: 3.328619907e-06 | BK15: 729.5734897 | BL15: 22946.519 | BM15: 0.002175134447 | BN15: 0.9399700638 | BR15: =IF(AND(NOT(BH3),AZ15<>""),BS13,NA()) -> 8 | BZ15: =IF(AND($BC$1=1,BF11<=$BT$18,$AZ$2,$BH$2),G11,NA()) ->  | CA15: =IF(AND($BC$1=1,BF11>$BT$18,BF11<=$BT$19,$AZ$2,$BH$2),G11,NA()) ->  | CB15: =IF(AND($BC$1=1,BF11>$BT$19,BF11<=$BT$20,$AZ$2,$BH$2),G11,NA()) ->  | CC15: =IF(AND($BC$1=1,BF11>$BT$20,BF11<=$BT$21,$AZ$2,$BH$2),G11,NA()) ->  | CD15: =IF(AND($BC$1=1,BF11>$BT$21,BF11<=$BT$22,$AZ$2,$BH$2),G11,NA()) ->  | CE15: =IF(AND($BC$1=1,BF11>$BT$22,BF11<=$BT$23,$AZ$2,$BH$2),G11,NA()) ->  | CF15: =IF(AND($BC$1=1,BF11>$BT$23,BF11<=$BT$24,$AZ$2,$BH$2),G11,NA()) ->  | CG15: =IF(AND($BC$1=1,BF11>$BT$24,BF11<=$BT$25,$AZ$2,$BH$2),G11,NA()) ->  | CH15: =IF(AND($BC$1=1,BF11<>"",BF11>$BT$25,$AZ$2,$BH$2),G11,NA()) ->  | CI15: 5
B16: =IF(AND($AZ$5,$BB$4,$AZ$1,AZ18<>"",$U$1<>""), AZ18,"") ->  | C16: =IF(B16<>"",TDIST(ABS(AZ18),I16-1,2),"") ->  | D16: =IF(B16<>"",IF(C16<0.001,"***",(IF(C16<0.01,"**",(IF(C16<0.05,"*",(IF(C16<0.1,"?","ns"))))))),"") ->  | F16: Mine (2011) | G16: 531 | H16: 233 | I16: 18 | K16: =IF(AZ18<>"",H16*H16/I16,"") -> 3016.055556 | M16: =IF(AZ18<>"",BC18,"") -> 115.8681741 | O16: =IF(AND(BF13<>"",$AZ$5,$BJ$2),IF(fixedrandom=1,100*BF13/SUM($BF$7:$BF$13),100*BP13/$BP$16),"") -> 8.011011172 | Q16: 0.00499 | X16: 0.00499 | Y16: [ | Z16: =IF(AZ18<>"",G16-M16,"") -> 415.1318259 | AA16: , | AB16: =IF(AZ18<>"",G16+M16,"") -> 646.8681741 | AC16: ] | BA16: =G14 -> 435.4298525 | BB16: 8 | BE16: min weight | BF16: =MIN(BF7:BF13) -> 0.0001183431953 | BH16: TOTAL | BI16: =IF($BJ$4,SUM(BI7:BI13),"") -> 1.833839579 | BJ16: =IF($BJ$4,SUM(BJ7:BJ13),"") -> 3.438551197e-06 | BK16: =IF($BJ$4,SUM(BK7:BK13),"") -> 823.0601629 | BO16: =IF($BJ$4,SUM(BO7:BO13),"") -> 29933.18713 | BP16: =IF($BJ$4,SUM(BP7:BP13),"") -> 0.002061793737 | BQ16: =IF($BJ$4,SUM(BQ7:BQ13),"") -> 0.9120690301 | BZ16: =IF(AND($BC$1=1,BF12<=$BT$18,$AZ$2,$BH$2),G12,NA()) ->  | CA16: =IF(AND($BC$1=1,BF12>$BT$18,BF12<=$BT$19,$AZ$2,$BH$2),G12,NA()) ->  | CB16: =IF(AND($BC$1=1,BF12>$BT$19,BF12<=$BT$20,$AZ$2,$BH$2),G12,NA()) ->  | CC16: =IF(AND($BC$1=1,BF12>$BT$20,BF12<=$BT$21,$AZ$2,$BH$2),G12,NA()) ->  | CD16: =IF(AND($BC$1=1,BF12>$BT$21,BF12<=$BT$22,$AZ$2,$BH$2),G12,NA()) ->  | CE16: =IF(AND($BC$1=1,BF12>$BT$22,BF12<=$BT$23,$AZ$2,$BH$2),G12,NA()) ->  | CF16: =IF(AND($BC$1=1,BF12>$BT$23,BF12<=$BT$24,$AZ$2,$BH$2),G12,NA()) ->  | CG16: =IF(AND($BC$1=1,BF12>$BT$24,BF12<=$BT$25,$AZ$2,$BH$2),G12,NA()) ->  | CH16: =IF(AND($BC$1=1,BF12<>"",BF12>$BT$25,$AZ$2,$BH$2),G12,NA()) ->  | CI16: 6
E17: 5 | F17: Past + current, meta-analyzed | Q17: 0.00499 | X17: 0.00499 | BR17: 0 | BS17: 0.1 | BT17: bin ends | BU17: dot size | BV17: Influence | BW17: 0 | BX17: 0.2
B18: =IF(AND($AZ$5,$BB$4,$AZ$1,AZ21<>"",$U$1<>""),IF(fixedrandom=1,AZ21,BJ32),"") ->  | C18: =IF(B18<>"",2*(1-NORMSDIST(ABS(B18))),"") ->  | D18: =IF(B18<>"",IF(C18<0.001,"***",(IF(C18<0.01,"**",(IF(C18<0.05,"*",(IF(C18<0.1,"?","ns"))))))),"") ->  | F18: =IF(AZ5,IF(fixedrandom=1,"Fixed effect ","Random effects "),"") -> Fixed effect | G18: =IF(AND($AZ$5,$BJ$3),IF(fixedrandom=1,SUMPRODUCT((AX7:AX13),(BF7:BF13))/SUM(BF7:BF13),BJ26),"") -> 443.0859877 | I18: =IF(AND($AZ$5,$BJ$3),SUM(AY15,AY18),"") -> 104 | K18: =IF(AND($AZ$5,$BJ$3),IF(fixedrandom=1,BB19^2,BJ27),"") -> 241.6165475 | M18: =IF(AZ21<>"",BC21,"") -> 30.46571873 | Q18: 0.00499 | X18: 0.00499 | Y18: [ | Z18: =IF(AZ21<>"",G18-M18,"") -> 412.620269 | AA18: , | AB18: =IF(AZ21<>"",G18+M18,"") -> 473.5517064 | AC18: ] | AW18: TRUE | AX18: =IF($AZ18<>"",G16,"") -> 531 | AY18: =IF($AZ18<>"",I16,"") -> 18 | AZ18: =IF(AND(AZ5,I16>1,G16<>"",H16<>"",AW18), (G16-$U$1)*SQRT(I16)/H16,"") -> 4.20622317 | BA18: =IF($AZ$5,IF($BH$2,NA(),G16),NA()) -> 531 | BB18: =IF(AZ18<>"",10,NA()) -> 10 | BC18: =IF(AZ18<>"",H16*TINV((100-$K$2)/100,I16-1)/SQRT(I16),NA()) -> 115.8681741 | BD18: =IF(AZ18<>"",H16*H16*(I16-1),"") -> 922913 | BE18: =IF(AZ18<>"",(I16-1),"") -> 17 | BF18: =IF(AZ18<>"",I16/(H16*H16),"") -> 0.0003315588793 | BR18: =AVERAGE(BV18:BV19) -> 1.16 | BS18: 0.1 | BT18: =$BG$14*BR18/$BR$26 -> 4.823752072e-05 | BU18: 3 | BV18: 0.36 | BW18: =BV18 -> 0.36 | BX18: 0.2
F19: 18 T | G19: =IF(ISNUMBER(BJ24),SQRT(BJ24),"") -> 36.93015719 | H19: =IF($G$6<>"",$G$6,"") -> ms | M19: 19 Heterogeneity | N19: Q | O19: =IF(ISNUMBER(BJ21),BJ21,"") -> 10.51154186 | BA19: SE of mean | BB19: =IF($AZ$5,SQRT(1/SUM(BF7:BF13)),"") -> 15.54401967 | BH19: Means: | BI19: 1 - 6 | BJ19: +current | BR19: 3.0608 | BS19: 0.1 | BT19: 0.0001272805202 | BU19: 4 | BV19: 1.96 | BW19: 1.96 | BX19: 0.2
B20: 16 | C20: Model | F20: CI [ | G20: =IF(ISNUMBER(BJ43),BJ43,"") -> 0 | H20: , | N20: df | O20: =IF(ISNUMBER(BJ20),BJ20,"") -> 6 | AZ20: z | BC20: bars | BH20: df | BI20: =COUNT(BI7:BI12)-1 -> 5 | BJ20: =COUNT(BJ7:BJ13)-1 -> 6 | BR20: 5.4608 | BS20: 0.1 | BT20: 0.0002270822872 | BU20: 6 | BV20: 4.1616 | BW20: 4.1616 | BX20: 0.2
G21: =IF(ISNUMBER(BJ44),BJ44,"") -> 75.78619306 | H21: ] | N21: p | O21: =IF(ISNUMBER(BJ22),BJ22,"") -> 0.1046977591 | AX21: =IF($AZ21<>"",G18,"") -> 443.0859877 | AY21: =IF($AZ21<>"",I18,"") -> 104 | AZ21: =IF(AND(I18>1,G18<>""),(G18-$U$1)/BB19,"") -> 9.20521144 | BA21: =IF(AND($AZ$5,$BJ$3),IF(NOT(BH3),G18,NA()),NA()) -> 443.0859877 | BB21: =IF(AND(NOT(BH3),AZ21<>""),12,12) -> 12 | BC21: =IF(AZ21<>"",IF(fixedrandom=1,NORMSINV((100+$K$2)/200)*BB19,BJ29),NA()) -> 30.46571873 | BD21: =IF(AZ21<>"",H18*H18*(I18-1),"") -> 0 | BE21: =IF(AZ21<>"",(I18-1),"") -> 103 | BH21: Q | BI21: =IF(BH13=0,"",BK15-BI15^2/BH13) -> 7.725799038 | BJ21: =IF(BH14=0,"",BK16-BI16^2/BH14) -> 10.51154186 | BR21: 8.34125 | BS21: 0.1 | BT21: 0.0003468631204 | BU21: 7 | BV21: 6.76 | BW21: 6.76 | BX21: 0.2
N22: I2 | O22: =IF(ISNUMBER(BJ34),100*BJ34,"") -> 42.91988675 | P22: % | AW22: half height | AX22: 0.4 | BA22: =G18 -> 443.0859877 | BB22: 12 | BH22: p for Q | BI22: =CHIDIST(BI21,BI20) -> 0.1720089071 | BJ22: =CHIDIST(BJ21,BJ20) -> 0.1046977591 | BR22: 11.80625 | BS22: 0.1 | BT22: 0.0004909519216 | BU22: 9 | BV22: 9.9225 | BW22: 9.9225 | BX22: 0.2
AW23: upper diamond | AY23: squash | BA23: lower diamond | BH23: C | BI23: =BH13-BJ15/BH13 -> 0.002932941454 | BJ23: =BH14-BJ16/BH14 -> 0.003307978508 | BR23: 15.87625 | BS23: 0.1 | BT23: 0.0006601990848 | BU23: 10 | BV23: 13.69 | BW23: 13.69 | BX23: 0.2
AW24: =IF(AND($BJ$2,$AZ$5),IF($BH$3,BA16,NA()),NA()) ->  | AX24: =IF($BH$3,BB16+AX22,NA()) ->  | AY24: =IF($BH$3,BS13+AX22,NA()) ->  | BA24: =IF(AND($BJ$3,$AZ$5),IF($BH$3,BA22,NA()),NA()) ->  | BB24: =IF($BH$3,BB22+AX22,NA()) ->  | BH24: T^2 | BI24: =IF(BI23=0,0,MAX(0,(BI21-BI20)/BI23)) -> 929.373832 | BJ24: =IF(BJ23=0,0,MAX(0,(BJ21-BJ20)/BJ23)) -> 1363.83651 | BR24: 20.55125 | BS24: 0.1 | BT24: 0.0008546046101 | BU24: 12 | BV24: 18.0625 | BW24: 18.0625 | BX24: 0.2
AW25: =IF(AND($BJ$2,$AZ$5),IF($BH$3,BA16-BC15,NA()),NA()) ->  | AX25: =IF($BH$3,BB16,NA()) ->  | AY25: =IF($BH$3,BS13,NA()) ->  | BA25: =IF(AND($BJ$3,$AZ$5),IF($BH$3,BA22-BC21,NA()),NA()) ->  | BB25: =IF($BH$3,BB22,NA()) ->  | BH25: T | BI25: =SQRT(BI24) -> 30.48563321 | BJ25: =SQRT(BJ24) -> 36.93015719 | BR25: 25.83125 | BS25: 0.1 | BT25: 0.001074168498 | BU25: 13 | BV25: 23.04 | BW25: 23.04 | BX25: 0.2
AW26: =IF(AND($BJ$2,$AZ$5),IF($BH$3,BA16,NA()),NA()) ->  | AX26: =IF($BH$3,BB16-AX22,NA()) ->  | AY26: =IF($BH$3,BS13-AX22,NA()) ->  | BA26: =IF(AND($BJ$3,$AZ$5),IF($BH$3,BA22,NA()),NA()) ->  | BB26: =IF($BH$3,BB22-AX22,NA()) ->  | BH26: M* | BI26: =BN15/BM15 -> 432.1434314 | BJ26: =BQ16/BP16 -> 442.3667673 | BR26: =BV26 -> 28.6225 | BS26: 0.1 | BT26: 0.001190240032 | BU26: 15 | BV26: 28.6225 | BW26: 28.6225 | BX26: 0.2
AW27: =IF(AND($BJ$2,$AZ$5),IF($BH$3,BA16+BC15,NA()),NA()) ->  | AX27: =IF($BH$3,BB16,NA()) ->  | AY27: =IF($BH$3,BS13,NA()) ->  | BA27: =IF(AND($BJ$3,$AZ$5),IF($BH$3,BA22+BC21,NA()),NA()) ->  | BB27: =IF($BH$3,BB25,NA()) ->  | BH27: V(M*) | BI27: =1/BM15 -> 459.7416961 | BJ27: =1/BP16 -> 485.0145687
AW28: =IF(AND($BJ$2,$AZ$5),IF($BH$3,BA16,NA()),NA()) ->  | AX28: =IF($BH$3,BB16+AX22,NA()) ->  | AY28: =IF($BH$3,BS13+AX22,NA()) ->  | BA28: =IF(AND($BJ$3,$AZ$5),IF($BH$3,BA22,NA()),NA()) ->  | BB28: =IF($BH$3,BB22+AX22,NA()) ->  | BH28: SE(M*) | BI28: =SQRT(BI27) -> 21.441588 | BJ28: =SQRT(BJ27) -> 22.02304631
BH29: moe | BI29: =NORMSINV((100+$K$2)/200)*BI28 -> 42.02474026 | BJ29: =NORMSINV((100+$K$2)/200)*BJ28 -> 43.1643776
AW30: L end | AX30: =BA16-BC15 -> 403.6652441 | BB30: =BA22-BC21 -> 412.620269 | BH30: LL | BI30: =BI26-BI29 -> 390.1186912 | BJ30: =BJ26-BJ29 -> 399.2023897
AW31: R end | AX31: =BA16+BC15 -> 467.1944609 | BB31: =BA22+BC21 -> 473.5517064 | BH31: UL | BI31: =BI26+BI29 -> 474.1681717 | BJ31: =BJ26+BJ29 -> 485.5311449
AW32: no. points | AX32: 200 | BB32: =AX32 -> 200 | BH32: z | BI32: =(BI26-$U$1)/BI28 -> 6.162949843 | BJ32: =(BJ26-$U$1)/BJ28 -> 6.464444805
AW33: inc x | AX33: =(AX31-AX30)/AX32 -> 0.317646084 | BB33: =(BB31-BB30)/BB32 -> 0.3046571873 | BH33: p | BI33: =2*(1-NORMSDIST(ABS(BI32))) -> 7.140212865e-10 | BJ33: =2*(1-NORMSDIST(ABS(BJ32))) -> 1.01671338e-10
AW34: delta y | AX34: -0.02 | BB34: =AX34 -> -0.02 | BF34: squash | BH34: I^2 | BI34: =MAX(0,(BI21-BI20)/BI21) -> 0.3528177506 | BJ34: =MAX(0,(BJ21-BJ20)/BJ21) -> 0.4291988675
AW35: index | AX35: from end | AY35: x | AZ35: y | BA35: bar | BB35: from end | BC35: x | BD35: y | BE35: bar | BF35: y disp | BH35: For CI on T^2
AW36: 0 | AX36: =1-ABS($BA$16-AY36)/$BC$15 ->  | AY36: =IF($BH$3,AX30,NA()) ->  | AZ36: =IF($BH$3,BB16,NA()) ->  | BA36: =MAX($AX$22*AX36-$AX$34,0) ->  | BB36: =1-ABS($BA$22-BC36)/$BC$21 ->  | BC36: =IF($BH$3,BB30,NA()) ->  | BD36: =IF($BH$3,BB22,NA()) ->  | BE36: =MAX($AX$22*BB36-$BB$34,0) ->  | BF36: =IF($BH$3,BS13,NA()) ->  | BH36: B1 | BI36: =0.5*(LN(BI21)-LN(BI20))/(SQRT(2*BI21)-SQRT(2*BI20-1)) -> 0.2337252876 | BJ36: =0.5*(LN(BJ21)-LN(BJ20))/(SQRT(2*BJ21)-SQRT(2*BJ20-1)) -> 0.2210201723
AW37: 1 | AY37: =IF($BH$3,AY36+$AX$33,NA()) ->  | AZ37: =AZ36 ->  | BC37: =IF($BH$3,BC36+$BB$33,NA()) ->  | BD37: =BD36 ->  | BF37: =BF36 ->  | BH37: B2 | BI37: =SQRT(1/(2*(BI20-1)*(1-(1/(3*(BI20-1)^2))))) -> 0.3572948005 | BJ37: =SQRT(1/(2*(BJ20-1)*(1-(1/(3*(BJ20-1)^2))))) -> 0.31835727
AW38: 2 | BH38: B | BI38: =IF(BI21>(BI20+1),BI36,BI37) -> 0.2337252876 | BJ38: =IF(BJ21>(BJ20+1),BJ36,BJ37) -> 0.2210201723
AW39: 3 | BH39: L | BI39: =EXP(0.5*LN(BI21/BI20)-NORMSINV((100+$K$2)/200)*BI38) -> 0.7862114709 | BJ39: =EXP(0.5*LN(BJ21/BJ20)-NORMSINV((100+$K$2)/200)*BJ38) -> 0.8582718631
AW40: 4 | BH40: U | BI40: =EXP(0.5*LN(BI21/BI20)+NORMSINV((100+$K$2)/200)*BI38) -> 1.965323408 | BJ40: =EXP(0.5*LN(BJ21/BJ20)+NORMSINV((100+$K$2)/200)*BJ38) -> 2.041222274
AW41: 5 | BH41: LL T^2 | BI41: =MAX(0,BI20*(BI39^2-1)/BI23) -> 0 | BJ41: =MAX(0,BJ20*(BJ39^2-1)/BJ23) -> 0
AW42: 6 | BH42: UL T^2 | BI42: =MAX(0,BI20*(BI40^2-1)/BI23) -> 4879.906647 | BJ42: =MAX(0,BJ20*(BJ40^2-1)/BJ23) -> 5743.547058
AW43: 7 | BH43: LL T | BI43: =SQRT(BI41) -> 0 | BJ43: =SQRT(BJ41) -> 0
AW44: 8 | BH44: UL T | BI44: =SQRT(BI42) -> 69.85632861 | BJ44: =SQRT(BJ42) -> 75.78619306
AW45: 9
AW46: 10
AW47: 11
AW48: 12
AW49: 13
AW50: 14
AW51: 15
AW52: 16
AW53: 17
AW54: 18
AW55: 19
AW56: 20
AW57: 21
AW58: 22
AW59: 23
AW60: 24
AW61: 25
AW62: 26
AW63: 27
AW64: 28
AW65: 29
AW66: 30
AW67: 31
AW68: 32
AW69: 33 | AY69: =IF($BH$3,AY68+$AX$33,NA()) ->  | AZ69: =AZ68 ->  | BC69: =IF($BH$3,BC68+$BB$33,NA()) ->  | BD69: =BD68 ->  | BF69: =BF68 -> 
AW70: 34
AW71: 35
AW72: 36
AW73: 37
AW74: 38
AW75: 39
AW76: 40
AW77: 41
AW78: 42
AW79: 43
AW80: 44
AW81: 45
AW82: 46
AW83: 47
AW84: 48
AW85: 49
AW86: 50
AW87: 51
AW88: 52
AW89: 53
AW90: 54
AW91: 55
AW92: 56
AW93: 57
AW94: 58
AW95: 59
AW96: 60
AW97: 61
AW98: 62
AW99: 63
AW100: 64 | AX100: =1-ABS($BA$16-AY100)/$BC$15 ->  | BA100: =MAX($AX$22*AX100-$AX$34,0) ->  | BB100: =1-ABS($BA$22-BC100)/$BC$21 ->  | BE100: =MAX($AX$22*BB100-$BB$34,0) -> 
AW101: 65 | AY101: =IF($BH$3,AY100+$AX$33,NA()) ->  | AZ101: =AZ100 ->  | BC101: =IF($BH$3,BC100+$BB$33,NA()) ->  | BD101: =BD100 ->  | BF101: =BF100 -> 
AW102: 66
AW103: 67
AW104: 68
AW105: 69
AW106: 70
AW107: 71
AW108: 72
AW109: 73
AW110: 74
AW111: 75
AW112: 76
AW113: 77
AW114: 78
AW115: 79
AW116: 80
AW117: 81
AW118: 82
AW119: 83
AW120: 84
AW121: 85
AW122: 86
AW123: 87
AW124: 88
AW125: 89
AW126: 90
AW127: 91
AW128: 92
AW129: 93
AW130: 94
AW131: 95
AW132: 96
AW133: 97 | AY133: =IF($BH$3,AY132+$AX$33,NA()) ->  | AZ133: =AZ132 ->  | BC133: =IF($BH$3,BC132+$BB$33,NA()) ->  | BD133: =BD132 ->  | BF133: =BF132 -> 
AW134: 98
AW135: 99
AW136: 100
AW137: 101
AW138: 102
AW139: 103
AW140: 104
AW141: 105
AW142: 106
AW143: 107
AW144: 108
AW145: 109
AW146: 110
AW147: 111
AW148: 112
AW149: 113
AW150: 114
AW151: 115
AW152: 116
AW153: 117
AW154: 118
AW155: 119
AW156: 120
AW157: 121
AW158: 122
AW159: 123
AW160: 124
AW161: 125
AW162: 126
AW163: 127
AW164: 128 | AX164: =1-ABS($BA$16-AY164)/$BC$15 ->  | BA164: =MAX($AX$22*AX164-$AX$34,0) ->  | BB164: =1-ABS($BA$22-BC164)/$BC$21 ->  | BE164: =MAX($AX$22*BB164-$BB$34,0) -> 
AW165: 129 | AY165: =IF($BH$3,AY164+$AX$33,NA()) ->  | AZ165: =AZ164 ->  | BC165: =IF($BH$3,BC164+$BB$33,NA()) ->  | BD165: =BD164 ->  | BF165: =BF164 -> 
AW166: 130
AW167: 131
AW168: 132
AW169: 133
AW170: 134
AW171: 135
AW172: 136
AW173: 137
AW174: 138
AW175: 139
AW176: 140
AW177: 141
AW178: 142
AW179: 143
AW180: 144
AW181: 145
AW182: 146
AW183: 147
AW184: 148
AW185: 149
AW186: 150
AW187: 151
AW188: 152
AW189: 153
AW190: 154
AW191: 155
AW192: 156
AW193: 157
AW194: 158
AW195: 159
AW196: 160
AW197: 161 | AY197: =IF($BH$3,AY196+$AX$33,NA()) ->  | AZ197: =AZ196 ->  | BC197: =IF($BH$3,BC196+$BB$33,NA()) ->  | BD197: =BD196 ->  | BF197: =BF196 -> 
AW198: 162
AW199: 163
AW200: 164
... 36 more rows

Sheet Original 31
D1: Meta-Analysis of means, in original units | M1: 6 | S1: 7 | T1: m0 | U1: 300 | V1: =IF($G$6<>"",$G$6,"") -> ms | AB1: 20 ►► | AG1: Forest plot showing only included studies from first 30, plus meta-analysis as at 3 | AY1: show m0 line? | AZ1: TRUE | BB1: MA model? | BC1: 1 | BD1: 1=fixed, 2=random | BZ1: Weighted means, green | CJ1: Weighted means, green, squashed | CT1: squash
J2: 2 C | K2: 95 | M2: Display m0 line | Z2: 17 | AA2: Scroll right for additional forest plot | AY2: cumulate? | AZ2: TRUE | BA2: =IF(G6="","",G6)&"" -> ms | BD2: squash | BG2: Influence weighted? | BH2: TRUE | BI2: Show MA1 | BJ2: =IF(COUNT(AZ7:AZ36)>1,TRUE,FALSE) -> TRUE | BZ2: 3 | CA2: 4 | CB2: 6 | CC2: 7 | CD2: 9 | CE2: 10 | CF2: 12 | CG2: 13 | CH2: 15 | CJ2: 3 | CK2: 4 | CL2: 6 | CM2: 7 | CN2: 9 | CO2: 10 | CP2: 12 | CQ2: 13 | CR2: 15 | CT2: y disp
E3: 12 | F3: Display by weightings | H3: 13 | I3: Cumulate | AY3: Freeze scale? | AZ3: FALSE | BA3: =IF(AND(U1<>"",AZ1),U1,NA()) -> 300 | BB3: 0 | BC3: 37 | BD3: =BS37+0.5 -> 18.5 | BG3: results as diamond | BH3: TRUE | BI3: Show MA2 | BJ3: =IF(COUNT(AZ7:AZ36,AZ42)>1,TRUE,FALSE) -> TRUE | BZ3: =IF(AND(BG7<=$BT$42,$BH$2),G7,NA()) ->  | CA3: =IF(AND(BG7>$BT$42,BG7<=$BT$43,$BH$2),G7,NA()) ->  | CB3: =IF(AND(BG7>$BT$43,BG7<=$BT$44,$BH$2),G7,NA()) ->  | CC3: =IF(AND(BG7>$BT$44,BG7<=$BT$45,$BH$2),G7,NA()) ->  | CD3: =IF(AND(BG7>$BT$45,BG7<=$BT$46,$BH$2),G7,NA()) ->  | CE3: =IF(AND(BG7>$BT$46,BG7<=$BT$47,$BH$2),G7,NA()) ->  | CF3: =IF(AND(BG7>$BT$47,BG7<=$BT$48,$BH$2),G7,NA()) ->  | CG3: =IF(AND(BG7>$BT$48,BG7<=$BT$49,$BH$2),G7,NA()) -> 454 | CH3: =IF(AND(BG7<>"",BG7>$BT$49,$BH$2),G7,NA()) ->  | CI3: 1 | CJ3: =IF(AND(BG7<=$BT$42,$BH$2),G7,NA()) ->  | CK3: =IF(AND(BG7>$BT$42,BG7<=$BT$43,$BH$2),G7,NA()) ->  | CL3: =IF(AND(BG7>$BT$43,BG7<=$BT$44,$BH$2),G7,NA()) ->  | CM3: =IF(AND(BG7>$BT$44,BG7<=$BT$45,$BH$2),G7,NA()) ->  | CN3: =IF(AND(BG7>$BT$45,BG7<=$BT$46,$BH$2),G7,NA()) ->  | CO3: =IF(AND(BG7>$BT$46,BG7<=$BT$47,$BH$2),G7,NA()) ->  | CP3: =IF(AND(BG7>$BT$47,BG7<=$BT$48,$BH$2),G7,NA()) ->  | CQ3: =IF(AND(BG7>$BT$48,BG7<=$BT$49,$BH$2),G7,NA()) -> 454 | CR3: =IF(AND(BG7<>"",BG7>$BT$49,$BH$2),G7,NA()) ->  | CS3: =IF(AZ7="",0,1) -> 1 | CT3: =IF(CS3=0,NA(),SUM($CS$3:CS3)) -> 1
C4: 8 | E4: 1 | G4: Past research | J4: 11 | M4: CI | N4: 15 | O4: Study | Q4: =(U1+K2+I42)/100000 -> 0.00649 | R4: =$Q$4 -> 0.00649 | S4: 0.00649 | T4: 0.00649 | U4: 0.00649 | V4: 0.00649 | W4: 0.00649 | X4: 0.00649 | Z4: 10 CI | AE4: =IF(AZ2," Cumulate","") -> Cumulate | AZ4: some t? | BA4: for NHST | BB4: FALSE | BG4: fixed or | BI4: Random | BJ4: TRUE | BZ4: =IF(AND(BG8<=$BT$42,$BH$2,NOT($AZ$2)),G8,NA()) ->  | CA4: =IF(AND(BG8>$BT$42,BG8<=$BT$43,$BH$2,NOT($AZ$2)),G8,NA()) ->  | CB4: =IF(AND(BG8>$BT$43,BG8<=$BT$44,$BH$2,NOT($AZ$2)),G8,NA()) ->  | CC4: =IF(AND(BG8>$BT$44,BG8<=$BT$45,$BH$2,NOT($AZ$2)),G8,NA()) ->  | CD4: =IF(AND(BG8>$BT$45,BG8<=$BT$46,$BH$2,NOT($AZ$2)),G8,NA()) ->  | CE4: =IF(AND(BG8>$BT$46,BG8<=$BT$47,$BH$2,NOT($AZ$2)),G8,NA()) ->  | CF4: =IF(AND(BG8>$BT$47,BG8<=$BT$48,$BH$2,NOT($AZ$2)),G8,NA()) ->  | CG4: =IF(AND(BG8>$BT$48,BG8<=$BT$49,$BH$2,NOT($AZ$2)),G8,NA()) ->  | CH4: =IF(AND(BG8<>"",BG8>$BT$49,$BH$2,NOT($AZ$2)),G8,NA()) ->  | CI4: 2 | CL4: 317 | CS4: 1 | CT4: =IF(CS4=0,NA(),SUM($CS$3:CS4)) -> 2
E5: Study | G5: Mean | H5: SD | J5: Study | K5: Variance | M5: MOE | O5: weighting | Q5: =$Q$4 -> 0.00649 | X5: =$Q$4 -> 0.00649 | Z5: LL | AB5: UL | AE5: 14 | AF5: =IF(AZ2,"CI","") -> CI | AW5: Include | AX5: Valid | AY5: Valid | AZ5: =IF(OR(AZ7="",COUNT(AZ7:AZ36)=0),FALSE,TRUE) -> TRUE | BA5: Means | BC5: Bars for | BG5: random | BI5: Random effects model | BL5: First 30 | BO5: 30 + current | BR5: squash | BS5: squash | BT5: Grey | BV5: Cumulative | CI5: 3 | CP5: 430 | CS5: 1 | CT5: =IF(CS5=0,NA(),SUM($CS$3:CS5)) -> 3
B6: =IF(BB4,"t","") ->  | C6: =IF(BB4,"p","") ->  | E6: no. | F6: Study name | G6: ms | I6: N | J6: in? | K6: of mean | M6: =IF($G$6<>"",$G$6,"") -> ms | O6: % | Q6: 0.00649 | X6: 0.00649 | AA6: =IF($G$6<>"",$G$6,"") -> ms | AE6: =IF(AZ2,"Mean","") -> Mean | AF6: =IF(AZ2,"MOE","") -> MOE | AW6: study? | AX6: Mean | AY6: N | AZ6: t | BA6: for display | BB6: y disp | BC6: display | BD6: SS | BE6: N-1 | BF6: Weight | BG6: Weight | BI6: Wt x M | BJ6: Wt^2 | BK6: WtxM^2 | BL6: V* | BM6: W* | BN6: W* x M | BO6: V* | BP6: W* | BQ6: W* x M | BR6: means | BS6: y disp | BT6: means | BV6: Mean | BX6: SE | BY6: Bars | CI6: 4 | CK6: 525 | CS6: 1 | CT6: =IF(CS6=0,NA(),SUM($CS$3:CS6)) -> 4
B7: =IF(AND($AZ$5,$BB$4,$AZ$1,AZ7<>"",$U$1<>""), AZ7,"") ->  | C7: =IF(B7<>"",TDIST(ABS(AZ7),I7-1,2),"") ->  | D7: =IF(B7<>"",IF(C7<0.001,"***",(IF(C7<0.01,"**",(IF(C7<0.05,"*",(IF(C7<0.1,"?","ns"))))))),"") ->  | E7: 1 | F7: Aden (1993) | G7: 454 | H7: 142 | I7: 24 | K7: =IF(AZ7<>"",H7*H7/I7,"") -> 840.1666667 | M7: =IF(AZ7<>"",BC7,"") -> 59.96134124 | O7: =IF(AND(BF7<>"",$AZ$5,$BJ$2),IF(fixedrandom=1,100*BF7/SUM($BF$7:$BF$37),100*BP7/$BP$40),"") -> 10.57671109 | Q7: 0.00649 | X7: 0.00649 | Y7: [ | Z7: =IF(AZ7<>"",G7-M7,"") -> 394.0386588 | AA7: , | AB7: =IF(AZ7<>"",G7+M7,"") -> 513.9613412 | AC7: ] | AE7: =IF(AND(AZ2,$G$6<>""),$G$6,"") -> ms | AV7: 1 | AW7: TRUE | AX7: =IF(AND($AZ$5,$AZ7<>""),G7,"") -> 454 | AY7: =IF($AZ7<>"",I7,"") -> 24 | AZ7: =IF(AND(I7>1,G7<>"",H7<>"",AW7), (G7-$U$1)*SQRT(I7)/H7,"") -> 5.312977752 | BA7: =IF($AZ$5,IF($BH$2,NA(),G7),NA()) ->  | BB7: =IF(AZ7<>"",AV7,NA()) -> 1 | BC7: =IF(AZ7<>"",H7*TINV((100-$K$2)/100,I7-1)/SQRT(I7),NA()) -> 59.96134124 | BD7: =IF(AZ7<>"",H7*H7*(I7-1),"") -> 463772 | BE7: =IF(AZ7<>"",(I7-1),"") -> 23 | BF7: =IF($AZ$5,IF(AZ7<>"",1/K7,""),"") -> 0.001190240032 | BG7: =IF(fixedrandom=1,BF7,BP7) -> 0.001190240032 | BI7: =IF(AND($BJ$4,BF7<>""),AX7*BF7,"") -> 0.5403689744 | BJ7: =IF(AND($BJ$4,BF7<>""),BF7*BF7,"") -> 1.416671333e-06 | BK7: =IF(AND($BJ$4,BF7<>""),AX7^2*BF7,"") -> 245.3275144 | BL7: =IF(AND($BJ$4,BF7<>""),1/BF7+$BI$48,"") -> 7406.077638 | BM7: =IF(AND($BJ$4,BF7<>""),1/BL7,"") -> 0.0001350242394 | BN7: =IF(AND($BJ$4,BF7<>""),BM7*AX7,"") -> 0.06130100469 | BO7: =IF(AND($BJ$4,BF7<>""),1/BF7+$BJ$48,"") -> 7128.275822 | BP7: =IF(AND($BJ$4,BF7<>""),1/BO7,"") -> 0.0001402863785 | BQ7: =IF(AND($BJ$4,BF7<>""),BP7*AX7,"") -> 0.06369001584 | BR7: =IF(AND($AZ$5,NOT($BH$2),$AZ7<>""),G7,NA()) ->  | BS7: =CT3 -> 1 | BW7: 0.25 | CI7: 5 | CO7: 479 | CS7: 1 | CT7: =IF(CS7=0,NA(),SUM($CS$3:CS7)) -> 5
D8: =IF(B8<>"",IF(C8<0.001,"***",(IF(C8<0.01,"**",(IF(C8<0.05,"*",(IF(C8<0.1,"?","ns"))))))),"") ->  | E8: 2 | F8: Buggs (1995) | G8: 317 | H8: 158 | I8: 7 | K8: 3566.285714 | M8: 146.1256282 | O8: 2.491724111 | Q8: 0.00649 | X8: 0.00649 | Y8: [ | Z8: 170.8743718 | AA8: , | AB8: 463.1256282 | AC8: ] | AD8: 2 | AE8: =IF(OR(AZ8="",ISNA(BV8)),"",BV8) -> 427.8785709 | AF8: =IF(OR(AZ8="",ISNA(BV8)),"",BY8) -> 51.10864192 | AV8: 2 | AW8: TRUE | AX8: 317 | AY8: 7 | AZ8: 0.2846694449 | BA8: =IF($AZ$5,IF(OR($BH$2,$AZ$2),NA(),G8),NA()) ->  | BB8: 2 | BC8: 146.1256282 | BD8: 149784 | BE8: 6 | BF8: 0.0002804037814 | BG8: 0.0002804037814 | BI8: =IF(AND($BJ$4,BF8<>""),AX8*BF8,"") -> 0.08888799872 | BJ8: =IF(AND($BJ$4,BF8<>""),BF8*BF8,"") -> 7.862628065e-08 | BK8: =IF(AND($BJ$4,BF8<>""),AX8^2*BF8,"") -> 28.17749559 | BL8: 10132.19669 | BM8: =IF(AND($BJ$4,BF8<>""),1/BL8,"") -> 9.86952811e-05 | BN8: =IF(AND($BJ$4,BF8<>""),BM8*AX8,"") -> 0.03128640411 | BO8: 9854.394869 | BP8: =IF(AND($BJ$4,BF8<>""),1/BO8,"") -> 0.0001014775654 | BQ8: =IF(AND($BJ$4,BF8<>""),BP8*AX8,"") -> 0.03216838824 | BS8: 2 | BT8: =IF(AND($BC$1=1,$AZ$2,NOT($BH$2)),G8,NA()) ->  | BU8: =IF(AZ8<>"",AV8,NA()) -> 2 | BV8: =IF(AND($BC$1=1,AZ8<>"",$AZ$2,$AZ$5),SUMPRODUCT($AX$7:AX8,$BF$7:BF8)/SUM($BF$7:BF8),NA()) -> 427.8785709 | BW8: =AV8+$BW$7 -> 2.25 | BX8: =IF($AZ$5,SQRT(1/SUM($BF$7:BF8)),"") -> 26.07631687 | BY8: =IF(AZ8<>"",NORMSINV((100+$K$2)/200)*BX8,0) -> 51.10864192 | CI8: 6 | CN8: 387 | CS8: 1 | CT8: =IF(CS8=0,NA(),SUM($CS$3:CS8)) -> 6
D9: =IF(B9<>"",IF(C9<0.001,"***",(IF(C9<0.01,"**",(IF(C9<0.05,"*",(IF(C9<0.1,"?","ns"))))))),"") ->  | E9: 3 | F9: Crazed (1999) | G9: 430 | H9: 137 | I9: 20 | K9: 938.45 | M9: 64.11797368 | O9: 9.469018169 | Q9: 0.00649 | X9: 0.00649 | Y9: [ | Z9: 365.8820263 | AA9: , | AB9: 494.1179737 | AC9: ] | AD9: 3 | AE9: 428.7698806 | AF9: 38.91828685 | AV9: 3 | AW9: TRUE | AX9: 430 | AY9: 20 | AZ9: 4.243632658 | BB9: 3 | BC9: 64.11797368 | BD9: 356611 | BE9: 19 | BF9: 0.001065586872 | BG9: 0.001065586872 | BI9: 0.4582023549 | BJ9: 1.135475382e-06 | BK9: 197.0270126 | BL9: 7504.360971 | BM9: 0.00013325585 | BN9: 0.0573000155 | BO9: 7226.559155 | BP9: 0.0001383784424 | BQ9: 0.05950273025 | BS9: 3 | BU9: 3 | BV9: =IF(AND($BC$1=1,AZ9<>"",$AZ$2,$AZ$5),SUMPRODUCT($AX$7:AX9,$BF$7:BF9)/SUM($BF$7:BF9),NA()) -> 428.7698806 | BW9: 3.25 | BX9: =IF($AZ$5,SQRT(1/SUM($BF$7:BF9)),"") -> 19.85663367 | BY9: 38.91828685 | CI9: 7 | CR9: 322 | CS9: 1 | CT9: =IF(CS9=0,NA(),SUM($CS$3:CS9)) -> 7
E10: 4 | F10: Dudley (2003) | G10: 525 | H10: 260 | I10: 8 | K10: 8450 | M10: 217.3654396 | O10: 1.051621314 | Q10: 0.00649 | X10: 0.00649 | Y10: [ | Z10: 307.6345604 | AA10: , | AB10: 742.3654396 | AC10: ] | AD10: 4 | AE10: 433.0599024 | AF10: 38.04089118 | AV10: 4 | AW10: TRUE | AX10: 525 | AY10: 8 | AZ10: 2.447677319 | BB10: 4 | BC10: 217.3654396 | BD10: 473200 | BE10: 7 | BF10: 0.0001183431953 | BG10: 0.0001183431953 | BI10: 0.06213017751 | BJ10: 1.400511187e-08 | BK10: 32.6183432 | BL10: 15015.91097 | BM10: 6.659602617e-05 | BN10: 0.03496291374 | BO10: 14738.10915 | BP10: 6.785130911e-05 | BQ10: 0.03562193728 | BS10: 4 | BU10: 4 | BV10: =IF(AND($BC$1=1,AZ10<>"",$AZ$2,$AZ$5),SUMPRODUCT($AX$7:AX10,$BF$7:BF10)/SUM($BF$7:BF10),NA()) -> 433.0599024 | BW10: 4.25 | BX10: =IF($AZ$5,SQRT(1/SUM($BF$7:BF10)),"") -> 19.4089746 | BY10: 38.04089118 | CI10: 8 | CL10: 322 | CS10: 1 | CT10: =IF(CS10=0,NA(),SUM($CS$3:CS10)) -> 8
E11: 5 | F11: Evers (2005) | G11: 479 | H11: 144 | I11: 14 | K11: 1481.142857 | M11: 83.14312466 | O11: 5.999556395 | Q11: 0.00649 | X11: 0.00649 | Y11: [ | Z11: 395.8568753 | AA11: , | AB11: 562.1431247 | AC11: ] | AD11: 5 | AE11: 442.3749736 | AF11: 33.96594475 | AV11: 5 | AW11: TRUE | AX11: 479 | AY11: 14 | AZ11: 4.651088002 | BB11: 5 | BC11: 83.14312466 | BD11: 269568 | BE11: 13 | BF11: 0.000675154321 | BG11: 0.000675154321 | BI11: 0.3233989198 | BJ11: 4.558333571e-07 | BK11: 154.9080826 | BL11: 8047.053828 | BM11: 0.000124269083 | BN11: 0.05952489075 | BO11: 7769.252012 | BP11: 0.0001287125194 | BQ11: 0.06165329677 | BS11: 5 | BU11: 5 | BV11: =IF(AND($BC$1=1,AZ11<>"",$AZ$2,$AZ$5),SUMPRODUCT($AX$7:AX11,$BF$7:BF11)/SUM($BF$7:BF11),NA()) -> 442.3749736 | BW11: 5.25 | BX11: =IF($AZ$5,SQRT(1/SUM($BF$7:BF11)),"") -> 17.32988209 | BY11: 33.96594475 | CI11: 9 | CM11: 465 | CS11: 1 | CT11: =IF(CS11=0,NA(),SUM($CS$3:CS11)) -> 9
E12: 6 | F12: Fox (2009) | G12: 387 | H12: 165 | I12: 13 | K12: 2094.230769 | M12: 99.70850209 | O12: 4.243180948 | Q12: 0.00649 | X12: 0.00649 | Y12: [ | Z12: 287.2914979 | AA12: , | AB12: 486.7085021 | AC12: ] | AD12: 6 | AE12: 435.4298525 | AF12: 31.7646084 | AV12: 6 | AW12: TRUE | AX12: 387 | AY12: 13 | AZ12: 1.901108854 | BB12: 6 | BC12: 99.70850209 | BD12: 326700 | BE12: 12 | BF12: 0.0004775022957 | BG12: 0.0004775022957 | BI12: 0.1847933884 | BJ12: 2.280084424e-07 | BK12: 71.51504132 | BL12: 8660.141741 | BM12: 0.0001154715512 | BN12: 0.0446874903 | BO12: 8382.339924 | BP12: 0.0001192984309 | BQ12: 0.04616849275 | BS12: 6 | BU12: 6 | BV12: =IF(AND($BC$1=1,AZ12<>"",$AZ$2,$AZ$5),SUMPRODUCT($AX$7:AX12,$BF$7:BF12)/SUM($BF$7:BF12),NA()) -> 435.4298525 | BW12: 6.25 | BX12: =IF($AZ$5,SQRT(1/SUM($BF$7:BF12)),"") -> 16.20673066 | BY12: 31.7646084 | CI12: 10 | CM12: 598 | CS12: 1 | CT12: =IF(CS12=0,NA(),SUM($CS$3:CS12)) -> 10
E13: 7 | F13: Golly (2009) | G13: 322 | H13: 125 | I13: 23 | K13: 679.3478261 | M13: 54.05405345 | O13: 13.08048655 | Q13: 0.00649 | X13: 0.00649 | Y13: [ | Z13: 267.9459466 | AA13: , | AB13: 376.0540534 | AC13: ] | AD13: 7 | AE13: 403.8023752 | AF13: 26.97508233 | AV13: 7 | AW13: TRUE | AX13: 322 | AY13: 23 | AZ13: 0.8440663481 | BB13: 7 | BC13: 54.05405345 | BD13: 343750 | BE13: 22 | BF13: 0.001472 | BG13: 0.001472 | BI13: 0.473984 | BJ13: 2.166784e-06 | BK13: 152.622848 | BL13: 7245.258797 | BM13: 0.0001380212947 | BN13: 0.04444285691 | BO13: 6967.456981 | BP13: 0.0001435243881 | BQ13: 0.04621485298 | BS13: 7 | BU13: 7 | BV13: =IF(AND($BC$1=1,AZ13<>"",$AZ$2,$AZ$5),SUMPRODUCT($AX$7:AX13,$BF$7:BF13)/SUM($BF$7:BF13),NA()) -> 403.8023752 | BW13: 7.25 | BX13: =IF($AZ$5,SQRT(1/SUM($BF$7:BF13)),"") -> 13.76305001 | BY13: 26.97508233 | CI13: 11 | CR13: 387 | CS13: 1 | CT13: =IF(CS13=0,NA(),SUM($CS$3:CS13)) -> 11
E14: 8 | F14: Heavy (2009) | G14: 322 | H14: 218 | I14: 9 | K14: 5280.444444 | M14: 167.5696338 | O14: 1.682850789 | Q14: 0.00649 | X14: 0.00649 | Y14: [ | Z14: 154.4303662 | AA14: , | AB14: 489.5696338 | AC14: ] | AD14: 8 | AE14: 400.9695576 | AF14: 26.50389331 | AV14: 8 | AW14: TRUE | AX14: 322 | AY14: 9 | AZ14: 0.3027522936 | BB14: 8 | BC14: 167.5696338 | BD14: 380192 | BE14: 8 | BF14: 0.0001893779985 | BG14: 0.0001893779985 | BI14: 0.06097971551 | BJ14: 3.586402631e-08 | BK14: 19.63546839 | BL14: 11846.35542 | BM14: 8.441414806e-05 | BN14: 0.02718135567 | BO14: 11568.5536 | BP14: 8.644122979e-05 | BQ14: 0.02783407599 | BS14: 8 | BU14: 8 | BV14: =IF(AND($BC$1=1,AZ14<>"",$AZ$2,$AZ$5),SUMPRODUCT($AX$7:AX14,$BF$7:BF14)/SUM($BF$7:BF14),NA()) -> 400.9695576 | BW14: 8.25 | BX14: =IF($AZ$5,SQRT(1/SUM($BF$7:BF14)),"") -> 13.52264303 | BY14: 26.50389331 | CI14: 12 | CO14: 548 | CS14: 1 | CT14: =IF(CS14=0,NA(),SUM($CS$3:CS14)) -> 12
E15: 9 | F15: Ingling (2009) | G15: 465 | H15: 225 | I15: 20 | K15: 2531.25 | M15: 105.3032414 | O15: 3.510597571 | Q15: 0.00649 | X15: 0.00649 | Y15: [ | Z15: 359.6967586 | AA15: , | AB15: 570.3032414 | AC15: ] | AD15: 9 | AE15: 405.2835753 | AF15: 25.59548259 | AV15: 9 | AW15: TRUE | AX15: 465 | AY15: 20 | AZ15: 3.279566367 | BB15: 9 | BC15: 105.3032414 | BD15: 961875 | BE15: 19 | BF15: 0.0003950617284 | BG15: 0.0003950617284 | BI15: 0.1837037037 | BJ15: 1.560737692e-07 | BK15: 85.42222222 | BL15: 9097.160971 | BM15: 0.0001099244042 | BN15: 0.05111484797 | BO15: 8819.359155 | BP15: 0.0001133869233 | BQ15: 0.05272491933 | BS15: 9 | BU15: 9 | BV15: =IF(AND($BC$1=1,AZ15<>"",$AZ$2,$AZ$5),SUMPRODUCT($AX$7:AX15,$BF$7:BF15)/SUM($BF$7:BF15),NA()) -> 405.2835753 | BW15: 9.25 | BX15: =IF($AZ$5,SQRT(1/SUM($BF$7:BF15)),"") -> 13.05915965 | BY15: 25.59548259 | CI15: 13 | CL15: 690 | CS15: 1 | CT15: =IF(CS15=0,NA(),SUM($CS$3:CS15)) -> 13
E16: 10 | F16: Johns (2009) | G16: 598 | H16: 213 | I16: 14 | K16: 3240.642857 | M16: 122.9825386 | O16: 2.742110283 | Q16: 0.00649 | X16: 0.00649 | Y16: [ | Z16: 475.0174614 | AA16: , | AB16: 720.9825386 | AC16: ] | AD16: 10 | AE16: 414.9184037 | AF16: 24.94745814 | AV16: 10 | AW16: TRUE | AX16: 598 | AY16: 14 | AZ16: 5.234807048 | BB16: 10 | BC16: 122.9825386 | BD16: 589797 | BE16: 13 | BF16: 0.000308580749 | BG16: 0.000308580749 | BI16: 0.1845312879 | BJ16: 9.522207863e-08 | BK16: 110.3497102 | BL16: 9806.553828 | BM16: 0.0001019726213 | BN16: 0.06097962755 | BO16: 9528.752012 | BP16: 0.0001049455373 | BQ16: 0.06275743132 | BS16: 10 | BU16: 10 | BV16: =IF(AND($BC$1=1,AZ16<>"",$AZ$2,$AZ$5),SUMPRODUCT($AX$7:AX16,$BF$7:BF16)/SUM($BF$7:BF16),NA()) -> 414.9184037 | BW16: 10.25 | BX16: =IF($AZ$5,SQRT(1/SUM($BF$7:BF16)),"") -> 12.72852886 | BY16: 24.94745814 | CI16: 14 | CN16: 438 | CS16: 1 | CT16: =IF(CS16=0,NA(),SUM($CS$3:CS16)) -> 14
E17: 11 | F17: King (2010) | G17: 387 | H17: 112 | I17: 20 | K17: 627.2 | M17: 52.41761352 | O17: 14.16804863 | Q17: 0.00649 | X17: 0.00649 | Y17: [ | Z17: 334.5823865 | AA17: , | AB17: 439.4176135 | AC17: ] | AD17: 11 | AE17: 409.1871263 | AF17: 22.23983388 | AV17: 11 | AW17: TRUE | AX17: 387 | AY17: 20 | AZ17: 3.473891322 | BB17: 11 | BC17: 52.41761352 | BD17: 238336 | BE17: 19 | BF17: 0.001594387755 | BG17: 0.001594387755 | BI17: 0.6170280612 | BJ17: 2.542072314e-06 | BK17: 238.7898597 | BL17: 7193.110971 | BM17: 0.0001390219064 | BN17: 0.05380147777 | BO17: 6915.309155 | BP17: 0.0001446066947 | BQ17: 0.05596279086 | BS17: 11 | BU17: 11 | BV17: =IF(AND($BC$1=1,AZ17<>"",$AZ$2,$AZ$5),SUMPRODUCT($AX$7:AX17,$BF$7:BF17)/SUM($BF$7:BF17),NA()) -> 409.1871263 | BW17: 11.25 | BX17: =IF($AZ$5,SQRT(1/SUM($BF$7:BF17)),"") -> 11.34706253 | BY17: 22.23983388 | CI17: 15 | CR17: 314 | CS17: 1 | CT17: =IF(CS17=0,NA(),SUM($CS$3:CS17)) -> 15
E18: 12 | F18: Lennox (2010) | G18: 548 | H18: 155 | I18: 18 | K18: 1334.722222 | M18: 77.07968661 | O18: 6.657714956 | Q18: 0.00649 | X18: 0.00649 | Y18: [ | Z18: 470.9203134 | AA18: , | AB18: 625.0796866 | AC18: ] | AD18: 12 | AE18: 421.3997908 | AF18: 21.23899086 | AV18: 12 | AW18: TRUE | AX18: 548 | AY18: 18 | AZ18: 6.788225099 | BB18: 12 | BC18: 77.07968661 | BD18: 408425 | BE18: 17 | BF18: 0.000749219563 | BG18: 0.000749219563 | BI18: 0.4105723205 | BJ18: 5.613299535e-07 | BK18: 224.9936316 | BL18: 7900.633194 | BM18: 0.0001265721336 | BN18: 0.06936152921 | BO18: 7622.831377 | BP18: 0.0001311848512 | BQ18: 0.07188929846 | BS18: 12 | BU18: 12 | BV18: =IF(AND($BC$1=1,AZ18<>"",$AZ$2,$AZ$5),SUMPRODUCT($AX$7:AX18,$BF$7:BF18)/SUM($BF$7:BF18),NA()) -> 421.3997908 | BW18: 12.25 | BX18: =IF($AZ$5,SQRT(1/SUM($BF$7:BF18)),"") -> 10.83641895 | BY18: 21.23899086 | CI18: 16 | CL18: 330 | CS18: 1 | CT18: =IF(CS18=0,NA(),SUM($CS$3:CS18)) -> 16
E19: 13 | F19: Mahov (2010) | G19: 690 | H19: 179 | I19: 6 | K19: 5340.166667 | M19: 187.8489795 | O19: 1.66403048 | Q19: 0.00649 | X19: 0.00649 | Y19: [ | Z19: 502.1510205 | AA19: , | AB19: 877.8489795 | AC19: ] | AD19: 13 | AE19: 427.1791095 | AF19: 21.00925469 | AV19: 13 | AW19: TRUE | AX19: 690 | AY19: 6 | AZ19: 5.336877093 | BB19: 13 | BC19: 187.8489795 | BD19: 160205 | BE19: 5 | BF19: 0.000187260073 | BG19: 0.000187260073 | BI19: 0.1292094504 | BJ19: 3.506633495e-08 | BK19: 89.15452077 | BL19: 11906.07764 | BM19: 8.399071721e-05 | BN19: 0.05795359488 | BO19: 11628.27582 | BP19: 8.599727211e-05 | BQ19: 0.05933811776 | BS19: 13 | BU19: 13 | BV19: =IF(AND($BC$1=1,AZ19<>"",$AZ$2,$AZ$5),SUMPRODUCT($AX$7:AX19,$BF$7:BF19)/SUM($BF$7:BF19),NA()) -> 427.1791095 | BW19: 13.25 | BX19: =IF($AZ$5,SQRT(1/SUM($BF$7:BF19)),"") -> 10.71920446 | BY19: 21.00925469 | CI19: 17 | CS19: 0 | CT19: =IF(CS19=0,NA(),SUM($CS$3:CS19)) -> 
E20: 14 | F20: Nongle (2010) | G20: 438 | H20: 134 | I20: 11 | K20: 1632.363636 | M20: 90.02242492 | O20: 5.443762592 | Q20: 0.00649 | X20: 0.00649 | Y20: [ | Z20: 347.9775751 | AA20: , | AB20: 528.0224249 | AC20: ] | AD20: 14 | AE20: 427.8906987 | AF20: 20.30671695 | AV20: 14 | AW20: TRUE | AX20: 438 | AY20: 11 | AZ20: 3.415628515 | BB20: 14 | BC20: 90.02242492 | BD20: 179560 | BE20: 10 | BF20: 0.0006126085988 | BG20: 0.0006126085988 | BI20: 0.2683225663 | BJ20: 3.752892953e-07 | BK20: 117.525284 | BL20: 8198.274608 | BM20: 0.0001219768851 | BN20: 0.05342587568 | BO20: 7920.472791 | BP20: 0.0001262550894 | BQ20: 0.05529972914 | BS20: 14 | BU20: 14 | BV20: =IF(AND($BC$1=1,AZ20<>"",$AZ$2,$AZ$5),SUMPRODUCT($AX$7:AX20,$BF$7:BF20)/SUM($BF$7:BF20),NA()) -> 427.8906987 | BW20: 14.25 | BX20: =IF($AZ$5,SQRT(1/SUM($BF$7:BF20)),"") -> 10.36076026 | BY20: 20.30671695 | CI20: 18 | CS20: 0 | CT20: =IF(CS20=0,NA(),SUM($CS$3:CS20)) -> 
E21: 15 | F21: Over (2011) | G21: 314 | H21: 125 | I21: 23 | K21: 679.3478261 | M21: 54.05405345 | O21: 13.08048655 | Q21: 0.00649 | X21: 0.00649 | Y21: [ | Z21: 259.9459466 | AA21: , | AB21: 368.0540534 | AC21: ] | AD21: 15 | AE21: 412.3501582 | AF21: 18.87048742 | AV21: 15 | AW21: TRUE | AX21: 314 | AY21: 23 | AZ21: 0.5371331306 | BB21: 15 | BC21: 54.05405345 | BD21: 343750 | BE21: 22 | BF21: 0.001472 | BG21: 0.001472 | BI21: 0.462208 | BJ21: 2.166784e-06 | BK21: 145.133312 | BL21: 7245.258797 | BM21: 0.0001380212947 | BN21: 0.04333868655 | BO21: 6967.456981 | BP21: 0.0001435243881 | BQ21: 0.04506665787 | BS21: 15 | BU21: 15 | BV21: =IF(AND($BC$1=1,AZ21<>"",$AZ$2,$AZ$5),SUMPRODUCT($AX$7:AX21,$BF$7:BF21)/SUM($BF$7:BF21),NA()) -> 412.3501582 | BW21: 15.25 | BX21: =IF($AZ$5,SQRT(1/SUM($BF$7:BF21)),"") -> 9.627976621 | BY21: 18.87048742 | CI21: 19 | CS21: 0 | CT21: =IF(CS21=0,NA(),SUM($CS$3:CS21)) -> 
E22: 16 | F22: Percy (2011) | G22: 330 | H22: 218 | I22: 9 | K22: 5280.444444 | M22: 167.5696338 | O22: 1.682850789 | Q22: 0.00649 | X22: 0.00649 | Y22: [ | Z22: 162.4303662 | AA22: , | AB22: 497.5696338 | AC22: ] | AD22: 16 | AE22: 410.9294458 | AF22: 18.70700157 | AV22: 16 | AW22: TRUE | AX22: 330 | AY22: 9 | AZ22: 0.4128440367 | BB22: 16 | BC22: 167.5696338 | BD22: 380192 | BE22: 8 | BF22: 0.0001893779985 | BG22: 0.0001893779985 | BI22: 0.0624947395 | BJ22: 3.586402631e-08 | BK22: 20.62326404 | BL22: 11846.35542 | BM22: 8.441414806e-05 | BN22: 0.02785666886 | BO22: 11568.5536 | BP22: 8.644122979e-05 | BQ22: 0.02852560583 | BS22: 16 | BU22: 16 | BV22: =IF(AND($BC$1=1,AZ22<>"",$AZ$2,$AZ$5),SUMPRODUCT($AX$7:AX22,$BF$7:BF22)/SUM($BF$7:BF22),NA()) -> 410.9294458 | BW22: 16.25 | BX22: =IF($AZ$5,SQRT(1/SUM($BF$7:BF22)),"") -> 9.544563937 | BY22: 18.70700157 | CI22: 20 | CS22: 0 | CT22: =IF(CS22=0,NA(),SUM($CS$3:CS22)) -> 
E23: 17 | F23: study 17 | Q23: 0.00649 | X23: 0.00649 | Y23: [ | AA23: , | AC23: ] | AD23: 17 | AV23: 17 | AW23: TRUE | BV23: =IF(AND($BC$1=1,AZ23<>"",$AZ$2,$AZ$5),SUMPRODUCT($AX$7:AX23,$BF$7:BF23)/SUM($BF$7:BF23),NA()) ->  | BW23: 17.25 | BX23: =IF($AZ$5,SQRT(1/SUM($BF$7:BF23)),"") -> 9.544563937 | BY23: 0 | CI23: 21 | CS23: 0 | CT23: =IF(CS23=0,NA(),SUM($CS$3:CS23)) -> 
E24: 18 | F24: study 18 | Q24: 0.00649 | X24: 0.00649 | Y24: [ | AA24: , | AC24: ] | AD24: 18 | AV24: 18 | AW24: TRUE | BV24: =IF(AND($BC$1=1,AZ24<>"",$AZ$2,$AZ$5),SUMPRODUCT($AX$7:AX24,$BF$7:BF24)/SUM($BF$7:BF24),NA()) ->  | BW24: 18.25 | BX24: =IF($AZ$5,SQRT(1/SUM($BF$7:BF24)),"") -> 9.544563937 | BY24: 0 | CI24: 22 | CS24: 0 | CT24: =IF(CS24=0,NA(),SUM($CS$3:CS24)) -> 
E25: 19 | F25: study 19 | Q25: 0.00649 | X25: 0.00649 | Y25: [ | AA25: , | AC25: ] | AD25: 19 | AV25: 19 | AW25: TRUE | BV25: =IF(AND($BC$1=1,AZ25<>"",$AZ$2,$AZ$5),SUMPRODUCT($AX$7:AX25,$BF$7:BF25)/SUM($BF$7:BF25),NA()) ->  | BW25: 19.25 | BX25: =IF($AZ$5,SQRT(1/SUM($BF$7:BF25)),"") -> 9.544563937 | BY25: 0 | CI25: 23 | CS25: 0 | CT25: =IF(CS25=0,NA(),SUM($CS$3:CS25)) -> 
E26: 20 | F26: study 20 | Q26: 0.00649 | X26: 0.00649 | Y26: [ | AA26: , | AC26: ] | AD26: 20 | AV26: 20 | AW26: TRUE | BV26: =IF(AND($BC$1=1,AZ26<>"",$AZ$2,$AZ$5),SUMPRODUCT($AX$7:AX26,$BF$7:BF26)/SUM($BF$7:BF26),NA()) ->  | BW26: 20.25 | BX26: =IF($AZ$5,SQRT(1/SUM($BF$7:BF26)),"") -> 9.544563937 | BY26: 0 | CI26: 24 | CS26: 0 | CT26: =IF(CS26=0,NA(),SUM($CS$3:CS26)) -> 
E27: 21 | F27: study 21 | Q27: 0.00649 | X27: 0.00649 | Y27: [ | AA27: , | AC27: ] | AD27: 21 | AV27: 21 | AW27: TRUE | BV27: =IF(AND($BC$1=1,AZ27<>"",$AZ$2,$AZ$5),SUMPRODUCT($AX$7:AX27,$BF$7:BF27)/SUM($BF$7:BF27),NA()) ->  | BW27: 21.25 | BX27: =IF($AZ$5,SQRT(1/SUM($BF$7:BF27)),"") -> 9.544563937 | BY27: 0 | CI27: 25 | CS27: 0 | CT27: =IF(CS27=0,NA(),SUM($CS$3:CS27)) -> 
E28: 22 | F28: study 22 | Q28: 0.00649 | X28: 0.00649 | Y28: [ | AA28: , | AC28: ] | AD28: 22 | AV28: 22 | AW28: TRUE | BV28: =IF(AND($BC$1=1,AZ28<>"",$AZ$2,$AZ$5),SUMPRODUCT($AX$7:AX28,$BF$7:BF28)/SUM($BF$7:BF28),NA()) ->  | BW28: 22.25 | BX28: =IF($AZ$5,SQRT(1/SUM($BF$7:BF28)),"") -> 9.544563937 | BY28: 0 | CI28: 26 | CS28: 0 | CT28: =IF(CS28=0,NA(),SUM($CS$3:CS28)) -> 
E29: 23 | F29: study 23 | Q29: 0.00649 | X29: 0.00649 | Y29: [ | AA29: , | AC29: ] | AD29: 23 | AV29: 23 | AW29: TRUE | BV29: =IF(AND($BC$1=1,AZ29<>"",$AZ$2,$AZ$5),SUMPRODUCT($AX$7:AX29,$BF$7:BF29)/SUM($BF$7:BF29),NA()) ->  | BW29: 23.25 | BX29: =IF($AZ$5,SQRT(1/SUM($BF$7:BF29)),"") -> 9.544563937 | BY29: 0 | CI29: 27 | CS29: 0 | CT29: =IF(CS29=0,NA(),SUM($CS$3:CS29)) -> 
E30: 24 | F30: study 24 | Q30: 0.00649 | X30: 0.00649 | Y30: [ | AA30: , | AC30: ] | AD30: 24 | AV30: 24 | AW30: TRUE | BV30: =IF(AND($BC$1=1,AZ30<>"",$AZ$2,$AZ$5),SUMPRODUCT($AX$7:AX30,$BF$7:BF30)/SUM($BF$7:BF30),NA()) ->  | BW30: 24.25 | BX30: =IF($AZ$5,SQRT(1/SUM($BF$7:BF30)),"") -> 9.544563937 | BY30: 0 | CI30: 28 | CS30: 0 | CT30: =IF(CS30=0,NA(),SUM($CS$3:CS30)) -> 
E31: 25 | F31: study 25 | Q31: 0.00649 | X31: 0.00649 | Y31: [ | AA31: , | AC31: ] | AD31: 25 | AV31: 25 | AW31: TRUE | BV31: =IF(AND($BC$1=1,AZ31<>"",$AZ$2,$AZ$5),SUMPRODUCT($AX$7:AX31,$BF$7:BF31)/SUM($BF$7:BF31),NA()) ->  | BW31: 25.25 | BX31: =IF($AZ$5,SQRT(1/SUM($BF$7:BF31)),"") -> 9.544563937 | BY31: 0 | CI31: 29 | CS31: 0 | CT31: =IF(CS31=0,NA(),SUM($CS$3:CS31)) -> 
E32: 26 | F32: study 26 | Q32: 0.00649 | X32: 0.00649 | Y32: [ | AA32: , | AC32: ] | AD32: 26 | AV32: 26 | AW32: TRUE | BV32: =IF(AND($BC$1=1,AZ32<>"",$AZ$2,$AZ$5),SUMPRODUCT($AX$7:AX32,$BF$7:BF32)/SUM($BF$7:BF32),NA()) ->  | BW32: 26.25 | BX32: =IF($AZ$5,SQRT(1/SUM($BF$7:BF32)),"") -> 9.544563937 | BY32: 0 | CI32: 30 | CS32: 0 | CT32: =IF(CS32=0,NA(),SUM($CS$3:CS32)) -> 
E33: 27 | F33: study 27 | Q33: 0.00649 | X33: 0.00649 | Y33: [ | AA33: , | AC33: ] | AD33: 27 | AV33: 27 | AW33: TRUE | BV33: =IF(AND($BC$1=1,AZ33<>"",$AZ$2,$AZ$5),SUMPRODUCT($AX$7:AX33,$BF$7:BF33)/SUM($BF$7:BF33),NA()) ->  | BW33: 27.25 | BX33: =IF($AZ$5,SQRT(1/SUM($BF$7:BF33)),"") -> 9.544563937 | BY33: 0 | BZ33: =IF(AND(BG37<=$BT$42,$BH$2),G40,NA()) ->  | CA33: =IF(AND(BG37>$BT$42,BG37<=$BT$43,$BH$2),G40,NA()) ->  | CB33: =IF(AND(BG37>$BT$43,BG37<=$BT$44,$BH$2),G40,NA()) -> 430 | CC33: =IF(AND(BG37>$BT$44,BG37<=$BT$45,$BH$2),G40,NA()) ->  | CD33: =IF(AND(BG37>$BT$45,BG37<=$BT$46,$BH$2),G40,NA()) ->  | CE33: =IF(AND(BG37>$BT$46,BG37<=$BT$47,$BH$2),G40,NA()) ->  | CF33: =IF(AND(BG37>$BT$47,BG37<=$BT$48,$BH$2),G40,NA()) ->  | CG33: =IF(AND(BG37>$BT$48,BG37<=$BT$49,$BH$2),G40,NA()) ->  | CH33: =IF(AND(BG37<>"",BG37>$BT$49,$BH$2),G40,NA()) ->  | CI33: 34 | CT33: =IF(AZ5,SUM(CS3:CS32)+2,NA()) -> 18
E34: 28 | F34: study 28 | Q34: 0.00649 | X34: 0.00649 | Y34: [ | AA34: , | AC34: ] | AD34: 28 | AV34: 28 | AW34: TRUE | BV34: =IF(AND($BC$1=1,AZ34<>"",$AZ$2,$AZ$5),SUMPRODUCT($AX$7:AX34,$BF$7:BF34)/SUM($BF$7:BF34),NA()) ->  | BW34: 28.25 | BX34: =IF($AZ$5,SQRT(1/SUM($BF$7:BF34)),"") -> 9.544563937 | BY34: 0
D35: =IF(B35<>"",IF(C35<0.001,"***",(IF(C35<0.01,"**",(IF(C35<0.05,"*",(IF(C35<0.1,"?","ns"))))))),"") ->  | E35: 29 | F35: study 29 | Q35: 0.00649 | X35: 0.00649 | Y35: [ | AA35: , | AC35: ] | AD35: 29 | AV35: 29 | AW35: TRUE | BV35: =IF(AND($BC$1=1,AZ35<>"",$AZ$2,$AZ$5),SUMPRODUCT($AX$7:AX35,$BF$7:BF35)/SUM($BF$7:BF35),NA()) ->  | BW35: 29.25 | BX35: =IF($AZ$5,SQRT(1/SUM($BF$7:BF35)),"") -> 9.544563937 | BY35: 0 | BZ35: Weighted means, grey
D36: =IF(B36<>"",IF(C36<0.001,"***",(IF(C36<0.01,"**",(IF(C36<0.05,"*",(IF(C36<0.1,"?","ns"))))))),"") ->  | E36: 30 | F36: study 30 | M36: =IF(AZ36<>"",BC36,"") ->  | Q36: 0.00649 | X36: 0.00649 | Y36: [ | AA36: , | AC36: ] | AD36: 30 | AV36: 30 | AW36: TRUE | BV36: =IF(AND($BC$1=1,AZ36<>"",$AZ$2,$AZ$5),SUMPRODUCT($AX$7:AX36,$BF$7:BF36)/SUM($BF$7:BF36),NA()) ->  | BW36: 30.25 | BX36: =IF($AZ$5,SQRT(1/SUM($BF$7:BF36)),"") -> 9.544563937 | BY36: 0 | BZ36: =IF(AND($BC$1=1,BF8<=$BT$42,$AZ$2,$BH$2),G8,NA()) ->  | CA36: =IF(AND($BC$1=1,BF8>$BT$42,BF8<=$BT$43,$AZ$2,$BH$2),G8,NA()) ->  | CB36: =IF(AND($BC$1=1,BF8>$BT$43,BF8<=$BT$44,$AZ$2,$BH$2),G8,NA()) -> 317 | CC36: =IF(AND($BC$1=1,BF8>$BT$44,BF8<=$BT$45,$AZ$2,$BH$2),G8,NA()) ->  | CD36: =IF(AND($BC$1=1,BF8>$BT$45,BF8<=$BT$46,$AZ$2,$BH$2),G8,NA()) ->  | CE36: =IF(AND($BC$1=1,BF8>$BT$46,BF8<=$BT$47,$AZ$2,$BH$2),G8,NA()) ->  | CF36: =IF(AND($BC$1=1,BF8>$BT$47,BF8<=$BT$48,$AZ$2,$BH$2),G8,NA()) ->  | CG36: =IF(AND($BC$1=1,BF8>$BT$48,BF8<=$BT$49,$AZ$2,$BH$2),G8,NA()) ->  | CH36: =IF(AND($BC$1=1,BF8<>"",BF8>$BT$49,$AZ$2,$BH$2),G8,NA()) ->  | CI36: 2
E37: 3 | F37: Past research, meta-analyzed | K37: 9 | M37: Result as diamond | Q37: 0.00649 | X37: 0.00649 | AX37: =IF(AND($AZ$5,$AZ42<>""),G40,"") -> 430 | BA37: SE of mean | BB37: =IF($AZ$5,SQRT(1/SUM(BF7:BF36)),"") -> 9.544563937 | BF37: =IF(AZ42<>"",1/K40,"") -> 0.0002762990661 | BG37: 0.0002762990661 | BH37: =IF($BJ$4,SUM(BF7:BF36),"") -> 0.01097710496 | BI37: =IF(AND($BJ$4,BF37<>""),AX37*BF37,"") -> 0.1188085984 | BJ37: =IF(AND($BJ$4,BF37<>""),BF37*BF37,"") -> 7.634117393e-08 | BK37: =IF(AND($BJ$4,BF37<>""),AX37^2*BF37,"") -> 51.08769732 | BL37: 10185.17764 | BM37: 9.818189093e-05 | BN37: 0.0422182131 | BO37: 9907.375822 | BP37: 0.0001009349012 | BQ37: 0.04340200753 | BS37: 18 | CF37: 430 | CI37: 3
B38: =IF(AND($AZ$5,$BB$4,$AZ$1,AZ39<>"",$U$1<>""), IF(fixedrandom=1,AZ39,BI56),"") ->  | C38: =IF(B38<>"",2*(1-NORMSDIST(ABS(B38))),"") ->  | D38: =IF(B38<>"",IF(C38<0.001,"***",(IF(C38<0.01,"**",(IF(C38<0.05,"*",(IF(C38<0.1,"?","ns"))))))),"") ->  | F38: =IF(AZ5,IF(fixedrandom=1,"Fixed effect ","Random effects "),"") -> Fixed effect | G38: =IF(AND($AZ$5,$BJ$2),IF(fixedrandom=1,SUMPRODUCT(AX7:AX36,BF7:BF36)/SUM(BF7:BF36),BI50),"") -> 410.9294458 | I38: =IF(AND($AZ$5,$BJ$2),SUM(AY7:AY36),"") -> 239 | K38: =IF(AND($AZ$5,$BJ$2),IF(fixedrandom=1,BB37^2,BI51),"") -> 91.09870075 | M38: =IF(AZ39<>"",BC39,"") -> 18.70700157 | Q38: 0.00649 | X38: 0.00649 | Y38: [ | Z38: =IF(AZ39<>"",G38-M38,"") -> 392.2224443 | AA38: , | AB38: =IF(AZ39<>"",G38+M38,"") -> 429.6364474 | AC38: ] | AZ38: z | BC38: bars | BF38: max weight | BG38: =IF(fixedrandom=1,MAX(BF7:BF37),MAX(BP7:BP37)) -> 0.001594387755 | BH38: =IF($BJ$4,SUM(BF7:BF37),"") -> 0.01125340403 | CA38: 525 | CI38: 4
E39: 4 | F39: Current study | Q39: 0.00649 | X39: 0.00649 | AX39: =IF($AZ39<>"",G38,"") -> 410.9294458 | AY39: =IF($AZ39<>"",I38,"") -> 239 | AZ39: =IF(AND(I38>1,G38<>""), (G38-$U$1)/BB37,"") -> 11.62226442 | BA39: =IF(AND($AZ$5,$BJ$2),IF(NOT(BH3),G38,NA()),NA()) ->  | BB39: =IF(AND(NOT(BH3),AZ39<>""),32,32) -> 32 | BC39: =IF(AZ39<>"",IF(fixedrandom=1,NORMSINV((100+$K$2)/200)*BB37,BI53),NA()) -> 18.70700157 | BE39: =IF(AZ39<>"",(I38-1),"") -> 238 | BH39: Total | BI39: =IF($BJ$4,SUM(BI7:BI36),"") -> 4.510815659 | BJ39: 1.14989697e-05 | BK39: 1933.823611 | BL39: 149050.7815 | BM39: 0.001801641584 | BN39: 0.7785192401 | BR39: =IF(AND(NOT(BH3),AZ39<>""),BS37,NA()) ->  | CE39: 479 | CI39: 5
B40: =IF(AND($AZ$5,$BB$4,$AZ$1,AZ42<>"",$U$1<>""), AZ42,"") ->  | C40: =IF(B40<>"",TDIST(ABS(AZ42),I40-1,2),"") ->  | D40: =IF(B40<>"",IF(C40<0.001,"***",(IF(C40<0.01,"**",(IF(C40<0.05,"*",(IF(C40<0.1,"?","ns"))))))),"") ->  | F40: my study | G40: 430 | H40: 233 | I40: 15 | K40: =IF(AZ42<>"",H40*H40/I40,"") -> 3619.266667 | M40: =IF(AZ42<>"",BC42,"") -> 129.0310992 | O40: =IF(AND(BF37<>"",$AZ$5,$BJ$2),IF(fixedrandom=1,100*BF37/SUM($BF$7:$BF$37),100*BP37/$BP$40),"") -> 2.455248789 | Q40: 0.00649 | X40: 0.00649 | Y40: [ | Z40: =IF(AZ42<>"",G40-M40,"") -> 300.9689008 | AA40: , | AB40: =IF(AZ42<>"",G40+M40,"") -> 559.0310992 | AC40: ] | BA40: =G38 -> 410.9294458 | BB40: 32 | BE40: min weight | BF40: =MIN(BF7:BF37) -> 0.0001183431953 | BH40: TOTAL | BI40: =IF($BJ$4,SUM(BI7:BI37),"") -> 4.629624257 | BJ40: =IF($BJ$4,SUM(BJ7:BJ37),"") -> 1.157531088e-05 | BK40: =IF($BJ$4,SUM(BK7:BK37),"") -> 1984.911308 | BO40: =IF($BJ$4,SUM(BO7:BO37),"") -> 154513.3282 | BP40: =IF($BJ$4,SUM(BP7:BP37),"") -> 0.001963247151 | BQ40: =IF($BJ$4,SUM(BQ7:BQ37),"") -> 0.8478203482 | CD40: 387 | CI40: 6
E41: 5 | F41: Past + current, meta-analyzed | Q41: 0.00649 | X41: 0.00649 | BR41: 0 | BS41: 0.1 | BT41: bin ends | BU41: dot size | BV41: Influence | BW41: 0 | BX41: 0.2 | CH41: 322 | CI41: 7
B42: =IF(AND($AZ$5,$BB$4,$AZ$1,AZ45<>"",$U$1<>""),IF(fixedrandom=1,AZ45,BJ56),"") ->  | C42: =IF(B42<>"",2*(1-NORMSDIST(ABS(B42))),"") ->  | D42: =IF(B42<>"",IF(C42<0.001,"***",(IF(C42<0.01,"**",(IF(C42<0.05,"*",(IF(C42<0.1,"?","ns"))))))),"") ->  | F42: =IF(AZ5,IF(fixedrandom=1,"Fixed effect ","Random effects "),"") -> Fixed effect | G42: =IF(AND($AZ$5,$BJ$3),IF(fixedrandom=1,SUMPRODUCT((AX7:AX37),(BF7:BF37))/SUM(BF7:BF37),BJ50),"") -> 411.3976754 | I42: =IF(AND($AZ$5,$BJ$3),SUM(AY39,AY42),"") -> 254 | K42: =IF(AND($AZ$5,$BJ$3),IF(fixedrandom=1,BB43^2,BJ51),"") -> 88.86200101 | M42: =IF(AZ45<>"",BC45,"") -> 18.47592265 | Q42: 0.00649 | X42: 0.00649 | Y42: [ | Z42: =IF(AZ45<>"",G42-M42,"") -> 392.9217528 | AA42: , | AB42: =IF(AZ45<>"",G42+M42,"") -> 429.873598 | AC42: ] | AW42: TRUE | AX42: =IF($AZ42<>"",G40,"") -> 430 | AY42: =IF($AZ42<>"",I40,"") -> 15 | AZ42: =IF(AND(AZ5,I40>1,G40<>"",H40<>"",AW42), (G40-$U$1)*SQRT(I40)/H40,"") -> 2.160891996 | BA42: =IF($AZ$5,IF($BH$2,NA(),G40),NA()) ->  | BB42: =IF(AZ42<>"",34,NA()) -> 34 | BC42: =IF(AZ42<>"",H40*TINV((100-$K$2)/100,I40-1)/SQRT(I40),NA()) -> 129.0310992 | BD42: =IF(AZ42<>"",H40*H40*(I40-1),"") -> 760046 | BE42: =IF(AZ42<>"",(I40-1),"") -> 14 | BF42: =IF(AZ42<>"",I40/(H40*H40),"") -> 0.0002762990661 | BR42: =AVERAGE(BV42:BV43) -> 1.16 | BS42: 0.1 | BT42: =$BG$38*BR42/$BR$50 -> 6.461664061e-05 | BU42: 3 | BV42: 0.36 | BW42: =BV42 -> 0.36 | BX42: 0.2 | CB42: 322 | CI42: 8
F43: 18 T | G43: =IF(ISNUMBER(BJ48),SQRT(BJ48),"") -> 79.29759867 | H43: =IF($G$6<>"",$G$6,"") -> ms | M43: 19 Heterogeneity | N43: Q | O43: =IF(ISNUMBER(BJ45),BJ45,"") -> 80.29465057 | BA43: SE of mean | BB43: =IF($AZ$5,SQRT(1/SUM(BF7:BF37)),"") -> 9.426664363 | BH43: Means: | BI43: 1 - 30 | BJ43: +current | BR43: 3.0608 | BS43: 0.1 | BT43: 0.0001704988048 | BU43: 4 | BV43: 1.96 | BW43: 1.96 | BX43: 0.2 | CC43: 465 | CI43: 9
B44: 16 | C44: Model | F44: CI [ | G44: =IF(ISNUMBER(BJ67),BJ67,"") -> 58.88516391 | H44: , | N44: df | O44: =IF(ISNUMBER(BJ44),BJ44,"") -> 16 | AZ44: z | BC44: bars | BH44: df | BI44: =COUNT(BI7:BI36)-1 -> 15 | BJ44: =COUNT(BJ7:BJ37)-1 -> 16 | BR44: 5.4608 | BS44: 0.1 | BT44: 0.0003041884061 | BU44: 6 | BV44: 4.1616 | BW44: 4.1616 | BX44: 0.2 | CC44: 598 | CI44: 10
G45: =IF(ISNUMBER(BJ68),BJ68,"") -> 103.391279 | H45: ] | N45: p | O45: =IF(ISNUMBER(BJ46),BJ46,"") -> 1.472427305e-10 | AX45: =IF($AZ45<>"",G42,"") -> 411.3976754 | AY45: =IF($AZ45<>"",I42,"") -> 254 | AZ45: =IF(AND(I42>1,G42<>""),(G42-$U$1)/BB43,"") -> 11.81729519 | BA45: =IF(AND($AZ$5,$BJ$3),IF(NOT(BH3),G42,NA()),NA()) ->  | BB45: =IF(AND(NOT(BH3),AZ45<>""),36,36) -> 36 | BC45: =IF(AZ45<>"",IF(fixedrandom=1,NORMSINV((100+$K$2)/200)*BB43,BJ53),NA()) -> 18.47592265 | BE45: =IF(AZ45<>"",(I42-1),"") -> 253 | BH45: Q | BI45: =IF(BH37=0,"",BK39-BI39^2/BH37) -> 80.19663164 | BJ45: =IF(BH38=0,"",BK40-BI40^2/BH38) -> 80.29465057 | BR45: 8.34125 | BS45: 0.1 | BT45: 0.0004646409944 | BU45: 7 | BV45: 6.76 | BW45: 6.76 | BX45: 0.2 | CH45: 387 | CI45: 11
N46: I2 | O46: =IF(ISNUMBER(BJ58),100*BJ58,"") -> 80.07339233 | P46: % | AW46: half height | AX46: 0.4 | BA46: =G42 -> 411.3976754 | BB46: 36 | BH46: p for Q | BI46: =CHIDIST(BI45,BI44) -> 6.429593588e-11 | BJ46: =CHIDIST(BJ45,BJ44) -> 1.472427305e-10 | BR46: 11.80625 | BS46: 0.1 | BT46: 0.0006576553562 | BU46: 9 | BV46: 9.9225 | BW46: 9.9225 | BX46: 0.2 | CE46: 548 | CI46: 12
AW47: upper diamond | AY47: squash | BA47: lower diamond | BH47: C | BI47: =BH37-BJ39/BH37 -> 0.009929563761 | BJ47: =BH38-BJ40/BH38 -> 0.01022479874 | BR47: 15.87625 | BS47: 0.1 | BT47: 0.0008843706384 | BU47: 10 | BV47: 13.69 | BW47: 13.69 | BX47: 0.2 | CB47: 690 | CI47: 13
AW48: =IF(AND($BJ$2,$AZ$5),IF($BH$3,BA40,NA()),NA()) -> 410.9294458 | AX48: =IF($BH$3,BB40+AX46,NA()) -> 32.4 | AY48: =IF($BH$3,BS37+AX46,NA()) -> 18.4 | BA48: =IF(AND($BJ$3,$AZ$5),IF($BH$3,BA46,NA()),NA()) -> 411.3976754 | BB48: =IF($BH$3,BB46+AX46,NA()) -> 36.4 | BH48: T^2 | BI48: =IF(BI47=0,0,MAX(0,(BI45-BI44)/BI47)) -> 6565.910971 | BJ48: =IF(BJ47=0,0,MAX(0,(BJ45-BJ44)/BJ47)) -> 6288.109155 | BR48: 20.55125 | BS48: 0.1 | BT48: 0.001144786841 | BU48: 12 | BV48: 18.0625 | BW48: 18.0625 | BX48: 0.2 | CD48: 438 | CI48: 14
AW49: =IF(AND($BJ$2,$AZ$5),IF($BH$3,BA40-BC39,NA()),NA()) -> 392.2224443 | AX49: =IF($BH$3,BB40,NA()) -> 32 | AY49: =IF($BH$3,BS37,NA()) -> 18 | BA49: =IF(AND($BJ$3,$AZ$5),IF($BH$3,BA46-BC45,NA()),NA()) -> 392.9217528 | BB49: =IF($BH$3,BB46,NA()) -> 36 | BH49: T | BI49: =SQRT(BI48) -> 81.03030897 | BJ49: =SQRT(BJ48) -> 79.29759867 | BR49: 25.83125 | BS49: 0.1 | BT49: 0.001438903964 | BU49: 13 | BV49: 23.04 | BW49: 23.04 | BX49: 0.2 | CH49: 314 | CI49: 15
AW50: =IF(AND($BJ$2,$AZ$5),IF($BH$3,BA40,NA()),NA()) -> 410.9294458 | AX50: =IF($BH$3,BB40-AX46,NA()) -> 31.6 | AY50: =IF($BH$3,BS37-AX46,NA()) -> 17.6 | BA50: =IF(AND($BJ$3,$AZ$5),IF($BH$3,BA46,NA()),NA()) -> 411.3976754 | BB50: =IF($BH$3,BB46-AX46,NA()) -> 35.6 | BH50: M* | BI50: =BN39/BM39 -> 432.1166024 | BJ50: =BQ40/BP40 -> 431.8459588 | BR50: =BV50 -> 28.6225 | BS50: 0.1 | BT50: 0.001594387755 | BU50: 15 | BV50: 28.6225 | BW50: 28.6225 | BX50: 0.2 | CB50: 330 | CI50: 16
AW51: =IF(AND($BJ$2,$AZ$5),IF($BH$3,BA40+BC39,NA()),NA()) -> 429.6364474 | AX51: =IF($BH$3,BB40,NA()) -> 32 | AY51: =IF($BH$3,BS37,NA()) -> 18 | BA51: =IF(AND($BJ$3,$AZ$5),IF($BH$3,BA46+BC45,NA()),NA()) -> 429.873598 | BB51: =IF($BH$3,BB49,NA()) -> 36 | BH51: V(M*) | BI51: =1/BM39 -> 555.0493554 | BJ51: =1/BP40 -> 509.3602197 | CI51: 17
AW52: =IF(AND($BJ$2,$AZ$5),IF($BH$3,BA40,NA()),NA()) -> 410.9294458 | AX52: =IF($BH$3,BB40+AX46,NA()) -> 32.4 | AY52: =IF($BH$3,BS37+AX46,NA()) -> 18.4 | BA52: =IF(AND($BJ$3,$AZ$5),IF($BH$3,BA46,NA()),NA()) -> 411.3976754 | BB52: =IF($BH$3,BB46+AX46,NA()) -> 36.4 | BH52: SE(M*) | BI52: =SQRT(BI51) -> 23.55948547 | BJ52: =SQRT(BJ51) -> 22.56901016 | CI52: 18
BH53: moe | BI53: =NORMSINV((100+$K$2)/200)*BI52 -> 46.17574301 | BJ53: =NORMSINV((100+$K$2)/200)*BJ52 -> 44.23444708 | CI53: 19
AW54: L end | AX54: =BA40-BC39 -> 392.2224443 | BB54: =BA46-BC45 -> 392.9217528 | BH54: LL | BI54: =BI50-BI53 -> 385.9408594 | BJ54: =BJ50-BJ53 -> 387.6115117 | CI54: 20
AW55: R end | AX55: =BA40+BC39 -> 429.6364474 | BB55: =BA46+BC45 -> 429.873598 | BH55: UL | BI55: =BI50+BI53 -> 478.2923454 | BJ55: =BJ50+BJ53 -> 476.0804059 | CI55: 21
AW56: no. points | AX56: 200 | BB56: =AX56 -> 200 | BH56: z | BI56: =(BI50-$U$1)/BI52 -> 5.607788107 | BJ56: =(BJ50-$U$1)/BJ52 -> 5.841902585 | CI56: 22
AW57: inc x | AX57: =(AX55-AX54)/AX56 -> 0.1870700157 | BB57: =(BB55-BB54)/BB56 -> 0.1847592265 | BH57: p | BI57: =2*(1-NORMSDIST(ABS(BI56))) -> 2.049287007e-08 | BJ57: =2*(1-NORMSDIST(ABS(BJ56))) -> 5.160798455e-09 | CI57: 23
AW58: delta y | AX58: -0.02 | BB58: =AX58 -> -0.02 | BF58: squash | BH58: I^2 | BI58: =MAX(0,(BI45-BI44)/BI45) -> 0.8129597254 | BJ58: =MAX(0,(BJ45-BJ44)/BJ45) -> 0.8007339233 | CI58: 24
AW59: index | AX59: from end | AY59: x | AZ59: y | BA59: bar | BB59: from end | BC59: x | BD59: y | BE59: bar | BF59: y disp | BH59: For CI on T^2 | CI59: 25
AW60: 0 | AX60: =1-ABS($BA$40-AY60)/$BC$39 -> 0 | AY60: =IF($BH$3,AX54,NA()) -> 392.2224443 | AZ60: =IF($BH$3,BB40,NA()) -> 32 | BA60: =MAX($AX$46*AX60-$AX$58,0) -> 0.02 | BB60: =1-ABS($BA$46-BC60)/$BC$45 -> 0 | BC60: =IF($BH$3,BB54,NA()) -> 392.9217528 | BD60: =IF($BH$3,BB46,NA()) -> 36 | BE60: =MAX($AX$46*BB60-$BB$58,0) -> 0.02 | BF60: =IF($BH$3,BS37,NA()) -> 18 | BH60: B1 | BI60: =0.5*(LN(BI45)-LN(BI44))/(SQRT(2*BI45)-SQRT(2*BI44-1)) -> 0.1151477161 | BJ60: =0.5*(LN(BJ45)-LN(BJ44))/(SQRT(2*BJ45)-SQRT(2*BJ44-1)) -> 0.1135257407 | CI60: 26
AW61: 1 | AX61: =1-ABS($BA$40-AY61)/$BC$39 -> 0.01 | AY61: =IF($BH$3,AY60+$AX$57,NA()) -> 392.4095143 | AZ61: =AZ60 -> 32 | BA61: 0.024 | BB61: =1-ABS($BA$46-BC61)/$BC$45 -> 0.01 | BC61: =IF($BH$3,BC60+$BB$57,NA()) -> 393.106512 | BD61: =BD60 -> 36 | BE61: =MAX($AX$46*BB61-$BB$58,0) -> 0.024 | BF61: =BF60 -> 18 | BH61: B2 | BI61: =SQRT(1/(2*(BI44-1)*(1-(1/(3*(BI44-1)^2))))) -> 0.1891431409 | BJ61: =SQRT(1/(2*(BJ44-1)*(1-(1/(3*(BJ44-1)^2))))) -> 0.1827095764 | CI61: 27
AW62: 2 | AX62: 0.02 | AY62: 392.5965843 | AZ62: =AZ61 -> 32 | BA62: 0.028 | BB62: =1-ABS($BA$46-BC62)/$BC$45 -> 0.02 | BC62: 393.2912712 | BD62: =BD61 -> 36 | BE62: =MAX($AX$46*BB62-$BB$58,0) -> 0.028 | BF62: =BF61 -> 18 | BH62: B | BI62: =IF(BI45>(BI44+1),BI60,BI61) -> 0.1151477161 | BJ62: =IF(BJ45>(BJ44+1),BJ60,BJ61) -> 0.1135257407 | CI62: 28
AW63: 3 | AX63: 0.03 | AY63: 392.7836543 | AZ63: 32 | BA63: 0.032 | BB63: 0.03 | BC63: 393.4760304 | BD63: 36 | BE63: 0.032 | BF63: 18 | BH63: L | BI63: =EXP(0.5*LN(BI45/BI44)-NORMSINV((100+$K$2)/200)*BI62) -> 1.845094102 | BJ63: =EXP(0.5*LN(BJ45/BJ44)-NORMSINV((100+$K$2)/200)*BJ62) -> 1.793287946 | CI63: 29
AW64: 4 | AX64: 0.04 | AY64: 392.9707243 | AZ64: 32 | BA64: 0.036 | BB64: 0.04 | BC64: 393.6607897 | BD64: 36 | BE64: 0.036 | BF64: 18 | BH64: U | BI64: =EXP(0.5*LN(BI45/BI44)+NORMSINV((100+$K$2)/200)*BI62) -> 2.89765281 | BJ64: =EXP(0.5*LN(BJ45/BJ44)+NORMSINV((100+$K$2)/200)*BJ62) -> 2.798443871 | CI64: 30
AW65: 5 | AX65: 0.05 | AY65: 393.1577944 | AZ65: 32 | BA65: 0.04 | BB65: 0.05 | BC65: 393.8455489 | BD65: 36 | BE65: 0.04 | BF65: 18 | BH65: LL T^2 | BI65: =MAX(0,BI44*(BI63^2-1)/BI47) -> 3632.14181 | BJ65: =MAX(0,BJ44*(BJ63^2-1)/BJ47) -> 3467.462529
AW66: 6 | AX66: 0.06 | AY66: 393.3448644 | AZ66: 32 | BA66: 0.044 | BB66: 0.06 | BC66: 394.0303081 | BD66: 36 | BE66: 0.044 | BF66: 18 | BH66: UL T^2 | BI66: =MAX(0,BI44*(BI64^2-1)/BI47) -> 11173.28815 | BJ66: =MAX(0,BJ44*(BJ64^2-1)/BJ47) -> 10689.75658
AW67: 7 | AX67: 0.07 | AY67: 393.5319344 | AZ67: 32 | BA67: 0.048 | BB67: 0.07 | BC67: 394.2150673 | BD67: 36 | BE67: 0.048 | BF67: 18 | BH67: LL T | BI67: =SQRT(BI65) -> 60.26725322 | BJ67: =SQRT(BJ65) -> 58.88516391
AW68: 8 | AX68: 0.08 | AY68: 393.7190044 | AZ68: 32 | BA68: 0.052 | BB68: 0.08 | BC68: 394.3998266 | BD68: 36 | BE68: 0.052 | BF68: 18 | BH68: UL T | BI68: =SQRT(BI66) -> 105.7037755 | BJ68: =SQRT(BJ66) -> 103.391279
AW69: 9 | AX69: 0.09 | AY69: 393.9060744 | AZ69: 32 | BA69: 0.056 | BB69: 0.09 | BC69: 394.5845858 | BD69: 36 | BE69: 0.056 | BF69: 18
AW70: 10 | AX70: 0.1 | AY70: 394.0931444 | AZ70: 32 | BA70: 0.06 | BB70: 0.1 | BC70: 394.769345 | BD70: 36 | BE70: 0.06 | BF70: 18
AW71: 11 | AX71: 0.11 | AY71: 394.2802145 | AZ71: 32 | BA71: 0.064 | BB71: 0.11 | BC71: 394.9541042 | BD71: 36 | BE71: 0.064 | BF71: 18
AW72: 12 | AX72: 0.12 | AY72: 394.4672845 | AZ72: 32 | BA72: 0.068 | BB72: 0.12 | BC72: 395.1388635 | BD72: 36 | BE72: 0.068 | BF72: 18
AW73: 13 | AX73: 0.13 | AY73: 394.6543545 | AZ73: 32 | BA73: 0.072 | BB73: 0.13 | BC73: 395.3236227 | BD73: 36 | BE73: 0.072 | BF73: 18
AW74: 14 | AX74: 0.14 | AY74: 394.8414245 | AZ74: 32 | BA74: 0.076 | BB74: 0.14 | BC74: 395.5083819 | BD74: 36 | BE74: 0.076 | BF74: 18
AW75: 15 | AX75: 0.15 | AY75: 395.0284945 | AZ75: 32 | BA75: 0.08 | BB75: 0.15 | BC75: 395.6931411 | BD75: 36 | BE75: 0.08 | BF75: 18
AW76: 16 | AX76: 0.16 | AY76: 395.2155645 | AZ76: 32 | BA76: 0.084 | BB76: 0.16 | BC76: 395.8779004 | BD76: 36 | BE76: 0.084 | BF76: 18
AW77: 17 | AX77: 0.17 | AY77: 395.4026345 | AZ77: 32 | BA77: 0.088 | BB77: 0.17 | BC77: 396.0626596 | BD77: 36 | BE77: 0.088 | BF77: 18
AW78: 18 | AX78: 0.18 | AY78: 395.5897046 | AZ78: 32 | BA78: 0.092 | BB78: 0.18 | BC78: 396.2474188 | BD78: 36 | BE78: 0.092 | BF78: 18
AW79: 19 | AX79: 0.19 | AY79: 395.7767746 | AZ79: 32 | BA79: 0.096 | BB79: 0.19 | BC79: 396.4321781 | BD79: 36 | BE79: 0.096 | BF79: 18
AW80: 20 | AX80: 0.2 | AY80: 395.9638446 | AZ80: 32 | BA80: 0.1 | BB80: 0.2 | BC80: 396.6169373 | BD80: 36 | BE80: 0.1 | BF80: 18
AW81: 21 | AX81: 0.21 | AY81: 396.1509146 | AZ81: 32 | BA81: 0.104 | BB81: 0.21 | BC81: 396.8016965 | BD81: 36 | BE81: 0.104 | BF81: 18
AW82: 22 | AX82: 0.22 | AY82: 396.3379846 | AZ82: 32 | BA82: 0.108 | BB82: 0.22 | BC82: 396.9864557 | BD82: 36 | BE82: 0.108 | BF82: 18
AW83: 23 | AX83: 0.23 | AY83: 396.5250546 | AZ83: 32 | BA83: 0.112 | BB83: 0.23 | BC83: 397.171215 | BD83: 36 | BE83: 0.112 | BF83: 18
AW84: 24 | AX84: 0.24 | AY84: 396.7121247 | AZ84: 32 | BA84: 0.116 | BB84: 0.24 | BC84: 397.3559742 | BD84: 36 | BE84: 0.116 | BF84: 18
AW85: 25 | AX85: 0.25 | AY85: 396.8991947 | AZ85: 32 | BA85: 0.12 | BB85: 0.25 | BC85: 397.5407334 | BD85: 36 | BE85: 0.12 | BF85: 18
AW86: 26 | AX86: 0.26 | AY86: 397.0862647 | AZ86: 32 | BA86: 0.124 | BB86: 0.26 | BC86: 397.7254926 | BD86: 36 | BE86: 0.124 | BF86: 18
AW87: 27 | AX87: 0.27 | AY87: 397.2733347 | AZ87: 32 | BA87: 0.128 | BB87: 0.27 | BC87: 397.9102519 | BD87: 36 | BE87: 0.128 | BF87: 18
AW88: 28 | AX88: 0.28 | AY88: 397.4604047 | AZ88: 32 | BA88: 0.132 | BB88: 0.28 | BC88: 398.0950111 | BD88: 36 | BE88: 0.132 | BF88: 18
AW89: 29 | AX89: 0.29 | AY89: 397.6474747 | AZ89: 32 | BA89: 0.136 | BB89: 0.29 | BC89: 398.2797703 | BD89: 36 | BE89: 0.136 | BF89: 18
AW90: 30 | AX90: 0.3 | AY90: 397.8345448 | AZ90: 32 | BA90: 0.14 | BB90: 0.3 | BC90: 398.4645295 | BD90: 36 | BE90: 0.14 | BF90: 18
AW91: 31 | AX91: 0.31 | AY91: 398.0216148 | AZ91: 32 | BA91: 0.144 | BB91: 0.31 | BC91: 398.6492888 | BD91: 36 | BE91: 0.144 | BF91: 18
AW92: 32 | AX92: 0.32 | AY92: 398.2086848 | AZ92: 32 | BA92: 0.148 | BB92: 0.32 | BC92: 398.834048 | BD92: 36 | BE92: 0.148 | BF92: 18
AW93: 33 | AX93: 0.33 | AY93: =IF($BH$3,AY92+$AX$57,NA()) -> 398.3957548 | AZ93: 32 | BA93: 0.152 | BB93: 0.33 | BC93: =IF($BH$3,BC92+$BB$57,NA()) -> 399.0188072 | BD93: 36 | BE93: 0.152 | BF93: 18
AW94: 34 | AX94: 0.34 | AY94: 398.5828248 | AZ94: 32 | BA94: 0.156 | BB94: 0.34 | BC94: 399.2035665 | BD94: 36 | BE94: 0.156 | BF94: 18
AW95: 35 | AX95: 0.35 | AY95: 398.7698948 | AZ95: 32 | BA95: 0.16 | BB95: 0.35 | BC95: 399.3883257 | BD95: 36 | BE95: 0.16 | BF95: 18
AW96: 36 | AX96: 0.36 | AY96: 398.9569648 | AZ96: 32 | BA96: 0.164 | BB96: 0.36 | BC96: 399.5730849 | BD96: 36 | BE96: 0.164 | BF96: 18
AW97: 37 | AX97: 0.37 | AY97: 399.1440349 | AZ97: 32 | BA97: 0.168 | BB97: 0.37 | BC97: 399.7578441 | BD97: 36 | BE97: 0.168 | BF97: 18
AW98: 38 | AX98: 0.38 | AY98: 399.3311049 | AZ98: 32 | BA98: 0.172 | BB98: 0.38 | BC98: 399.9426034 | BD98: 36 | BE98: 0.172 | BF98: 18
AW99: 39 | AX99: 0.39 | AY99: 399.5181749 | AZ99: 32 | BA99: 0.176 | BB99: 0.39 | BC99: 400.1273626 | BD99: 36 | BE99: 0.176 | BF99: 18
AW100: 40 | AX100: 0.4 | AY100: 399.7052449 | AZ100: 32 | BA100: 0.18 | BB100: 0.4 | BC100: 400.3121218 | BD100: 36 | BE100: 0.18 | BF100: 18
AW101: 41 | AX101: 0.41 | AY101: 399.8923149 | AZ101: 32 | BA101: 0.184 | BB101: 0.41 | BC101: 400.496881 | BD101: 36 | BE101: 0.184 | BF101: 18
AW102: 42 | AX102: 0.42 | AY102: 400.0793849 | AZ102: 32 | BA102: 0.188 | BB102: 0.42 | BC102: 400.6816403 | BD102: 36 | BE102: 0.188 | BF102: 18
AW103: 43 | AX103: 0.43 | AY103: 400.266455 | AZ103: 32 | BA103: 0.192 | BB103: 0.43 | BC103: 400.8663995 | BD103: 36 | BE103: 0.192 | BF103: 18
AW104: 44 | AX104: 0.44 | AY104: 400.453525 | AZ104: 32 | BA104: 0.196 | BB104: 0.44 | BC104: 401.0511587 | BD104: 36 | BE104: 0.196 | BF104: 18
AW105: 45 | AX105: 0.45 | AY105: 400.640595 | AZ105: 32 | BA105: 0.2 | BB105: 0.45 | BC105: 401.2359179 | BD105: 36 | BE105: 0.2 | BF105: 18
AW106: 46 | AX106: 0.46 | AY106: 400.827665 | AZ106: 32 | BA106: 0.204 | BB106: 0.46 | BC106: 401.4206772 | BD106: 36 | BE106: 0.204 | BF106: 18
AW107: 47 | AX107: 0.47 | AY107: 401.014735 | AZ107: 32 | BA107: 0.208 | BB107: 0.47 | BC107: 401.6054364 | BD107: 36 | BE107: 0.208 | BF107: 18
AW108: 48 | AX108: 0.48 | AY108: 401.201805 | AZ108: 32 | BA108: 0.212 | BB108: 0.48 | BC108: 401.7901956 | BD108: 36 | BE108: 0.212 | BF108: 18
AW109: 49 | AX109: 0.49 | AY109: 401.388875 | AZ109: 32 | BA109: 0.216 | BB109: 0.49 | BC109: 401.9749548 | BD109: 36 | BE109: 0.216 | BF109: 18
AW110: 50 | AX110: 0.5 | AY110: 401.5759451 | AZ110: 32 | BA110: 0.22 | BB110: 0.5 | BC110: 402.1597141 | BD110: 36 | BE110: 0.22 | BF110: 18
AW111: 51 | AX111: 0.51 | AY111: 401.7630151 | AZ111: 32 | BA111: 0.224 | BB111: 0.51 | BC111: 402.3444733 | BD111: 36 | BE111: 0.224 | BF111: 18
AW112: 52 | AX112: 0.52 | AY112: 401.9500851 | AZ112: 32 | BA112: 0.228 | BB112: 0.52 | BC112: 402.5292325 | BD112: 36 | BE112: 0.228 | BF112: 18
AW113: 53 | AX113: 0.53 | AY113: 402.1371551 | AZ113: 32 | BA113: 0.232 | BB113: 0.53 | BC113: 402.7139918 | BD113: 36 | BE113: 0.232 | BF113: 18
AW114: 54 | AX114: 0.54 | AY114: 402.3242251 | AZ114: 32 | BA114: 0.236 | BB114: 0.54 | BC114: 402.898751 | BD114: 36 | BE114: 0.236 | BF114: 18
AW115: 55 | AX115: 0.55 | AY115: 402.5112951 | AZ115: 32 | BA115: 0.24 | BB115: 0.55 | BC115: 403.0835102 | BD115: 36 | BE115: 0.24 | BF115: 18
AW116: 56 | AX116: 0.56 | AY116: 402.6983652 | AZ116: 32 | BA116: 0.244 | BB116: 0.56 | BC116: 403.2682694 | BD116: 36 | BE116: 0.244 | BF116: 18
AW117: 57 | AX117: 0.57 | AY117: 402.8854352 | AZ117: 32 | BA117: 0.248 | BB117: 0.57 | BC117: 403.4530287 | BD117: 36 | BE117: 0.248 | BF117: 18
AW118: 58 | AX118: 0.58 | AY118: 403.0725052 | AZ118: 32 | BA118: 0.252 | BB118: 0.58 | BC118: 403.6377879 | BD118: 36 | BE118: 0.252 | BF118: 18
AW119: 59 | AX119: 0.59 | AY119: 403.2595752 | AZ119: 32 | BA119: 0.256 | BB119: 0.59 | BC119: 403.8225471 | BD119: 36 | BE119: 0.256 | BF119: 18
AW120: 60 | AX120: 0.6 | AY120: 403.4466452 | AZ120: 32 | BA120: 0.26 | BB120: 0.6 | BC120: 404.0073063 | BD120: 36 | BE120: 0.26 | BF120: 18
AW121: 61 | AX121: 0.61 | AY121: 403.6337152 | AZ121: 32 | BA121: 0.264 | BB121: 0.61 | BC121: 404.1920656 | BD121: 36 | BE121: 0.264 | BF121: 18
AW122: 62 | AX122: 0.62 | AY122: 403.8207853 | AZ122: 32 | BA122: 0.268 | BB122: 0.62 | BC122: 404.3768248 | BD122: 36 | BE122: 0.268 | BF122: 18
AW123: 63 | AX123: 0.63 | AY123: 404.0078553 | AZ123: 32 | BA123: 0.272 | BB123: 0.63 | BC123: 404.561584 | BD123: 36 | BE123: 0.272 | BF123: 18
AW124: 64 | AX124: 0.64 | AY124: 404.1949253 | AZ124: 32 | BA124: =MAX($AX$46*AX124-$AX$58,0) -> 0.276 | BB124: 0.64 | BC124: 404.7463432 | BD124: 36 | BE124: 0.276 | BF124: 18
AW125: 65 | AX125: =1-ABS($BA$40-AY125)/$BC$39 -> 0.65 | AY125: =IF($BH$3,AY124+$AX$57,NA()) -> 404.3819953 | AZ125: 32 | BA125: 0.28 | BB125: 0.65 | BC125: =IF($BH$3,BC124+$BB$57,NA()) -> 404.9311025 | BD125: 36 | BE125: 0.28 | BF125: 18
AW126: 66 | AX126: 0.66 | AY126: 404.5690653 | AZ126: =AZ125 -> 32 | BA126: 0.284 | BB126: =1-ABS($BA$46-BC126)/$BC$45 -> 0.66 | BC126: 405.1158617 | BD126: =BD125 -> 36 | BE126: =MAX($AX$46*BB126-$BB$58,0) -> 0.284 | BF126: =BF125 -> 18
AW127: 67 | AX127: 0.67 | AY127: 404.7561353 | AZ127: 32 | BA127: 0.288 | BB127: 0.67 | BC127: 405.3006209 | BD127: 36 | BE127: 0.288 | BF127: 18
AW128: 68 | AX128: 0.68 | AY128: 404.9432053 | AZ128: 32 | BA128: 0.292 | BB128: 0.68 | BC128: 405.4853802 | BD128: 36 | BE128: 0.292 | BF128: 18
AW129: 69 | AX129: 0.69 | AY129: 405.1302754 | AZ129: 32 | BA129: 0.296 | BB129: 0.69 | BC129: 405.6701394 | BD129: 36 | BE129: 0.296 | BF129: 18
AW130: 70 | AX130: 0.7 | AY130: 405.3173454 | AZ130: 32 | BA130: 0.3 | BB130: 0.7 | BC130: 405.8548986 | BD130: 36 | BE130: 0.3 | BF130: 18
AW131: 71 | AX131: 0.71 | AY131: 405.5044154 | AZ131: 32 | BA131: 0.304 | BB131: 0.71 | BC131: 406.0396578 | BD131: 36 | BE131: 0.304 | BF131: 18
AW132: 72 | AX132: 0.72 | AY132: 405.6914854 | AZ132: 32 | BA132: 0.308 | BB132: 0.72 | BC132: 406.2244171 | BD132: 36 | BE132: 0.308 | BF132: 18
AW133: 73 | AX133: 0.73 | AY133: 405.8785554 | AZ133: 32 | BA133: 0.312 | BB133: 0.73 | BC133: 406.4091763 | BD133: 36 | BE133: 0.312 | BF133: 18
AW134: 74 | AX134: 0.74 | AY134: 406.0656254 | AZ134: 32 | BA134: 0.316 | BB134: 0.74 | BC134: 406.5939355 | BD134: 36 | BE134: 0.316 | BF134: 18
AW135: 75 | AX135: 0.75 | AY135: 406.2526955 | AZ135: 32 | BA135: 0.32 | BB135: 0.75 | BC135: 406.7786947 | BD135: 36 | BE135: 0.32 | BF135: 18
AW136: 76 | AX136: 0.76 | AY136: 406.4397655 | AZ136: 32 | BA136: 0.324 | BB136: 0.76 | BC136: 406.963454 | BD136: 36 | BE136: 0.324 | BF136: 18
AW137: 77 | AX137: 0.77 | AY137: 406.6268355 | AZ137: 32 | BA137: 0.328 | BB137: 0.77 | BC137: 407.1482132 | BD137: 36 | BE137: 0.328 | BF137: 18
AW138: 78 | AX138: 0.78 | AY138: 406.8139055 | AZ138: 32 | BA138: 0.332 | BB138: 0.78 | BC138: 407.3329724 | BD138: 36 | BE138: 0.332 | BF138: 18
AW139: 79 | AX139: 0.79 | AY139: 407.0009755 | AZ139: 32 | BA139: 0.336 | BB139: 0.79 | BC139: 407.5177316 | BD139: 36 | BE139: 0.336 | BF139: 18
AW140: 80 | AX140: 0.8 | AY140: 407.1880455 | AZ140: 32 | BA140: 0.34 | BB140: 0.8 | BC140: 407.7024909 | BD140: 36 | BE140: 0.34 | BF140: 18
AW141: 81 | AX141: 0.81 | AY141: 407.3751156 | AZ141: 32 | BA141: 0.344 | BB141: 0.81 | BC141: 407.8872501 | BD141: 36 | BE141: 0.344 | BF141: 18
AW142: 82 | AX142: 0.82 | AY142: 407.5621856 | AZ142: 32 | BA142: 0.348 | BB142: 0.82 | BC142: 408.0720093 | BD142: 36 | BE142: 0.348 | BF142: 18
AW143: 83 | AX143: 0.83 | AY143: 407.7492556 | AZ143: 32 | BA143: 0.352 | BB143: 0.83 | BC143: 408.2567685 | BD143: 36 | BE143: 0.352 | BF143: 18
AW144: 84 | AX144: 0.84 | AY144: 407.9363256 | AZ144: 32 | BA144: 0.356 | BB144: 0.84 | BC144: 408.4415278 | BD144: 36 | BE144: 0.356 | BF144: 18
AW145: 85 | AX145: 0.85 | AY145: 408.1233956 | AZ145: 32 | BA145: 0.36 | BB145: 0.85 | BC145: 408.626287 | BD145: 36 | BE145: 0.36 | BF145: 18
AW146: 86 | AX146: 0.86 | AY146: 408.3104656 | AZ146: 32 | BA146: 0.364 | BB146: 0.86 | BC146: 408.8110462 | BD146: 36 | BE146: 0.364 | BF146: 18
AW147: 87 | AX147: 0.87 | AY147: 408.4975356 | AZ147: 32 | BA147: 0.368 | BB147: 0.87 | BC147: 408.9958055 | BD147: 36 | BE147: 0.368 | BF147: 18
AW148: 88 | AX148: 0.88 | AY148: 408.6846057 | AZ148: 32 | BA148: 0.372 | BB148: 0.88 | BC148: 409.1805647 | BD148: 36 | BE148: 0.372 | BF148: 18
AW149: 89 | AX149: 0.89 | AY149: 408.8716757 | AZ149: 32 | BA149: 0.376 | BB149: 0.89 | BC149: 409.3653239 | BD149: 36 | BE149: 0.376 | BF149: 18
AW150: 90 | AX150: 0.9 | AY150: 409.0587457 | AZ150: 32 | BA150: 0.38 | BB150: 0.9 | BC150: 409.5500831 | BD150: 36 | BE150: 0.38 | BF150: 18
AW151: 91 | AX151: 0.91 | AY151: 409.2458157 | AZ151: 32 | BA151: 0.384 | BB151: 0.91 | BC151: 409.7348424 | BD151: 36 | BE151: 0.384 | BF151: 18
AW152: 92 | AX152: 0.92 | AY152: 409.4328857 | AZ152: 32 | BA152: 0.388 | BB152: 0.92 | BC152: 409.9196016 | BD152: 36 | BE152: 0.388 | BF152: 18
AW153: 93 | AX153: 0.93 | AY153: 409.6199557 | AZ153: 32 | BA153: 0.392 | BB153: 0.93 | BC153: 410.1043608 | BD153: 36 | BE153: 0.392 | BF153: 18
AW154: 94 | AX154: 0.94 | AY154: 409.8070258 | AZ154: 32 | BA154: 0.396 | BB154: 0.94 | BC154: 410.28912 | BD154: 36 | BE154: 0.396 | BF154: 18
AW155: 95 | AX155: 0.95 | AY155: 409.9940958 | AZ155: 32 | BA155: 0.4 | BB155: 0.95 | BC155: 410.4738793 | BD155: 36 | BE155: 0.4 | BF155: 18
AW156: 96 | AX156: 0.96 | AY156: 410.1811658 | AZ156: 32 | BA156: 0.404 | BB156: 0.96 | BC156: 410.6586385 | BD156: 36 | BE156: 0.404 | BF156: 18
AW157: 97 | AX157: 0.97 | AY157: =IF($BH$3,AY156+$AX$57,NA()) -> 410.3682358 | AZ157: 32 | BA157: 0.408 | BB157: 0.97 | BC157: =IF($BH$3,BC156+$BB$57,NA()) -> 410.8433977 | BD157: 36 | BE157: 0.408 | BF157: 18
AW158: 98 | AX158: 0.98 | AY158: 410.5553058 | AZ158: 32 | BA158: 0.412 | BB158: 0.98 | BC158: 411.0281569 | BD158: 36 | BE158: 0.412 | BF158: 18
AW159: 99 | AX159: 0.99 | AY159: 410.7423758 | AZ159: 32 | BA159: 0.416 | BB159: 0.99 | BC159: 411.2129162 | BD159: 36 | BE159: 0.416 | BF159: 18
AW160: 100 | AX160: 1 | AY160: 410.9294458 | AZ160: 32 | BA160: 0.42 | BB160: 1 | BC160: 411.3976754 | BD160: 36 | BE160: 0.42 | BF160: 18
AW161: 101 | AX161: 0.99 | AY161: 411.1165159 | AZ161: 32 | BA161: 0.416 | BB161: 0.99 | BC161: 411.5824346 | BD161: 36 | BE161: 0.416 | BF161: 18
AW162: 102 | AX162: 0.98 | AY162: 411.3035859 | AZ162: 32 | BA162: 0.412 | BB162: 0.98 | BC162: 411.7671939 | BD162: 36 | BE162: 0.412 | BF162: 18
AW163: 103 | AX163: 0.97 | AY163: 411.4906559 | AZ163: 32 | BA163: 0.408 | BB163: 0.97 | BC163: 411.9519531 | BD163: 36 | BE163: 0.408 | BF163: 18
AW164: 104 | AX164: 0.96 | AY164: 411.6777259 | AZ164: 32 | BA164: 0.404 | BB164: 0.96 | BC164: 412.1367123 | BD164: 36 | BE164: 0.404 | BF164: 18
AW165: 105 | AX165: 0.95 | AY165: 411.8647959 | AZ165: 32 | BA165: 0.4 | BB165: 0.95 | BC165: 412.3214715 | BD165: 36 | BE165: 0.4 | BF165: 18
AW166: 106 | AX166: 0.94 | AY166: 412.0518659 | AZ166: 32 | BA166: 0.396 | BB166: 0.94 | BC166: 412.5062308 | BD166: 36 | BE166: 0.396 | BF166: 18
AW167: 107 | AX167: 0.93 | AY167: 412.238936 | AZ167: 32 | BA167: 0.392 | BB167: 0.93 | BC167: 412.69099 | BD167: 36 | BE167: 0.392 | BF167: 18
AW168: 108 | AX168: 0.92 | AY168: 412.426006 | AZ168: 32 | BA168: 0.388 | BB168: 0.92 | BC168: 412.8757492 | BD168: 36 | BE168: 0.388 | BF168: 18
AW169: 109 | AX169: 0.91 | AY169: 412.613076 | AZ169: 32 | BA169: 0.384 | BB169: 0.91 | BC169: 413.0605084 | BD169: 36 | BE169: 0.384 | BF169: 18
AW170: 110 | AX170: 0.9 | AY170: 412.800146 | AZ170: 32 | BA170: 0.38 | BB170: 0.9 | BC170: 413.2452677 | BD170: 36 | BE170: 0.38 | BF170: 18
AW171: 111 | AX171: 0.89 | AY171: 412.987216 | AZ171: 32 | BA171: 0.376 | BB171: 0.89 | BC171: 413.4300269 | BD171: 36 | BE171: 0.376 | BF171: 18
AW172: 112 | AX172: 0.88 | AY172: 413.174286 | AZ172: 32 | BA172: 0.372 | BB172: 0.88 | BC172: 413.6147861 | BD172: 36 | BE172: 0.372 | BF172: 18
AW173: 113 | AX173: 0.87 | AY173: 413.3613561 | AZ173: 32 | BA173: 0.368 | BB173: 0.87 | BC173: 413.7995453 | BD173: 36 | BE173: 0.368 | BF173: 18
AW174: 114 | AX174: 0.86 | AY174: 413.5484261 | AZ174: 32 | BA174: 0.364 | BB174: 0.86 | BC174: 413.9843046 | BD174: 36 | BE174: 0.364 | BF174: 18
AW175: 115 | AX175: 0.85 | AY175: 413.7354961 | AZ175: 32 | BA175: 0.36 | BB175: 0.85 | BC175: 414.1690638 | BD175: 36 | BE175: 0.36 | BF175: 18
AW176: 116 | AX176: 0.84 | AY176: 413.9225661 | AZ176: 32 | BA176: 0.356 | BB176: 0.84 | BC176: 414.353823 | BD176: 36 | BE176: 0.356 | BF176: 18
AW177: 117 | AX177: 0.83 | AY177: 414.1096361 | AZ177: 32 | BA177: 0.352 | BB177: 0.83 | BC177: 414.5385822 | BD177: 36 | BE177: 0.352 | BF177: 18
AW178: 118 | AX178: 0.82 | AY178: 414.2967061 | AZ178: 32 | BA178: 0.348 | BB178: 0.82 | BC178: 414.7233415 | BD178: 36 | BE178: 0.348 | BF178: 18
AW179: 119 | AX179: 0.81 | AY179: 414.4837761 | AZ179: 32 | BA179: 0.344 | BB179: 0.81 | BC179: 414.9081007 | BD179: 36 | BE179: 0.344 | BF179: 18
AW180: 120 | AX180: 0.8 | AY180: 414.6708462 | AZ180: 32 | BA180: 0.34 | BB180: 0.8 | BC180: 415.0928599 | BD180: 36 | BE180: 0.34 | BF180: 18
AW181: 121 | AX181: 0.79 | AY181: 414.8579162 | AZ181: 32 | BA181: 0.336 | BB181: 0.79 | BC181: 415.2776192 | BD181: 36 | BE181: 0.336 | BF181: 18
AW182: 122 | AX182: 0.78 | AY182: 415.0449862 | AZ182: 32 | BA182: 0.332 | BB182: 0.78 | BC182: 415.4623784 | BD182: 36 | BE182: 0.332 | BF182: 18
AW183: 123 | AX183: 0.77 | AY183: 415.2320562 | AZ183: 32 | BA183: 0.328 | BB183: 0.77 | BC183: 415.6471376 | BD183: 36 | BE183: 0.328 | BF183: 18
AW184: 124 | AX184: 0.76 | AY184: 415.4191262 | AZ184: 32 | BA184: 0.324 | BB184: 0.76 | BC184: 415.8318968 | BD184: 36 | BE184: 0.324 | BF184: 18
AW185: 125 | AX185: 0.75 | AY185: 415.6061962 | AZ185: 32 | BA185: 0.32 | BB185: 0.75 | BC185: 416.0166561 | BD185: 36 | BE185: 0.32 | BF185: 18
AW186: 126 | AX186: 0.74 | AY186: 415.7932663 | AZ186: 32 | BA186: 0.316 | BB186: 0.74 | BC186: 416.2014153 | BD186: 36 | BE186: 0.316 | BF186: 18
AW187: 127 | AX187: 0.73 | AY187: 415.9803363 | AZ187: 32 | BA187: 0.312 | BB187: 0.73 | BC187: 416.3861745 | BD187: 36 | BE187: 0.312 | BF187: 18
AW188: 128 | AX188: 0.72 | AY188: 416.1674063 | AZ188: 32 | BA188: =MAX($AX$46*AX188-$AX$58,0) -> 0.308 | BB188: 0.72 | BC188: 416.5709337 | BD188: 36 | BE188: 0.308 | BF188: 18
AW189: 129 | AX189: =1-ABS($BA$40-AY189)/$BC$39 -> 0.71 | AY189: =IF($BH$3,AY188+$AX$57,NA()) -> 416.3544763 | AZ189: 32 | BA189: 0.304 | BB189: 0.71 | BC189: =IF($BH$3,BC188+$BB$57,NA()) -> 416.755693 | BD189: 36 | BE189: 0.304 | BF189: 18
AW190: 130 | AX190: 0.7 | AY190: 416.5415463 | AZ190: =AZ189 -> 32 | BA190: 0.3 | BB190: =1-ABS($BA$46-BC190)/$BC$45 -> 0.7 | BC190: 416.9404522 | BD190: =BD189 -> 36 | BE190: =MAX($AX$46*BB190-$BB$58,0) -> 0.3 | BF190: =BF189 -> 18
AW191: 131 | AX191: 0.69 | AY191: 416.7286163 | AZ191: 32 | BA191: 0.296 | BB191: 0.69 | BC191: 417.1252114 | BD191: 36 | BE191: 0.296 | BF191: 18
AW192: 132 | AX192: 0.68 | AY192: 416.9156863 | AZ192: 32 | BA192: 0.292 | BB192: 0.68 | BC192: 417.3099706 | BD192: 36 | BE192: 0.292 | BF192: 18
AW193: 133 | AX193: 0.67 | AY193: 417.1027564 | AZ193: 32 | BA193: 0.288 | BB193: 0.67 | BC193: 417.4947299 | BD193: 36 | BE193: 0.288 | BF193: 18
AW194: 134 | AX194: 0.66 | AY194: 417.2898264 | AZ194: 32 | BA194: 0.284 | BB194: 0.66 | BC194: 417.6794891 | BD194: 36 | BE194: 0.284 | BF194: 18
AW195: 135 | AX195: 0.65 | AY195: 417.4768964 | AZ195: 32 | BA195: 0.28 | BB195: 0.65 | BC195: 417.8642483 | BD195: 36 | BE195: 0.28 | BF195: 18
AW196: 136 | AX196: 0.64 | AY196: 417.6639664 | AZ196: 32 | BA196: 0.276 | BB196: 0.64 | BC196: 418.0490075 | BD196: 36 | BE196: 0.276 | BF196: 18
AW197: 137 | AX197: 0.63 | AY197: 417.8510364 | AZ197: 32 | BA197: 0.272 | BB197: 0.63 | BC197: 418.2337668 | BD197: 36 | BE197: 0.272 | BF197: 18
AW198: 138 | AX198: 0.62 | AY198: 418.0381064 | AZ198: 32 | BA198: 0.268 | BB198: 0.62 | BC198: 418.418526 | BD198: 36 | BE198: 0.268 | BF198: 18
AW199: 139 | AX199: 0.61 | AY199: 418.2251765 | AZ199: 32 | BA199: 0.264 | BB199: 0.61 | BC199: 418.6032852 | BD199: 36 | BE199: 0.264 | BF199: 18
AW200: 140 | AX200: 0.6 | AY200: 418.4122465 | AZ200: 32 | BA200: 0.26 | BB200: 0.6 | BC200: 418.7880445 | BD200: 36 | BE200: 0.26 | BF200: 18
... 60 more rows

Sheet Original two groups
D1: Meta-Analysis of difference between two independent means, in original units | AA1: 14 ►► | AB1: Scroll right for additional forest plot | AI1: Forest plot showing only studies with data, plus meta-analysis as at 4 | BD1: show m0 line? | BE1: TRUE | BG1: MA model? | BH1: 2 | BI1: 1=fixed, 2=random | BV1: Weighted means, green | CF1: Weighted means, green, squashed | CP1: squash
N2: 3 C | O2: 95 | Q2: 7 | R2: Display zero line | BD2: cumulate? | BE2: FALSE | BF2: =IF(H4="","",H4)&"" -> ms | BI2: squash | BL2: Influence weighted? | BM2: TRUE | BN2: Show MA1 | BO2: =IF(COUNT(BE7:BE36)>1,TRUE,FALSE) -> TRUE | BV2: 3 | BW2: 4 | BX2: 6 | BY2: 7 | BZ2: 9 | CA2: 10 | CB2: 12 | CC2: 13 | CD2: 15 | CF2: 3 | CG2: 4 | CH2: 6 | CI2: 7 | CJ2: 9 | CK2: 10 | CL2: 12 | CM2: 13 | CN2: 15 | CP2: y disp
E3: Past research | H3: 5 | I3: Display by weightings | AJ3: =$V$4 -> 0.00095 | AK3: 0.00095 | AL3: 0.00095 | AM3: 0.00095 | AN3: 0.00095 | AO3: 0.00095 | AP3: 0.00095 | AQ3: 0.00095 | AR3: 0.00095 | AS3: 0.00095 | BB3: m0 | BC3: 0 | BF3: =IF(AND(BC3<>"",BE1),BC3,NA()) -> 0 | BG3: 0 | BH3: 33 | BI3: =BU37+0.5 -> 8.5 | BL3: results as diamond | BM3: TRUE | BV3: =IF(AND(BL7<=$BV$42,$BM$2),N7,NA()) ->  | BW3: =IF(AND(BL7>$BV$42,BL7<=$BV$43,$BM$2),N7,NA()) ->  | BX3: =IF(AND(BL7>$BV$43,BL7<=$BV$44,$BM$2),N7,NA()) ->  | BY3: =IF(AND(BL7>$BV$44,BL7<=$BV$45,$BM$2),N7,NA()) ->  | BZ3: =IF(AND(BL7>$BV$45,BL7<=$BV$46,$BM$2),N7,NA()) ->  | CA3: =IF(AND(BL7>$BV$46,BL7<=$BV$47,$BM$2),N7,NA()) ->  | CB3: =IF(AND(BL7>$BV$47,BL7<=$BV$48,$BM$2),N7,NA()) ->  | CC3: =IF(AND(BL7>$BV$48,BL7<=$BV$49,$BM$2),N7,NA()) -> 2 | CD3: =IF(AND(BL7<>"",BL7>$BV$49,$BM$2),N7,NA()) ->  | CE3: 1 | CF3: =IF(AND(BL7<=$BV$42,$BM$2),N7,NA()) ->  | CG3: =IF(AND(BL7>$BV$42,BL7<=$BV$43,$BM$2),N7,NA()) ->  | CH3: =IF(AND(BL7>$BV$43,BL7<=$BV$44,$BM$2),N7,NA()) ->  | CI3: =IF(AND(BL7>$BV$44,BL7<=$BV$45,$BM$2),N7,NA()) ->  | CJ3: =IF(AND(BL7>$BV$45,BL7<=$BV$46,$BM$2),N7,NA()) ->  | CK3: =IF(AND(BL7>$BV$46,BL7<=$BV$47,$BM$2),N7,NA()) ->  | CL3: =IF(AND(BL7>$BV$47,BL7<=$BV$48,$BM$2),N7,NA()) ->  | CM3: =IF(AND(BL7>$BV$48,BL7<=$BV$49,$BM$2),N7,NA()) -> 2 | CN3: =IF(AND(BL7<>"",BL7>$BV$49,$BM$2),N7,NA()) ->  | CO3: =IF(BE7="",0,1) -> 1 | CP3: =IF(CO3=0,NA(),SUM($CO$3:CO3)) -> 1
C4: 8 | E4: 2 | G4: 1 Units | H4: ms | N4: Diff b'n | P4: Variance | R4: CI | S4: 6 | T4: Study | V4: =(BC3+O2)/100000 -> 0.00095 | W4: =$V$4 -> 0.00095 | X4: 0.00095 | Y4: 0.00095 | Z4: 0.00095 | AA4: 0.00095 | AB4: 0.00095 | AC4: 0.00095 | AE4: 13 CI | AJ4: =$V$4 -> 0.00095 | AS4: =$V$4 -> 0.00095 | BE4: some t? | BF4: for NHST | BG4: FALSE | BL4: fixed or | BV4: =IF(AND(BL8<=$BV$42,$BM$2,NOT($BE$2)),N8,NA()) ->  | BW4: =IF(AND(BL8>$BV$42,BL8<=$BV$43,$BM$2,NOT($BE$2)),N8,NA()) ->  | BX4: =IF(AND(BL8>$BV$43,BL8<=$BV$44,$BM$2,NOT($BE$2)),N8,NA()) ->  | BY4: =IF(AND(BL8>$BV$44,BL8<=$BV$45,$BM$2,NOT($BE$2)),N8,NA()) ->  | BZ4: =IF(AND(BL8>$BV$45,BL8<=$BV$46,$BM$2,NOT($BE$2)),N8,NA()) ->  | CA4: =IF(AND(BL8>$BV$46,BL8<=$BV$47,$BM$2,NOT($BE$2)),N8,NA()) ->  | CB4: =IF(AND(BL8>$BV$47,BL8<=$BV$48,$BM$2,NOT($BE$2)),N8,NA()) ->  | CC4: =IF(AND(BL8>$BV$48,BL8<=$BV$49,$BM$2,NOT($BE$2)),N8,NA()) -> 9 | CD4: =IF(AND(BL8<>"",BL8>$BV$49,$BM$2,NOT($BE$2)),N8,NA()) ->  | CE4: 2 | CM4: 9 | CO4: 1 | CP4: =IF(CO4=0,NA(),SUM($CO$3:CO4)) -> 2
E5: Study | G5: Group 1 | J5: Group 2 | N5: means | O5: Pooled | P5: diff b'n | R5: MOE | T5: weighting | V5: =$V$4 -> 0.00095 | AC5: =$V$4 -> 0.00095 | AE5: LL | AG5: UL | AJ5: 0.00095 | AS5: 0.00095 | BB5: Include | BC5: Valid | BD5: Valid | BE5: =IF(COUNT(BE7:BE36)=0,FALSE,TRUE) -> TRUE | BF5: Means | BH5: Bars for | BL5: random | BN5: Random effects model | BQ5: First 30 | BT5: squash | BU5: squash | CA5: 3 | CE5: 3 | CK5: 3 | CO5: 1 | CP5: =IF(CO5=0,NA(),SUM($CO$3:CO5)) -> 3
B6: =IF(BG4,"t","") ->  | C6: =IF(BG4,"p","") ->  | E6: no. | F6: Study name | G6: Mean1 | H6: SD1 | I6: N1 | J6: Mean2 | K6: SD2 | L6: N2 | N6: M2 - M1 | O6: SD | P6: means | R6: =IF($H$4<>"",$H$4,"") -> ms | T6: % | V6: 0.00095 | AC6: 0.00095 | AF6: =IF($H$4<>"",$H$4,"") -> ms | AJ6: 0.00095 | AS6: 0.00095 | BB6: study? | BC6: Mean | BD6: N | BE6: t | BF6: for display | BG6: y disp | BH6: display | BI6: SS | BJ6: N-1 | BK6: Weight | BL6: Weight | BN6: Wt x M | BO6: Wt^2 | BP6: WtxM^2 | BQ6: V* | BR6: W* | BS6: W* x M | BT6: means | BU6: y disp | CD6: 9 | CE6: 4 | CN6: 9 | CO6: 1 | CP6: =IF(CO6=0,NA(),SUM($CO$3:CO6)) -> 4
B7: =IF(AND($BE$5,$BG$4,BE7<>"",$BC$3<>""), BE7,"") ->  | C7: =IF(B7<>"",TDIST(ABS(BE7),I7+L7-2,2),"") ->  | D7: =IF(B7<>"",IF(C7<0.001,"***",(IF(C7<0.01,"**",(IF(C7<0.05,"*",(IF(C7<0.1,"?","ns"))))))),"") ->  | E7: 1 | F7: study 1 | G7: 94 | H7: 22 | I7: 60 | J7: 96 | K7: 20 | L7: 60 | N7: =IF(BB7,J7-G7,"") -> 2 | O7: =IF(BB7,SQRT(((I7-1)*H7^2+(L7-1)*K7^2)/(I7+L7-2)),"") -> 21.02379604 | P7: =IF(BB7,O7^2*(1/I7+1/L7),"") -> 14.73333333 | R7: =IF(BB7,BH7,"") -> 7.601081844 | T7: =IF(AND(BK7<>"",$BO$2),IF(fixedrandom=1,100*BK7/$BK$37,100*BR7/$BR$37),"") -> 16.64688736 | V7: 0.00095 | AC7: 0.00095 | AD7: [ | AE7: =IF(BE7<>"",N7-R7,"") -> -5.601081844 | AF7: , | AG7: =IF(BE7<>"",N7+R7,"") -> 9.601081844 | AH7: ] | AJ7: 0.00095 | AS7: 0.00095 | BA7: 1 | BB7: =AND(G7<>"",H7>0,I7>1,J7<>"",K7>0,L7>1) -> TRUE | BC7: =IF(BB7,N7,"") -> 2 | BD7: =IF(BB7,I7,"") -> 60 | BE7: =IF(BB7,(N7-$BC$3)/SQRT(P7),"") -> 0.5210501057 | BF7: =IF(AND(NOT($BM$2),BB7),N7,NA()) ->  | BG7: =IF(BB7,BA7,NA()) -> 1 | BH7: =IF(BB7,SQRT(P7)*TINV((100-$O$2)/100,I7+L7-2),NA()) -> 7.601081844 | BI7: =IF(BE7<>"",H7*H7*(I7-1),"") -> 28556 | BJ7: =IF(BE7<>"",(I7-1),"") -> 59 | BK7: =IF(BB7,1/P7,"") -> 0.06787330317 | BL7: =IF(fixedrandom=1,BK7,BR7) -> 0.02792790328 | BN7: =IF(BB7,BC7*BK7,"") -> 0.1357466063 | BO7: =IF(BK7<>"",BK7*BK7,"") -> 0.004606785283 | BP7: =IF(BK7<>"",BC7^2*BK7,"") -> 0.2714932127 | BQ7: =IF(BK7<>"",1/BK7+$BN$43,"") -> 35.80648321 | BR7: =IF(BK7<>"",1/BQ7,"") -> 0.02792790328 | BS7: =IF(BK7<>"",BR7*BC7,"") -> 0.05585580656 | BT7: =IF(AND(NOT($BM$2),BB7),N7,NA()) ->  | BU7: =CP3 -> 1 | CB7: 1 | CE7: 5 | CL7: 1 | CO7: 1 | CP7: =IF(CO7=0,NA(),SUM($CO$3:CO7)) -> 5
B8: =IF(AND($BE$5,$BG$4,BE8<>"",$BC$3<>""), BE8,"") ->  | C8: =IF(B8<>"",TDIST(ABS(BE8),I8+L8-2,2),"") ->  | E8: 2 | F8: study 2 | G8: 98 | H8: 21 | I8: 65 | J8: 107 | K8: 22 | L8: 65 | N8: =IF(BB8,J8-G8,"") -> 9 | O8: =IF(BB8,SQRT(((I8-1)*H8^2+(L8-1)*K8^2)/(I8+L8-2)),"") -> 21.50581317 | P8: =IF(BB8,O8^2*(1/I8+1/L8),"") -> 14.23076923 | R8: =IF(BB8,BH8,"") -> 7.464276931 | T8: 16.88386185 | V8: 0.00095 | AC8: 0.00095 | AD8: [ | AE8: =IF(BE8<>"",N8-R8,"") -> 1.535723069 | AF8: , | AG8: =IF(BE8<>"",N8+R8,"") -> 16.46427693 | AH8: ] | AJ8: 0.00095 | AS8: 0.00095 | BA8: 2 | BB8: TRUE | BC8: =IF(BB8,N8,"") -> 9 | BD8: =IF(BB8,I8,"") -> 65 | BE8: 2.385768617 | BF8: =IF(AND(NOT($BM$2),BB8),N8,NA()) ->  | BG8: =IF(BB8,BA8,NA()) -> 2 | BH8: 7.464276931 | BI8: 28224 | BJ8: 64 | BK8: =IF(BB8,1/P8,"") -> 0.07027027027 | BL8: 0.02832546712 | BN8: =IF(BB8,BC8*BK8,"") -> 0.6324324324 | BO8: =IF(BK8<>"",BK8*BK8,"") -> 0.004937910884 | BP8: =IF(BK8<>"",BC8^2*BK8,"") -> 5.691891892 | BQ8: 35.30391911 | BR8: =IF(BK8<>"",1/BQ8,"") -> 0.02832546712 | BS8: =IF(BK8<>"",BR8*BC8,"") -> 0.2549292041 | BT8: =IF(AND(NOT($BM$2),BB8),N8,NA()) ->  | BU8: 2 | CC8: -4 | CE8: 6 | CM8: -4 | CO8: 1 | CP8: =IF(CO8=0,NA(),SUM($CO$3:CO8)) -> 6
E9: 3 | F9: study 3 | G9: 98 | H9: 28 | I9: 40 | J9: 101 | K9: 26 | L9: 40 | N9: 3 | O9: 27.01851217 | P9: 36.5 | R9: 12.02774833 | T9: 10.35320274 | V9: 0.00095 | AC9: 0.00095 | AD9: [ | AE9: -9.027748329 | AF9: , | AG9: 15.02774833 | AH9: ] | AJ9: 0.00095 | AS9: 0.00095 | BA9: 3 | BB9: TRUE | BC9: 3 | BD9: 40 | BE9: 0.4965635332 | BG9: 3 | BH9: 12.02774833 | BI9: 30576 | BJ9: 39 | BK9: 0.02739726027 | BL9: 0.01736920773 | BN9: 0.08219178082 | BO9: 0.0007506098705 | BP9: 0.2465753425 | BQ9: 57.57314988 | BR9: 0.01736920773 | BS9: 0.0521076232 | BU9: 3 | CE9: 7 | CO9: 0 | CP9: =IF(CO9=0,NA(),SUM($CO$3:CO9)) -> 
E10: 4 | F10: study 4 | G10: 100 | H10: 19 | I10: 130 | J10: 109 | K10: 17 | L10: 125 | N10: 9 | O10: 18.04747801 | P10: 5.111164488 | R10: 4.45236245 | T10: 22.76425819 | V10: 0.00095 | AC10: 0.00095 | AD10: [ | AE10: 4.54763755 | AF10: , | AG10: 13.45236245 | AH10: ] | AJ10: 0.00095 | AS10: 0.00095 | BA10: 4 | BB10: TRUE | BC10: 9 | BD10: 130 | BE10: 3.980912029 | BG10: 4 | BH10: 4.45236245 | BI10: 46569 | BJ10: 129 | BK10: 0.1956501307 | BL10: 0.03819080332 | BN10: 1.760851176 | BO10: 0.03827897364 | BP10: 15.84766059 | BQ10: 26.18431437 | BR10: 0.03819080332 | BS10: 0.3437172299 | BU10: 4 | CE10: 8 | CO10: 0 | CP10: =IF(CO10=0,NA(),SUM($CO$3:CO10)) -> 
E11: 5 | F11: study 5 | G11: 98 | H11: 21 | I11: 50 | J11: 99 | K11: 22 | L11: 45 | N11: 1 | O11: 21.4789219 | P11: 19.47897252 | R11: 8.764334119 | T11: 14.69877426 | V11: 0.00095 | AC11: 0.00095 | AD11: [ | AE11: -7.764334119 | AF11: , | AG11: 9.764334119 | AH11: ] | AJ11: 0.00095 | AS11: 0.00095 | BA11: 5 | BB11: TRUE | BC11: 1 | BD11: 50 | BE11: 0.2265776027 | BG11: 5 | BH11: 8.764334119 | BI11: 21609 | BJ11: 49 | BK11: 0.05133741007 | BL11: 0.02465962176 | BN11: 0.05133741007 | BO11: 0.002635529672 | BP11: 0.05133741007 | BQ11: 40.5521224 | BR11: 0.02465962176 | BS11: 0.02465962176 | BU11: 5 | CE11: 9 | CO11: 0 | CP11: =IF(CO11=0,NA(),SUM($CO$3:CO11)) -> 
E12: 6 | F12: study 6 | G12: 96 | H12: 21 | I12: 85 | J12: 92 | K12: 22 | L12: 85 | N12: -4 | O12: 21.50581317 | P12: 10.88235294 | R12: 6.512523349 | T12: 18.65301561 | V12: 0.00095 | AC12: 0.00095 | AD12: [ | AE12: -10.51252335 | AF12: , | AG12: 2.512523349 | AH12: ] | AJ12: 0.00095 | AS12: 0.00095 | BA12: 6 | BB12: TRUE | BC12: -4 | BD12: 85 | BE12: -1.212547018 | BG12: 6 | BH12: 6.512523349 | BI12: 37044 | BJ12: 84 | BK12: 0.09189189189 | BL12: 0.03129351479 | BN12: -0.3675675676 | BO12: 0.008444119795 | BP12: 1.47027027 | BQ12: 31.95550282 | BR12: 0.03129351479 | BS12: -0.1251740591 | BU12: 6 | CE12: 10 | CO12: 0 | CP12: =IF(CO12=0,NA(),SUM($CO$3:CO12)) -> 
E13: 7 | F13: study 7 | V13: 0.00095 | AC13: 0.00095 | AD13: [ | AF13: , | AH13: ] | AJ13: 0.00095 | AS13: 0.00095 | BA13: 7 | BB13: FALSE | CE13: 11 | CO13: 0 | CP13: =IF(CO13=0,NA(),SUM($CO$3:CO13)) -> 
E14: 8 | F14: study 8 | V14: 0.00095 | AC14: 0.00095 | AD14: [ | AF14: , | AH14: ] | AJ14: 0.00095 | AS14: 0.00095 | BA14: 8 | BB14: FALSE | CE14: 12 | CO14: 0 | CP14: =IF(CO14=0,NA(),SUM($CO$3:CO14)) -> 
E15: 9 | F15: study 9 | V15: 0.00095 | AC15: 0.00095 | AD15: [ | AF15: , | AH15: ] | AJ15: 0.00095 | AS15: 0.00095 | BA15: 9 | BB15: FALSE | CE15: 13 | CO15: 0 | CP15: =IF(CO15=0,NA(),SUM($CO$3:CO15)) -> 
E16: 10 | F16: study 10 | V16: 0.00095 | AC16: 0.00095 | AD16: [ | AF16: , | AH16: ] | AJ16: 0.00095 | AS16: 0.00095 | BA16: 10 | BB16: FALSE | CE16: 14 | CO16: 0 | CP16: =IF(CO16=0,NA(),SUM($CO$3:CO16)) -> 
E17: 11 | F17: study 11 | V17: 0.00095 | AC17: 0.00095 | AD17: [ | AF17: , | AH17: ] | AJ17: 0.00095 | AS17: 0.00095 | BA17: 11 | BB17: FALSE | CE17: 15 | CO17: 0 | CP17: =IF(CO17=0,NA(),SUM($CO$3:CO17)) -> 
E18: 12 | F18: study 12 | V18: 0.00095 | AC18: 0.00095 | AD18: [ | AF18: , | AH18: ] | AJ18: 0.00095 | AS18: 0.00095 | BA18: 12 | BB18: FALSE | CE18: 16 | CO18: 0 | CP18: =IF(CO18=0,NA(),SUM($CO$3:CO18)) -> 
E19: 13 | F19: study 13 | V19: 0.00095 | AC19: 0.00095 | AD19: [ | AF19: , | AH19: ] | AJ19: 0.00095 | AS19: =$V$4 -> 0.00095 | BA19: 13 | BB19: FALSE | CE19: 17 | CO19: 0 | CP19: =IF(CO19=0,NA(),SUM($CO$3:CO19)) -> 
E20: 14 | F20: study 14 | V20: 0.00095 | AC20: 0.00095 | AD20: [ | AF20: , | AH20: ] | AJ20: 0.00095 | AS20: 0.00095 | BA20: 14 | BB20: FALSE | CE20: 18 | CO20: 0 | CP20: =IF(CO20=0,NA(),SUM($CO$3:CO20)) -> 
E21: 15 | F21: study 15 | V21: 0.00095 | AC21: 0.00095 | AD21: [ | AF21: , | AH21: ] | AJ21: 0.00095 | AS21: 0.00095 | BA21: 15 | BB21: FALSE | CE21: 19 | CO21: 0 | CP21: =IF(CO21=0,NA(),SUM($CO$3:CO21)) -> 
E22: 16 | F22: study 16 | V22: 0.00095 | AC22: 0.00095 | AD22: [ | AF22: , | AH22: ] | AJ22: 0.00095 | AS22: 0.00095 | BA22: 16 | BB22: FALSE | CE22: 20 | CO22: 0 | CP22: =IF(CO22=0,NA(),SUM($CO$3:CO22)) -> 
E23: 17 | F23: study 17 | V23: 0.00095 | AC23: 0.00095 | AD23: [ | AF23: , | AH23: ] | AJ23: 0.00095 | AS23: 0.00095 | BA23: 17 | BB23: FALSE | CE23: 21 | CO23: 0 | CP23: =IF(CO23=0,NA(),SUM($CO$3:CO23)) -> 
E24: 18 | F24: study 18 | V24: 0.00095 | AC24: 0.00095 | AD24: [ | AF24: , | AH24: ] | AJ24: 0.00095 | AS24: 0.00095 | BA24: 18 | BB24: FALSE | CE24: 22 | CO24: 0 | CP24: =IF(CO24=0,NA(),SUM($CO$3:CO24)) -> 
E25: 19 | F25: study 19 | V25: 0.00095 | AC25: 0.00095 | AD25: [ | AF25: , | AH25: ] | AJ25: 0.00095 | AS25: 0.00095 | BA25: 19 | BB25: FALSE | CE25: 23 | CO25: 0 | CP25: =IF(CO25=0,NA(),SUM($CO$3:CO25)) -> 
E26: 20 | F26: study 20 | V26: 0.00095 | AC26: 0.00095 | AD26: [ | AF26: , | AH26: ] | AJ26: 0.00095 | AS26: 0.00095 | BA26: 20 | BB26: FALSE | CE26: 24 | CO26: 0 | CP26: =IF(CO26=0,NA(),SUM($CO$3:CO26)) -> 
E27: 21 | F27: study 21 | V27: 0.00095 | AC27: 0.00095 | AD27: [ | AF27: , | AH27: ] | BA27: 21 | BB27: FALSE | CE27: 25 | CO27: 0 | CP27: =IF(CO27=0,NA(),SUM($CO$3:CO27)) -> 
E28: 22 | F28: study 22 | V28: 0.00095 | AC28: 0.00095 | AD28: [ | AF28: , | AH28: ] | BA28: 22 | BB28: FALSE | CE28: 26 | CO28: 0 | CP28: =IF(CO28=0,NA(),SUM($CO$3:CO28)) -> 
E29: 23 | F29: study 23 | V29: 0.00095 | AC29: 0.00095 | AD29: [ | AF29: , | AH29: ] | BA29: 23 | BB29: FALSE | CE29: 27 | CO29: 0 | CP29: =IF(CO29=0,NA(),SUM($CO$3:CO29)) -> 
E30: 24 | F30: study 24 | V30: 0.00095 | AC30: 0.00095 | AD30: [ | AF30: , | AH30: ] | BA30: 24 | BB30: FALSE | CE30: 28 | CO30: 0 | CP30: =IF(CO30=0,NA(),SUM($CO$3:CO30)) -> 
E31: 25 | F31: study 25 | V31: 0.00095 | AC31: 0.00095 | AD31: [ | AF31: , | AH31: ] | BA31: 25 | BB31: FALSE | CE31: 29 | CO31: 0 | CP31: =IF(CO31=0,NA(),SUM($CO$3:CO31)) -> 
E32: 26 | F32: study 26 | V32: 0.00095 | AC32: 0.00095 | AD32: [ | AF32: , | AH32: ] | BA32: 26 | BB32: FALSE | CE32: 30 | CO32: 0 | CP32: =IF(CO32=0,NA(),SUM($CO$3:CO32)) -> 
E33: 27 | F33: study 27 | V33: 0.00095 | AC33: 0.00095 | AD33: [ | AF33: , | AH33: ] | BA33: 27 | BB33: FALSE | CP33: =IF(BE5,SUM(CO3:CO32)+2,NA()) -> 8
E34: 28 | F34: study 28 | V34: 0.00095 | AC34: 0.00095 | AD34: [ | AF34: , | AH34: ] | BA34: 28 | BB34: FALSE
E35: 29 | F35: study 29 | V35: 0.00095 | AC35: 0.00095 | AD35: [ | AF35: , | AH35: ] | BA35: 29 | BB35: FALSE
E36: 30 | F36: study 30 | V36: 0.00095 | AC36: 0.00095 | AD36: [ | AF36: , | AH36: ] | BA36: 30 | BB36: FALSE
K37: Past research, meta-analyzed | L37: 4 | P37: 9 | R37: Result as diamond | V37: =$V$4 -> 0.00095 | AC37: =$V$4 -> 0.00095 | BF37: SE of mean | BG37: =IF($BE$5,SQRT(1/SUM(BK7:BK36)),"") -> 1.408003507 | BK37: =SUM(BK7:BK36) -> 0.5044202664 | BM37: Total | BN37: =SUM(BN7:BN36) -> 2.294991838 | BO37: 0.05965392914 | BP37: 23.57922871 | BQ37: 227.3754918 | BR37: 0.167766518 | BS37: 0.6060954263 | BU37: 8
B38: =IF(AND($BE$5,$BG$4,BE39<>""), IF(fixedrandom=1,BE39,BN51),"") ->  | C38: =IF(B38<>"",2*(1-NORMSDIST(ABS(B38))),"") ->  | D38: =IF(B38<>"",IF(C38<0.001,"***",(IF(C38<0.01,"**",(IF(C38<0.05,"*",(IF(C38<0.1,"?","ns"))))))),"") ->  | M38: =IF(BE5,IF(fixedrandom=1,"Fixed effect ","Random effects "),"") -> Random effects | N38: =IF(AND($BE$5,$BO$2),IF(fixedrandom=1,SUMPRODUCT(BC7:BC36,BK7:BK36)/SUM(BK7:BK36),BN45),"") -> 3.612731751 | P38: =IF($BO$2,IF(fixedrandom=1,BG37^2,BN46),"") -> 5.960664928 | R38: =IF(BE39<>"",BH39,"") -> 4.785148782 | V38: =$V$4 -> 0.00095 | AC38: =$V$4 -> 0.00095 | AD38: [ | AE38: =IF(BE39<>"",N38-R38,"") -> -1.172417031 | AF38: , | AG38: =IF(BE39<>"",N38+R38,"") -> 8.397880533 | AH38: ] | BE38: z | BH38: bars | BK38: max weight | BL38: =IF(fixedrandom=1,MAX(BK7:BK36),MAX(BR7:BR36)) -> 0.03819080332 | BM38: Means: | BN38: 1 - 30 | BT38: for squash display of MA result, non-diamond | BU38: =IF(AND(NOT(BM3),BE39<>""),BU37,NA()) -> 
K39: 11 T | L39: =IF(ISNUMBER(BN43),SQRT(BN43),"") -> 4.590550063 | M39: =IF($H$4<>"",$H$4,"") -> ms | R39: 12 Heterogeneity | S39: Q | T39: =IF(ISNUMBER(BN40),BN40,"") -> 13.13756352 | BC39: =IF($BE39<>"",N38,"") -> 3.612731751 | BD39: =IF($BE39<>"",I38,"") -> 0 | BE39: =IF($BE$5,(N38-$BC$3)/BG37,"") -> 2.565854228 | BF39: =IF(AND($BE$5,$BO$2),IF(NOT(BM3),N38,NA()),NA()) ->  | BG39: =IF(AND(NOT(BM3),BE39<>""),32,32) -> 32 | BH39: =IF(BE39<>"",IF(fixedrandom=1,NORMSINV((100+$O$2)/200)*BG37,BN48),NA()) -> 4.785148782 | BJ39: =IF(BE39<>"",(I38-1),"") -> -1 | BM39: df | BN39: =COUNT(BN7:BN36)-1 -> 5
F40: 10 | G40: Model | K40: CI [ | L40: =IF(ISNUMBER(BN62),BN62,"") -> 1.00709514 | M40: , | N40: =IF(ISNUMBER(BN63),BN63,"") -> 8.363589279 | O40: ] | S40: df | T40: =IF(ISNUMBER(BN39),BN39,"") -> 5 | BF40: =N38 -> 3.612731751 | BG40: 32 | BJ40: min weight | BK40: =MIN(BK7:BK37) -> 0.02739726027 | BM40: Q | BN40: =IF(BK37=0,"",BP37-BN37^2/BK37) -> 13.13756352
S41: p | T41: =IF(ISNUMBER(BN41),BN41,"") -> 0.02212319311 | BM41: p for Q | BN41: =CHIDIST(BN40,BN39) -> 0.02212319311 | BT41: 0 | BU41: 0.1 | BV41: bin ends | BW41: dot size | BX41: Influence | BY41: 0 | BZ41: 0.2
S42: I2. | T42: =IF(ISNUMBER(BN53),100*BN53,"") -> 61.94119258 | U42: % | BF42: half height | BG42: 0.4 | BM42: C | BN42: =BK37-BO37/BK37 -> 0.3861579103 | BT42: =AVERAGE(BX42:BX43) -> 1.16 | BU42: 0.1 | BV42: =$BL$38*BT42/$BT$50 -> 0.001547779958 | BW42: 3 | BX42: 0.36 | BY42: =BX42 -> 0.36 | BZ42: 0.2
BB43: L end | BC43: =BF40-BH39 -> -1.172417031 | BF43: upper diamond | BH43: squash | BM43: T^2 | BN43: =IF(BN42=0,0,MAX(0,(BN40-BN39)/BN42)) -> 21.07314988 | BT43: 3.0608 | BU43: 0.1 | BV43: 0.00408400422 | BW43: 4 | BX43: 1.96 | BY43: 1.96 | BZ43: 0.2
BB44: R end | BC44: =BF40+BH39 -> 8.397880533 | BF44: =IF(AND($BO$2,$BE$5),IF($BM$3,BF40,NA()),NA()) -> 3.612731751 | BG44: =IF($BM$3,BG40+BG42,NA()) -> 32.4 | BH44: =IF($BM$3,BU37+BG42,NA()) -> 8.4 | BM44: T | BN44: =SQRT(BN43) -> 4.590550063 | BT44: 5.4608 | BU44: 0.1 | BV44: 0.007286307582 | BW44: 6 | BX44: 4.1616 | BY44: 4.1616 | BZ44: 0.2
BB45: no. points | BC45: 200 | BF45: =IF(AND($BO$2,$BE$5),IF($BM$3,BF40-BH39,NA()),NA()) -> -1.172417031 | BG45: =IF($BM$3,BG40,NA()) -> 32 | BH45: =IF($BM$3,BU37,NA()) -> 8 | BM45: M* | BN45: =BS37/BR37 -> 3.612731751 | BT45: 8.34125 | BU45: 0.1 | BV45: 0.01112967205 | BW45: 7 | BX45: 6.76 | BY45: 6.76 | BZ45: 0.2
BB46: inc x | BC46: =(BC44-BC43)/BC45 -> 0.04785148782 | BF46: =IF(AND($BO$2,$BE$5),IF($BM$3,BF40,NA()),NA()) -> 3.612731751 | BG46: =IF($BM$3,BG40-BG42,NA()) -> 31.6 | BH46: =IF($BM$3,BU37-BG42,NA()) -> 7.6 | BM46: V(M*) | BN46: =1/BR37 -> 5.960664928 | BT46: 11.80625 | BU46: 0.1 | BV46: 0.01575299753 | BW46: 9 | BX46: 9.9225 | BY46: 9.9225 | BZ46: 0.2
BB47: delta y | BC47: -0.02 | BF47: =IF(AND($BO$2,$BE$5),IF($BM$3,BF40+BH39,NA()),NA()) -> 8.397880533 | BG47: =IF($BM$3,BG40,NA()) -> 32 | BH47: =IF($BM$3,BU37,NA()) -> 8 | BM47: SE(M*) | BN47: =SQRT(BN46) -> 2.441447302 | BT47: 15.87625 | BU47: 0.1 | BV47: 0.02118357031 | BW47: 10 | BX47: 13.69 | BY47: 13.69 | BZ47: 0.2
BF48: =IF(AND($BO$2,$BE$5),IF($BM$3,BF40,NA()),NA()) -> 3.612731751 | BG48: =IF($BM$3,BG40+BG42,NA()) -> 32.4 | BH48: =IF($BM$3,BU37+BG42,NA()) -> 8.4 | BM48: moe | BN48: =NORMSINV((100+$O$2)/200)*BN47 -> 4.785148782 | BT48: 20.55125 | BU48: 0.1 | BV48: 0.0274213904 | BW48: 12 | BX48: 18.0625 | BY48: 18.0625 | BZ48: 0.2
BG49: squash | BM49: LL | BN49: =BN45-BN48 -> -1.172417031 | BT49: 25.83125 | BU49: 0.1 | BV49: 0.0344664578 | BW49: 13 | BX49: 23.04 | BY49: 23.04 | BZ49: 0.2
BB50: index | BC50: from end | BD50: x | BE50: y | BF50: bar | BG50: y disp | BM50: UL | BN50: =BN45+BN48 -> 8.397880533 | BT50: =BX50 -> 28.6225 | BU50: 0.1 | BV50: 0.03819080332 | BW50: 15 | BX50: 28.6225 | BY50: 28.6225 | BZ50: 0.2
BB51: 0 | BC51: =1-ABS($BF$40-BD51)/$BH$39 -> 0 | BD51: =IF($BM$3,BC43,NA()) -> -1.172417031 | BE51: =IF($BM$3,BG40,NA()) -> 32 | BF51: =MAX($BG$42*BC51-$BC$47,0) -> 0.02 | BG51: =IF($BM$3,BU37,NA()) -> 8 | BM51: z | BN51: =(BN45-$BC$3)/BN47 -> 1.479750043
BB52: 1 | BC52: 0.01 | BD52: =IF($BM$3,BD51+$BC$46,NA()) -> -1.124565543 | BE52: =BE51 -> 32 | BF52: 0.024 | BG52: =BG51 -> 8 | BM52: p | BN52: =2*(1-NORMSDIST(ABS(BN51))) -> 0.1389399651
BB53: 2 | BC53: 0.02 | BD53: -1.076714055 | BE53: 32 | BF53: 0.028 | BG53: 8 | BM53: I^2 | BN53: =MAX(0,(BN40-BN39)/BN40) -> 0.6194119258
BB54: 3 | BC54: 0.03 | BD54: -1.028862568 | BE54: 32 | BF54: 0.032 | BG54: 8 | BM54: For CI on T^2
BB55: 4 | BC55: 0.04 | BD55: -0.9810110797 | BE55: 32 | BF55: 0.036 | BG55: 8 | BM55: B1 | BN55: =0.5*(LN(BN40)-LN(BN39))/(SQRT(2*BN40)-SQRT(2*BN39-1)) -> 0.2272038701
BB56: 5 | BC56: 0.05 | BD56: -0.9331595919 | BE56: 32 | BF56: 0.04 | BG56: 8 | BM56: B2 | BN56: =SQRT(1/(2*(BN39-1)*(1-(1/(3*(BN39-1)^2))))) -> 0.3572948005
BB57: 6 | BC57: 0.06 | BD57: -0.8853081041 | BE57: 32 | BF57: 0.044 | BG57: 8 | BM57: B | BN57: =IF(BN40>(BN39+1),BN55,BN56) -> 0.2272038701
BB58: 7 | BC58: 0.07 | BD58: -0.8374566162 | BE58: 32 | BF58: 0.048 | BG58: 8 | BM58: L | BN58: =EXP(0.5*LN(BN40/BN39)-NORMSINV((100+$O$2)/200)*BN57) -> 1.038427372
BB59: 8 | BC59: 0.08 | BD59: -0.7896051284 | BE59: 32 | BF59: 0.052 | BG59: 8 | BM59: U | BN59: =EXP(0.5*LN(BN40/BN39)+NORMSINV((100+$O$2)/200)*BN57) -> 2.530280667
BB60: 9 | BC60: 0.09 | BD60: -0.7417536406 | BE60: 32 | BF60: 0.056 | BG60: 8 | BM60: LL T^2 | BN60: =MAX(0,BN39*(BN58^2-1)/BN42) -> 1.014240622
BB61: 10 | BC61: 0.1 | BD61: -0.6939021528 | BE61: 32 | BF61: 0.06 | BG61: 8 | BM61: UL T^2 | BN61: =MAX(0,BN39*(BN59^2-1)/BN42) -> 69.94962563
BB62: 11 | BC62: 0.11 | BD62: -0.646050665 | BE62: 32 | BF62: 0.064 | BG62: 8 | BM62: LL T | BN62: =SQRT(BN60) -> 1.00709514
BB63: 12 | BC63: 0.12 | BD63: -0.5981991771 | BE63: 32 | BF63: 0.068 | BG63: 8 | BM63: UL T | BN63: =SQRT(BN61) -> 8.363589279
BB64: 13 | BC64: 0.13 | BD64: -0.5503476893 | BE64: 32 | BF64: 0.072 | BG64: 8
BB65: 14 | BC65: 0.14 | BD65: -0.5024962015 | BE65: 32 | BF65: 0.076 | BG65: 8
BB66: 15 | BC66: 0.15 | BD66: -0.4546447137 | BE66: 32 | BF66: 0.08 | BG66: 8
BB67: 16 | BC67: 0.16 | BD67: -0.4067932259 | BE67: 32 | BF67: 0.084 | BG67: 8
BB68: 17 | BC68: 0.17 | BD68: -0.358941738 | BE68: 32 | BF68: 0.088 | BG68: 8
BB69: 18 | BC69: 0.18 | BD69: -0.3110902502 | BE69: 32 | BF69: 0.092 | BG69: 8
BB70: 19 | BC70: 0.19 | BD70: -0.2632387624 | BE70: 32 | BF70: 0.096 | BG70: 8
BB71: 20 | BC71: 0.2 | BD71: -0.2153872746 | BE71: 32 | BF71: 0.1 | BG71: 8
BB72: 21 | BC72: 0.21 | BD72: -0.1675357868 | BE72: 32 | BF72: 0.104 | BG72: 8
BB73: 22 | BC73: 0.22 | BD73: -0.119684299 | BE73: 32 | BF73: 0.108 | BG73: 8
BB74: 23 | BC74: 0.23 | BD74: -0.07183281113 | BE74: 32 | BF74: 0.112 | BG74: 8
BB75: 24 | BC75: 0.24 | BD75: -0.02398132331 | BE75: 32 | BF75: 0.116 | BG75: 8
BB76: 25 | BC76: 0.25 | BD76: 0.02387016451 | BE76: 32 | BF76: 0.12 | BG76: 8
BB77: 26 | BC77: 0.26 | BD77: 0.07172165233 | BE77: 32 | BF77: 0.124 | BG77: 8
BB78: 27 | BC78: 0.27 | BD78: 0.1195731401 | BE78: 32 | BF78: 0.128 | BG78: 8
BB79: 28 | BC79: 0.28 | BD79: 0.167424628 | BE79: 32 | BF79: 0.132 | BG79: 8
BB80: 29 | BC80: 0.29 | BD80: 0.2152761158 | BE80: 32 | BF80: 0.136 | BG80: 8
BB81: 30 | BC81: 0.3 | BD81: 0.2631276036 | BE81: 32 | BF81: 0.14 | BG81: 8
BB82: 31 | BC82: 0.31 | BD82: 0.3109790914 | BE82: 32 | BF82: 0.144 | BG82: 8
BB83: 32 | BC83: 0.32 | BD83: 0.3588305792 | BE83: 32 | BF83: 0.148 | BG83: 8
BB84: 33 | BC84: 0.33 | BD84: =IF($BM$3,BD83+$BC$46,NA()) -> 0.4066820671 | BE84: =BE83 -> 32 | BF84: 0.152 | BG84: =BG83 -> 8
BB85: 34 | BC85: 0.34 | BD85: 0.4545335549 | BE85: 32 | BF85: 0.156 | BG85: 8
BB86: 35 | BC86: 0.35 | BD86: 0.5023850427 | BE86: 32 | BF86: 0.16 | BG86: 8
BB87: 36 | BC87: 0.36 | BD87: 0.5502365305 | BE87: 32 | BF87: 0.164 | BG87: 8
BB88: 37 | BC88: 0.37 | BD88: 0.5980880183 | BE88: 32 | BF88: 0.168 | BG88: 8
BB89: 38 | BC89: 0.38 | BD89: 0.6459395062 | BE89: 32 | BF89: 0.172 | BG89: 8
BB90: 39 | BC90: 0.39 | BD90: 0.693790994 | BE90: 32 | BF90: 0.176 | BG90: 8
BB91: 40 | BC91: 0.4 | BD91: 0.7416424818 | BE91: 32 | BF91: 0.18 | BG91: 8
BB92: 41 | BC92: 0.41 | BD92: 0.7894939696 | BE92: 32 | BF92: 0.184 | BG92: 8
BB93: 42 | BC93: 0.42 | BD93: 0.8373454574 | BE93: 32 | BF93: 0.188 | BG93: 8
BB94: 43 | BC94: 0.43 | BD94: 0.8851969453 | BE94: 32 | BF94: 0.192 | BG94: 8
BB95: 44 | BC95: 0.44 | BD95: 0.9330484331 | BE95: 32 | BF95: 0.196 | BG95: 8
BB96: 45 | BC96: 0.45 | BD96: 0.9808999209 | BE96: 32 | BF96: 0.2 | BG96: 8
BB97: 46 | BC97: 0.46 | BD97: 1.028751409 | BE97: 32 | BF97: 0.204 | BG97: 8
BB98: 47 | BC98: 0.47 | BD98: 1.076602897 | BE98: 32 | BF98: 0.208 | BG98: 8
BB99: 48 | BC99: 0.48 | BD99: 1.124454384 | BE99: 32 | BF99: 0.212 | BG99: 8
BB100: 49 | BC100: 0.49 | BD100: 1.172305872 | BE100: 32 | BF100: 0.216 | BG100: 8
BB101: 50 | BC101: 0.5 | BD101: 1.22015736 | BE101: 32 | BF101: 0.22 | BG101: 8
BB102: 51 | BC102: 0.51 | BD102: 1.268008848 | BE102: 32 | BF102: 0.224 | BG102: 8
BB103: 52 | BC103: 0.52 | BD103: 1.315860336 | BE103: 32 | BF103: 0.228 | BG103: 8
BB104: 53 | BC104: 0.53 | BD104: 1.363711823 | BE104: 32 | BF104: 0.232 | BG104: 8
BB105: 54 | BC105: 0.54 | BD105: 1.411563311 | BE105: 32 | BF105: 0.236 | BG105: 8
BB106: 55 | BC106: 0.55 | BD106: 1.459414799 | BE106: 32 | BF106: 0.24 | BG106: 8
BB107: 56 | BC107: 0.56 | BD107: 1.507266287 | BE107: 32 | BF107: 0.244 | BG107: 8
BB108: 57 | BC108: 0.57 | BD108: 1.555117775 | BE108: 32 | BF108: 0.248 | BG108: 8
BB109: 58 | BC109: 0.58 | BD109: 1.602969263 | BE109: 32 | BF109: 0.252 | BG109: 8
BB110: 59 | BC110: 0.59 | BD110: 1.65082075 | BE110: 32 | BF110: 0.256 | BG110: 8
BB111: 60 | BC111: 0.6 | BD111: 1.698672238 | BE111: 32 | BF111: 0.26 | BG111: 8
BB112: 61 | BC112: 0.61 | BD112: 1.746523726 | BE112: 32 | BF112: 0.264 | BG112: 8
BB113: 62 | BC113: 0.62 | BD113: 1.794375214 | BE113: 32 | BF113: 0.268 | BG113: 8
BB114: 63 | BC114: 0.63 | BD114: 1.842226702 | BE114: 32 | BF114: 0.272 | BG114: 8
BB115: 64 | BC115: =1-ABS($BF$40-BD115)/$BH$39 -> 0.64 | BD115: 1.890078189 | BE115: 32 | BF115: =MAX($BG$42*BC115-$BC$47,0) -> 0.276 | BG115: 8
BB116: 65 | BC116: 0.65 | BD116: =IF($BM$3,BD115+$BC$46,NA()) -> 1.937929677 | BE116: =BE115 -> 32 | BF116: 0.28 | BG116: =BG115 -> 8
BB117: 66 | BC117: 0.66 | BD117: 1.985781165 | BE117: 32 | BF117: 0.284 | BG117: 8
BB118: 67 | BC118: 0.67 | BD118: 2.033632653 | BE118: 32 | BF118: 0.288 | BG118: 8
BB119: 68 | BC119: 0.68 | BD119: 2.081484141 | BE119: 32 | BF119: 0.292 | BG119: 8
BB120: 69 | BC120: 0.69 | BD120: 2.129335629 | BE120: 32 | BF120: 0.296 | BG120: 8
BB121: 70 | BC121: 0.7 | BD121: 2.177187116 | BE121: 32 | BF121: 0.3 | BG121: 8
BB122: 71 | BC122: 0.71 | BD122: 2.225038604 | BE122: 32 | BF122: 0.304 | BG122: 8
BB123: 72 | BC123: 0.72 | BD123: 2.272890092 | BE123: 32 | BF123: 0.308 | BG123: 8
BB124: 73 | BC124: 0.73 | BD124: 2.32074158 | BE124: 32 | BF124: 0.312 | BG124: 8
BB125: 74 | BC125: 0.74 | BD125: 2.368593068 | BE125: 32 | BF125: 0.316 | BG125: 8
BB126: 75 | BC126: 0.75 | BD126: 2.416444556 | BE126: 32 | BF126: 0.32 | BG126: 8
BB127: 76 | BC127: 0.76 | BD127: 2.464296043 | BE127: 32 | BF127: 0.324 | BG127: 8
BB128: 77 | BC128: 0.77 | BD128: 2.512147531 | BE128: 32 | BF128: 0.328 | BG128: 8
BB129: 78 | BC129: 0.78 | BD129: 2.559999019 | BE129: 32 | BF129: 0.332 | BG129: 8
BB130: 79 | BC130: 0.79 | BD130: 2.607850507 | BE130: 32 | BF130: 0.336 | BG130: 8
BB131: 80 | BC131: 0.8 | BD131: 2.655701995 | BE131: 32 | BF131: 0.34 | BG131: 8
BB132: 81 | BC132: 0.81 | BD132: 2.703553482 | BE132: 32 | BF132: 0.344 | BG132: 8
BB133: 82 | BC133: 0.82 | BD133: 2.75140497 | BE133: 32 | BF133: 0.348 | BG133: 8
BB134: 83 | BC134: 0.83 | BD134: 2.799256458 | BE134: 32 | BF134: 0.352 | BG134: 8
BB135: 84 | BC135: 0.84 | BD135: 2.847107946 | BE135: 32 | BF135: 0.356 | BG135: 8
BB136: 85 | BC136: 0.85 | BD136: 2.894959434 | BE136: 32 | BF136: 0.36 | BG136: 8
BB137: 86 | BC137: 0.86 | BD137: 2.942810922 | BE137: 32 | BF137: 0.364 | BG137: 8
BB138: 87 | BC138: 0.87 | BD138: 2.990662409 | BE138: 32 | BF138: 0.368 | BG138: 8
BB139: 88 | BC139: 0.88 | BD139: 3.038513897 | BE139: 32 | BF139: 0.372 | BG139: 8
BB140: 89 | BC140: 0.89 | BD140: 3.086365385 | BE140: 32 | BF140: 0.376 | BG140: 8
BB141: 90 | BC141: 0.9 | BD141: 3.134216873 | BE141: 32 | BF141: 0.38 | BG141: 8
BB142: 91 | BC142: 0.91 | BD142: 3.182068361 | BE142: 32 | BF142: 0.384 | BG142: 8
BB143: 92 | BC143: 0.92 | BD143: 3.229919848 | BE143: 32 | BF143: 0.388 | BG143: 8
BB144: 93 | BC144: 0.93 | BD144: 3.277771336 | BE144: 32 | BF144: 0.392 | BG144: 8
BB145: 94 | BC145: 0.94 | BD145: 3.325622824 | BE145: 32 | BF145: 0.396 | BG145: 8
BB146: 95 | BC146: 0.95 | BD146: 3.373474312 | BE146: 32 | BF146: 0.4 | BG146: 8
BB147: 96 | BC147: 0.96 | BD147: 3.4213258 | BE147: 32 | BF147: 0.404 | BG147: 8
BB148: 97 | BC148: 0.97 | BD148: =IF($BM$3,BD147+$BC$46,NA()) -> 3.469177288 | BE148: =BE147 -> 32 | BF148: 0.408 | BG148: =BG147 -> 8
BB149: 98 | BC149: 0.98 | BD149: 3.517028775 | BE149: 32 | BF149: 0.412 | BG149: 8
BB150: 99 | BC150: 0.99 | BD150: 3.564880263 | BE150: 32 | BF150: 0.416 | BG150: 8
BB151: 100 | BC151: 1 | BD151: 3.612731751 | BE151: 32 | BF151: 0.42 | BG151: 8
BB152: 101 | BC152: 0.99 | BD152: 3.660583239 | BE152: 32 | BF152: 0.416 | BG152: 8
BB153: 102 | BC153: 0.98 | BD153: 3.708434727 | BE153: 32 | BF153: 0.412 | BG153: 8
BB154: 103 | BC154: 0.97 | BD154: 3.756286214 | BE154: 32 | BF154: 0.408 | BG154: 8
BB155: 104 | BC155: 0.96 | BD155: 3.804137702 | BE155: 32 | BF155: 0.404 | BG155: 8
BB156: 105 | BC156: 0.95 | BD156: 3.85198919 | BE156: 32 | BF156: 0.4 | BG156: 8
BB157: 106 | BC157: 0.94 | BD157: 3.899840678 | BE157: 32 | BF157: 0.396 | BG157: 8
BB158: 107 | BC158: 0.93 | BD158: 3.947692166 | BE158: 32 | BF158: 0.392 | BG158: 8
BB159: 108 | BC159: 0.92 | BD159: 3.995543654 | BE159: 32 | BF159: 0.388 | BG159: 8
BB160: 109 | BC160: 0.91 | BD160: 4.043395141 | BE160: 32 | BF160: 0.384 | BG160: 8
BB161: 110 | BC161: 0.9 | BD161: 4.091246629 | BE161: 32 | BF161: 0.38 | BG161: 8
BB162: 111 | BC162: 0.89 | BD162: 4.139098117 | BE162: 32 | BF162: 0.376 | BG162: 8
BB163: 112 | BC163: 0.88 | BD163: 4.186949605 | BE163: 32 | BF163: 0.372 | BG163: 8
BB164: 113 | BC164: 0.87 | BD164: 4.234801093 | BE164: 32 | BF164: 0.368 | BG164: 8
BB165: 114 | BC165: 0.86 | BD165: 4.28265258 | BE165: 32 | BF165: 0.364 | BG165: 8
BB166: 115 | BC166: 0.85 | BD166: 4.330504068 | BE166: 32 | BF166: 0.36 | BG166: 8
BB167: 116 | BC167: 0.84 | BD167: 4.378355556 | BE167: 32 | BF167: 0.356 | BG167: 8
BB168: 117 | BC168: 0.83 | BD168: 4.426207044 | BE168: 32 | BF168: 0.352 | BG168: 8
BB169: 118 | BC169: 0.82 | BD169: 4.474058532 | BE169: 32 | BF169: 0.348 | BG169: 8
BB170: 119 | BC170: 0.81 | BD170: 4.52191002 | BE170: 32 | BF170: 0.344 | BG170: 8
BB171: 120 | BC171: 0.8 | BD171: 4.569761507 | BE171: 32 | BF171: 0.34 | BG171: 8
BB172: 121 | BC172: 0.79 | BD172: 4.617612995 | BE172: 32 | BF172: 0.336 | BG172: 8
BB173: 122 | BC173: 0.78 | BD173: 4.665464483 | BE173: 32 | BF173: 0.332 | BG173: 8
BB174: 123 | BC174: 0.77 | BD174: 4.713315971 | BE174: 32 | BF174: 0.328 | BG174: 8
BB175: 124 | BC175: 0.76 | BD175: 4.761167459 | BE175: 32 | BF175: 0.324 | BG175: 8
BB176: 125 | BC176: 0.75 | BD176: 4.809018946 | BE176: 32 | BF176: 0.32 | BG176: 8
BB177: 126 | BC177: 0.74 | BD177: 4.856870434 | BE177: 32 | BF177: 0.316 | BG177: 8
BB178: 127 | BC178: 0.73 | BD178: 4.904721922 | BE178: 32 | BF178: 0.312 | BG178: 8
BB179: 128 | BC179: =1-ABS($BF$40-BD179)/$BH$39 -> 0.72 | BD179: 4.95257341 | BE179: 32 | BF179: =MAX($BG$42*BC179-$BC$47,0) -> 0.308 | BG179: 8
BB180: 129 | BC180: 0.71 | BD180: =IF($BM$3,BD179+$BC$46,NA()) -> 5.000424898 | BE180: =BE179 -> 32 | BF180: 0.304 | BG180: =BG179 -> 8
BB181: 130 | BC181: 0.7 | BD181: 5.048276386 | BE181: 32 | BF181: 0.3 | BG181: 8
BB182: 131 | BC182: 0.69 | BD182: 5.096127873 | BE182: 32 | BF182: 0.296 | BG182: 8
BB183: 132 | BC183: 0.68 | BD183: 5.143979361 | BE183: 32 | BF183: 0.292 | BG183: 8
BB184: 133 | BC184: 0.67 | BD184: 5.191830849 | BE184: 32 | BF184: 0.288 | BG184: 8
BB185: 134 | BC185: 0.66 | BD185: 5.239682337 | BE185: 32 | BF185: 0.284 | BG185: 8
BB186: 135 | BC186: 0.65 | BD186: 5.287533825 | BE186: 32 | BF186: 0.28 | BG186: 8
BB187: 136 | BC187: 0.64 | BD187: 5.335385313 | BE187: 32 | BF187: 0.276 | BG187: 8
BB188: 137 | BC188: 0.63 | BD188: 5.3832368 | BE188: 32 | BF188: 0.272 | BG188: 8
BB189: 138 | BC189: 0.62 | BD189: 5.431088288 | BE189: 32 | BF189: 0.268 | BG189: 8
BB190: 139 | BC190: 0.61 | BD190: 5.478939776 | BE190: 32 | BF190: 0.264 | BG190: 8
BB191: 140 | BC191: 0.6 | BD191: 5.526791264 | BE191: 32 | BF191: 0.26 | BG191: 8
BB192: 141 | BC192: 0.59 | BD192: 5.574642752 | BE192: 32 | BF192: 0.256 | BG192: 8
BB193: 142 | BC193: 0.58 | BD193: 5.622494239 | BE193: 32 | BF193: 0.252 | BG193: 8
BB194: 143 | BC194: 0.57 | BD194: 5.670345727 | BE194: 32 | BF194: 0.248 | BG194: 8
BB195: 144 | BC195: 0.56 | BD195: 5.718197215 | BE195: 32 | BF195: 0.244 | BG195: 8
BB196: 145 | BC196: 0.55 | BD196: 5.766048703 | BE196: 32 | BF196: 0.24 | BG196: 8
BB197: 146 | BC197: 0.54 | BD197: 5.813900191 | BE197: 32 | BF197: 0.236 | BG197: 8
BB198: 147 | BC198: 0.53 | BD198: 5.861751679 | BE198: 32 | BF198: 0.232 | BG198: 8
BB199: 148 | BC199: 0.52 | BD199: 5.909603166 | BE199: 32 | BF199: 0.228 | BG199: 8
BB200: 149 | BC200: 0.51 | BD200: 5.957454654 | BE200: 32 | BF200: 0.224 | BG200: 8
... 51 more rows

Sheet Standard 7
D1: Meta-Analysis of means in original units, or d | O1: 6 | U1: 7 | V1: m0 | W1: 100 | X1: =IF($G$6<>"",$G$6,"") -> IQ score | AD1: 20 ►► | AI1: Forest plot showing only included studies from first 6, plus meta-analysis as at 3 | BC1: Mean=1, d=2 | BD1: 2 | BG1: show m0 line? | BH1: TRUE | BJ1: MA model? | BK1: 1 | BL1: 1=fixed, 2=random | BP1: Population SD | BT1: TINV((100-$L$2)/100,J7-1) | CI1: Weighted means, green | CS1: Weighted means, green, squashed | DC1: squash
L2: 2 C | M2: 95 | O2: Display m0 line | AB2: 17 | AC2: Scroll right for additional forest plot | BB2: Mean | BC2: m0 | BD2: =IF($BG$4,0,$W$1) -> 0 | BG2: cumulate? | BH2: FALSE | BI2: =IF($BG$4,"d",IF(G6="","",G6)) -> d | BL2: squash | BO2: Influence weighted? | BP2: TRUE | BQ2: Show MA1 | BR2: =IF(COUNT(BH7:BH12)>1,TRUE,FALSE) -> TRUE | CI2: 3 | CJ2: 4 | CK2: 6 | CL2: 7 | CM2: 9 | CN2: 10 | CO2: 12 | CP2: 13 | CQ2: 15 | CS2: 3 | CT2: 4 | CU2: 6 | CV2: 7 | CW2: 9 | CX2: 10 | CY2: 12 | CZ2: 13 | DA2: 15 | DC2: y disp
E3: 12 | F3: Display by weightings | I3: 13 | J3: Cumulate | AZ3: ES OK? | BB3: when d | BC3: =IF(AND(W1<>"",BH1,$BG$4),0,NA()) -> 0 | BD3: 0 | BG3: Freeze scale? | BH3: FALSE | BI3: =IF(AND(W1<>"",BH1,BD1=1),IF($BG$4,0,W1),NA()) ->  | BJ3: 0 | BK3: 13 | BL3: =CA13+0.5 -> 8.5 | BO3: results as diamond | BP3: TRUE | BQ3: Show MA2 | BR3: =IF(COUNT(BH7:BH12,BH16)>1,TRUE,FALSE) -> TRUE | BS3: Zcrit | BT3: =NORMSINV((100+$M$2)/200) -> 1.959963985 | CI3: =IF(AND(BO7<=$CB$18,$BP$2),BB7,NA()) ->  | CJ3: =IF(AND(BO7>$CB$18,BO7<=$CB$19,$BP$2),BB7,NA()) ->  | CK3: =IF(AND(BO7>$CB$19,BO7<=$CB$20,$BP$2),BB7,NA()) ->  | CL3: =IF(AND(BO7>$CB$20,BO7<=$CB$21,$BP$2),BB7,NA()) ->  | CM3: =IF(AND(BO7>$CB$21,BO7<=$CB$22,$BP$2),BB7,NA()) -> 1 | CN3: =IF(AND(BO7>$CB$22,BO7<=$CB$23,$BP$2),BB7,NA()) ->  | CO3: =IF(AND(BO7>$CB$23,BO7<=$CB$24,$BP$2),BB7,NA()) ->  | CP3: =IF(AND(BO7>$CB$24,BO7<=$CB$25,$BP$2),BB7,NA()) ->  | CQ3: =IF(AND(BO7<>"",BO7>$CB$25,$BP$2),BB7,NA()) ->  | CR3: 1 | CS3: =IF(AND(BO7<=$CB$18,$BP$2),BB7,NA()) ->  | CT3: =IF(AND(BO7>$CB$18,BO7<=$CB$19,$BP$2),BB7,NA()) ->  | CU3: =IF(AND(BO7>$CB$19,BO7<=$CB$20,$BP$2),BB7,NA()) ->  | CV3: =IF(AND(BO7>$CB$20,BO7<=$CB$21,$BP$2),BB7,NA()) ->  | CW3: =IF(AND(BO7>$CB$21,BO7<=$CB$22,$BP$2),BB7,NA()) -> 1 | CX3: =IF(AND(BO7>$CB$22,BO7<=$CB$23,$BP$2),BB7,NA()) ->  | CY3: =IF(AND(BO7>$CB$23,BO7<=$CB$24,$BP$2),BB7,NA()) ->  | CZ3: =IF(AND(BO7>$CB$24,BO7<=$CB$25,$BP$2),BB7,NA()) ->  | DA3: =IF(AND(BO7<>"",BO7>$CB$25,$BP$2),BB7,NA()) ->  | DB3: =IF(BH7="",0,1) -> 1 | DC3: =IF(DB3=0,NA(),SUM($DB$3:DB3)) -> 1
C4: 8 | E4: 1 | F4: Past research | I4: Population SD (s) | L4: 11 | M4: Variance | O4: CI | P4: 15 | Q4: Study | S4: =(W1+M2+K18)/100000 -> 0.00288 | T4: =$S$4 -> 0.00288 | U4: 0.00288 | V4: 0.00288 | W4: 0.00288 | X4: 0.00288 | Y4: 0.00288 | Z4: 0.00288 | AB4: 10 CI | AG4: =IF(BH2," Cumulate","") ->  | AZ4: =AND($BH$1,$I$5<>"",$I$5<>0) -> TRUE | BF4: Display as d | BG4: =IF(AND($BH$1,$BD$1=2),TRUE,FALSE) -> TRUE | BH4: some t? | BI4: for NHST | BJ4: FALSE | BM4: Format for d | BN4: =IF(BG4,1000000000000,-1000000000000) -> 1000000000000 | BO4: fixed or | BQ4: Random | BR4: TRUE | CI4: =IF(AND(BO8<=$CB$18,$BP$2,NOT($BH$2)),BB8,NA()) ->  | CJ4: =IF(AND(BO8>$CB$18,BO8<=$CB$19,$BP$2,NOT($BH$2)),BB8,NA()) ->  | CK4: =IF(AND(BO8>$CB$19,BO8<=$CB$20,$BP$2,NOT($BH$2)),BB8,NA()) ->  | CL4: =IF(AND(BO8>$CB$20,BO8<=$CB$21,$BP$2,NOT($BH$2)),BB8,NA()) ->  | CM4: =IF(AND(BO8>$CB$21,BO8<=$CB$22,$BP$2,NOT($BH$2)),BB8,NA()) ->  | CN4: =IF(AND(BO8>$CB$22,BO8<=$CB$23,$BP$2,NOT($BH$2)),BB8,NA()) ->  | CO4: =IF(AND(BO8>$CB$23,BO8<=$CB$24,$BP$2,NOT($BH$2)),BB8,NA()) ->  | CP4: =IF(AND(BO8>$CB$24,BO8<=$CB$25,$BP$2,NOT($BH$2)),BB8,NA()) -> 0.4666666667 | CQ4: =IF(AND(BO8<>"",BO8>$CB$25,$BP$2,NOT($BH$2)),BB8,NA()) ->  | CR4: 2 | CZ4: 0.4666666667 | DB4: 1 | DC4: =IF(DB4=0,NA(),SUM($DB$3:DB4)) -> 2
E5: Study | G5: Mean | I5: 15 | L5: Study | M5: of | O5: MOE | Q5: weighting | S5: =$S$4 -> 0.00288 | Z5: =$S$4 -> 0.00288 | AB5: LL | AD5: UL | AG5: 14 | AH5: =IF(BH2,"CI","") ->  | AX5: Var orig | AY5: d | AZ5: Valid | BA5: Mean | BB5: ES for | BC5: ES for | BE5: Include | BF5: Valid | BG5: Valid | BH5: =IF(ISERROR(BH7),FALSE,IF(OR(BH7="",$I$5="",$I$5=0,COUNT(BH7:BH12)=0),FALSE,TRUE)) -> TRUE | BI5: Means | BK5: Bars for | BO5: random | BQ5: Random effects model | BT5: First 30 | BW5: 30 + current | BZ5: squash | CA5: squash | CB5: Grey | CD5: Cumulative | CI5: =IF(AND(BO9<=$CB$18,$BP$2,NOT($BH$2)),BB9,NA()) ->  | CJ5: =IF(AND(BO9>$CB$18,BO9<=$CB$19,$BP$2,NOT($BH$2)),BB9,NA()) ->  | CK5: =IF(AND(BO9>$CB$19,BO9<=$CB$20,$BP$2,NOT($BH$2)),BB9,NA()) ->  | CL5: =IF(AND(BO9>$CB$20,BO9<=$CB$21,$BP$2,NOT($BH$2)),BB9,NA()) ->  | CM5: =IF(AND(BO9>$CB$21,BO9<=$CB$22,$BP$2,NOT($BH$2)),BB9,NA()) ->  | CN5: =IF(AND(BO9>$CB$22,BO9<=$CB$23,$BP$2,NOT($BH$2)),BB9,NA()) -> -0.2 | CO5: =IF(AND(BO9>$CB$23,BO9<=$CB$24,$BP$2,NOT($BH$2)),BB9,NA()) ->  | CP5: =IF(AND(BO9>$CB$24,BO9<=$CB$25,$BP$2,NOT($BH$2)),BB9,NA()) ->  | CQ5: =IF(AND(BO9<>"",BO9>$CB$25,$BP$2,NOT($BH$2)),BB9,NA()) ->  | CR5: 3 | CX5: -0.2 | DB5: 1 | DC5: =IF(DB5=0,NA(),SUM($DB$3:DB5)) -> 3
B6: =IF(BJ4,"z","") ->  | C6: =IF(BJ4,"p","") ->  | E6: no. | F6: Study name | G6: IQ score | J6: d | K6: N | L6: in? | M6: =IF($BG$4,"d","Mean") -> d | O6: =IF($BG$4,"Population SD",IF($G$6<>"",$G$6,"")) -> Population SD | Q6: % | S6: 0.00288 | Z6: 0.00288 | AC6: =IF($BG$4,"Population SD",IF($G$6<>"",$G$6,"")) -> Population SD | AG6: =IF(BH2,IF($BG$4,"d","Mean"),"") ->  | AH6: =IF(BH2,"MOE","") ->  | AX6: means | AY6: bars | AZ6: d | BA6: bars | BB6: displBLNK | BC6: displayNA() | BE6: study? | BF6: Mean | BG6: N | BH6: t | BI6: for display | BJ6: y disp | BK6: display | BL6: SS | BM6: N-1 | BN6: Weight | BO6: Weight | BQ6: Wt x M | BR6: Wt^2 | BS6: WtxM^2 | BT6: V* | BU6: W* | BV6: W* x M | BW6: V* | BX6: W* | BY6: W* x M | BZ6: means | CA6: y disp | CB6: means | CD6: Mean | CF6: SE | CG6: Bars | CI6: =IF(AND(BO10<=$CB$18,$BP$2,NOT($BH$2)),BB10,NA()) ->  | CJ6: =IF(AND(BO10>$CB$18,BO10<=$CB$19,$BP$2,NOT($BH$2)),BB10,NA()) ->  | CK6: =IF(AND(BO10>$CB$19,BO10<=$CB$20,$BP$2,NOT($BH$2)),BB10,NA()) ->  | CL6: =IF(AND(BO10>$CB$20,BO10<=$CB$21,$BP$2,NOT($BH$2)),BB10,NA()) ->  | CM6: =IF(AND(BO10>$CB$21,BO10<=$CB$22,$BP$2,NOT($BH$2)),BB10,NA()) ->  | CN6: =IF(AND(BO10>$CB$22,BO10<=$CB$23,$BP$2,NOT($BH$2)),BB10,NA()) -> 1.133333333 | CO6: =IF(AND(BO10>$CB$23,BO10<=$CB$24,$BP$2,NOT($BH$2)),BB10,NA()) ->  | CP6: =IF(AND(BO10>$CB$24,BO10<=$CB$25,$BP$2,NOT($BH$2)),BB10,NA()) ->  | CQ6: =IF(AND(BO10<>"",BO10>$CB$25,$BP$2,NOT($BH$2)),BB10,NA()) ->  | CR6: 4 | CX6: 1.133333333 | DB6: 1 | DC6: =IF(DB6=0,NA(),SUM($DB$3:DB6)) -> 4
B7: =IF(AND($BH$5,$BJ$4,$BH$1,BH7<>"",$W$1<>""), BH7,"") ->  | C7: =IF(B7<>"",2*(1-NORMSDIST(ABS(B7))),"") ->  | D7: =IF(B7<>"",IF(C7<0.001,"***",(IF(C7<0.01,"**",(IF(C7<0.05,"*",(IF(C7<0.1,"?","ns"))))))),"") ->  | E7: 1 | F7: study 1 | G7: 115 | H7: =IF(AND(G7<>"",K7<>"",$I$5>0),$I$5,"") -> 15 | J7: =IF(AND($BH$1,G7<>"",$I$5<>"",$I$5<>0),(G7-$W$1)/$I$5,"") -> 1 | K7: 8 | M7: =IF(BH7<>"",IF($BG$4,IF(AND($BH$1,$I$5<>"",$I$5<>0),1/K7,""),H7*H7/K7),"") -> 0.125 | O7: =IF(AND($G$7<>"",$K$7>1,BH7<>""),IF($BG$4,IF(AND($BH$1,$I$5<>"",$I$5<>0),BK7,""),BK7),"") -> 0.6929519122 | Q7: =IF(AND(BN7<>"",$BH$5,$BR$2),IF(fixedrandom=1,100*BN7/SUM($BN$7:$BN$13),100*BX7/$BX$16),"") -> 8.602150538 | S7: 0.00288 | Z7: 0.00288 | AA7: [ | AB7: =IF(AND($G$7<>"",$K$7>1,BH7<>""),BB7-O7,"") -> 0.3070480878 | AC7: , | AD7: =IF(AND($G$7<>"",$K$7>1,BH7<>""),BB7+O7,"") -> 1.692951912 | AE7: ] | AG7: =IF(BH2,IF($BG$4,"Population SD",IF($G$6<>"",$G$6,"")),"") ->  | AX7: =IF(BH7<>"",H7*H7/K7,"") -> 28.125 | AY7: =IF(AND($AZ$4,BH7<>""),NORMSINV((100+$M$2)/200)/SQRT(K7),"") -> 0.6929519122 | AZ7: =IF(AND($AZ$4,$BH$5,$BH7<>""),J7,"") -> 1 | BA7: =IF(BH7<>"",H7*NORMSINV((100+$M$2)/200)/SQRT(K7),"") -> 10.39427868 | BB7: =IF($BG$4,AZ7,BF7) -> 1 | BC7: =IF(BB7="",NA(),BB7) -> 1 | BD7: 1 | BE7: TRUE | BF7: =IF(AND($BH$5,$BH7<>""),G7,"") -> 115 | BG7: =IF($BH7<>"",K7,"") -> 8 | BH7: =IF(AND(K7>1,G7<>"",H7<>"",BE7), (G7-$W$1)*SQRT(K7)/H7,"") -> 2.828427125 | BI7: =IF($BH$5,IF($BP$2,NA(),BC7),NA()) ->  | BJ7: =IF(BH7<>"",BD7,NA()) -> 1 | BK7: =IF($BH$5,IF($BG$4,IF(AY7="",NA(),AY7),IF(BA7="",NA(),BA7)),NA()) -> 0.6929519122 | BL7: =IF(BH7<>"",H7*H7*(K7-1),"") -> 1575 | BM7: =IF(BH7<>"",(K7-1),"") -> 7 | BN7: =IF($BH$5,IF(BH7<>"",1/AX7,""),"") -> 0.03555555556 | BO7: =IF(fixedrandom=1,BN7,BX7) -> 0.03555555556 | BQ7: =IF(AND($BR$4,BN7<>""),BF7*BN7,"") -> 4.088888889 | BR7: =IF(AND($BR$4,BN7<>""),BN7*BN7,"") -> 0.001264197531 | BS7: =IF(AND($BR$4,BN7<>""),BF7^2*BN7,"") -> 470.2222222 | BT7: =IF(AND($BR$4,BN7<>""),1/BN7+$BQ$24,"") -> 53.77772062 | BU7: =IF(AND($BR$4,BN7<>""),1/BT7,"") -> 0.01859506109 | BV7: =IF(AND($BR$4,BN7<>""),BU7*BF7,"") -> 2.138432025 | BW7: =IF(AND($BR$4,BN7<>""),1/BN7+$BR$24,"") -> 60.14309707 | BX7: =IF(AND($BR$4,BN7<>""),1/BW7,"") -> 0.01662701206 | BY7: =IF(AND($BR$4,BN7<>""),BX7*BF7,"") -> 1.912106386 | BZ7: =IF(AND($BH$5,NOT($BP$2),$BH7<>""),BI7,NA()) ->  | CA7: =DC3 -> 1 | CE7: 0.25 | CI7: =IF(AND(BO11<=$CB$18,$BP$2,NOT($BH$2)),BB11,NA()) ->  | CJ7: =IF(AND(BO11>$CB$18,BO11<=$CB$19,$BP$2,NOT($BH$2)),BB11,NA()) ->  | CK7: =IF(AND(BO11>$CB$19,BO11<=$CB$20,$BP$2,NOT($BH$2)),BB11,NA()) ->  | CL7: =IF(AND(BO11>$CB$20,BO11<=$CB$21,$BP$2,NOT($BH$2)),BB11,NA()) ->  | CM7: =IF(AND(BO11>$CB$21,BO11<=$CB$22,$BP$2,NOT($BH$2)),BB11,NA()) ->  | CN7: =IF(AND(BO11>$CB$22,BO11<=$CB$23,$BP$2,NOT($BH$2)),BB11,NA()) ->  | CO7: =IF(AND(BO11>$CB$23,BO11<=$CB$24,$BP$2,NOT($BH$2)),BB11,NA()) -> 0.2666666667 | CP7: =IF(AND(BO11>$CB$24,BO11<=$CB$25,$BP$2,NOT($BH$2)),BB11,NA()) ->  | CQ7: =IF(AND(BO11<>"",BO11>$CB$25,$BP$2,NOT($BH$2)),BB11,NA()) ->  | CR7: 5 | CY7: 0.2666666667 | DB7: 1 | DC7: =IF(DB7=0,NA(),SUM($DB$3:DB7)) -> 5
E8: 2 | F8: study 2 | G8: 107 | H8: 15 | J8: 0.4666666667 | K8: 17 | M8: 0.05882352941 | O8: 0.47536109 | Q8: 18.27956989 | S8: 0.00288 | Z8: 0.00288 | AA8: [ | AB8: -0.008694423372 | AC8: , | AD8: 0.9420277567 | AE8: ] | AF8: 2 | AG8: =IF(OR(BH8="",ISNA(CD8)),"",CD8) ->  | AH8: =IF(OR(BH8="",ISNA(CD8)),"",CG8) ->  | AX8: 13.23529412 | AY8: 0.47536109 | AZ8: 0.4666666667 | BA8: 7.130416351 | BB8: 0.4666666667 | BC8: 0.4666666667 | BD8: 2 | BE8: TRUE | BF8: 107 | BG8: 17 | BH8: 1.924115959 | BJ8: 2 | BK8: 0.47536109 | BL8: 3600 | BM8: 16 | BN8: 0.07555555556 | BO8: 0.07555555556 | BQ8: 8.084444444 | BR8: 0.005708641975 | BS8: 865.0355556 | BT8: 38.88801474 | BU8: 0.02571486374 | BV8: 2.75149042 | BW8: 45.25339118 | BX8: 0.02209779143 | BY8: 2.364463683 | CA8: 2 | CB8: =IF(AND($BK$1=1,$BH$2,NOT($BP$2)),BI8,NA()) ->  | CC8: =IF(BH8<>"",BD8,NA()) -> 2 | CD8: =IF(AND($BK$1=1,BH8<>"",$BH$2,$BH$5),SUMPRODUCT($BB$7:BB8,$BN$7:BN8)/SUM($BN$7:BN8),NA()) ->  | CE8: =BD8+$CE$7 -> 2.25 | CF8: =IF($BH$5,IF($BG$4,SQRT(1/SUM($BN$7:BN8))/$I$5,SQRT(1/SUM($BN$7:BN8))),"") -> 0.2 | CG8: =IF(BH8<>"",NORMSINV((100+$M$2)/200)*CF8,0) -> 0.3919927969 | CI8: =IF(AND(BO12<=$CB$18,$BP$2,NOT($BH$2)),BB12,NA()) ->  | CJ8: =IF(AND(BO12>$CB$18,BO12<=$CB$19,$BP$2,NOT($BH$2)),BB12,NA()) ->  | CK8: =IF(AND(BO12>$CB$19,BO12<=$CB$20,$BP$2,NOT($BH$2)),BB12,NA()) ->  | CL8: =IF(AND(BO12>$CB$20,BO12<=$CB$21,$BP$2,NOT($BH$2)),BB12,NA()) ->  | CM8: =IF(AND(BO12>$CB$21,BO12<=$CB$22,$BP$2,NOT($BH$2)),BB12,NA()) ->  | CN8: =IF(AND(BO12>$CB$22,BO12<=$CB$23,$BP$2,NOT($BH$2)),BB12,NA()) ->  | CO8: =IF(AND(BO12>$CB$23,BO12<=$CB$24,$BP$2,NOT($BH$2)),BB12,NA()) ->  | CP8: =IF(AND(BO12>$CB$24,BO12<=$CB$25,$BP$2,NOT($BH$2)),BB12,NA()) -> 0.7333333333 | CQ8: =IF(AND(BO12<>"",BO12>$CB$25,$BP$2,NOT($BH$2)),BB12,NA()) ->  | CR8: 6 | CZ8: 0.7333333333 | DB8: 1 | DC8: =IF(DB8=0,NA(),SUM($DB$3:DB8)) -> 6
E9: 3 | F9: study 3 | G9: 97 | H9: 15 | J9: -0.2 | K9: 9 | M9: 0.1111111111 | O9: 0.6533213282 | Q9: 9.677419355 | S9: 0.00288 | Z9: 0.00288 | AA9: [ | AB9: -0.8533213282 | AC9: , | AD9: 0.4533213282 | AE9: ] | AF9: 3 | AG9: =IF(OR(BH9="",ISNA(CD9)),"",CD9) ->  | AH9: =IF(OR(BH9="",ISNA(CD9)),"",CG9) ->  | AX9: 25 | AY9: 0.6533213282 | AZ9: -0.2 | BA9: 9.799819923 | BB9: -0.2 | BC9: -0.2 | BD9: 3 | BE9: TRUE | BF9: 97 | BG9: 9 | BH9: -0.6 | BJ9: 3 | BK9: 0.6533213282 | BL9: 1800 | BM9: 8 | BN9: 0.04 | BO9: 0.04 | BQ9: 3.88 | BR9: 0.0016 | BS9: 376.36 | BT9: 50.65272062 | BU9: 0.01974227618 | BV9: 1.91500079 | BW9: 57.01809707 | BX9: 0.01753829138 | BY9: 1.701214263 | CA9: 3 | CB9: =IF(AND($BK$1=1,$BH$2,NOT($BP$2)),BI9,NA()) ->  | CC9: =IF(BH9<>"",BD9,NA()) -> 3 | CD9: =IF(AND($BK$1=1,BH9<>"",$BH$2,$BH$5),SUMPRODUCT($BB$7:BB9,$BN$7:BN9)/SUM($BN$7:BN9),NA()) ->  | CE9: =BD9+$CE$7 -> 3.25 | CF9: =IF($BH$5,IF($BG$4,SQRT(1/SUM($BN$7:BN9))/$I$5,SQRT(1/SUM($BN$7:BN9))),"") -> 0.1714985851 | CG9: =IF(BH9<>"",NORMSINV((100+$M$2)/200)*CF9,0) -> 0.3361310503 | CI9: =IF(AND(BO13<=$CB$18,$BP$2),BB16,NA()) ->  | CJ9: =IF(AND(BO13>$CB$18,BO13<=$CB$19,$BP$2),BB16,NA()) ->  | CK9: =IF(AND(BO13>$CB$19,BO13<=$CB$20,$BP$2),BB16,NA()) ->  | CL9: =IF(AND(BO13>$CB$20,BO13<=$CB$21,$BP$2),BB16,NA()) ->  | CM9: =IF(AND(BO13>$CB$21,BO13<=$CB$22,$BP$2),BB16,NA()) ->  | CN9: =IF(AND(BO13>$CB$22,BO13<=$CB$23,$BP$2),BB16,NA()) ->  | CO9: =IF(AND(BO13>$CB$23,BO13<=$CB$24,$BP$2),BB16,NA()) ->  | CP9: =IF(AND(BO13>$CB$24,BO13<=$CB$25,$BP$2),BB16,NA()) ->  | CQ9: =IF(AND(BO13<>"",BO13>$CB$25,$BP$2),BB16,NA()) -> 1.133333333 | CR9: 10 | DC9: =IF(BH5,SUM(DB3:DB8)+2,NA()) -> 8
E10: 4 | F10: study 4 | G10: 117 | H10: 15 | J10: 1.133333333 | K10: 10 | M10: 0.1 | O10: 0.6197950323 | Q10: 10.75268817 | S10: 0.00288 | Z10: 0.00288 | AA10: [ | AB10: 0.513538301 | AC10: , | AD10: 1.753128366 | AE10: ] | AF10: 4 | AG10: =IF(OR(BH10="",ISNA(CD10)),"",CD10) ->  | AH10: =IF(OR(BH10="",ISNA(CD10)),"",CG10) ->  | AX10: 22.5 | AY10: 0.6197950323 | AZ10: 1.133333333 | BA10: 9.296925485 | BB10: 1.133333333 | BC10: 1.133333333 | BD10: 4 | BE10: TRUE | BF10: 117 | BG10: 10 | BH10: 3.583914682 | BJ10: 4 | BK10: 0.6197950323 | BL10: 2025 | BM10: 9 | BN10: 0.04444444444 | BO10: 0.04444444444 | BQ10: 5.2 | BR10: 0.001975308642 | BS10: 608.4 | BT10: 48.15272062 | BU10: 0.02076725857 | BV10: 2.429769253 | BW10: 54.51809707 | BX10: 0.0183425331 | BY10: 2.146076373 | CA10: 4 | CB10: =IF(AND($BK$1=1,$BH$2,NOT($BP$2)),BI10,NA()) ->  | CC10: =IF(BH10<>"",BD10,NA()) -> 4 | CD10: =IF(AND($BK$1=1,BH10<>"",$BH$2,$BH$5),SUMPRODUCT($BB$7:BB10,$BN$7:BN10)/SUM($BN$7:BN10),NA()) ->  | CE10: =BD10+$CE$7 -> 4.25 | CF10: =IF($BH$5,IF($BG$4,SQRT(1/SUM($BN$7:BN10))/$I$5,SQRT(1/SUM($BN$7:BN10))),"") -> 0.1507556723 | CG10: =IF(BH10<>"",NORMSINV((100+$M$2)/200)*CF10,0) -> 0.2954756882
E11: 5 | F11: study 5 | G11: 104 | H11: 15 | J11: 0.2666666667 | K11: 14 | M11: 0.07142857143 | O11: 0.5238224086 | Q11: 15.05376344 | S11: 0.00288 | Z11: 0.00288 | AA11: [ | AB11: -0.2571557419 | AC11: , | AD11: 0.7904890753 | AE11: ] | AF11: 5 | AG11: =IF(OR(BH11="",ISNA(CD11)),"",CD11) ->  | AH11: =IF(OR(BH11="",ISNA(CD11)),"",CG11) ->  | AX11: 16.07142857 | AY11: 0.5238224086 | AZ11: 0.2666666667 | BA11: 7.857336129 | BB11: 0.2666666667 | BC11: 0.2666666667 | BD11: 5 | BE11: TRUE | BF11: 104 | BG11: 14 | BH11: 0.9977753031 | BJ11: 5 | BK11: 0.5238224086 | BL11: 2925 | BM11: 13 | BN11: 0.06222222222 | BO11: 0.06222222222 | BQ11: 6.471111111 | BR11: 0.003871604938 | BS11: 672.9955556 | BT11: 41.72414919 | BU11: 0.02396693568 | BV11: 2.492561311 | BW11: 48.08952564 | BX11: 0.02079454906 | BY11: 2.162633102 | CA11: 5 | CB11: =IF(AND($BK$1=1,$BH$2,NOT($BP$2)),BI11,NA()) ->  | CC11: =IF(BH11<>"",BD11,NA()) -> 5 | CD11: =IF(AND($BK$1=1,BH11<>"",$BH$2,$BH$5),SUMPRODUCT($BB$7:BB11,$BN$7:BN11)/SUM($BN$7:BN11),NA()) ->  | CE11: =BD11+$CE$7 -> 5.25 | CF11: =IF($BH$5,IF($BG$4,SQRT(1/SUM($BN$7:BN11))/$I$5,SQRT(1/SUM($BN$7:BN11))),"") -> 0.1313064329 | CG11: =IF(BH11<>"",NORMSINV((100+$M$2)/200)*CF11,0) -> 0.2573558793 | CI11: Weighted means, grey
E12: 6 | F12: study 6 | G12: 111 | H12: 15 | J12: 0.7333333333 | K12: 15 | M12: 0.06666666667 | O12: 0.5060605248 | Q12: 16.12903226 | S12: 0.00288 | Z12: 0.00288 | AA12: [ | AB12: 0.2272728086 | AC12: , | AD12: 1.239393858 | AE12: ] | AF12: 6 | AG12: =IF(OR(BH12="",ISNA(CD12)),"",CD12) ->  | AH12: =IF(OR(BH12="",ISNA(CD12)),"",CG12) ->  | AX12: 15 | AY12: 0.5060605248 | AZ12: 0.7333333333 | BA12: 7.590907871 | BB12: 0.7333333333 | BC12: 0.7333333333 | BD12: 6 | BE12: TRUE | BF12: 111 | BG12: 15 | BH12: 2.840187787 | BJ12: 6 | BK12: 0.5060605248 | BL12: 3150 | BM12: 14 | BN12: 0.06666666667 | BO12: 0.06666666667 | BQ12: 7.4 | BR12: 0.004444444444 | BS12: 821.4 | BT12: 40.65272062 | BU12: 0.02459859967 | BV12: 2.730444563 | BW12: 47.01809707 | BX12: 0.02126840647 | BY12: 2.360793119 | CA12: 6 | CB12: =IF(AND($BK$1=1,$BH$2,NOT($BP$2)),BI12,NA()) ->  | CC12: =IF(BH12<>"",BD12,NA()) -> 6 | CD12: =IF(AND($BK$1=1,BH12<>"",$BH$2,$BH$5),SUMPRODUCT($BB$7:BB12,$BN$7:BN12)/SUM($BN$7:BN12),NA()) ->  | CE12: =BD12+$CE$7 -> 6.25 | CF12: =IF($BH$5,IF($BG$4,SQRT(1/SUM($BN$7:BN12))/$I$5,SQRT(1/SUM($BN$7:BN12))),"") -> 0.1170411472 | CG12: =IF(BH12<>"",NORMSINV((100+$M$2)/200)*CF12,0) -> 0.2293964332 | CI12: =IF(AND($BK$1=1,BN8<=$CB$18,$BH$2,$BP$2),BB8,NA()) ->  | CJ12: =IF(AND($BK$1=1,BN8>$CB$18,BN8<=$CB$19,$BH$2,$BP$2),BB8,NA()) ->  | CK12: =IF(AND($BK$1=1,BN8>$CB$19,BN8<=$CB$20,$BH$2,$BP$2),BB8,NA()) ->  | CL12: =IF(AND($BK$1=1,BN8>$CB$20,BN8<=$CB$21,$BH$2,$BP$2),BB8,NA()) ->  | CM12: =IF(AND($BK$1=1,BN8>$CB$21,BN8<=$CB$22,$BH$2,$BP$2),BB8,NA()) ->  | CN12: =IF(AND($BK$1=1,BN8>$CB$22,BN8<=$CB$23,$BH$2,$BP$2),BB8,NA()) ->  | CO12: =IF(AND($BK$1=1,BN8>$CB$23,BN8<=$CB$24,$BH$2,$BP$2),BB8,NA()) ->  | CP12: =IF(AND($BK$1=1,BN8>$CB$24,BN8<=$CB$25,$BH$2,$BP$2),BB8,NA()) ->  | CQ12: =IF(AND($BK$1=1,BN8<>"",BN8>$CB$25,$BH$2,$BP$2),BB8,NA()) ->  | CR12: 2
E13: 3 | F13: Past research, meta-analyzed | M13: 9 | O13: Result as diamond | S13: =$S$4 -> 0.00288 | Z13: =$S$4 -> 0.00288 | AX13: =IF(BH16<>"",H16*H16/K16,"") -> 11.25 | AZ13: =IF(AND($AZ$4,$BH$5,$BH16<>""),J16,"") -> 1.133333333 | BF13: =IF(AND($BH$5,$BH16<>""),G16,"") -> 117 | BI13: SE of mean | BJ13: =IF($BH$5,SQRT(1/SUM(BN7:BN12)),"") -> 1.755617208 | BN13: =IF($BH$5,IF(BH16<>"",1/AX13,""),"") -> 0.08888888889 | BO13: 0.08888888889 | BP13: =IF($BR$4,SUM(BN7:BN12),"") -> 0.3244444444 | BQ13: 10.4 | BR13: 0.007901234568 | BS13: 1216.8 | BT13: 36.90272062 | BU13: 0.02709827306 | BV13: 3.170497948 | BW13: 43.26809707 | BX13: 0.02311171666 | BY13: 2.70407085 | CA13: 8 | CI13: =IF(AND($BK$1=1,BN9<=$CB$18,$BH$2,$BP$2),BB9,NA()) ->  | CJ13: =IF(AND($BK$1=1,BN9>$CB$18,BN9<=$CB$19,$BH$2,$BP$2),BB9,NA()) ->  | CK13: =IF(AND($BK$1=1,BN9>$CB$19,BN9<=$CB$20,$BH$2,$BP$2),BB9,NA()) ->  | CL13: =IF(AND($BK$1=1,BN9>$CB$20,BN9<=$CB$21,$BH$2,$BP$2),BB9,NA()) ->  | CM13: =IF(AND($BK$1=1,BN9>$CB$21,BN9<=$CB$22,$BH$2,$BP$2),BB9,NA()) ->  | CN13: =IF(AND($BK$1=1,BN9>$CB$22,BN9<=$CB$23,$BH$2,$BP$2),BB9,NA()) ->  | CO13: =IF(AND($BK$1=1,BN9>$CB$23,BN9<=$CB$24,$BH$2,$BP$2),BB9,NA()) ->  | CP13: =IF(AND($BK$1=1,BN9>$CB$24,BN9<=$CB$25,$BH$2,$BP$2),BB9,NA()) ->  | CQ13: =IF(AND($BK$1=1,BN9<>"",BN9>$CB$25,$BH$2,$BP$2),BB9,NA()) ->  | CR13: 3
B14: =IF(AND($BH$5,$BJ$4,$BH$1,BH14<>"",$W$1<>""), IF(fixedrandom=1,BH14,BQ33),"") ->  | C14: =IF(B14<>"",2*(1-NORMSDIST(ABS(B14))),"") ->  | D14: =IF(B14<>"",IF(C14<0.001,"***",(IF(C14<0.01,"**",(IF(C14<0.05,"*",(IF(C14<0.1,"?","ns"))))))),"") ->  | F14: =IF(BH5,IF(fixedrandom=1,"Fixed effect ","Random effects "),"") -> Fixed effect | G14: =IF(AND($BH$5,$BR$2),IF(fixedrandom=1,SUMPRODUCT(BF7:BF12,BN7:BN12)/SUM(BN7:BN12),BQ26),"") -> 108.260274 | H14: =IF(AND(G14<>"",K14<>""),$I$5,"") -> 15 | J14: =IF(AND($BH$1,G14<>"",$I$5<>"",$I$5<>0),(G14-$W$1)/$I$5,"") -> 0.5506849315 | K14: =IF(AND($BH$5,$BR$2),SUM(BG7:BG12),"") -> 73 | M14: =IF(AND($BH$5,$BR$2),IF(fixedrandom=1,IF($BG$4,BJ13^2/($I$5^2),BJ13^2),IF($BG$4,BQ27/($I$5^2),BQ27)),"") -> 0.01369863014 | O14: =IF(BH14<>"",IF($BG$4,IF(AND($BH$1,$I$5<>"",$I$5<>0),BK14,""),BK14),"") -> 0.2293964332 | S14: 0.00288 | Z14: 0.00288 | AA14: [ | AB14: =IF(BH14<>"",BB14-O14,"") -> 0.3212884983 | AC14: , | AD14: =IF(BH14<>"",BB14+O14,"") -> 0.7800813647 | AE14: ] | AY14: =IF(AND($AZ$4,BH14<>""),NORMSINV((100+$M$2)/200)/SQRT(K14),"") -> 0.2293964332 | AZ14: =IF(AND($AZ$4,$BH$5,K14>1,G14<>""),J14,"") -> 0.5506849315 | BA14: =IF(BH14<>"",H14*NORMSINV((100+$M$2)/200)/SQRT(K14),"") -> 3.440946498 | BB14: =IF($BG$4,AZ14,BF14) -> 0.5506849315 | BC14: =IF(BB14="",NA(),BB14) -> 0.5506849315 | BF14: =IF(AND(K14>1,G14<>""),G14,"") -> 108.260274 | BG14: =IF($BH14<>"",K14,"") -> 73 | BH14: =IF(AND(K14>1,G14<>""),IF($BG$4,$I$5*(BB14-$BD$2)/BJ13,(BB14-$BD$2)/BJ13),"") -> 4.705054117 | BI14: =IF($BH$5,IF(BB14="",NA(),IF(BR2,BB14,NA())),NA()) -> 0.5506849315 | BJ14: =IF(AND(NOT(BP3),BH14<>""),8,NA()) ->  | BK14: =IF(BH14<>"",IF(fixedrandom=1,IF($BG$4,$BT$3*BJ13/$I$5,$BT$3*BJ13),IF($BG$4,BQ29/$I$5,BQ29)),NA()) -> 0.2293964332 | BM14: =IF(BH14<>"",(K14-1),"") -> 72 | BO14: =IF(fixedrandom=1,MAX(BN7:BN13),MAX(BX7:BX13)) -> 0.08888888889 | BP14: =IF($BR$4,SUM(BN7:BN13),"") -> 0.4133333333 | BZ14: =IF(AND(NOT(BP3),BH14<>""),CA13,NA()) ->  | CI14: =IF(AND($BK$1=1,BN10<=$CB$18,$BH$2,$BP$2),BB10,NA()) ->  | CJ14: =IF(AND($BK$1=1,BN10>$CB$18,BN10<=$CB$19,$BH$2,$BP$2),BB10,NA()) ->  | CK14: =IF(AND($BK$1=1,BN10>$CB$19,BN10<=$CB$20,$BH$2,$BP$2),BB10,NA()) ->  | CL14: =IF(AND($BK$1=1,BN10>$CB$20,BN10<=$CB$21,$BH$2,$BP$2),BB10,NA()) ->  | CM14: =IF(AND($BK$1=1,BN10>$CB$21,BN10<=$CB$22,$BH$2,$BP$2),BB10,NA()) ->  | CN14: =IF(AND($BK$1=1,BN10>$CB$22,BN10<=$CB$23,$BH$2,$BP$2),BB10,NA()) ->  | CO14: =IF(AND($BK$1=1,BN10>$CB$23,BN10<=$CB$24,$BH$2,$BP$2),BB10,NA()) ->  | CP14: =IF(AND($BK$1=1,BN10>$CB$24,BN10<=$CB$25,$BH$2,$BP$2),BB10,NA()) ->  | CQ14: =IF(AND($BK$1=1,BN10<>"",BN10>$CB$25,$BH$2,$BP$2),BB10,NA()) ->  | CR14: 4
E15: 4 | F15: Current study | S15: 0.00288 | Z15: 0.00288 | AX15: =IF(BH15<>"",H15*H15/K15,"") ->  | BI15: =G14 -> 108.260274 | BJ15: 8 | BM15: min weight | BN15: =MIN(BN7:BN13) -> 0.03555555556 | BO15: max weight | BP15: Total | BQ15: =IF($BR$4,SUM(BQ7:BQ12),"") -> 35.12444444 | BR15: 0.01886419753 | BS15: 3814.413333 | BT15: 273.8480464 | BU15: 0.1333849949 | BV15: 14.45769836 | CI15: =IF(AND($BK$1=1,BN11<=$CB$18,$BH$2,$BP$2),BB11,NA()) ->  | CJ15: =IF(AND($BK$1=1,BN11>$CB$18,BN11<=$CB$19,$BH$2,$BP$2),BB11,NA()) ->  | CK15: =IF(AND($BK$1=1,BN11>$CB$19,BN11<=$CB$20,$BH$2,$BP$2),BB11,NA()) ->  | CL15: =IF(AND($BK$1=1,BN11>$CB$20,BN11<=$CB$21,$BH$2,$BP$2),BB11,NA()) ->  | CM15: =IF(AND($BK$1=1,BN11>$CB$21,BN11<=$CB$22,$BH$2,$BP$2),BB11,NA()) ->  | CN15: =IF(AND($BK$1=1,BN11>$CB$22,BN11<=$CB$23,$BH$2,$BP$2),BB11,NA()) ->  | CO15: =IF(AND($BK$1=1,BN11>$CB$23,BN11<=$CB$24,$BH$2,$BP$2),BB11,NA()) ->  | CP15: =IF(AND($BK$1=1,BN11>$CB$24,BN11<=$CB$25,$BH$2,$BP$2),BB11,NA()) ->  | CQ15: =IF(AND($BK$1=1,BN11<>"",BN11>$CB$25,$BH$2,$BP$2),BB11,NA()) ->  | CR15: 5
B16: =IF(AND($BH$5,$BJ$4,$BH$1,BH16<>"",$W$1<>""), BH16,"") ->  | C16: =IF(B16<>"",2*(1-NORMSDIST(ABS(B16))),"") ->  | D16: =IF(B16<>"",IF(C16<0.001,"***",(IF(C16<0.01,"**",(IF(C16<0.05,"*",(IF(C16<0.1,"?","ns"))))))),"") ->  | F16: my study | G16: 117 | H16: =IF(AND(G16<>"",K16<>"",$I$5>0),$I$5,"") -> 15 | J16: =IF(AND($BH$1,G16<>"",$I$5<>"",$I$5<>0),(G16-$W$1)/$I$5,"") -> 1.133333333 | K16: 20 | M16: =IF(BH16<>"",IF($BG$4,IF(AND($BH$1,$I$5<>"",$I$5<>0),1/K16,""),H16*H16/K16),"") -> 0.05 | O16: =IF(AND($G$7<>"",$K$7>1,BH16<>""),IF($BG$4,IF(AND($BH$1,$I$5<>"",$I$5<>0),BK16,""),BK16),"") -> 0.4382612703 | Q16: =IF(AND(BN13<>"",$BH$5,$BR$2),IF(fixedrandom=1,100*BN13/SUM($BN$7:$BN$13),100*BX13/$BX$16),"") -> 21.50537634 | S16: 0.00288 | Z16: 0.00288 | AA16: [ | AB16: =IF(BH16<>"",BB16-O16,"") -> 0.695072063 | AC16: , | AD16: =IF(BH16<>"",BB16+O16,"") -> 1.571594604 | AE16: ] | AX16: =IF(BH16<>"",H16*H16/K16,"") -> 11.25 | AY16: =IF(AND($AZ$4,BH16<>""),NORMSINV((100+$M$2)/200)/SQRT(K16),"") -> 0.4382612703 | AZ16: =IF(AND($AZ$4,$BH$5,$BH16<>""),J16,"") -> 1.133333333 | BA16: =IF(BH16<>"",H16*NORMSINV((100+$M$2)/200)/SQRT(K16),"") -> 6.573919054 | BB16: =IF($BG$4,AZ16,BF16) -> 1.133333333 | BC16: =IF(BB16="",NA(),BB16) -> 1.133333333 | BE16: TRUE | BF16: =IF($BH16<>"",G16,"") -> 117 | BG16: =IF($BH16<>"",K16,"") -> 20 | BH16: =IF(AND(BH5,K16>1,G16<>"",H16<>"",BE16), (G16-$W$1)*SQRT(K16)/H16,"") -> 5.068420749 | BI16: =IF($BH$5,IF($BP$2,NA(),BC16),NA()) ->  | BJ16: =IF(BH16<>"",10,NA()) -> 10 | BK16: =IF($BH$5,IF($BG$4,IF(AY16="",NA(),AY16),IF(BA16="",NA(),BA16)),NA()) -> 0.4382612703 | BL16: =IF(BH16<>"",H16*H16*(K16-1),"") -> 4275 | BM16: =IF(BH16<>"",(K16-1),"") -> 19 | BN16: =IF(BH16<>"",K16/(H16*H16),"") -> 0.08888888889 | BP16: TOTAL | BQ16: =IF($BR$4,SUM(BQ7:BQ13),"") -> 45.52444444 | BR16: =IF($BR$4,SUM(BR7:BR13),"") -> 0.0267654321 | BS16: =IF($BR$4,SUM(BS7:BS13),"") -> 5031.213333 | BW16: =IF($BR$4,SUM(BW7:BW13),"") -> 355.3084022 | BX16: =IF($BR$4,SUM(BX7:BX13),"") -> 0.1397803002 | BY16: =IF($BR$4,SUM(BY7:BY13),"") -> 15.35135778 | CI16: =IF(AND($BK$1=1,BN12<=$CB$18,$BH$2,$BP$2),BB12,NA()) ->  | CJ16: =IF(AND($BK$1=1,BN12>$CB$18,BN12<=$CB$19,$BH$2,$BP$2),BB12,NA()) ->  | CK16: =IF(AND($BK$1=1,BN12>$CB$19,BN12<=$CB$20,$BH$2,$BP$2),BB12,NA()) ->  | CL16: =IF(AND($BK$1=1,BN12>$CB$20,BN12<=$CB$21,$BH$2,$BP$2),BB12,NA()) ->  | CM16: =IF(AND($BK$1=1,BN12>$CB$21,BN12<=$CB$22,$BH$2,$BP$2),BB12,NA()) ->  | CN16: =IF(AND($BK$1=1,BN12>$CB$22,BN12<=$CB$23,$BH$2,$BP$2),BB12,NA()) ->  | CO16: =IF(AND($BK$1=1,BN12>$CB$23,BN12<=$CB$24,$BH$2,$BP$2),BB12,NA()) ->  | CP16: =IF(AND($BK$1=1,BN12>$CB$24,BN12<=$CB$25,$BH$2,$BP$2),BB12,NA()) ->  | CQ16: =IF(AND($BK$1=1,BN12<>"",BN12>$CB$25,$BH$2,$BP$2),BB12,NA()) ->  | CR16: 6
E17: 5 | F17: Past + current, meta-analyzed | S17: 0.00288 | Z17: 0.00288 | AX17: =IF(BH17<>"",H17*H17/K17,"") ->  | BI17: SE of mean | BJ17: =IF($BH$5,SQRT(1/SUM(BN7:BN13)),"") -> 1.555427542 | BZ17: 0 | CA17: 0.1 | CB17: bin ends | CC17: dot size | CD17: Influence | CE17: 0 | CF17: 0.2
B18: =IF(AND($BH$5,$BJ$4,$BH$1,BH18<>"",$W$1<>""),IF(fixedrandom=1,BH18,BR33),"") ->  | C18: =IF(B18<>"",2*(1-NORMSDIST(ABS(B18))),"") ->  | D18: =IF(B18<>"",IF(C18<0.001,"***",(IF(C18<0.01,"**",(IF(C18<0.05,"*",(IF(C18<0.1,"?","ns"))))))),"") ->  | F18: =IF(BH5,IF(fixedrandom=1,"Fixed effect ","Random effects "),"") -> Fixed effect | G18: =IF(AND($BH$5,$BR$3),IF(fixedrandom=1,SUMPRODUCT((BF7:BF13),(BN7:BN13))/SUM(BN7:BN13),BR26),"") -> 110.1397849 | H18: =IF(AND(G18<>"",K18<>""),$I$5,"") -> 15 | J18: =IF(AND($BH$1,G18<>"",$I$5<>"",$I$5<>0),(G18-$W$1)/$I$5,"") -> 0.6759856631 | K18: =IF(AND($BH$5,$BR$3),SUM(BG14,BG16),"") -> 93 | M18: =IF(AND($BH$5,$BR$3),IF(fixedrandom=1,IF($BG$4,BJ17^2/($I$5^2),BJ17^2),IF($BG$4,BR27/($I$5^2),BR27)),"") -> 0.01075268817 | O18: =IF(BH18<>"",IF($BG$4,IF(AND($BH$1,$I$5<>"",$I$5<>0),BK18,""),BK18),"") -> 0.2032387975 | S18: 0.00288 | Z18: 0.00288 | AA18: [ | AB18: =IF(BH18<>"",BB18-O18,"") -> 0.4727468655 | AC18: , | AD18: =IF(BH18<>"",BB18+O18,"") -> 0.8792244606 | AE18: ] | AY18: =IF(AND($AZ$4,BH18<>""),NORMSINV((100+$M$2)/200)/SQRT(K18),"") -> 0.2032387975 | AZ18: =IF(AND($AZ$4,$BH$5,K18>1,G18<>""),J18,"") -> 0.6759856631 | BA18: =IF(BH18<>"",H18*NORMSINV((100+$M$2)/200)/SQRT(K18),"") -> 3.048581963 | BB18: =IF($BG$4,AZ18,BF18) -> 0.6759856631 | BC18: =IF(BB18="",NA(),BB18) -> 0.6759856631 | BF18: =IF(AND(K18>1,G18<>""),G18,"") -> 110.1397849 | BG18: =IF($BH18<>"",K18,"") -> 93 | BH18: =IF(AND(K18>1,G18<>""),IF($BG$4,$I$5*(BB18-$BD$2)/BJ17,(BB18-$BD$2)/BJ17),"") -> 6.518969654 | BI18: =IF($BH$5,IF(BB18="",NA(),IF(BR3,BB18,NA())),NA()) -> 0.6759856631 | BJ18: =IF(AND(NOT(BP3),BH18<>""),12,NA()) ->  | BK18: =IF(BH18<>"",IF(fixedrandom=1,IF($BG$4,$BT$3*BJ17/$I$5,$BT$3*BJ17),IF($BG$4,BR29/$I$5,BR29)),NA()) -> 0.2032387975 | BM18: =IF(BH18<>"",(K18-1),"") -> 92 | BP18: Random effects | BZ18: =AVERAGE(CD18:CD19) -> 1.16 | CA18: 0.1 | CB18: =$BO$14*BZ18/$BZ$26 -> 0.00360244951 | CC18: 3 | CD18: 0.36 | CE18: =CD18 -> 0.36 | CF18: 0.2
F19: 18 T | G19: =IF(ISNUMBER(BR25),IF($BG$4,BR25/$I$5,BR25),"") -> 0.3772302395 | H19: =IF($BG$4,"Population SD",IF($G$6<>"",$G$6,"")) -> Population SD | O19: 19 Heterogeneity | P19: Q | Q19: =IF(ISNUMBER(BR21),BR21,"") -> 17.16081243 | BE19: half height | BF19: 0.4 | BH19: z | BI19: =G18 -> 110.1397849 | BJ19: 12 | BK19: bars | BP19: Means: | BQ19: 1 - 6 | BR19: +current | BZ19: 3.0608 | CA19: 0.1 | CB19: 0.009505497812 | CC19: 4 | CD19: 1.96 | CE19: 1.96 | CF19: 0.2
B20: 16 | C20: Model | F20: CI [ | G20: =IF(ISNUMBER(BR44),IF($BG$4,BR44/$I$5,BR44),"") -> 0.1442421923 | H20: , | I20: =IF(ISNUMBER(BR45),IF($BG$4,BR45/$I$5,BR45),"") -> 0.6445925401 | J20: ] | P20: df | Q20: =IF(ISNUMBER(BR20),BR20,"") -> 6 | BE20: upper diamond | BG20: squash | BI20: lower diamond | BP20: df | BQ20: =COUNT(BQ7:BQ12)-1 -> 5 | BR20: =COUNT(BR7:BR13)-1 -> 6 | BZ20: 5.4608 | CA20: 0.1 | CB20: 0.01695884163 | CC20: 6 | CD20: 4.1616 | CE20: 4.1616 | CF20: 0.2
P21: p | Q21: =IF(ISNUMBER(BR22),BR22,"") -> 0.008710054703 | BE21: =IF(AND($BR$2,$BH$5),IF($BP$3,BB14,NA()),NA()) -> 0.5506849315 | BF21: =IF($BP$3,BJ15+BF19,NA()) -> 8.4 | BG21: =IF($BP$3,CA13+BF19,NA()) -> 8.4 | BI21: =IF(AND($BR$3,$BH$5),IF($BP$3,BB18,NA()),NA()) -> 0.6759856631 | BJ21: =IF($BP$3,BJ19+BF19,NA()) -> 12.4 | BP21: Q | BQ21: =IF(BP13=0,"",BS15-BQ15^2/BP13) -> 11.83135464 | BR21: =IF(BP14=0,"",BS16-BQ16^2/BP14) -> 17.16081243 | BZ21: 8.34125 | CA21: 0.1 | CB21: 0.02590425171 | CC21: 7 | CD21: 6.76 | CE21: 6.76 | CF21: 0.2
P22: I2 | Q22: =IF(ISNUMBER(BR35),100*BR35,"") -> 65.03662035 | R22: % | BE22: =IF(AND($BR$2,$BH$5),IF($BP$3,BB14-BK14,NA()),NA()) -> 0.3212884983 | BF22: =IF($BP$3,BJ15,NA()) -> 8 | BG22: =IF($BP$3,CA13,NA()) -> 8 | BI22: =IF(AND($BR$3,$BH$5),IF($BP$3,BB18-BK18,NA()),NA()) -> 0.4727468655 | BJ22: =IF($BP$3,BJ19,NA()) -> 12 | BP22: p for Q | BQ22: =CHIDIST(BQ21,BQ20) -> 0.03717312682 | BR22: =CHIDIST(BR21,BR20) -> 0.008710054703 | BZ22: 11.80625 | CA22: 0.1 | CB22: 0.03666501684 | CC22: 9 | CD22: 9.9225 | CE22: 9.9225 | CF22: 0.2
BE23: =IF(AND($BR$2,$BH$5),IF($BP$3,BB14,NA()),NA()) -> 0.5506849315 | BF23: =IF($BP$3,BJ15-BF19,NA()) -> 7.6 | BG23: =IF($BP$3,CA13-BF19,NA()) -> 7.6 | BI23: =IF(AND($BR$3,$BH$5),IF($BP$3,BB18,NA()),NA()) -> 0.6759856631 | BJ23: =IF($BP$3,BJ19-BF19,NA()) -> 11.6 | BP23: C | BQ23: =BP13-BR15/BP13 -> 0.2663013699 | BR23: =BP14-BR16/BP14 -> 0.3485782557 | BZ23: 15.87625 | CA23: 0.1 | CB23: 0.04930464572 | CC23: 10 | CD23: 13.69 | CE23: 13.69 | CF23: 0.2
BE24: =IF(AND($BR$2,$BH$5),IF($BP$3,BB14+BK14,NA()),NA()) -> 0.7800813647 | BF24: =IF($BP$3,BJ15,NA()) -> 8 | BG24: =IF($BP$3,CA13,NA()) -> 8 | BI24: =IF(AND($BR$3,$BH$5),IF($BP$3,BB18+BK18,NA()),NA()) -> 0.8792244606 | BJ24: =IF($BP$3,BJ22,NA()) -> 12 | BP24: T^2 | BQ24: =IF(BQ23=0,0,MAX(0,(BQ21-BQ20)/BQ23)) -> 25.65272062 | BR24: =IF(BR23=0,0,MAX(0,(BR21-BR20)/BR23)) -> 32.01809707 | BZ24: 20.55125 | CA24: 0.1 | CB24: 0.06382313836 | CC24: 12 | CD24: 18.0625 | CE24: 18.0625 | CF24: 0.2
BE25: =IF(AND($BR$2,$BH$5),IF($BP$3,BB14,NA()),NA()) -> 0.5506849315 | BF25: =IF($BP$3,BJ15+BF19,NA()) -> 8.4 | BG25: =IF($BP$3,CA13+BF19,NA()) -> 8.4 | BI25: =IF(AND($BR$3,$BH$5),IF($BP$3,BB18,NA()),NA()) -> 0.6759856631 | BJ25: =IF($BP$3,BJ19+BF19,NA()) -> 12.4 | BP25: T | BQ25: =SQRT(BQ24) -> 5.064851491 | BR25: =SQRT(BR24) -> 5.658453593 | BZ25: 25.83125 | CA25: 0.1 | CB25: 0.08022049475 | CC25: 13 | CD25: 23.04 | CE25: 23.04 | CF25: 0.2
BP26: M* | BQ26: =BV15/BU15 -> 108.3907404 | BR26: =BY16/BX16 -> 109.8249021 | BZ26: =CD26 -> 28.6225 | CA26: 0.1 | CB26: 0.08888888889 | CC26: 15 | CD26: 28.6225 | CE26: 28.6225 | CF26: 0.2
BE27: L end | BF27: =BB14-BK14 -> 0.3212884983 | BJ27: =BB18-BK18 -> 0.4727468655 | BP27: V(M*) | BQ27: =1/BU15 -> 7.497095161 | BR27: =1/BX16 -> 7.154083936
BE28: R end | BF28: =BB14+BK14 -> 0.7800813647 | BJ28: =BB18+BK18 -> 0.8792244606 | BP28: SE(M*) | BQ28: =SQRT(BQ27) -> 2.738082388 | BR28: =SQRT(BR27) -> 2.674711935
BE29: no. points | BF29: 200 | BJ29: =BF29 -> 200 | BP29: moe | BQ29: =NORMSINV((100+$M$2)/200)*BQ28 -> 5.366542866 | BR29: =NORMSINV((100+$M$2)/200)*BR28 -> 5.242339062
BE30: inc x | BF30: =(BF28-BF27)/BF29 -> 0.002293964332 | BJ30: =(BJ28-BJ27)/BJ29 -> 0.002032387975 | BP30: LL | BQ30: =BQ26-BQ29 -> 103.0241976 | BR30: =BR26-BR29 -> 104.582563
BE31: delta y | BF31: -0.02 | BJ31: =BF31 -> -0.02 | BN31: squash | BP31: UL | BQ31: =BQ26+BQ29 -> 113.7572833 | BR31: =BR26+BR29 -> 115.0672411
BE32: index | BF32: from end | BG32: x | BH32: y | BI32: bar | BJ32: from end | BK32: x | BL32: y | BM32: bar | BN32: y disp | BP32: m0 | BQ32: =$W$1 -> 100 | BR32: =$W$1 -> 100
BE33: 0 | BF33: =1-ABS($BB$14-BG33)/$BK$14 -> 0 | BG33: =IF($BP$3,BF27,NA()) -> 0.3212884983 | BH33: =IF($BP$3,BJ15,NA()) -> 8 | BI33: =MAX($BF$19*BF33-$BF$31,0) -> 0.02 | BJ33: =1-ABS($BB$18-BK33)/$BK$18 -> 0 | BK33: =IF($BP$3,BJ27,NA()) -> 0.4727468655 | BL33: =IF($BP$3,BJ19,NA()) -> 12 | BM33: =MAX($BF$19*BJ33-$BJ$31,0) -> 0.02 | BN33: =IF($BP$3,CA13,NA()) -> 8 | BP33: z | BQ33: =(BQ26-BQ32)/BQ28 -> 3.06445871 | BR33: =(BR26-BR32)/BR28 -> 3.673256151
BE34: 1 | BF34: 0.01 | BG34: =IF($BP$3,BG33+$BF$30,NA()) -> 0.3235824626 | BH34: =BH33 -> 8 | BI34: 0.024 | BJ34: 0.01 | BK34: =IF($BP$3,BK33+$BJ$30,NA()) -> 0.4747792535 | BL34: =BL33 -> 12 | BM34: 0.024 | BN34: =BN33 -> 8 | BP34: p | BQ34: =2*(1-NORMSDIST(ABS(BQ33))) -> 0.002180642728 | BR34: =2*(1-NORMSDIST(ABS(BR33))) -> 0.0002394792054
BE35: 2 | BF35: 0.02 | BG35: 0.325876427 | BH35: 8 | BI35: 0.028 | BJ35: 0.02 | BK35: 0.4768116415 | BL35: 12 | BM35: 0.028 | BN35: 8 | BP35: I^2 | BQ35: =MAX(0,(BQ21-BQ20)/BQ21) -> 0.5773941234 | BR35: =MAX(0,(BR21-BR20)/BR21) -> 0.6503662035
BE36: 3 | BF36: 0.03 | BG36: 0.3281703913 | BH36: 8 | BI36: 0.032 | BJ36: 0.03 | BK36: 0.4788440295 | BL36: 12 | BM36: 0.032 | BN36: 8 | BP36: For CI on T^2
BE37: 4 | BF37: 0.04 | BG37: 0.3304643556 | BH37: 8 | BI37: 0.036 | BJ37: 0.04 | BK37: 0.4808764174 | BL37: 12 | BM37: 0.036 | BN37: 8 | BP37: B1 | BQ37: =0.5*(LN(BQ21)-LN(BQ20))/(SQRT(2*BQ21)-SQRT(2*BQ20-1)) -> 0.230985835 | BR37: =0.5*(LN(BR21)-LN(BR20))/(SQRT(2*BR21)-SQRT(2*BR20-1)) -> 0.2067141192
BE38: 5 | BF38: 0.05 | BG38: 0.33275832 | BH38: 8 | BI38: 0.04 | BJ38: 0.05 | BK38: 0.4829088054 | BL38: 12 | BM38: 0.04 | BN38: 8 | BP38: B2 | BQ38: =SQRT(1/(2*(BQ20-1)*(1-(1/(3*(BQ20-1)^2))))) -> 0.3572948005 | BR38: =SQRT(1/(2*(BR20-1)*(1-(1/(3*(BR20-1)^2))))) -> 0.31835727
BE39: 6 | BF39: 0.06 | BG39: 0.3350522843 | BH39: 8 | BI39: 0.044 | BJ39: 0.06 | BK39: 0.4849411934 | BL39: 12 | BM39: 0.044 | BN39: 8 | BP39: B | BQ39: =IF(BQ21>(BQ20+1),BQ37,BQ38) -> 0.230985835 | BR39: =IF(BR21>(BR20+1),BR37,BR38) -> 0.2067141192
BE40: 7 | BF40: 0.07 | BG40: 0.3373462486 | BH40: 8 | BI40: 0.048 | BJ40: 0.07 | BK40: 0.4869735814 | BL40: 12 | BM40: 0.048 | BN40: 8 | BP40: L | BQ40: =EXP(0.5*LN(BQ21/BQ20)-NORMSINV((100+$M$2)/200)*BQ39) -> 0.978175396 | BR40: =EXP(0.5*LN(BR21/BR20)-NORMSINV((100+$M$2)/200)*BR39) -> 1.127815138
BE41: 8 | BF41: 0.08 | BG41: 0.339640213 | BH41: 8 | BI41: 0.052 | BJ41: 0.08 | BK41: 0.4890059693 | BL41: 12 | BM41: 0.052 | BN41: 8 | BP41: U | BQ41: =EXP(0.5*LN(BQ21/BQ20)+NORMSINV((100+$M$2)/200)*BQ39) -> 2.419066088 | BR41: =EXP(0.5*LN(BR21/BR20)+NORMSINV((100+$M$2)/200)*BR39) -> 2.535996642
BE42: 9 | BF42: 0.09 | BG42: 0.3419341773 | BH42: 8 | BI42: 0.056 | BJ42: 0.09 | BK42: 0.4910383573 | BL42: 12 | BM42: 0.056 | BN42: 8 | BP42: LL T^2 | BQ42: =MAX(0,BQ20*(BQ40^2-1)/BQ23) -> 0 | BR42: =MAX(0,BR20*(BR40^2-1)/BR23) -> 4.68130726
BE43: 10 | BF43: 0.1 | BG43: 0.3442281416 | BH43: 8 | BI43: 0.06 | BJ43: 0.1 | BK43: 0.4930707453 | BL43: 12 | BM43: 0.06 | BN43: 8 | BP43: UL T^2 | BQ43: =MAX(0,BQ20*(BQ41^2-1)/BQ23) -> 91.097555 | BR43: =MAX(0,BR20*(BR41^2-1)/BR23) -> 93.48739713
BE44: 11 | BF44: 0.11 | BG44: 0.3465221059 | BH44: 8 | BI44: 0.064 | BJ44: 0.11 | BK44: 0.4951031333 | BL44: 12 | BM44: 0.064 | BN44: 8 | BP44: LL T | BQ44: =SQRT(BQ42) -> 0 | BR44: =SQRT(BR42) -> 2.163632885
BE45: 12 | BF45: 0.12 | BG45: 0.3488160703 | BH45: 8 | BI45: 0.068 | BJ45: 0.12 | BK45: 0.4971355212 | BL45: 12 | BM45: 0.068 | BN45: 8 | BP45: UL T | BQ45: =SQRT(BQ43) -> 9.544503916 | BR45: =SQRT(BR43) -> 9.668888102
BE46: 13 | BF46: 0.13 | BG46: 0.3511100346 | BH46: 8 | BI46: 0.072 | BJ46: 0.13 | BK46: 0.4991679092 | BL46: 12 | BM46: 0.072 | BN46: 8
BE47: 14 | BF47: 0.14 | BG47: 0.3534039989 | BH47: 8 | BI47: 0.076 | BJ47: 0.14 | BK47: 0.5012002972 | BL47: 12 | BM47: 0.076 | BN47: 8
BE48: 15 | BF48: 0.15 | BG48: 0.3556979633 | BH48: 8 | BI48: 0.08 | BJ48: 0.15 | BK48: 0.5032326852 | BL48: 12 | BM48: 0.08 | BN48: 8
BE49: 16 | BF49: 0.16 | BG49: 0.3579919276 | BH49: 8 | BI49: 0.084 | BJ49: 0.16 | BK49: 0.5052650732 | BL49: 12 | BM49: 0.084 | BN49: 8
BE50: 17 | BF50: 0.17 | BG50: 0.3602858919 | BH50: 8 | BI50: 0.088 | BJ50: 0.17 | BK50: 0.5072974611 | BL50: 12 | BM50: 0.088 | BN50: 8
BE51: 18 | BF51: 0.18 | BG51: 0.3625798563 | BH51: 8 | BI51: 0.092 | BJ51: 0.18 | BK51: 0.5093298491 | BL51: 12 | BM51: 0.092 | BN51: 8
BE52: 19 | BF52: 0.19 | BG52: 0.3648738206 | BH52: 8 | BI52: 0.096 | BJ52: 0.19 | BK52: 0.5113622371 | BL52: 12 | BM52: 0.096 | BN52: 8
BE53: 20 | BF53: 0.2 | BG53: 0.3671677849 | BH53: 8 | BI53: 0.1 | BJ53: 0.2 | BK53: 0.5133946251 | BL53: 12 | BM53: 0.1 | BN53: 8
BE54: 21 | BF54: 0.21 | BG54: 0.3694617493 | BH54: 8 | BI54: 0.104 | BJ54: 0.21 | BK54: 0.515427013 | BL54: 12 | BM54: 0.104 | BN54: 8
BE55: 22 | BF55: 0.22 | BG55: 0.3717557136 | BH55: 8 | BI55: 0.108 | BJ55: 0.22 | BK55: 0.517459401 | BL55: 12 | BM55: 0.108 | BN55: 8
BE56: 23 | BF56: 0.23 | BG56: 0.3740496779 | BH56: 8 | BI56: 0.112 | BJ56: 0.23 | BK56: 0.519491789 | BL56: 12 | BM56: 0.112 | BN56: 8
BE57: 24 | BF57: 0.24 | BG57: 0.3763436423 | BH57: 8 | BI57: 0.116 | BJ57: 0.24 | BK57: 0.521524177 | BL57: 12 | BM57: 0.116 | BN57: 8
BE58: 25 | BF58: 0.25 | BG58: 0.3786376066 | BH58: 8 | BI58: 0.12 | BJ58: 0.25 | BK58: 0.5235565649 | BL58: 12 | BM58: 0.12 | BN58: 8
BE59: 26 | BF59: 0.26 | BG59: 0.3809315709 | BH59: 8 | BI59: 0.124 | BJ59: 0.26 | BK59: 0.5255889529 | BL59: 12 | BM59: 0.124 | BN59: 8
BE60: 27 | BF60: 0.27 | BG60: 0.3832255353 | BH60: 8 | BI60: 0.128 | BJ60: 0.27 | BK60: 0.5276213409 | BL60: 12 | BM60: 0.128 | BN60: 8
BE61: 28 | BF61: 0.28 | BG61: 0.3855194996 | BH61: 8 | BI61: 0.132 | BJ61: 0.28 | BK61: 0.5296537289 | BL61: 12 | BM61: 0.132 | BN61: 8
BE62: 29 | BF62: 0.29 | BG62: 0.3878134639 | BH62: 8 | BI62: 0.136 | BJ62: 0.29 | BK62: 0.5316861168 | BL62: 12 | BM62: 0.136 | BN62: 8
BE63: 30 | BF63: 0.3 | BG63: 0.3901074283 | BH63: 8 | BI63: 0.14 | BJ63: 0.3 | BK63: 0.5337185048 | BL63: 12 | BM63: 0.14 | BN63: 8
BE64: 31 | BF64: 0.31 | BG64: 0.3924013926 | BH64: 8 | BI64: 0.144 | BJ64: 0.31 | BK64: 0.5357508928 | BL64: 12 | BM64: 0.144 | BN64: 8
BE65: 32 | BF65: 0.32 | BG65: 0.3946953569 | BH65: 8 | BI65: 0.148 | BJ65: 0.32 | BK65: 0.5377832808 | BL65: 12 | BM65: 0.148 | BN65: 8
BE66: 33 | BF66: 0.33 | BG66: =IF($BP$3,BG65+$BF$30,NA()) -> 0.3969893213 | BH66: =BH65 -> 8 | BI66: 0.152 | BJ66: 0.33 | BK66: =IF($BP$3,BK65+$BJ$30,NA()) -> 0.5398156687 | BL66: =BL65 -> 12 | BM66: 0.152 | BN66: =BN65 -> 8
BE67: 34 | BF67: 0.34 | BG67: 0.3992832856 | BH67: 8 | BI67: 0.156 | BJ67: 0.34 | BK67: 0.5418480567 | BL67: 12 | BM67: 0.156 | BN67: 8
BE68: 35 | BF68: 0.35 | BG68: 0.4015772499 | BH68: 8 | BI68: 0.16 | BJ68: 0.35 | BK68: 0.5438804447 | BL68: 12 | BM68: 0.16 | BN68: 8
BE69: 36 | BF69: 0.36 | BG69: 0.4038712143 | BH69: 8 | BI69: 0.164 | BJ69: 0.36 | BK69: 0.5459128327 | BL69: 12 | BM69: 0.164 | BN69: 8
BE70: 37 | BF70: 0.37 | BG70: 0.4061651786 | BH70: 8 | BI70: 0.168 | BJ70: 0.37 | BK70: 0.5479452206 | BL70: 12 | BM70: 0.168 | BN70: 8
BE71: 38 | BF71: 0.38 | BG71: 0.4084591429 | BH71: 8 | BI71: 0.172 | BJ71: 0.38 | BK71: 0.5499776086 | BL71: 12 | BM71: 0.172 | BN71: 8
BE72: 39 | BF72: 0.39 | BG72: 0.4107531072 | BH72: 8 | BI72: 0.176 | BJ72: 0.39 | BK72: 0.5520099966 | BL72: 12 | BM72: 0.176 | BN72: 8
BE73: 40 | BF73: 0.4 | BG73: 0.4130470716 | BH73: 8 | BI73: 0.18 | BJ73: 0.4 | BK73: 0.5540423846 | BL73: 12 | BM73: 0.18 | BN73: 8
BE74: 41 | BF74: 0.41 | BG74: 0.4153410359 | BH74: 8 | BI74: 0.184 | BJ74: 0.41 | BK74: 0.5560747725 | BL74: 12 | BM74: 0.184 | BN74: 8
BE75: 42 | BF75: 0.42 | BG75: 0.4176350002 | BH75: 8 | BI75: 0.188 | BJ75: 0.42 | BK75: 0.5581071605 | BL75: 12 | BM75: 0.188 | BN75: 8
BE76: 43 | BF76: 0.43 | BG76: 0.4199289646 | BH76: 8 | BI76: 0.192 | BJ76: 0.43 | BK76: 0.5601395485 | BL76: 12 | BM76: 0.192 | BN76: 8
BE77: 44 | BF77: 0.44 | BG77: 0.4222229289 | BH77: 8 | BI77: 0.196 | BJ77: 0.44 | BK77: 0.5621719365 | BL77: 12 | BM77: 0.196 | BN77: 8
BE78: 45 | BF78: 0.45 | BG78: 0.4245168932 | BH78: 8 | BI78: 0.2 | BJ78: 0.45 | BK78: 0.5642043244 | BL78: 12 | BM78: 0.2 | BN78: 8
BE79: 46 | BF79: 0.46 | BG79: 0.4268108576 | BH79: 8 | BI79: 0.204 | BJ79: 0.46 | BK79: 0.5662367124 | BL79: 12 | BM79: 0.204 | BN79: 8
BE80: 47 | BF80: 0.47 | BG80: 0.4291048219 | BH80: 8 | BI80: 0.208 | BJ80: 0.47 | BK80: 0.5682691004 | BL80: 12 | BM80: 0.208 | BN80: 8
BE81: 48 | BF81: 0.48 | BG81: 0.4313987862 | BH81: 8 | BI81: 0.212 | BJ81: 0.48 | BK81: 0.5703014884 | BL81: 12 | BM81: 0.212 | BN81: 8
BE82: 49 | BF82: 0.49 | BG82: 0.4336927506 | BH82: 8 | BI82: 0.216 | BJ82: 0.49 | BK82: 0.5723338763 | BL82: 12 | BM82: 0.216 | BN82: 8
BE83: 50 | BF83: 0.5 | BG83: 0.4359867149 | BH83: 8 | BI83: 0.22 | BJ83: 0.5 | BK83: 0.5743662643 | BL83: 12 | BM83: 0.22 | BN83: 8
BE84: 51 | BF84: 0.51 | BG84: 0.4382806792 | BH84: 8 | BI84: 0.224 | BJ84: 0.51 | BK84: 0.5763986523 | BL84: 12 | BM84: 0.224 | BN84: 8
BE85: 52 | BF85: 0.52 | BG85: 0.4405746436 | BH85: 8 | BI85: 0.228 | BJ85: 0.52 | BK85: 0.5784310403 | BL85: 12 | BM85: 0.228 | BN85: 8
BE86: 53 | BF86: 0.53 | BG86: 0.4428686079 | BH86: 8 | BI86: 0.232 | BJ86: 0.53 | BK86: 0.5804634282 | BL86: 12 | BM86: 0.232 | BN86: 8
BE87: 54 | BF87: 0.54 | BG87: 0.4451625722 | BH87: 8 | BI87: 0.236 | BJ87: 0.54 | BK87: 0.5824958162 | BL87: 12 | BM87: 0.236 | BN87: 8
BE88: 55 | BF88: 0.55 | BG88: 0.4474565366 | BH88: 8 | BI88: 0.24 | BJ88: 0.55 | BK88: 0.5845282042 | BL88: 12 | BM88: 0.24 | BN88: 8
BE89: 56 | BF89: 0.56 | BG89: 0.4497505009 | BH89: 8 | BI89: 0.244 | BJ89: 0.56 | BK89: 0.5865605922 | BL89: 12 | BM89: 0.244 | BN89: 8
BE90: 57 | BF90: 0.57 | BG90: 0.4520444652 | BH90: 8 | BI90: 0.248 | BJ90: 0.57 | BK90: 0.5885929801 | BL90: 12 | BM90: 0.248 | BN90: 8
BE91: 58 | BF91: 0.58 | BG91: 0.4543384296 | BH91: 8 | BI91: 0.252 | BJ91: 0.58 | BK91: 0.5906253681 | BL91: 12 | BM91: 0.252 | BN91: 8
BE92: 59 | BF92: 0.59 | BG92: 0.4566323939 | BH92: 8 | BI92: 0.256 | BJ92: 0.59 | BK92: 0.5926577561 | BL92: 12 | BM92: 0.256 | BN92: 8
BE93: 60 | BF93: 0.6 | BG93: 0.4589263582 | BH93: 8 | BI93: 0.26 | BJ93: 0.6 | BK93: 0.5946901441 | BL93: 12 | BM93: 0.26 | BN93: 8
BE94: 61 | BF94: 0.61 | BG94: 0.4612203226 | BH94: 8 | BI94: 0.264 | BJ94: 0.61 | BK94: 0.596722532 | BL94: 12 | BM94: 0.264 | BN94: 8
BE95: 62 | BF95: 0.62 | BG95: 0.4635142869 | BH95: 8 | BI95: 0.268 | BJ95: 0.62 | BK95: 0.59875492 | BL95: 12 | BM95: 0.268 | BN95: 8
BE96: 63 | BF96: 0.63 | BG96: 0.4658082512 | BH96: 8 | BI96: 0.272 | BJ96: 0.63 | BK96: 0.600787308 | BL96: 12 | BM96: 0.272 | BN96: 8
BE97: 64 | BF97: =1-ABS($BB$14-BG97)/$BK$14 -> 0.64 | BG97: 0.4681022155 | BH97: 8 | BI97: =MAX($BF$19*BF97-$BF$31,0) -> 0.276 | BJ97: =1-ABS($BB$18-BK97)/$BK$18 -> 0.64 | BK97: 0.602819696 | BL97: 12 | BM97: =MAX($BF$19*BJ97-$BJ$31,0) -> 0.276 | BN97: 8
BE98: 65 | BF98: 0.65 | BG98: =IF($BP$3,BG97+$BF$30,NA()) -> 0.4703961799 | BH98: =BH97 -> 8 | BI98: 0.28 | BJ98: 0.65 | BK98: =IF($BP$3,BK97+$BJ$30,NA()) -> 0.6048520839 | BL98: =BL97 -> 12 | BM98: 0.28 | BN98: =BN97 -> 8
BE99: 66 | BF99: 0.66 | BG99: 0.4726901442 | BH99: 8 | BI99: 0.284 | BJ99: 0.66 | BK99: 0.6068844719 | BL99: 12 | BM99: 0.284 | BN99: 8
BE100: 67 | BF100: 0.67 | BG100: 0.4749841085 | BH100: 8 | BI100: 0.288 | BJ100: 0.67 | BK100: 0.6089168599 | BL100: 12 | BM100: 0.288 | BN100: 8
BE101: 68 | BF101: 0.68 | BG101: 0.4772780729 | BH101: 8 | BI101: 0.292 | BJ101: 0.68 | BK101: 0.6109492479 | BL101: 12 | BM101: 0.292 | BN101: 8
BE102: 69 | BF102: 0.69 | BG102: 0.4795720372 | BH102: 8 | BI102: 0.296 | BJ102: 0.69 | BK102: 0.6129816358 | BL102: 12 | BM102: 0.296 | BN102: 8
BE103: 70 | BF103: 0.7 | BG103: 0.4818660015 | BH103: 8 | BI103: 0.3 | BJ103: 0.7 | BK103: 0.6150140238 | BL103: 12 | BM103: 0.3 | BN103: 8
BE104: 71 | BF104: 0.71 | BG104: 0.4841599659 | BH104: 8 | BI104: 0.304 | BJ104: 0.71 | BK104: 0.6170464118 | BL104: 12 | BM104: 0.304 | BN104: 8
BE105: 72 | BF105: 0.72 | BG105: 0.4864539302 | BH105: 8 | BI105: 0.308 | BJ105: 0.72 | BK105: 0.6190787998 | BL105: 12 | BM105: 0.308 | BN105: 8
BE106: 73 | BF106: 0.73 | BG106: 0.4887478945 | BH106: 8 | BI106: 0.312 | BJ106: 0.73 | BK106: 0.6211111877 | BL106: 12 | BM106: 0.312 | BN106: 8
BE107: 74 | BF107: 0.74 | BG107: 0.4910418589 | BH107: 8 | BI107: 0.316 | BJ107: 0.74 | BK107: 0.6231435757 | BL107: 12 | BM107: 0.316 | BN107: 8
BE108: 75 | BF108: 0.75 | BG108: 0.4933358232 | BH108: 8 | BI108: 0.32 | BJ108: 0.75 | BK108: 0.6251759637 | BL108: 12 | BM108: 0.32 | BN108: 8
BE109: 76 | BF109: 0.76 | BG109: 0.4956297875 | BH109: 8 | BI109: 0.324 | BJ109: 0.76 | BK109: 0.6272083517 | BL109: 12 | BM109: 0.324 | BN109: 8
BE110: 77 | BF110: 0.77 | BG110: 0.4979237519 | BH110: 8 | BI110: 0.328 | BJ110: 0.77 | BK110: 0.6292407396 | BL110: 12 | BM110: 0.328 | BN110: 8
BE111: 78 | BF111: 0.78 | BG111: 0.5002177162 | BH111: 8 | BI111: 0.332 | BJ111: 0.78 | BK111: 0.6312731276 | BL111: 12 | BM111: 0.332 | BN111: 8
BE112: 79 | BF112: 0.79 | BG112: 0.5025116805 | BH112: 8 | BI112: 0.336 | BJ112: 0.79 | BK112: 0.6333055156 | BL112: 12 | BM112: 0.336 | BN112: 8
BE113: 80 | BF113: 0.8 | BG113: 0.5048056449 | BH113: 8 | BI113: 0.34 | BJ113: 0.8 | BK113: 0.6353379036 | BL113: 12 | BM113: 0.34 | BN113: 8
BE114: 81 | BF114: 0.81 | BG114: 0.5070996092 | BH114: 8 | BI114: 0.344 | BJ114: 0.81 | BK114: 0.6373702916 | BL114: 12 | BM114: 0.344 | BN114: 8
BE115: 82 | BF115: 0.82 | BG115: 0.5093935735 | BH115: 8 | BI115: 0.348 | BJ115: 0.82 | BK115: 0.6394026795 | BL115: 12 | BM115: 0.348 | BN115: 8
BE116: 83 | BF116: 0.83 | BG116: 0.5116875379 | BH116: 8 | BI116: 0.352 | BJ116: 0.83 | BK116: 0.6414350675 | BL116: 12 | BM116: 0.352 | BN116: 8
BE117: 84 | BF117: 0.84 | BG117: 0.5139815022 | BH117: 8 | BI117: 0.356 | BJ117: 0.84 | BK117: 0.6434674555 | BL117: 12 | BM117: 0.356 | BN117: 8
BE118: 85 | BF118: 0.85 | BG118: 0.5162754665 | BH118: 8 | BI118: 0.36 | BJ118: 0.85 | BK118: 0.6454998435 | BL118: 12 | BM118: 0.36 | BN118: 8
BE119: 86 | BF119: 0.86 | BG119: 0.5185694309 | BH119: 8 | BI119: 0.364 | BJ119: 0.86 | BK119: 0.6475322314 | BL119: 12 | BM119: 0.364 | BN119: 8
BE120: 87 | BF120: 0.87 | BG120: 0.5208633952 | BH120: 8 | BI120: 0.368 | BJ120: 0.87 | BK120: 0.6495646194 | BL120: 12 | BM120: 0.368 | BN120: 8
BE121: 88 | BF121: 0.88 | BG121: 0.5231573595 | BH121: 8 | BI121: 0.372 | BJ121: 0.88 | BK121: 0.6515970074 | BL121: 12 | BM121: 0.372 | BN121: 8
BE122: 89 | BF122: 0.89 | BG122: 0.5254513239 | BH122: 8 | BI122: 0.376 | BJ122: 0.89 | BK122: 0.6536293954 | BL122: 12 | BM122: 0.376 | BN122: 8
BE123: 90 | BF123: 0.9 | BG123: 0.5277452882 | BH123: 8 | BI123: 0.38 | BJ123: 0.9 | BK123: 0.6556617833 | BL123: 12 | BM123: 0.38 | BN123: 8
BE124: 91 | BF124: 0.91 | BG124: 0.5300392525 | BH124: 8 | BI124: 0.384 | BJ124: 0.91 | BK124: 0.6576941713 | BL124: 12 | BM124: 0.384 | BN124: 8
BE125: 92 | BF125: 0.92 | BG125: 0.5323332168 | BH125: 8 | BI125: 0.388 | BJ125: 0.92 | BK125: 0.6597265593 | BL125: 12 | BM125: 0.388 | BN125: 8
BE126: 93 | BF126: 0.93 | BG126: 0.5346271812 | BH126: 8 | BI126: 0.392 | BJ126: 0.93 | BK126: 0.6617589473 | BL126: 12 | BM126: 0.392 | BN126: 8
BE127: 94 | BF127: 0.94 | BG127: 0.5369211455 | BH127: 8 | BI127: 0.396 | BJ127: 0.94 | BK127: 0.6637913352 | BL127: 12 | BM127: 0.396 | BN127: 8
BE128: 95 | BF128: 0.95 | BG128: 0.5392151098 | BH128: 8 | BI128: 0.4 | BJ128: 0.95 | BK128: 0.6658237232 | BL128: 12 | BM128: 0.4 | BN128: 8
BE129: 96 | BF129: 0.96 | BG129: 0.5415090742 | BH129: 8 | BI129: 0.404 | BJ129: 0.96 | BK129: 0.6678561112 | BL129: 12 | BM129: 0.404 | BN129: 8
BE130: 97 | BF130: 0.97 | BG130: =IF($BP$3,BG129+$BF$30,NA()) -> 0.5438030385 | BH130: =BH129 -> 8 | BI130: 0.408 | BJ130: 0.97 | BK130: =IF($BP$3,BK129+$BJ$30,NA()) -> 0.6698884992 | BL130: =BL129 -> 12 | BM130: 0.408 | BN130: =BN129 -> 8
BE131: 98 | BF131: 0.98 | BG131: 0.5460970028 | BH131: 8 | BI131: 0.412 | BJ131: 0.98 | BK131: 0.6719208871 | BL131: 12 | BM131: 0.412 | BN131: 8
BE132: 99 | BF132: 0.99 | BG132: 0.5483909672 | BH132: 8 | BI132: 0.416 | BJ132: 0.99 | BK132: 0.6739532751 | BL132: 12 | BM132: 0.416 | BN132: 8
BE133: 100 | BF133: 1 | BG133: 0.5506849315 | BH133: 8 | BI133: 0.42 | BJ133: 1 | BK133: 0.6759856631 | BL133: 12 | BM133: 0.42 | BN133: 8
BE134: 101 | BF134: 0.99 | BG134: 0.5529788958 | BH134: 8 | BI134: 0.416 | BJ134: 0.99 | BK134: 0.6780180511 | BL134: 12 | BM134: 0.416 | BN134: 8
BE135: 102 | BF135: 0.98 | BG135: 0.5552728602 | BH135: 8 | BI135: 0.412 | BJ135: 0.98 | BK135: 0.680050439 | BL135: 12 | BM135: 0.412 | BN135: 8
BE136: 103 | BF136: 0.97 | BG136: 0.5575668245 | BH136: 8 | BI136: 0.408 | BJ136: 0.97 | BK136: 0.682082827 | BL136: 12 | BM136: 0.408 | BN136: 8
BE137: 104 | BF137: 0.96 | BG137: 0.5598607888 | BH137: 8 | BI137: 0.404 | BJ137: 0.96 | BK137: 0.684115215 | BL137: 12 | BM137: 0.404 | BN137: 8
BE138: 105 | BF138: 0.95 | BG138: 0.5621547532 | BH138: 8 | BI138: 0.4 | BJ138: 0.95 | BK138: 0.686147603 | BL138: 12 | BM138: 0.4 | BN138: 8
BE139: 106 | BF139: 0.94 | BG139: 0.5644487175 | BH139: 8 | BI139: 0.396 | BJ139: 0.94 | BK139: 0.6881799909 | BL139: 12 | BM139: 0.396 | BN139: 8
BE140: 107 | BF140: 0.93 | BG140: 0.5667426818 | BH140: 8 | BI140: 0.392 | BJ140: 0.93 | BK140: 0.6902123789 | BL140: 12 | BM140: 0.392 | BN140: 8
BE141: 108 | BF141: 0.92 | BG141: 0.5690366462 | BH141: 8 | BI141: 0.388 | BJ141: 0.92 | BK141: 0.6922447669 | BL141: 12 | BM141: 0.388 | BN141: 8
BE142: 109 | BF142: 0.91 | BG142: 0.5713306105 | BH142: 8 | BI142: 0.384 | BJ142: 0.91 | BK142: 0.6942771549 | BL142: 12 | BM142: 0.384 | BN142: 8
BE143: 110 | BF143: 0.9 | BG143: 0.5736245748 | BH143: 8 | BI143: 0.38 | BJ143: 0.9 | BK143: 0.6963095428 | BL143: 12 | BM143: 0.38 | BN143: 8
BE144: 111 | BF144: 0.89 | BG144: 0.5759185392 | BH144: 8 | BI144: 0.376 | BJ144: 0.89 | BK144: 0.6983419308 | BL144: 12 | BM144: 0.376 | BN144: 8
BE145: 112 | BF145: 0.88 | BG145: 0.5782125035 | BH145: 8 | BI145: 0.372 | BJ145: 0.88 | BK145: 0.7003743188 | BL145: 12 | BM145: 0.372 | BN145: 8
BE146: 113 | BF146: 0.87 | BG146: 0.5805064678 | BH146: 8 | BI146: 0.368 | BJ146: 0.87 | BK146: 0.7024067068 | BL146: 12 | BM146: 0.368 | BN146: 8
BE147: 114 | BF147: 0.86 | BG147: 0.5828004322 | BH147: 8 | BI147: 0.364 | BJ147: 0.86 | BK147: 0.7044390947 | BL147: 12 | BM147: 0.364 | BN147: 8
BE148: 115 | BF148: 0.85 | BG148: 0.5850943965 | BH148: 8 | BI148: 0.36 | BJ148: 0.85 | BK148: 0.7064714827 | BL148: 12 | BM148: 0.36 | BN148: 8
BE149: 116 | BF149: 0.84 | BG149: 0.5873883608 | BH149: 8 | BI149: 0.356 | BJ149: 0.84 | BK149: 0.7085038707 | BL149: 12 | BM149: 0.356 | BN149: 8
BE150: 117 | BF150: 0.83 | BG150: 0.5896823252 | BH150: 8 | BI150: 0.352 | BJ150: 0.83 | BK150: 0.7105362587 | BL150: 12 | BM150: 0.352 | BN150: 8
BE151: 118 | BF151: 0.82 | BG151: 0.5919762895 | BH151: 8 | BI151: 0.348 | BJ151: 0.82 | BK151: 0.7125686466 | BL151: 12 | BM151: 0.348 | BN151: 8
BE152: 119 | BF152: 0.81 | BG152: 0.5942702538 | BH152: 8 | BI152: 0.344 | BJ152: 0.81 | BK152: 0.7146010346 | BL152: 12 | BM152: 0.344 | BN152: 8
BE153: 120 | BF153: 0.8 | BG153: 0.5965642181 | BH153: 8 | BI153: 0.34 | BJ153: 0.8 | BK153: 0.7166334226 | BL153: 12 | BM153: 0.34 | BN153: 8
BE154: 121 | BF154: 0.79 | BG154: 0.5988581825 | BH154: 8 | BI154: 0.336 | BJ154: 0.79 | BK154: 0.7186658106 | BL154: 12 | BM154: 0.336 | BN154: 8
BE155: 122 | BF155: 0.78 | BG155: 0.6011521468 | BH155: 8 | BI155: 0.332 | BJ155: 0.78 | BK155: 0.7206981985 | BL155: 12 | BM155: 0.332 | BN155: 8
BE156: 123 | BF156: 0.77 | BG156: 0.6034461111 | BH156: 8 | BI156: 0.328 | BJ156: 0.77 | BK156: 0.7227305865 | BL156: 12 | BM156: 0.328 | BN156: 8
BE157: 124 | BF157: 0.76 | BG157: 0.6057400755 | BH157: 8 | BI157: 0.324 | BJ157: 0.76 | BK157: 0.7247629745 | BL157: 12 | BM157: 0.324 | BN157: 8
BE158: 125 | BF158: 0.75 | BG158: 0.6080340398 | BH158: 8 | BI158: 0.32 | BJ158: 0.75 | BK158: 0.7267953625 | BL158: 12 | BM158: 0.32 | BN158: 8
BE159: 126 | BF159: 0.74 | BG159: 0.6103280041 | BH159: 8 | BI159: 0.316 | BJ159: 0.74 | BK159: 0.7288277504 | BL159: 12 | BM159: 0.316 | BN159: 8
BE160: 127 | BF160: 0.73 | BG160: 0.6126219685 | BH160: 8 | BI160: 0.312 | BJ160: 0.73 | BK160: 0.7308601384 | BL160: 12 | BM160: 0.312 | BN160: 8
BE161: 128 | BF161: =1-ABS($BB$14-BG161)/$BK$14 -> 0.72 | BG161: 0.6149159328 | BH161: 8 | BI161: =MAX($BF$19*BF161-$BF$31,0) -> 0.308 | BJ161: =1-ABS($BB$18-BK161)/$BK$18 -> 0.72 | BK161: 0.7328925264 | BL161: 12 | BM161: =MAX($BF$19*BJ161-$BJ$31,0) -> 0.308 | BN161: 8
BE162: 129 | BF162: 0.71 | BG162: =IF($BP$3,BG161+$BF$30,NA()) -> 0.6172098971 | BH162: =BH161 -> 8 | BI162: 0.304 | BJ162: 0.71 | BK162: =IF($BP$3,BK161+$BJ$30,NA()) -> 0.7349249144 | BL162: =BL161 -> 12 | BM162: 0.304 | BN162: =BN161 -> 8
BE163: 130 | BF163: 0.7 | BG163: 0.6195038615 | BH163: 8 | BI163: 0.3 | BJ163: 0.7 | BK163: 0.7369573023 | BL163: 12 | BM163: 0.3 | BN163: 8
BE164: 131 | BF164: 0.69 | BG164: 0.6217978258 | BH164: 8 | BI164: 0.296 | BJ164: 0.69 | BK164: 0.7389896903 | BL164: 12 | BM164: 0.296 | BN164: 8
BE165: 132 | BF165: 0.68 | BG165: 0.6240917901 | BH165: 8 | BI165: 0.292 | BJ165: 0.68 | BK165: 0.7410220783 | BL165: 12 | BM165: 0.292 | BN165: 8
BE166: 133 | BF166: 0.67 | BG166: 0.6263857545 | BH166: 8 | BI166: 0.288 | BJ166: 0.67 | BK166: 0.7430544663 | BL166: 12 | BM166: 0.288 | BN166: 8
BE167: 134 | BF167: 0.66 | BG167: 0.6286797188 | BH167: 8 | BI167: 0.284 | BJ167: 0.66 | BK167: 0.7450868542 | BL167: 12 | BM167: 0.284 | BN167: 8
BE168: 135 | BF168: 0.65 | BG168: 0.6309736831 | BH168: 8 | BI168: 0.28 | BJ168: 0.65 | BK168: 0.7471192422 | BL168: 12 | BM168: 0.28 | BN168: 8
BE169: 136 | BF169: 0.64 | BG169: 0.6332676475 | BH169: 8 | BI169: 0.276 | BJ169: 0.64 | BK169: 0.7491516302 | BL169: 12 | BM169: 0.276 | BN169: 8
BE170: 137 | BF170: 0.63 | BG170: 0.6355616118 | BH170: 8 | BI170: 0.272 | BJ170: 0.63 | BK170: 0.7511840182 | BL170: 12 | BM170: 0.272 | BN170: 8
BE171: 138 | BF171: 0.62 | BG171: 0.6378555761 | BH171: 8 | BI171: 0.268 | BJ171: 0.62 | BK171: 0.7532164061 | BL171: 12 | BM171: 0.268 | BN171: 8
BE172: 139 | BF172: 0.61 | BG172: 0.6401495405 | BH172: 8 | BI172: 0.264 | BJ172: 0.61 | BK172: 0.7552487941 | BL172: 12 | BM172: 0.264 | BN172: 8
BE173: 140 | BF173: 0.6 | BG173: 0.6424435048 | BH173: 8 | BI173: 0.26 | BJ173: 0.6 | BK173: 0.7572811821 | BL173: 12 | BM173: 0.26 | BN173: 8
BE174: 141 | BF174: 0.59 | BG174: 0.6447374691 | BH174: 8 | BI174: 0.256 | BJ174: 0.59 | BK174: 0.7593135701 | BL174: 12 | BM174: 0.256 | BN174: 8
BE175: 142 | BF175: 0.58 | BG175: 0.6470314335 | BH175: 8 | BI175: 0.252 | BJ175: 0.58 | BK175: 0.761345958 | BL175: 12 | BM175: 0.252 | BN175: 8
BE176: 143 | BF176: 0.57 | BG176: 0.6493253978 | BH176: 8 | BI176: 0.248 | BJ176: 0.57 | BK176: 0.763378346 | BL176: 12 | BM176: 0.248 | BN176: 8
BE177: 144 | BF177: 0.56 | BG177: 0.6516193621 | BH177: 8 | BI177: 0.244 | BJ177: 0.56 | BK177: 0.765410734 | BL177: 12 | BM177: 0.244 | BN177: 8
BE178: 145 | BF178: 0.55 | BG178: 0.6539133265 | BH178: 8 | BI178: 0.24 | BJ178: 0.55 | BK178: 0.767443122 | BL178: 12 | BM178: 0.24 | BN178: 8
BE179: 146 | BF179: 0.54 | BG179: 0.6562072908 | BH179: 8 | BI179: 0.236 | BJ179: 0.54 | BK179: 0.7694755099 | BL179: 12 | BM179: 0.236 | BN179: 8
BE180: 147 | BF180: 0.53 | BG180: 0.6585012551 | BH180: 8 | BI180: 0.232 | BJ180: 0.53 | BK180: 0.7715078979 | BL180: 12 | BM180: 0.232 | BN180: 8
BE181: 148 | BF181: 0.52 | BG181: 0.6607952194 | BH181: 8 | BI181: 0.228 | BJ181: 0.52 | BK181: 0.7735402859 | BL181: 12 | BM181: 0.228 | BN181: 8
BE182: 149 | BF182: 0.51 | BG182: 0.6630891838 | BH182: 8 | BI182: 0.224 | BJ182: 0.51 | BK182: 0.7755726739 | BL182: 12 | BM182: 0.224 | BN182: 8
BE183: 150 | BF183: 0.5 | BG183: 0.6653831481 | BH183: 8 | BI183: 0.22 | BJ183: 0.5 | BK183: 0.7776050619 | BL183: 12 | BM183: 0.22 | BN183: 8
BE184: 151 | BF184: 0.49 | BG184: 0.6676771124 | BH184: 8 | BI184: 0.216 | BJ184: 0.49 | BK184: 0.7796374498 | BL184: 12 | BM184: 0.216 | BN184: 8
BE185: 152 | BF185: 0.48 | BG185: 0.6699710768 | BH185: 8 | BI185: 0.212 | BJ185: 0.48 | BK185: 0.7816698378 | BL185: 12 | BM185: 0.212 | BN185: 8
BE186: 153 | BF186: 0.47 | BG186: 0.6722650411 | BH186: 8 | BI186: 0.208 | BJ186: 0.47 | BK186: 0.7837022258 | BL186: 12 | BM186: 0.208 | BN186: 8
BE187: 154 | BF187: 0.46 | BG187: 0.6745590054 | BH187: 8 | BI187: 0.204 | BJ187: 0.46 | BK187: 0.7857346138 | BL187: 12 | BM187: 0.204 | BN187: 8
BE188: 155 | BF188: 0.45 | BG188: 0.6768529698 | BH188: 8 | BI188: 0.2 | BJ188: 0.45 | BK188: 0.7877670017 | BL188: 12 | BM188: 0.2 | BN188: 8
BE189: 156 | BF189: 0.44 | BG189: 0.6791469341 | BH189: 8 | BI189: 0.196 | BJ189: 0.44 | BK189: 0.7897993897 | BL189: 12 | BM189: 0.196 | BN189: 8
BE190: 157 | BF190: 0.43 | BG190: 0.6814408984 | BH190: 8 | BI190: 0.192 | BJ190: 0.43 | BK190: 0.7918317777 | BL190: 12 | BM190: 0.192 | BN190: 8
BE191: 158 | BF191: 0.42 | BG191: 0.6837348628 | BH191: 8 | BI191: 0.188 | BJ191: 0.42 | BK191: 0.7938641657 | BL191: 12 | BM191: 0.188 | BN191: 8
BE192: 159 | BF192: 0.41 | BG192: 0.6860288271 | BH192: 8 | BI192: 0.184 | BJ192: 0.41 | BK192: 0.7958965536 | BL192: 12 | BM192: 0.184 | BN192: 8
BE193: 160 | BF193: 0.4 | BG193: 0.6883227914 | BH193: 8 | BI193: 0.18 | BJ193: 0.4 | BK193: 0.7979289416 | BL193: 12 | BM193: 0.18 | BN193: 8
BE194: 161 | BF194: 0.39 | BG194: =IF($BP$3,BG193+$BF$30,NA()) -> 0.6906167558 | BH194: =BH193 -> 8 | BI194: 0.176 | BJ194: 0.39 | BK194: =IF($BP$3,BK193+$BJ$30,NA()) -> 0.7999613296 | BL194: =BL193 -> 12 | BM194: 0.176 | BN194: =BN193 -> 8
BE195: 162 | BF195: 0.38 | BG195: 0.6929107201 | BH195: 8 | BI195: 0.172 | BJ195: 0.38 | BK195: 0.8019937176 | BL195: 12 | BM195: 0.172 | BN195: 8
BE196: 163 | BF196: 0.37 | BG196: 0.6952046844 | BH196: 8 | BI196: 0.168 | BJ196: 0.37 | BK196: 0.8040261055 | BL196: 12 | BM196: 0.168 | BN196: 8
BE197: 164 | BF197: 0.36 | BG197: 0.6974986488 | BH197: 8 | BI197: 0.164 | BJ197: 0.36 | BK197: 0.8060584935 | BL197: 12 | BM197: 0.164 | BN197: 8
BE198: 165 | BF198: 0.35 | BG198: 0.6997926131 | BH198: 8 | BI198: 0.16 | BJ198: 0.35 | BK198: 0.8080908815 | BL198: 12 | BM198: 0.16 | BN198: 8
BE199: 166 | BF199: 0.34 | BG199: 0.7020865774 | BH199: 8 | BI199: 0.156 | BJ199: 0.34 | BK199: 0.8101232695 | BL199: 12 | BM199: 0.156 | BN199: 8
BE200: 167 | BF200: 0.33 | BG200: 0.7043805418 | BH200: 8 | BI200: 0.152 | BJ200: 0.33 | BK200: 0.8121556574 | BL200: 12 | BM200: 0.152 | BN200: 8
... 33 more rows

Sheet Standard 31
D1: Meta-Analysis of means in original units, or d | O1: 6 | U1: 7 | V1: m0 | W1: 100 | X1: =IF($G$6<>"",$G$6,"") -> IQ score | AD1: 20 ►► | AI1: Forest plot showing only included studies from first 30, plus meta-analysis as at 3 | BC1: Mean=1, d=2 | BD1: 2 | BG1: show m0 line? | BH1: TRUE | BJ1: MA model? | BK1: 1 | BL1: 1=fixed, 2=random | BP1: Population SD | BT1: TINV((100-$L$2)/100,J7-1) | CI1: Weighted means, green | CS1: Weighted means, green, squashed | DC1: squash
L2: 2 C | M2: 95 | O2: Display m0 line | AB2: 17 | AC2: Scroll right for additional forest plot | AT2: IF(AND(W1<>"",BH1,BD1=1),IF($BG$4,0,W1),NA()) | BB2: Mean | BC2: m0 | BD2: =IF($BG$4,0,$W$1) -> 0 | BG2: cumulate? | BH2: FALSE | BI2: =IF($BG$4,"d",IF(G6="","",G6)) -> d | BL2: squash | BO2: Influence weighted? | BP2: TRUE | BQ2: Show MA1 | BR2: =IF(COUNT(BH7:BH36)>1,TRUE,FALSE) -> TRUE | CI2: 3 | CJ2: 4 | CK2: 6 | CL2: 7 | CM2: 9 | CN2: 10 | CO2: 12 | CP2: 13 | CQ2: 15 | CS2: 3 | CT2: 4 | CU2: 6 | CV2: 7 | CW2: 9 | CX2: 10 | CY2: 12 | CZ2: 13 | DA2: 15 | DC2: y disp
E3: 12 | F3: Display by weightings | I3: 13 | J3: Cumulate | AZ3: ES OK? | BB3: when d | BC3: =IF(AND(W1<>"",BH1,$BG$4),0,NA()) -> 0 | BD3: 0 | BG3: Freeze scale? | BH3: FALSE | BI3: =IF(AND(W1<>"",BH1,BD1=1),IF($BG$4,0,W1),NA()) ->  | BJ3: 0 | BK3: 37 | BL3: =CA37+0.5 -> 22.5 | BO3: results as diamond | BP3: TRUE | BQ3: Show MA2 | BR3: =IF(COUNT(BH7:BH36,BH40)>1,TRUE,FALSE) -> TRUE | BS3: Zcrit | BT3: =NORMSINV((100+$M$2)/200) -> 1.959963985 | CI3: =IF(AND(BO7<=$CB$42,$BP$2),BB7,NA()) ->  | CJ3: =IF(AND(BO7>$CB$42,BO7<=$CB$43,$BP$2),BB7,NA()) ->  | CK3: =IF(AND(BO7>$CB$43,BO7<=$CB$44,$BP$2),BB7,NA()) ->  | CL3: =IF(AND(BO7>$CB$44,BO7<=$CB$45,$BP$2),BB7,NA()) ->  | CM3: =IF(AND(BO7>$CB$45,BO7<=$CB$46,$BP$2),BB7,NA()) -> 1 | CN3: =IF(AND(BO7>$CB$46,BO7<=$CB$47,$BP$2),BB7,NA()) ->  | CO3: =IF(AND(BO7>$CB$47,BO7<=$CB$48,$BP$2),BB7,NA()) ->  | CP3: =IF(AND(BO7>$CB$48,BO7<=$CB$49,$BP$2),BB7,NA()) ->  | CQ3: =IF(AND(BO7<>"",BO7>$CB$49,$BP$2),BB7,NA()) ->  | CR3: 1 | CS3: =IF(AND(BO7<=$CB$42,$BP$2),BB7,NA()) ->  | CT3: =IF(AND(BO7>$CB$42,BO7<=$CB$43,$BP$2),BB7,NA()) ->  | CU3: =IF(AND(BO7>$CB$43,BO7<=$CB$44,$BP$2),BB7,NA()) ->  | CV3: =IF(AND(BO7>$CB$44,BO7<=$CB$45,$BP$2),BB7,NA()) ->  | CW3: =IF(AND(BO7>$CB$45,BO7<=$CB$46,$BP$2),BB7,NA()) -> 1 | CX3: =IF(AND(BO7>$CB$46,BO7<=$CB$47,$BP$2),BB7,NA()) ->  | CY3: =IF(AND(BO7>$CB$47,BO7<=$CB$48,$BP$2),BB7,NA()) ->  | CZ3: =IF(AND(BO7>$CB$48,BO7<=$CB$49,$BP$2),BB7,NA()) ->  | DA3: =IF(AND(BO7<>"",BO7>$CB$49,$BP$2),BB7,NA()) ->  | DB3: =IF(BH7="",0,1) -> 1 | DC3: =IF(DB3=0,NA(),SUM($DB$3:DB3)) -> 1
C4: 8 | E4: 1 | F4: Past research | I4: Population SD (s) | L4: 11 | M4: Variance | O4: CI | P4: 15 | Q4: Study | S4: =(W1+M2+K42)/100000 -> 0.00479 | T4: =$S$4 -> 0.00479 | U4: 0.00479 | V4: 0.00479 | W4: 0.00479 | X4: 0.00479 | Y4: 0.00479 | Z4: 0.00479 | AB4: 10 CI | AG4: =IF(BH2," Cumulate","") ->  | AZ4: =AND($BH$1,$I$5<>"",$I$5<>0) -> TRUE | BF4: Display as d | BG4: =IF(AND($BH$1,$BD$1=2),TRUE,FALSE) -> TRUE | BH4: some t? | BI4: for NHST | BJ4: FALSE | BM4: Format for d | BN4: =IF(BG4,1000000000000,-1000000000000) -> 1000000000000 | BO4: fixed or | BQ4: Random | BR4: TRUE | CI4: =IF(AND(BO8<=$CB$42,$BP$2,NOT($BH$2)),BB8,NA()) ->  | CJ4: =IF(AND(BO8>$CB$42,BO8<=$CB$43,$BP$2,NOT($BH$2)),BB8,NA()) ->  | CK4: =IF(AND(BO8>$CB$43,BO8<=$CB$44,$BP$2,NOT($BH$2)),BB8,NA()) ->  | CL4: =IF(AND(BO8>$CB$44,BO8<=$CB$45,$BP$2,NOT($BH$2)),BB8,NA()) ->  | CM4: =IF(AND(BO8>$CB$45,BO8<=$CB$46,$BP$2,NOT($BH$2)),BB8,NA()) ->  | CN4: =IF(AND(BO8>$CB$46,BO8<=$CB$47,$BP$2,NOT($BH$2)),BB8,NA()) ->  | CO4: =IF(AND(BO8>$CB$47,BO8<=$CB$48,$BP$2,NOT($BH$2)),BB8,NA()) ->  | CP4: =IF(AND(BO8>$CB$48,BO8<=$CB$49,$BP$2,NOT($BH$2)),BB8,NA()) -> 0.4666666667 | CQ4: =IF(AND(BO8<>"",BO8>$CB$49,$BP$2,NOT($BH$2)),BB8,NA()) ->  | CR4: 2 | CZ4: 0.4666666667 | DB4: 1 | DC4: =IF(DB4=0,NA(),SUM($DB$3:DB4)) -> 2
E5: Study | G5: Mean | I5: 15 | L5: Study | M5: of | O5: MOE | Q5: weighting | S5: =$S$4 -> 0.00479 | Z5: =$S$4 -> 0.00479 | AB5: LL | AD5: UL | AG5: 14 | AH5: =IF(BH2,"CI","") ->  | AX5: Var orig | AY5: d | AZ5: Valid | BA5: Mean | BB5: ES for | BC5: ES for | BE5: Include | BF5: Valid | BG5: Valid | BH5: =IF(ISERROR(BH7),FALSE,IF(OR(BH7="",$I$5="",$I$5=0,COUNT(BH7:BH36)=0),FALSE,TRUE)) -> TRUE | BI5: Means | BK5: Bars for | BO5: random | BQ5: Random effects model | BT5: First 30 | BW5: 30 + current | BZ5: squash | CA5: squash | CB5: Grey | CD5: Cumulative | CN5: -0.2 | CR5: 3 | CX5: -0.2 | DB5: 1 | DC5: =IF(DB5=0,NA(),SUM($DB$3:DB5)) -> 3
B6: =IF(BJ4,"z","") ->  | C6: =IF(BJ4,"p","") ->  | E6: no. | F6: Study name | G6: IQ score | J6: d | K6: N | L6: in? | M6: =IF($BG$4,"d","Mean") -> d | O6: =IF($BG$4,"Population SD",IF($G$6<>"",$G$6,"")) -> Population SD | Q6: % | S6: 0.00479 | Z6: 0.00479 | AC6: =IF($BG$4,"Population SD",IF($G$6<>"",$G$6,"")) -> Population SD | AG6: =IF(BH2,IF($BG$4,"d","Mean"),"") ->  | AH6: =IF(BH2,"MOE","") ->  | AX6: means | AY6: bars | AZ6: d | BA6: bars | BB6: displBLNK | BC6: displayNA() | BE6: study? | BF6: Mean | BG6: N | BH6: t | BI6: for display | BJ6: y disp | BK6: display | BL6: SS | BM6: N-1 | BN6: Weight | BO6: Weight | BQ6: Wt x M | BR6: Wt^2 | BS6: WtxM^2 | BT6: V* | BU6: W* | BV6: W* x M | BW6: V* | BX6: W* | BY6: W* x M | BZ6: means | CA6: y disp | CB6: means | CD6: Mean | CF6: SE | CG6: Bars | CN6: 1.133333333 | CR6: 4 | CX6: 1.133333333 | DB6: 1 | DC6: =IF(DB6=0,NA(),SUM($DB$3:DB6)) -> 4
B7: =IF(AND($BH$5,$BJ$4,$BH$1,BH7<>"",$W$1<>""), BH7,"") ->  | C7: =IF(B7<>"",2*(1-NORMSDIST(ABS(B7))),"") ->  | D7: =IF(B7<>"",IF(C7<0.001,"***",(IF(C7<0.01,"**",(IF(C7<0.05,"*",(IF(C7<0.1,"?","ns"))))))),"") ->  | E7: 1 | F7: study 1 | G7: 115 | H7: =IF(AND(G7<>"",K7<>"",$I$5>0),$I$5,"") -> 15 | J7: =IF(AND($BH$1,G7<>"",$I$5<>"",$I$5<>0),(G7-$W$1)/$I$5,"") -> 1 | K7: 8 | M7: =IF(BH7<>"",IF($BG$4,IF(AND($BH$1,$I$5<>"",$I$5<>0),1/K7,""),H7*H7/K7),"") -> 0.125 | O7: =IF(AND($G$7<>"",$K$7>1,BH7<>""),IF($BG$4,IF(AND($BH$1,$I$5<>"",$I$5<>0),BK7,""),BK7),"") -> 0.6929519122 | Q7: =IF(AND(BN7<>"",$BH$5,$BR$2),IF(fixedrandom=1,100*BN7/SUM($BN$7:$BN$37),100*BX7/$BX$40),"") -> 2.816901408 | S7: 0.00479 | Z7: 0.00479 | AA7: [ | AB7: =IF(AND($G$7<>"",$K$7>1,BH7<>""),BB7-O7,"") -> 0.3070480878 | AC7: , | AD7: =IF(AND($G$7<>"",$K$7>1,BH7<>""),BB7+O7,"") -> 1.692951912 | AE7: ] | AG7: =IF(BH2,IF($BG$4,"Population SD",IF($G$6<>"",$G$6,"")),"") ->  | AX7: =IF(BH7<>"",H7*H7/K7,"") -> 28.125 | AY7: =IF(AND($AZ$4,BH7<>""),NORMSINV((100+$M$2)/200)/SQRT(K7),"") -> 0.6929519122 | AZ7: =IF(AND($AZ$4,$BH$5,$BH7<>""),J7,"") -> 1 | BA7: =IF(BH7<>"",H7*NORMSINV((100+$M$2)/200)/SQRT(K7),"") -> 10.39427868 | BB7: =IF($BG$4,AZ7,BF7) -> 1 | BC7: =IF(BB7="",NA(),BB7) -> 1 | BD7: 1 | BE7: TRUE | BF7: =IF(AND($BH$5,$BH7<>""),G7,"") -> 115 | BG7: =IF($BH7<>"",K7,"") -> 8 | BH7: =IF(AND(K7>1,G7<>"",H7<>"",BE7), (G7-$W$1)*SQRT(K7)/H7,"") -> 2.828427125 | BI7: =IF($BH$5,IF($BP$2,NA(),BC7),NA()) ->  | BJ7: =IF(BH7<>"",BD7,NA()) -> 1 | BK7: =IF($BH$5,IF($BG$4,IF(AY7="",NA(),AY7),IF(BA7="",NA(),BA7)),NA()) -> 0.6929519122 | BL7: =IF(BH7<>"",H7*H7*(K7-1),"") -> 1575 | BM7: =IF(BH7<>"",(K7-1),"") -> 7 | BN7: =IF($BH$5,IF(BH7<>"",1/AX7,""),"") -> 0.03555555556 | BO7: =IF(fixedrandom=1,BN7,BX7) -> 0.03555555556 | BQ7: =IF(AND($BR$4,BN7<>""),BF7*BN7,"") -> 4.088888889 | BR7: =IF(AND($BR$4,BN7<>""),BN7*BN7,"") -> 0.001264197531 | BS7: =IF(AND($BR$4,BN7<>""),BF7^2*BN7,"") -> 470.2222222 | BT7: =IF(AND($BR$4,BN7<>""),1/BN7+$BQ$48,"") -> 32.20385288 | BU7: =IF(AND($BR$4,BN7<>""),1/BT7,"") -> 0.03105218508 | BV7: =IF(AND($BR$4,BN7<>""),BU7*BF7,"") -> 3.571001284 | BW7: =IF(AND($BR$4,BN7<>""),1/BN7+$BR$48,"") -> 34.41891794 | BX7: =IF(AND($BR$4,BN7<>""),1/BW7,"") -> 0.02905378959 | BY7: =IF(AND($BR$4,BN7<>""),BX7*BF7,"") -> 3.341185803 | BZ7: =IF(AND($BH$5,NOT($BP$2),$BH7<>""),BI7,NA()) ->  | CA7: =DC3 -> 1 | CE7: 0.25 | CO7: 0.2666666667 | CR7: 5 | CY7: 0.2666666667 | DB7: 1 | DC7: =IF(DB7=0,NA(),SUM($DB$3:DB7)) -> 5
C8: =IF(B8<>"",2*(1-NORMSDIST(ABS(B8))),"") ->  | E8: 2 | F8: study 2 | G8: 107 | H8: =IF(AND(G8<>"",K8<>"",$I$5>0),$I$5,"") -> 15 | J8: 0.4666666667 | K8: 17 | M8: =IF(BH8<>"",IF($BG$4,IF(AND($BH$1,$I$5<>"",$I$5<>0),1/K8,""),H8*H8/K8),"") -> 0.05882352941 | O8: =IF(AND($G$7<>"",$K$7>1,BH8<>""),IF($BG$4,IF(AND($BH$1,$I$5<>"",$I$5<>0),BK8,""),BK8),"") -> 0.47536109 | Q8: 5.985915493 | S8: 0.00479 | Z8: 0.00479 | AA8: [ | AB8: =IF(AND($G$7<>"",$K$7>1,BH8<>""),BB8-O8,"") -> -0.008694423372 | AC8: , | AD8: =IF(AND($G$7<>"",$K$7>1,BH8<>""),BB8+O8,"") -> 0.9420277567 | AE8: ] | AF8: 2 | AG8: =IF(OR(BH8="",ISNA(CD8)),"",CD8) ->  | AH8: =IF(OR(BH8="",ISNA(CD8)),"",CG8) ->  | AX8: =IF(BH8<>"",H8*H8/K8,"") -> 13.23529412 | AY8: 0.47536109 | AZ8: 0.4666666667 | BA8: 7.130416351 | BB8: =IF($BG$4,AZ8,BF8) -> 0.4666666667 | BC8: =IF(BB8="",NA(),BB8) -> 0.4666666667 | BD8: 2 | BE8: TRUE | BF8: 107 | BG8: 17 | BH8: 1.924115959 | BI8: =IF($BH$5,IF($BP$2,NA(),BC8),NA()) ->  | BJ8: 2 | BK8: =IF($BH$5,IF($BG$4,IF(AY8="",NA(),AY8),IF(BA8="",NA(),BA8)),NA()) -> 0.47536109 | BL8: 3600 | BM8: =IF(BH8<>"",(K8-1),"") -> 16 | BN8: =IF($BH$5,IF(BH8<>"",1/AX8,""),"") -> 0.07555555556 | BO8: =IF(fixedrandom=1,BN8,BX8) -> 0.07555555556 | BQ8: =IF(AND($BR$4,BN8<>""),BF8*BN8,"") -> 8.084444444 | BR8: =IF(AND($BR$4,BN8<>""),BN8*BN8,"") -> 0.005708641975 | BS8: =IF(AND($BR$4,BN8<>""),BF8^2*BN8,"") -> 865.0355556 | BT8: =IF(AND($BR$4,BN8<>""),1/BN8+$BQ$48,"") -> 17.314147 | BU8: =IF(AND($BR$4,BN8<>""),1/BT8,"") -> 0.05775623829 | BV8: =IF(AND($BR$4,BN8<>""),BU8*BF8,"") -> 6.179917497 | BW8: =IF(AND($BR$4,BN8<>""),1/BN8+$BR$48,"") -> 19.52921206 | BX8: =IF(AND($BR$4,BN8<>""),1/BW8,"") -> 0.05120534289 | BY8: =IF(AND($BR$4,BN8<>""),BX8*BF8,"") -> 5.478971689 | BZ8: =IF(AND($BH$5,NOT($BP$2),$BH8<>""),BI8,NA()) ->  | CA8: 2 | CB8: =IF(AND($BK$1=1,$BH$2,NOT($BP$2)),BI8,NA()) ->  | CC8: =IF(BH8<>"",BD8,NA()) -> 2 | CD8: =IF(AND($BK$1=1,BH8<>"",$BH$2,$BH$5),SUMPRODUCT($BB$7:BB8,$BN$7:BN8)/SUM($BN$7:BN8),NA()) ->  | CE8: =BD8+$CE$7 -> 2.25 | CF8: =IF($BH$5,IF($BG$4,SQRT(1/SUM($BN$7:BN8))/$I$5,SQRT(1/SUM($BN$7:BN8))),"") -> 0.2 | CG8: =IF(BH8<>"",NORMSINV((100+$M$2)/200)*CF8,0) -> 0.3919927969 | CO8: 0.7333333333 | CR8: 6 | CY8: 0.7333333333 | DB8: 1 | DC8: =IF(DB8=0,NA(),SUM($DB$3:DB8)) -> 6
E9: 3 | F9: study 3 | G9: 97 | H9: 15 | J9: -0.2 | K9: 9 | M9: 0.1111111111 | O9: 0.6533213282 | Q9: 3.169014085 | S9: 0.00479 | Z9: 0.00479 | AA9: [ | AB9: -0.8533213282 | AC9: , | AD9: 0.4533213282 | AE9: ] | AF9: 3 | AX9: 25 | AY9: 0.6533213282 | AZ9: -0.2 | BA9: 9.799819923 | BB9: -0.2 | BC9: -0.2 | BD9: 3 | BE9: TRUE | BF9: 97 | BG9: 9 | BH9: -0.6 | BJ9: 3 | BK9: 0.6533213282 | BL9: 1800 | BM9: 8 | BN9: 0.04 | BO9: 0.04 | BQ9: 3.88 | BR9: 0.0016 | BS9: 376.36 | BT9: 29.07885288 | BU9: 0.03438925201 | BV9: 3.335757445 | BW9: 31.29391794 | BX9: 0.03195509114 | BY9: 3.09964384 | CA9: 3 | CB9: =IF(AND($BK$1=1,$BH$2,NOT($BP$2)),BI9,NA()) ->  | CC9: 3 | CD9: =IF(AND($BK$1=1,BH9<>"",$BH$2,$BH$5),SUMPRODUCT($BB$7:BB9,$BN$7:BN9)/SUM($BN$7:BN9),NA()) ->  | CE9: 3.25 | CF9: =IF($BH$5,IF($BG$4,SQRT(1/SUM($BN$7:BN9))/$I$5,SQRT(1/SUM($BN$7:BN9))),"") -> 0.1714985851 | CG9: 0.3361310503 | CL9: 0.4 | CR9: 7 | CV9: 0.4 | DB9: 1 | DC9: =IF(DB9=0,NA(),SUM($DB$3:DB9)) -> 7
E10: 4 | F10: study 4 | G10: 117 | H10: 15 | J10: 1.133333333 | K10: 10 | M10: 0.1 | O10: 0.6197950323 | Q10: 3.521126761 | S10: 0.00479 | Z10: 0.00479 | AA10: [ | AB10: 0.513538301 | AC10: , | AD10: 1.753128366 | AE10: ] | AF10: 4 | AX10: 22.5 | AY10: 0.6197950323 | AZ10: 1.133333333 | BA10: 9.296925485 | BB10: 1.133333333 | BC10: 1.133333333 | BD10: 4 | BE10: TRUE | BF10: 117 | BG10: 10 | BH10: 3.583914682 | BJ10: 4 | BK10: 0.6197950323 | BL10: 2025 | BM10: 9 | BN10: 0.04444444444 | BO10: 0.04444444444 | BQ10: 5.2 | BR10: 0.001975308642 | BS10: 608.4 | BT10: 26.57885288 | BU10: 0.03762389613 | BV10: 4.401995847 | BW10: 28.79391794 | BX10: 0.0347295565 | BY10: 4.06335811 | CA10: 4 | CC10: 4 | CD10: =IF(AND($BK$1=1,BH10<>"",$BH$2,$BH$5),SUMPRODUCT($BB$7:BB10,$BN$7:BN10)/SUM($BN$7:BN10),NA()) ->  | CE10: 4.25 | CF10: =IF($BH$5,IF($BG$4,SQRT(1/SUM($BN$7:BN10))/$I$5,SQRT(1/SUM($BN$7:BN10))),"") -> 0.1507556723 | CG10: 0.2954756882 | CQ10: 0.6666666667 | CR10: 8 | DA10: 0.6666666667 | DB10: 1 | DC10: =IF(DB10=0,NA(),SUM($DB$3:DB10)) -> 8
E11: 5 | F11: study 5 | G11: 104 | H11: 15 | J11: 0.2666666667 | K11: 14 | M11: 0.07142857143 | O11: 0.5238224086 | Q11: 4.929577465 | S11: 0.00479 | Z11: 0.00479 | AA11: [ | AB11: -0.2571557419 | AC11: , | AD11: 0.7904890753 | AE11: ] | AF11: 5 | AX11: 16.07142857 | AY11: 0.5238224086 | AZ11: 0.2666666667 | BA11: 7.857336129 | BB11: 0.2666666667 | BC11: 0.2666666667 | BD11: 5 | BE11: TRUE | BF11: 104 | BG11: 14 | BH11: 0.9977753031 | BJ11: 5 | BK11: 0.5238224086 | BL11: 2925 | BM11: 13 | BN11: 0.06222222222 | BO11: 0.06222222222 | BQ11: 6.471111111 | BR11: 0.003871604938 | BS11: 672.9955556 | BT11: 20.15028145 | BU11: 0.04962709837 | BV11: 5.161218231 | BW11: 22.36534652 | BX11: 0.04471202802 | BY11: 4.650050914 | CA11: 5 | CC11: 5 | CD11: =IF(AND($BK$1=1,BH11<>"",$BH$2,$BH$5),SUMPRODUCT($BB$7:BB11,$BN$7:BN11)/SUM($BN$7:BN11),NA()) ->  | CE11: 5.25 | CF11: =IF($BH$5,IF($BG$4,SQRT(1/SUM($BN$7:BN11))/$I$5,SQRT(1/SUM($BN$7:BN11))),"") -> 0.1313064329 | CG11: 0.2573558793 | CQ11: 0.6 | CR11: 9 | DA11: 0.6 | DB11: 1 | DC11: =IF(DB11=0,NA(),SUM($DB$3:DB11)) -> 9
E12: 6 | F12: study 6 | G12: 111 | H12: 15 | J12: 0.7333333333 | K12: 15 | M12: 0.06666666667 | O12: 0.5060605248 | Q12: 5.281690141 | S12: 0.00479 | Z12: 0.00479 | AA12: [ | AB12: 0.2272728086 | AC12: , | AD12: 1.239393858 | AE12: ] | AF12: 6 | AX12: 15 | AY12: 0.5060605248 | AZ12: 0.7333333333 | BA12: 7.590907871 | BB12: 0.7333333333 | BC12: 0.7333333333 | BD12: 6 | BE12: TRUE | BF12: 111 | BG12: 15 | BH12: 2.840187787 | BJ12: 6 | BK12: 0.5060605248 | BL12: 3150 | BM12: 14 | BN12: 0.06666666667 | BO12: 0.06666666667 | BQ12: 7.4 | BR12: 0.004444444444 | BS12: 821.4 | BT12: 19.07885288 | BU12: 0.05241405268 | BV12: 5.817959847 | BW12: 21.29391794 | BX12: 0.04696176639 | BY12: 5.212756069 | CA12: 6 | CC12: 6 | CD12: =IF(AND($BK$1=1,BH12<>"",$BH$2,$BH$5),SUMPRODUCT($BB$7:BB12,$BN$7:BN12)/SUM($BN$7:BN12),NA()) ->  | CE12: 6.25 | CF12: =IF($BH$5,IF($BG$4,SQRT(1/SUM($BN$7:BN12))/$I$5,SQRT(1/SUM($BN$7:BN12))),"") -> 0.1170411472 | CG12: 0.2293964332 | CO12: 1 | CR12: 10 | CY12: 1 | DB12: 1 | DC12: =IF(DB12=0,NA(),SUM($DB$3:DB12)) -> 10
E13: 7 | F13: study 7 | G13: 106 | H13: 15 | J13: 0.4 | K13: 6 | M13: 0.1666666667 | O13: 0.8001519461 | Q13: 2.112676056 | S13: 0.00479 | Z13: 0.00479 | AA13: [ | AB13: -0.4001519461 | AC13: , | AD13: 1.200151946 | AE13: ] | AF13: 7 | AX13: 37.5 | AY13: 0.8001519461 | AZ13: 0.4 | BA13: 12.00227919 | BB13: 0.4 | BC13: 0.4 | BD13: 7 | BE13: TRUE | BF13: 106 | BG13: 6 | BH13: 0.9797958971 | BJ13: 7 | BK13: 0.8001519461 | BL13: 1125 | BM13: 5 | BN13: 0.02666666667 | BO13: 0.02666666667 | BQ13: 2.826666667 | BR13: 0.0007111111111 | BS13: 299.6266667 | BT13: 41.57885288 | BU13: 0.02405068756 | BV13: 2.549372882 | BW13: 43.79391794 | BX13: 0.02283422098 | BY13: 2.420427424 | CA13: 7 | CC13: 7 | CD13: =IF(AND($BK$1=1,BH13<>"",$BH$2,$BH$5),SUMPRODUCT($BB$7:BB13,$BN$7:BN13)/SUM($BN$7:BN13),NA()) ->  | CE13: 7.25 | CF13: =IF($BH$5,IF($BG$4,SQRT(1/SUM($BN$7:BN13))/$I$5,SQRT(1/SUM($BN$7:BN13))),"") -> 0.1125087901 | CG13: 0.2205131765 | CP13: 0.6 | CR13: 11 | CZ13: 0.6 | DB13: 1 | DC13: =IF(DB13=0,NA(),SUM($DB$3:DB13)) -> 11
E14: 8 | F14: study 8 | G14: 110 | H14: 15 | J14: 0.6666666667 | K14: 21 | M14: 0.04761904762 | O14: 0.4276992056 | Q14: 7.394366197 | S14: 0.00479 | Z14: 0.00479 | AA14: [ | AB14: 0.238967461 | AC14: , | AD14: 1.094365872 | AE14: ] | AF14: 8 | AX14: 10.71428571 | AY14: 0.4276992056 | AZ14: 0.6666666667 | BA14: 6.415488085 | BB14: 0.6666666667 | BC14: 0.6666666667 | BD14: 8 | BE14: TRUE | BF14: 110 | BG14: 21 | BH14: 3.055050463 | BJ14: 8 | BK14: 0.4276992056 | BL14: 4500 | BM14: 20 | BN14: 0.09333333333 | BO14: 0.09333333333 | BQ14: 10.26666667 | BR14: 0.008711111111 | BS14: 1129.333333 | BT14: 14.7931386 | BU14: 0.06759890698 | BV14: 7.435879768 | BW14: 17.00820366 | BX14: 0.05879515674 | BY14: 6.467467241 | CA14: 8 | CC14: 8 | CD14: =IF(AND($BK$1=1,BH14<>"",$BH$2,$BH$5),SUMPRODUCT($BB$7:BB14,$BN$7:BN14)/SUM($BN$7:BN14),NA()) ->  | CE14: 8.25 | CF14: =IF($BH$5,IF($BG$4,SQRT(1/SUM($BN$7:BN14))/$I$5,SQRT(1/SUM($BN$7:BN14))),"") -> 0.1 | CG14: 0.1959963985 | CP14: 0.8 | CR14: 12 | CZ14: 0.8 | DB14: 1 | DC14: =IF(DB14=0,NA(),SUM($DB$3:DB14)) -> 12
E15: 9 | F15: study 9 | G15: 109 | H15: 15 | J15: 0.6 | K15: 20 | M15: 0.05 | O15: 0.4382612703 | Q15: 7.042253521 | S15: 0.00479 | Z15: 0.00479 | AA15: [ | AB15: 0.1617387297 | AC15: , | AD15: 1.03826127 | AE15: ] | AF15: 9 | AX15: 11.25 | AY15: 0.4382612703 | AZ15: 0.6 | BA15: 6.573919054 | BB15: 0.6 | BC15: 0.6 | BD15: 9 | BE15: TRUE | BF15: 109 | BG15: 20 | BH15: 2.683281573 | BJ15: 9 | BK15: 0.4382612703 | BL15: 4275 | BM15: 19 | BN15: 0.08888888889 | BO15: 0.08888888889 | BQ15: 9.688888889 | BR15: 0.007901234568 | BS15: 1056.088889 | BT15: 15.32885288 | BU15: 0.06523645361 | BV15: 7.110773444 | BW15: 17.54391794 | BX15: 0.0569998106 | BY15: 6.212979355 | CA15: 9 | CC15: 9 | CD15: =IF(AND($BK$1=1,BH15<>"",$BH$2,$BH$5),SUMPRODUCT($BB$7:BB15,$BN$7:BN15)/SUM($BN$7:BN15),NA()) ->  | CE15: 9.25 | CF15: =IF($BH$5,IF($BG$4,SQRT(1/SUM($BN$7:BN15))/$I$5,SQRT(1/SUM($BN$7:BN15))),"") -> 0.09128709292 | CG15: 0.1789194144 | CL15: 0.06666666667 | CR15: 13 | CV15: 0.06666666667 | DB15: 1 | DC15: =IF(DB15=0,NA(),SUM($DB$3:DB15)) -> 13
E16: 10 | F16: study 10 | G16: 115 | H16: 15 | J16: 1 | K16: 14 | M16: 0.07142857143 | O16: 0.5238224086 | Q16: 4.929577465 | S16: 0.00479 | Z16: 0.00479 | AA16: [ | AB16: 0.4761775914 | AC16: , | AD16: 1.523822409 | AE16: ] | AF16: 10 | AX16: 16.07142857 | AY16: 0.5238224086 | AZ16: 1 | BA16: 7.857336129 | BB16: 1 | BC16: 1 | BD16: 10 | BE16: TRUE | BF16: 115 | BG16: 14 | BH16: 3.741657387 | BJ16: 10 | BK16: 0.5238224086 | BL16: 2925 | BM16: 13 | BN16: 0.06222222222 | BO16: 0.06222222222 | BQ16: 7.155555556 | BR16: 0.003871604938 | BS16: 822.8888889 | BT16: 20.15028145 | BU16: 0.04962709837 | BV16: 5.707116313 | BW16: 22.36534652 | BX16: 0.04471202802 | BY16: 5.141883222 | CA16: 10 | CC16: 10 | CD16: =IF(AND($BK$1=1,BH16<>"",$BH$2,$BH$5),SUMPRODUCT($BB$7:BB16,$BN$7:BN16)/SUM($BN$7:BN16),NA()) ->  | CE16: 10.25 | CF16: =IF($BH$5,IF($BG$4,SQRT(1/SUM($BN$7:BN16))/$I$5,SQRT(1/SUM($BN$7:BN16))),"") -> 0.08638684256 | CG16: 0.1693151002 | CN16: 1.066666667 | CR16: 14 | CX16: 1.066666667 | DB16: 1 | DC16: =IF(DB16=0,NA(),SUM($DB$3:DB16)) -> 14
E17: 11 | F17: study 11 | G17: 109 | H17: 15 | J17: 0.6 | K17: 16 | M17: 0.0625 | O17: 0.4899909961 | Q17: 5.633802817 | S17: 0.00479 | Z17: 0.00479 | AA17: [ | AB17: 0.1100090039 | AC17: , | AD17: 1.089990996 | AE17: ] | AF17: 11 | AX17: 14.0625 | AY17: 0.4899909961 | AZ17: 0.6 | BA17: 7.349864942 | BB17: 0.6 | BC17: 0.6 | BD17: 11 | BE17: TRUE | BF17: 109 | BG17: 16 | BH17: 2.4 | BJ17: 11 | BK17: 0.4899909961 | BL17: 3375 | BM17: 15 | BN17: 0.07111111111 | BO17: 0.07111111111 | BQ17: 7.751111111 | BR17: 0.005056790123 | BS17: 844.8711111 | BT17: 18.14135288 | BU17: 0.05512268057 | BV17: 6.008372182 | BW17: 20.35641794 | BX17: 0.04912455633 | BY17: 5.35457664 | CA17: 11 | CC17: 11 | CD17: =IF(AND($BK$1=1,BH17<>"",$BH$2,$BH$5),SUMPRODUCT($BB$7:BB17,$BN$7:BN17)/SUM($BN$7:BN17),NA()) ->  | CE17: 11.25 | CF17: =IF($BH$5,IF($BG$4,SQRT(1/SUM($BN$7:BN17))/$I$5,SQRT(1/SUM($BN$7:BN17))),"") -> 0.08164965809 | CG17: 0.1600303892 | CQ17: 0.6 | CR17: 15 | DA17: 0.6 | DB17: 1 | DC17: =IF(DB17=0,NA(),SUM($DB$3:DB17)) -> 15
E18: 12 | F18: study 12 | G18: 112 | H18: 15 | J18: 0.8 | K18: 18 | M18: 0.05555555556 | O18: 0.4619679414 | Q18: 6.338028169 | S18: 0.00479 | Z18: 0.00479 | AA18: [ | AB18: 0.3380320586 | AC18: , | AD18: 1.261967941 | AE18: ] | AF18: 12 | AX18: 12.5 | AY18: 0.4619679414 | AZ18: 0.8 | BA18: 6.929519122 | BB18: 0.8 | BC18: 0.8 | BD18: 12 | BE18: TRUE | BF18: 112 | BG18: 18 | BH18: 3.39411255 | BJ18: 12 | BK18: 0.4619679414 | BL18: 3825 | BM18: 17 | BN18: 0.08 | BO18: 0.08 | BQ18: 8.96 | BR18: 0.0064 | BS18: 1003.52 | BT18: 16.57885288 | BU18: 0.06031780408 | BV18: 6.755594057 | BW18: 18.79391794 | BX18: 0.0532087031 | BY18: 5.959374747 | CA18: 12 | CC18: 12 | CD18: =IF(AND($BK$1=1,BH18<>"",$BH$2,$BH$5),SUMPRODUCT($BB$7:BB18,$BN$7:BN18)/SUM($BN$7:BN18),NA()) ->  | CE18: 12.25 | CF18: =IF($BH$5,IF($BG$4,SQRT(1/SUM($BN$7:BN18))/$I$5,SQRT(1/SUM($BN$7:BN18))),"") -> 0.07715167498 | CG18: 0.1512145043 | CO18: 0.8 | CR18: 16 | CY18: 0.8 | DB18: 1 | DC18: =IF(DB18=0,NA(),SUM($DB$3:DB18)) -> 16
E19: 13 | F19: study 13 | G19: 101 | H19: 15 | J19: 0.06666666667 | K19: 6 | M19: 0.1666666667 | O19: 0.8001519461 | Q19: 2.112676056 | S19: 0.00479 | Z19: 0.00479 | AA19: [ | AB19: -0.7334852794 | AC19: , | AD19: 0.8668186127 | AE19: ] | AF19: 13 | AX19: 37.5 | AY19: 0.8001519461 | AZ19: 0.06666666667 | BA19: 12.00227919 | BB19: 0.06666666667 | BC19: 0.06666666667 | BD19: 13 | BE19: TRUE | BF19: 101 | BG19: 6 | BH19: 0.1632993162 | BJ19: 13 | BK19: 0.8001519461 | BL19: 1125 | BM19: 5 | BN19: 0.02666666667 | BO19: 0.02666666667 | BQ19: 2.693333333 | BR19: 0.0007111111111 | BS19: 272.0266667 | BT19: 41.57885288 | BU19: 0.02405068756 | BV19: 2.429119444 | BW19: 43.79391794 | BX19: 0.02283422098 | BY19: 2.306256319 | CA19: 13 | CC19: 13 | CD19: =IF(AND($BK$1=1,BH19<>"",$BH$2,$BH$5),SUMPRODUCT($BB$7:BB19,$BN$7:BN19)/SUM($BN$7:BN19),NA()) ->  | CE19: 13.25 | CF19: =IF($BH$5,IF($BG$4,SQRT(1/SUM($BN$7:BN19))/$I$5,SQRT(1/SUM($BN$7:BN19))),"") -> 0.07580980436 | CG19: 0.1485844862 | CQ19: 0.9333333333 | CR19: 17 | DA19: 0.9333333333 | DB19: 1 | DC19: =IF(DB19=0,NA(),SUM($DB$3:DB19)) -> 17
E20: 14 | F20: study 14 | G20: 116 | H20: 15 | J20: 1.066666667 | K20: 11 | M20: 0.09090909091 | O20: 0.5909513763 | Q20: 3.873239437 | S20: 0.00479 | Z20: 0.00479 | AA20: [ | AB20: 0.4757152904 | AC20: , | AD20: 1.657618043 | AE20: ] | AF20: 14 | AX20: 20.45454545 | AY20: 0.5909513763 | AZ20: 1.066666667 | BA20: 8.864270645 | BB20: 1.066666667 | BC20: 1.066666667 | BD20: 14 | BE20: TRUE | BF20: 116 | BG20: 11 | BH20: 3.53773311 | BJ20: 14 | BK20: 0.5909513763 | BL20: 2250 | BM20: 10 | BN20: 0.04888888889 | BO20: 0.04888888889 | BQ20: 5.671111111 | BR20: 0.002390123457 | BS20: 657.8488889 | BT20: 24.53339834 | BU20: 0.04076076156 | BV20: 4.728248341 | BW20: 26.7484634 | BX20: 0.0373853251 | BY20: 4.336697711 | CA20: 14 | CC20: 14 | CD20: =IF(AND($BK$1=1,BH20<>"",$BH$2,$BH$5),SUMPRODUCT($BB$7:BB20,$BN$7:BN20)/SUM($BN$7:BN20),NA()) ->  | CE20: 14.25 | CF20: =IF($BH$5,IF($BG$4,SQRT(1/SUM($BN$7:BN20))/$I$5,SQRT(1/SUM($BN$7:BN20))),"") -> 0.07352146221 | CG20: 0.144099418 | CM20: 0.4666666667 | CR20: 18 | CW20: 0.4666666667 | DB20: 1 | DC20: =IF(DB20=0,NA(),SUM($DB$3:DB20)) -> 18
E21: 15 | F21: study 15 | G21: 109 | H21: 15 | J21: 0.6 | K21: 19 | M21: 0.05263157895 | O21: 0.4496465759 | Q21: 6.690140845 | S21: 0.00479 | Z21: 0.00479 | AA21: [ | AB21: 0.1503534241 | AC21: , | AD21: 1.049646576 | AE21: ] | AF21: 15 | AX21: 11.84210526 | AY21: 0.4496465759 | AZ21: 0.6 | BA21: 6.744698638 | BB21: 0.6 | BC21: 0.6 | BD21: 15 | BE21: TRUE | BF21: 109 | BG21: 19 | BH21: 2.615339366 | BJ21: 15 | BK21: 0.4496465759 | BL21: 4050 | BM21: 18 | BN21: 0.08444444444 | BO21: 0.08444444444 | BQ21: 9.204444444 | BR21: 0.007130864198 | BS21: 1003.284444 | BT21: 15.92095815 | BU21: 0.06281029011 | BV21: 6.846321622 | BW21: 18.13602321 | BX21: 0.0551388796 | BY21: 6.010137876 | CA21: 15 | CC21: 15 | CD21: =IF(AND($BK$1=1,BH21<>"",$BH$2,$BH$5),SUMPRODUCT($BB$7:BB21,$BN$7:BN21)/SUM($BN$7:BN21),NA()) ->  | CE21: 15.25 | CF21: =IF($BH$5,IF($BG$4,SQRT(1/SUM($BN$7:BN21))/$I$5,SQRT(1/SUM($BN$7:BN21))),"") -> 0.0700140042 | CG21: 0.1372249266 | CL21: 0.2 | CR21: 19 | CV21: 0.2 | DB21: 1 | DC21: =IF(DB21=0,NA(),SUM($DB$3:DB21)) -> 19
E22: 16 | F22: study 16 | G22: 112 | H22: 15 | J22: 0.8 | K22: 13 | M22: 0.07692307692 | O22: 0.5435962034 | Q22: 4.577464789 | S22: 0.00479 | Z22: 0.00479 | AA22: [ | AB22: 0.2564037966 | AC22: , | AD22: 1.343596203 | AE22: ] | AF22: 16 | AX22: 17.30769231 | AY22: 0.5435962034 | AZ22: 0.8 | BA22: 8.153943051 | BB22: 0.8 | BC22: 0.8 | BD22: 16 | BE22: TRUE | BF22: 112 | BG22: 13 | BH22: 2.88444102 | BJ22: 16 | BK22: 0.5435962034 | BL22: 2700 | BM22: 12 | BN22: 0.05777777778 | BO22: 0.05777777778 | BQ22: 6.471111111 | BR22: 0.003338271605 | BS22: 724.7644444 | BT22: 21.38654519 | BU22: 0.04675837033 | BV22: 5.236937476 | BW22: 23.60161025 | BX22: 0.04236999041 | BY22: 4.745438926 | CA22: 16 | CC22: 16 | CD22: =IF(AND($BK$1=1,BH22<>"",$BH$2,$BH$5),SUMPRODUCT($BB$7:BB22,$BN$7:BN22)/SUM($BN$7:BN22),NA()) ->  | CE22: 16.25 | CF22: =IF($BH$5,IF($BG$4,SQRT(1/SUM($BN$7:BN22))/$I$5,SQRT(1/SUM($BN$7:BN22))),"") -> 0.06788442333 | CG22: 0.1330510248 | CO22: 0.9333333333 | CR22: 20 | CY22: 0.9333333333 | DB22: 1 | DC22: =IF(DB22=0,NA(),SUM($DB$3:DB22)) -> 20
E23: 17 | F23: study 17 | G23: 114 | H23: 15 | J23: 0.9333333333 | K23: 19 | M23: 0.05263157895 | O23: 0.4496465759 | Q23: 6.690140845 | S23: 0.00479 | Z23: 0.00479 | AA23: [ | AB23: 0.4836867575 | AC23: , | AD23: 1.382979909 | AE23: ] | AF23: 17 | AX23: 11.84210526 | AY23: 0.4496465759 | AZ23: 0.9333333333 | BA23: 6.744698638 | BB23: 0.9333333333 | BC23: 0.9333333333 | BD23: 17 | BE23: TRUE | BF23: 114 | BG23: 19 | BH23: 4.068305681 | BJ23: 17 | BK23: 0.4496465759 | BL23: 4050 | BM23: 18 | BN23: 0.08444444444 | BO23: 0.08444444444 | BQ23: 9.626666667 | BR23: 0.007130864198 | BS23: 1097.44 | BT23: 15.92095815 | BU23: 0.06281029011 | BV23: 7.160373073 | BW23: 18.13602321 | BX23: 0.0551388796 | BY23: 6.285832274 | CA23: 17 | CC23: 17 | CD23: =IF(AND($BK$1=1,BH23<>"",$BH$2,$BH$5),SUMPRODUCT($BB$7:BB23,$BN$7:BN23)/SUM($BN$7:BN23),NA()) ->  | CE23: 17.25 | CF23: =IF($BH$5,IF($BG$4,SQRT(1/SUM($BN$7:BN23))/$I$5,SQRT(1/SUM($BN$7:BN23))),"") -> 0.06509445549 | CG23: 0.1275827884 | CR23: 21 | DB23: 0 | DC23: =IF(DB23=0,NA(),SUM($DB$3:DB23)) -> 
E24: 18 | F24: study 18 | G24: 107 | H24: 15 | J24: 0.4666666667 | K24: 7 | M24: 0.1428571429 | O24: 0.7407967545 | Q24: 2.464788732 | S24: 0.00479 | Z24: 0.00479 | AA24: [ | AB24: -0.2741300879 | AC24: , | AD24: 1.207463421 | AE24: ] | AF24: 18 | AX24: 32.14285714 | AY24: 0.7407967545 | AZ24: 0.4666666667 | BA24: 11.11195132 | BB24: 0.4666666667 | BC24: 0.4666666667 | BD24: 18 | BE24: TRUE | BF24: 107 | BG24: 7 | BH24: 1.234683945 | BJ24: 18 | BK24: 0.7407967545 | BL24: 1350 | BM24: 6 | BN24: 0.03111111111 | BO24: 0.03111111111 | BQ24: 3.328888889 | BR24: 0.0009679012346 | BS24: 356.1911111 | BT24: 36.22171003 | BU24: 0.02760775235 | BV24: 2.954029501 | BW24: 38.43677509 | BX24: 0.02601675083 | BY24: 2.783792338 | CA24: 18 | CC24: 18 | CD24: =IF(AND($BK$1=1,BH24<>"",$BH$2,$BH$5),SUMPRODUCT($BB$7:BB24,$BN$7:BN24)/SUM($BN$7:BN24),NA()) ->  | CE24: 18.25 | CF24: =IF($BH$5,IF($BG$4,SQRT(1/SUM($BN$7:BN24))/$I$5,SQRT(1/SUM($BN$7:BN24))),"") -> 0.06415002991 | CG24: 0.1257317482 | CR24: 22 | DB24: 0 | DC24: =IF(DB24=0,NA(),SUM($DB$3:DB24)) -> 
E25: 19 | F25: study 19 | G25: 103 | H25: 15 | J25: 0.2 | K25: 6 | M25: 0.1666666667 | O25: 0.8001519461 | Q25: 2.112676056 | S25: 0.00479 | Z25: 0.00479 | AA25: [ | AB25: -0.6001519461 | AC25: , | AD25: 1.000151946 | AE25: ] | AF25: 19 | AX25: 37.5 | AY25: 0.8001519461 | AZ25: 0.2 | BA25: 12.00227919 | BB25: 0.2 | BC25: 0.2 | BD25: 19 | BE25: TRUE | BF25: 103 | BG25: 6 | BH25: 0.4898979486 | BJ25: 19 | BK25: 0.8001519461 | BL25: 1125 | BM25: 5 | BN25: 0.02666666667 | BO25: 0.02666666667 | BQ25: 2.746666667 | BR25: 0.0007111111111 | BS25: 282.9066667 | BT25: 41.57885288 | BU25: 0.02405068756 | BV25: 2.477220819 | BW25: 43.79391794 | BX25: 0.02283422098 | BY25: 2.351924761 | CA25: 19 | CC25: 19 | CD25: =IF(AND($BK$1=1,BH25<>"",$BH$2,$BH$5),SUMPRODUCT($BB$7:BB25,$BN$7:BN25)/SUM($BN$7:BN25),NA()) ->  | CE25: 19.25 | CF25: =IF($BH$5,IF($BG$4,SQRT(1/SUM($BN$7:BN25))/$I$5,SQRT(1/SUM($BN$7:BN25))),"") -> 0.06337242505 | CG25: 0.1242076707 | CR25: 23 | DB25: 0 | DC25: =IF(DB25=0,NA(),SUM($DB$3:DB25)) -> 
E26: 20 | F26: study 20 | G26: 114 | H26: 15 | J26: 0.9333333333 | K26: 15 | M26: 0.06666666667 | O26: 0.5060605248 | Q26: 5.281690141 | S26: 0.00479 | Z26: 0.00479 | AA26: [ | AB26: 0.4272728086 | AC26: , | AD26: 1.439393858 | AE26: ] | AF26: 20 | AX26: 15 | AY26: 0.5060605248 | AZ26: 0.9333333333 | BA26: 7.590907871 | BB26: 0.9333333333 | BC26: 0.9333333333 | BD26: 20 | BE26: TRUE | BF26: 114 | BG26: 15 | BH26: 3.614784456 | BJ26: 20 | BK26: 0.5060605248 | BL26: 3150 | BM26: 14 | BN26: 0.06666666667 | BO26: 0.06666666667 | BQ26: 7.6 | BR26: 0.004444444444 | BS26: 866.4 | BT26: 19.07885288 | BU26: 0.05241405268 | BV26: 5.975202005 | BW26: 21.29391794 | BX26: 0.04696176639 | BY26: 5.353641368 | CA26: 20 | CC26: 20 | CD26: =IF(AND($BK$1=1,BH26<>"",$BH$2,$BH$5),SUMPRODUCT($BB$7:BB26,$BN$7:BN26)/SUM($BN$7:BN26),NA()) ->  | CE26: 20.25 | CF26: =IF($BH$5,IF($BG$4,SQRT(1/SUM($BN$7:BN26))/$I$5,SQRT(1/SUM($BN$7:BN26))),"") -> 0.06154574549 | CG26: 0.1206274446 | CR26: 24 | DB26: 0 | DC26: =IF(DB26=0,NA(),SUM($DB$3:DB26)) -> 
E27: 21 | F27: study 21 | S27: 0.00479 | Z27: 0.00479 | AA27: [ | AC27: , | AE27: ] | AF27: 21 | BD27: 21 | BE27: TRUE | CD27: =IF(AND($BK$1=1,BH27<>"",$BH$2,$BH$5),SUMPRODUCT($BB$7:BB27,$BN$7:BN27)/SUM($BN$7:BN27),NA()) ->  | CE27: 21.25 | CF27: =IF($BH$5,IF($BG$4,SQRT(1/SUM($BN$7:BN27))/$I$5,SQRT(1/SUM($BN$7:BN27))),"") -> 0.06154574549 | CG27: 0 | CR27: 25 | DB27: 0 | DC27: =IF(DB27=0,NA(),SUM($DB$3:DB27)) -> 
E28: 22 | F28: study 22 | S28: 0.00479 | Z28: 0.00479 | AA28: [ | AC28: , | AE28: ] | AF28: 22 | BD28: 22 | BE28: TRUE | CD28: =IF(AND($BK$1=1,BH28<>"",$BH$2,$BH$5),SUMPRODUCT($BB$7:BB28,$BN$7:BN28)/SUM($BN$7:BN28),NA()) ->  | CE28: 22.25 | CF28: =IF($BH$5,IF($BG$4,SQRT(1/SUM($BN$7:BN28))/$I$5,SQRT(1/SUM($BN$7:BN28))),"") -> 0.06154574549 | CG28: 0 | CR28: 26 | DB28: 0 | DC28: =IF(DB28=0,NA(),SUM($DB$3:DB28)) -> 
E29: 23 | F29: study 23 | S29: 0.00479 | Z29: 0.00479 | AA29: [ | AC29: , | AE29: ] | AF29: 23 | BD29: 23 | BE29: TRUE | CD29: =IF(AND($BK$1=1,BH29<>"",$BH$2,$BH$5),SUMPRODUCT($BB$7:BB29,$BN$7:BN29)/SUM($BN$7:BN29),NA()) ->  | CE29: 23.25 | CF29: =IF($BH$5,IF($BG$4,SQRT(1/SUM($BN$7:BN29))/$I$5,SQRT(1/SUM($BN$7:BN29))),"") -> 0.06154574549 | CG29: 0 | CR29: 27 | DB29: 0 | DC29: =IF(DB29=0,NA(),SUM($DB$3:DB29)) -> 
E30: 24 | F30: study 24 | S30: 0.00479 | Z30: 0.00479 | AA30: [ | AC30: , | AE30: ] | AF30: 24 | BD30: 24 | BE30: TRUE | CD30: =IF(AND($BK$1=1,BH30<>"",$BH$2,$BH$5),SUMPRODUCT($BB$7:BB30,$BN$7:BN30)/SUM($BN$7:BN30),NA()) ->  | CE30: 24.25 | CF30: =IF($BH$5,IF($BG$4,SQRT(1/SUM($BN$7:BN30))/$I$5,SQRT(1/SUM($BN$7:BN30))),"") -> 0.06154574549 | CG30: 0 | CR30: 28 | DB30: 0 | DC30: =IF(DB30=0,NA(),SUM($DB$3:DB30)) -> 
E31: 25 | F31: study 25 | S31: 0.00479 | Z31: 0.00479 | AA31: [ | AC31: , | AE31: ] | AF31: 25 | BD31: 25 | BE31: TRUE | CD31: =IF(AND($BK$1=1,BH31<>"",$BH$2,$BH$5),SUMPRODUCT($BB$7:BB31,$BN$7:BN31)/SUM($BN$7:BN31),NA()) ->  | CE31: 25.25 | CF31: =IF($BH$5,IF($BG$4,SQRT(1/SUM($BN$7:BN31))/$I$5,SQRT(1/SUM($BN$7:BN31))),"") -> 0.06154574549 | CG31: 0 | CR31: 29 | DB31: 0 | DC31: =IF(DB31=0,NA(),SUM($DB$3:DB31)) -> 
E32: 26 | F32: study 26 | S32: 0.00479 | Z32: 0.00479 | AA32: [ | AC32: , | AE32: ] | AF32: 26 | BD32: 26 | BE32: TRUE | CD32: =IF(AND($BK$1=1,BH32<>"",$BH$2,$BH$5),SUMPRODUCT($BB$7:BB32,$BN$7:BN32)/SUM($BN$7:BN32),NA()) ->  | CE32: 26.25 | CF32: =IF($BH$5,IF($BG$4,SQRT(1/SUM($BN$7:BN32))/$I$5,SQRT(1/SUM($BN$7:BN32))),"") -> 0.06154574549 | CG32: 0 | CR32: 30 | DB32: 0 | DC32: =IF(DB32=0,NA(),SUM($DB$3:DB32)) -> 
E33: 27 | F33: study 27 | S33: 0.00479 | Z33: 0.00479 | AA33: [ | AC33: , | AE33: ] | AF33: 27 | BD33: 27 | BE33: TRUE | CD33: =IF(AND($BK$1=1,BH33<>"",$BH$2,$BH$5),SUMPRODUCT($BB$7:BB33,$BN$7:BN33)/SUM($BN$7:BN33),NA()) ->  | CE33: 27.25 | CF33: =IF($BH$5,IF($BG$4,SQRT(1/SUM($BN$7:BN33))/$I$5,SQRT(1/SUM($BN$7:BN33))),"") -> 0.06154574549 | CG33: 0 | CI33: =IF(AND(BO37<=$CB$42,$BP$2),BB40,NA()) ->  | CJ33: =IF(AND(BO37>$CB$42,BO37<=$CB$43,$BP$2),BB40,NA()) ->  | CK33: =IF(AND(BO37>$CB$43,BO37<=$CB$44,$BP$2),BB40,NA()) ->  | CL33: =IF(AND(BO37>$CB$44,BO37<=$CB$45,$BP$2),BB40,NA()) ->  | CM33: =IF(AND(BO37>$CB$45,BO37<=$CB$46,$BP$2),BB40,NA()) ->  | CN33: =IF(AND(BO37>$CB$46,BO37<=$CB$47,$BP$2),BB40,NA()) ->  | CO33: =IF(AND(BO37>$CB$47,BO37<=$CB$48,$BP$2),BB40,NA()) ->  | CP33: =IF(AND(BO37>$CB$48,BO37<=$CB$49,$BP$2),BB40,NA()) ->  | CQ33: =IF(AND(BO37<>"",BO37>$CB$49,$BP$2),BB40,NA()) -> 1.133333333 | CR33: 34 | DC33: =IF(BH5,SUM(DB3:DB32)+2,NA()) -> 22
E34: 28 | F34: study 28 | S34: 0.00479 | Z34: 0.00479 | AA34: [ | AC34: , | AE34: ] | AF34: 28 | BD34: 28 | BE34: TRUE | CD34: =IF(AND($BK$1=1,BH34<>"",$BH$2,$BH$5),SUMPRODUCT($BB$7:BB34,$BN$7:BN34)/SUM($BN$7:BN34),NA()) ->  | CE34: 28.25 | CF34: =IF($BH$5,IF($BG$4,SQRT(1/SUM($BN$7:BN34))/$I$5,SQRT(1/SUM($BN$7:BN34))),"") -> 0.06154574549 | CG34: 0
E35: 29 | F35: study 29 | S35: 0.00479 | Z35: 0.00479 | AA35: [ | AC35: , | AE35: ] | AF35: 29 | BD35: 29 | BE35: TRUE | CD35: =IF(AND($BK$1=1,BH35<>"",$BH$2,$BH$5),SUMPRODUCT($BB$7:BB35,$BN$7:BN35)/SUM($BN$7:BN35),NA()) ->  | CE35: 29.25 | CF35: =IF($BH$5,IF($BG$4,SQRT(1/SUM($BN$7:BN35))/$I$5,SQRT(1/SUM($BN$7:BN35))),"") -> 0.06154574549 | CG35: 0 | CI35: Weighted means, grey
E36: 30 | F36: study 30 | S36: 0.00479 | Z36: 0.00479 | AA36: [ | AC36: , | AE36: ] | AF36: 30 | BD36: 30 | BE36: TRUE | CD36: =IF(AND($BK$1=1,BH36<>"",$BH$2,$BH$5),SUMPRODUCT($BB$7:BB36,$BN$7:BN36)/SUM($BN$7:BN36),NA()) ->  | CE36: 30.25 | CF36: =IF($BH$5,IF($BG$4,SQRT(1/SUM($BN$7:BN36))/$I$5,SQRT(1/SUM($BN$7:BN36))),"") -> 0.06154574549 | CG36: 0 | CI36: =IF(AND($BK$1=1,BN8<=$CB$42,$BH$2,$BP$2),BB8,NA()) ->  | CJ36: =IF(AND($BK$1=1,BN8>$CB$42,BN8<=$CB$43,$BH$2,$BP$2),BB8,NA()) ->  | CK36: =IF(AND($BK$1=1,BN8>$CB$43,BN8<=$CB$44,$BH$2,$BP$2),BB8,NA()) ->  | CL36: =IF(AND($BK$1=1,BN8>$CB$44,BN8<=$CB$45,$BH$2,$BP$2),BB8,NA()) ->  | CM36: =IF(AND($BK$1=1,BN8>$CB$45,BN8<=$CB$46,$BH$2,$BP$2),BB8,NA()) ->  | CN36: =IF(AND($BK$1=1,BN8>$CB$46,BN8<=$CB$47,$BH$2,$BP$2),BB8,NA()) ->  | CO36: =IF(AND($BK$1=1,BN8>$CB$47,BN8<=$CB$48,$BH$2,$BP$2),BB8,NA()) ->  | CP36: =IF(AND($BK$1=1,BN8>$CB$48,BN8<=$CB$49,$BH$2,$BP$2),BB8,NA()) ->  | CQ36: =IF(AND($BK$1=1,BN8<>"",BN8>$CB$49,$BH$2,$BP$2),BB8,NA()) ->  | CR36: 2
E37: 3 | F37: Past research, meta-analyzed | M37: 9 | O37: Result as diamond | S37: =$S$4 -> 0.00479 | Z37: =$S$4 -> 0.00479 | AX37: =IF(BH40<>"",H40*H40/K40,"") -> 11.25 | AZ37: =IF(AND($AZ$4,$BH$5,$BH40<>""),J40,"") -> 1.133333333 | BF37: =IF(AND($BH$5,$BH40<>""),G40,"") -> 117 | BI37: SE of mean | BJ37: =IF($BH$5,SQRT(1/SUM(BN7:BN36)),"") -> 0.9231861823 | BN37: =IF($BH$5,IF(BH40<>"",1/AX37,""),"") -> 0.08888888889 | BO37: =IF(fixedrandom=1,BN37,BX37) -> 0.08888888889 | BP37: =IF($BR$4,SUM(BN7:BN36),"") -> 1.173333333 | BQ37: =IF(AND($BR$4,BN37<>""),BF37*BN37,"") -> 10.4 | BR37: =IF(AND($BR$4,BN37<>""),BN37*BN37,"") -> 0.007901234568 | BS37: =IF(AND($BR$4,BN37<>""),BF37^2*BN37,"") -> 1216.8 | BT37: =IF(AND($BR$4,BN37<>""),1/BN37+$BQ$48,"") -> 15.32885288 | BU37: =IF(AND($BR$4,BN37<>""),1/BT37,"") -> 0.06523645361 | BV37: =IF(AND($BR$4,BN37<>""),BU37*BF37,"") -> 7.632665072 | BW37: =IF(AND($BR$4,BN37<>""),1/BN37+$BR$48,"") -> 17.54391794 | BX37: =IF(AND($BR$4,BN37<>""),1/BW37,"") -> 0.0569998106 | BY37: =IF(AND($BR$4,BN37<>""),BX37*BF37,"") -> 6.66897784 | CA37: 22 | CR37: 3
B38: =IF(AND($BH$5,$BJ$4,$BH$1,BH38<>"",$W$1<>""), IF(fixedrandom=1,BH38,BQ57),"") ->  | C38: =IF(B38<>"",2*(1-NORMSDIST(ABS(B38))),"") ->  | D38: =IF(B38<>"",IF(C38<0.001,"***",(IF(C38<0.01,"**",(IF(C38<0.05,"*",(IF(C38<0.1,"?","ns"))))))),"") ->  | F38: =IF(BH5,IF(fixedrandom=1,"Fixed effect ","Random effects "),"") -> Fixed effect | G38: =IF(AND($BH$5,$BR$2),IF(fixedrandom=1,SUMPRODUCT(BF7:BF36,BN7:BN36)/SUM(BN7:BN36),BQ50),"") -> 110.0416667 | H38: =IF(AND(G38<>"",K38<>""),$I$5,"") -> 15 | J38: 0.6694444444 | K38: =IF(AND($BH$5,$BR$2),SUM(BG7:BG36),"") -> 264 | M38: =IF(AND($BH$5,$BR$2),IF(fixedrandom=1,IF($BG$4,BJ37^2/($I$5^2),BJ37^2),IF($BG$4,BQ51/($I$5^2),BQ51)),"") -> 0.003787878788 | O38: =IF(BH38<>"",IF($BG$4,IF(AND($BH$1,$I$5<>"",$I$5<>0),BK38,""),BK38),"") -> 0.1206274446 | S38: 0.00479 | Z38: 0.00479 | AA38: [ | AB38: =IF(BH38<>"",BB38-O38,"") -> 0.5488169999 | AC38: , | AD38: =IF(BH38<>"",BB38+O38,"") -> 0.790071889 | AE38: ] | AY38: =IF(AND($AZ$4,BH38<>""),NORMSINV((100+$M$2)/200)/SQRT(K38),"") -> 0.1206274446 | AZ38: =IF(AND($AZ$4,$BH$5,K38>1,G38<>""),J38,"") -> 0.6694444444 | BA38: =IF(BH38<>"",H38*NORMSINV((100+$M$2)/200)/SQRT(K38),"") -> 1.809411668 | BB38: 0.6694444444 | BC38: 0.6694444444 | BF38: =IF(AND(K38>1,G38<>""),G38,"") -> 110.0416667 | BG38: =IF($BH38<>"",K38,"") -> 264 | BH38: =IF(AND(K38>1,G38<>""),IF($BG$4,$I$5*(BB38-$BD$2)/BJ37,(BB38-$BD$2)/BJ37),"") -> 10.87718475 | BI38: =IF($BH$5,IF(BB38="",NA(),IF(BR2,BB38,NA())),NA()) -> 0.6694444444 | BJ38: =IF(AND(NOT(BP3),BH38<>""),32,NA()) ->  | BK38: =IF(BH38<>"",IF(fixedrandom=1,IF($BG$4,$BT$3*BJ37/$I$5,$BT$3*BJ37),IF($BG$4,BQ53/$I$5,BQ53)),NA()) -> 0.1206274446 | BM38: =IF(BH38<>"",(K38-1),"") -> 263 | BO38: =IF(fixedrandom=1,MAX(BN7:BN37),MAX(BX7:BX37)) -> 0.09333333333 | BP38: =IF($BR$4,SUM(BN7:BN37),"") -> 1.262222222 | BZ38: =IF(AND(NOT(BP3),BH38<>""),CA37,NA()) ->  | CR38: 4
E39: 4 | F39: Current study | S39: 0.00479 | Z39: 0.00479 | BI39: =G38 -> 110.0416667 | BJ39: 32 | BM39: min weight | BN39: =MIN(BN7:BN37) -> 0.02666666667 | BO39: max weight | BP39: Total | BQ39: =IF($BR$4,SUM(BQ7:BQ36),"") -> 129.1155556 | BR39: 0.07834074074 | BS39: 14231.60444 | BT39: 487.1963001 | BU39: 0.926079246 | BV39: 101.8424111 | CR39: 5
B40: =IF(AND($BH$5,$BJ$4,$BH$1,BH40<>"",$W$1<>""), BH40,"") ->  | C40: =IF(B40<>"",2*(1-NORMSDIST(ABS(B40))),"") ->  | D40: =IF(B40<>"",IF(C40<0.001,"***",(IF(C40<0.01,"**",(IF(C40<0.05,"*",(IF(C40<0.1,"?","ns"))))))),"") ->  | F40: my study | G40: 117 | H40: =IF(AND(G40<>"",K40<>"",$I$5>0),$I$5,"") -> 15 | J40: =IF(AND($BH$1,G40<>"",$I$5<>"",$I$5<>0),(G40-$W$1)/$I$5,"") -> 1.133333333 | K40: 20 | M40: =IF(BH40<>"",IF($BG$4,IF(AND($BH$1,$I$5<>"",$I$5<>0),1/K40,""),H40*H40/K40),"") -> 0.05 | O40: =IF(AND($G$7<>"",$K$7>1,BH40<>""),IF($BG$4,IF(AND($BH$1,$I$5<>"",$I$5<>0),BK40,""),BK40),"") -> 0.4382612703 | Q40: =IF(AND(BN37<>"",$BH$5,$BR$2),IF(fixedrandom=1,100*BN37/SUM($BN$7:$BN$37),100*BX37/$BX$40),"") -> 7.042253521 | S40: 0.00479 | Z40: 0.00479 | AA40: [ | AB40: =IF(BH40<>"",BB40-O40,"") -> 0.695072063 | AC40: , | AD40: =IF(BH40<>"",BB40+O40,"") -> 1.571594604 | AE40: ] | AX40: 11.25 | AY40: =IF(AND($AZ$4,BH40<>""),NORMSINV((100+$M$2)/200)/SQRT(K40),"") -> 0.4382612703 | AZ40: =IF(AND($AZ$4,$BH$5,$BH40<>""),J40,"") -> 1.133333333 | BA40: =IF(BH40<>"",H40*NORMSINV((100+$M$2)/200)/SQRT(K40),"") -> 6.573919054 | BB40: 1.133333333 | BC40: 1.133333333 | BE40: TRUE | BF40: =IF($BH40<>"",G40,"") -> 117 | BG40: =IF($BH40<>"",K40,"") -> 20 | BH40: =IF(AND(BH5,K40>1,G40<>"",H40<>"",BE40), (G40-$W$1)*SQRT(K40)/H40,"") -> 5.068420749 | BI40: =IF($BH$5,IF($BP$2,NA(),BC40),NA()) ->  | BJ40: =IF(BH40<>"",34,NA()) -> 34 | BK40: =IF($BH$5,IF($BG$4,IF(AY40="",NA(),AY40),IF(BA40="",NA(),BA40)),NA()) -> 0.4382612703 | BL40: =IF(BH40<>"",H40*H40*(K40-1),"") -> 4275 | BM40: =IF(BH40<>"",(K40-1),"") -> 19 | BN40: =IF(BH40<>"",K40/(H40*H40),"") -> 0.08888888889 | BP40: TOTAL | BQ40: =IF($BR$4,SUM(BQ7:BQ37),"") -> 139.5155556 | BR40: =IF($BR$4,SUM(BR7:BR37),"") -> 0.08624197531 | BS40: =IF($BR$4,SUM(BS7:BS37),"") -> 15448.40444 | BW40: =IF($BR$4,SUM(BW7:BW37),"") -> 549.0415192 | BX40: =IF($BR$4,SUM(BX7:BX37),"") -> 0.8899718948 | BY40: =IF($BR$4,SUM(BY7:BY37),"") -> 98.24537447 | CR40: 6
E41: 5 | F41: Past + current, meta-analyzed | S41: 0.00479 | Z41: 0.00479 | BI41: SE of mean | BJ41: =IF($BH$5,SQRT(1/SUM(BN7:BN37)),"") -> 0.8900862436 | BZ41: 0 | CA41: 0.1 | CB41: bin ends | CC41: dot size | CD41: Influence | CE41: 0 | CF41: 0.2 | CR41: 7
B42: =IF(AND($BH$5,$BJ$4,$BH$1,BH42<>"",$W$1<>""),IF(fixedrandom=1,BH42,BR57),"") ->  | C42: =IF(B42<>"",2*(1-NORMSDIST(ABS(B42))),"") ->  | D42: =IF(B42<>"",IF(C42<0.001,"***",(IF(C42<0.01,"**",(IF(C42<0.05,"*",(IF(C42<0.1,"?","ns"))))))),"") ->  | F42: =IF(BH5,IF(fixedrandom=1,"Fixed effect ","Random effects "),"") -> Fixed effect | G42: =IF(AND($BH$5,$BR$3),IF(fixedrandom=1,SUMPRODUCT((BF7:BF37),(BN7:BN37))/SUM(BN7:BN37),BR50),"") -> 110.5316901 | H42: =IF(AND(G42<>"",K42<>""),$I$5,"") -> 15 | J42: =IF(AND($BH$1,G42<>"",$I$5<>"",$I$5<>0),(G42-$W$1)/$I$5,"") -> 0.7021126761 | K42: =IF(AND($BH$5,$BR$3),SUM(BG38,BG40),"") -> 284 | M42: =IF(AND($BH$5,$BR$3),IF(fixedrandom=1,IF($BG$4,BJ41^2/($I$5^2),BJ41^2),IF($BG$4,BR51/($I$5^2),BR51)),"") -> 0.003521126761 | O42: =IF(BH42<>"",IF($BG$4,IF(AND($BH$1,$I$5<>"",$I$5<>0),BK42,""),BK42),"") -> 0.1163024654 | S42: 0.00479 | Z42: 0.00479 | AA42: [ | AB42: =IF(BH42<>"",BB42-O42,"") -> 0.5858102107 | AC42: , | AD42: =IF(BH42<>"",BB42+O42,"") -> 0.8184151414 | AE42: ] | AY42: =IF(AND($AZ$4,BH42<>""),NORMSINV((100+$M$2)/200)/SQRT(K42),"") -> 0.1163024654 | AZ42: =IF(AND($AZ$4,$BH$5,K42>1,G42<>""),J42,"") -> 0.7021126761 | BA42: =IF(BH42<>"",H42*NORMSINV((100+$M$2)/200)/SQRT(K42),"") -> 1.744536981 | BB42: 0.7021126761 | BC42: 0.7021126761 | BF42: =IF(AND(K42>1,G42<>""),G42,"") -> 110.5316901 | BG42: =IF($BH42<>"",K42,"") -> 284 | BH42: =IF(AND(K42>1,G42<>""),IF($BG$4,$I$5*(BB42-$BD$2)/BJ41,(BB42-$BD$2)/BJ41),"") -> 11.83221313 | BI42: =IF($BH$5,IF(BB42="",NA(),IF(BR3,BB42,NA())),NA()) -> 0.7021126761 | BJ42: =IF(AND(NOT(BP3),BH42<>""),36,NA()) ->  | BK42: =IF(BH42<>"",IF(fixedrandom=1,IF($BG$4,$BT$3*BJ41/$I$5,$BT$3*BJ41),IF($BG$4,BR53/$I$5,BR53)),NA()) -> 0.1163024654 | BM42: =IF(BH42<>"",(K42-1),"") -> 283 | BP42: Random effects | BZ42: =AVERAGE(CD42:CD43) -> 1.16 | CA42: 0.1 | CB42: =$BO$38*BZ42/$BZ$50 -> 0.003782571986 | CC42: 3 | CD42: 0.36 | CE42: =CD42 -> 0.36 | CF42: 0.2 | CR42: 8
F43: 18 T | G43: =IF(ISNUMBER(BR49),IF($BG$4,BR49/$I$5,BR49),"") -> 0.1672512142 | H43: =IF($BG$4,"Population SD",IF($G$6<>"",$G$6,"")) -> Population SD | O43: 19 Heterogeneity | P43: Q | Q43: =IF(ISNUMBER(BR45),BR45,"") -> 27.51428795 | BE43: half height | BF43: 0.4 | BH43: z | BI43: =G42 -> 110.5316901 | BJ43: 36 | BK43: bars | BP43: Means: | BQ43: 1 - 30 | BR43: +current | BZ43: 3.0608 | CA43: 0.1 | CB43: 0.009980772702 | CC43: 4 | CD43: 1.96 | CE43: 1.96 | CF43: 0.2 | CR43: 9
B44: 16 | C44: Model | F44: CI [ | G44: =IF(ISNUMBER(BR68),IF($BG$4,BR68/$I$5,BR68),"") -> 0 | H44: , | I44: =IF(ISNUMBER(BR69),IF($BG$4,BR69/$I$5,BR69),"") -> 0.3163375665 | J44: ] | P44: df | Q44: =IF(ISNUMBER(BR44),BR44,"") -> 20 | BE44: upper diamond | BG44: squash | BI44: lower diamond | BP44: df | BQ44: =COUNT(BQ7:BQ36)-1 -> 19 | BR44: =COUNT(BR7:BR37)-1 -> 20 | BZ44: 5.4608 | CA44: 0.1 | CB44: 0.01780678371 | CC44: 6 | CD44: 4.1616 | CE44: 4.1616 | CF44: 0.2 | CR44: 10
P45: p | Q45: =IF(ISNUMBER(BR46),BR46,"") -> 0.1214049634 | BE45: =IF(AND($BR$2,$BH$5),IF($BP$3,BB38,NA()),NA()) -> 0.6694444444 | BF45: =IF($BP$3,BJ39+BF43,NA()) -> 32.4 | BG45: =IF($BP$3,CA37+BF43,NA()) -> 22.4 | BI45: =IF(AND($BR$3,$BH$5),IF($BP$3,BB42,NA()),NA()) -> 0.7021126761 | BJ45: =IF($BP$3,BJ43+BF43,NA()) -> 36.4 | BP45: Q | BQ45: =IF(BP37=0,"",BS39-BQ39^2/BP37) -> 23.51351852 | BR45: =IF(BP38=0,"",BS40-BQ40^2/BP38) -> 27.51428795 | BZ45: 8.34125 | CA45: 0.1 | CB45: 0.02719946429 | CC45: 7 | CD45: 6.76 | CE45: 6.76 | CF45: 0.2 | CR45: 11
P46: I2 | Q46: =IF(ISNUMBER(BR59),100*BR59,"") -> 27.31049396 | R46: % | BE46: =IF(AND($BR$2,$BH$5),IF($BP$3,BB38-BK38,NA()),NA()) -> 0.5488169999 | BF46: =IF($BP$3,BJ39,NA()) -> 32 | BG46: =IF($BP$3,CA37,NA()) -> 22 | BI46: =IF(AND($BR$3,$BH$5),IF($BP$3,BB42-BK42,NA()),NA()) -> 0.5858102107 | BJ46: =IF($BP$3,BJ43,NA()) -> 36 | BP46: p for Q | BQ46: =CHIDIST(BQ45,BQ44) -> 0.2154794657 | BR46: =CHIDIST(BR45,BR44) -> 0.1214049634 | BZ46: 11.80625 | CA46: 0.1 | CB46: 0.03849826768 | CC46: 9 | CD46: 9.9225 | CE46: 9.9225 | CF46: 0.2 | CR46: 12
BE47: =IF(AND($BR$2,$BH$5),IF($BP$3,BB38,NA()),NA()) -> 0.6694444444 | BF47: =IF($BP$3,BJ39-BF43,NA()) -> 31.6 | BG47: =IF($BP$3,CA37-BF43,NA()) -> 21.6 | BI47: =IF(AND($BR$3,$BH$5),IF($BP$3,BB42,NA()),NA()) -> 0.7021126761 | BJ47: =IF($BP$3,BJ43-BF43,NA()) -> 35.6 | BP47: C | BQ47: =BP37-BR39/BP37 -> 1.106565657 | BR47: =BP38-BR40/BP38 -> 1.193896714 | BZ47: 15.87625 | CA47: 0.1 | CB47: 0.05176987801 | CC47: 10 | CD47: 13.69 | CE47: 13.69 | CF47: 0.2 | CR47: 13
BE48: =IF(AND($BR$2,$BH$5),IF($BP$3,BB38+BK38,NA()),NA()) -> 0.790071889 | BF48: =IF($BP$3,BJ39,NA()) -> 32 | BG48: =IF($BP$3,CA37,NA()) -> 22 | BI48: =IF(AND($BR$3,$BH$5),IF($BP$3,BB42+BK42,NA()),NA()) -> 0.8184151414 | BJ48: =IF($BP$3,BJ46,NA()) -> 36 | BP48: T^2 | BQ48: =IF(BQ47=0,0,MAX(0,(BQ45-BQ44)/BQ47)) -> 4.078852883 | BR48: =IF(BR47=0,0,MAX(0,(BR45-BR44)/BR47)) -> 6.293917945 | BZ48: 20.55125 | CA48: 0.1 | CB48: 0.06701429528 | CC48: 12 | CD48: 18.0625 | CE48: 18.0625 | CF48: 0.2 | CR48: 14
BE49: =IF(AND($BR$2,$BH$5),IF($BP$3,BB38,NA()),NA()) -> 0.6694444444 | BF49: =IF($BP$3,BJ39+BF43,NA()) -> 32.4 | BG49: =IF($BP$3,CA37+BF43,NA()) -> 22.4 | BI49: =IF(AND($BR$3,$BH$5),IF($BP$3,BB42,NA()),NA()) -> 0.7021126761 | BJ49: =IF($BP$3,BJ43+BF43,NA()) -> 36.4 | BP49: T | BQ49: =SQRT(BQ48) -> 2.019617014 | BR49: =SQRT(BR48) -> 2.508768213 | BZ49: 25.83125 | CA49: 0.1 | CB49: 0.08423151949 | CC49: 13 | CD49: 23.04 | CE49: 23.04 | CF49: 0.2 | CR49: 15
BP50: M* | BQ50: =BV39/BU39 -> 109.9715942 | BR50: =BY40/BX40 -> 110.3915472 | BZ50: =CD50 -> 28.6225 | CA50: 0.1 | CB50: 0.09333333333 | CC50: 15 | CD50: 28.6225 | CE50: 28.6225 | CF50: 0.2 | CR50: 16
BE51: L end | BF51: =BB38-BK38 -> 0.5488169999 | BJ51: =BB42-BK42 -> 0.5858102107 | BP51: V(M*) | BQ51: =1/BU39 -> 1.079821197 | BR51: =1/BX40 -> 1.123630989 | CR51: 17
BE52: R end | BF52: =BB38+BK38 -> 0.790071889 | BJ52: =BB42+BK42 -> 0.8184151414 | BP52: SE(M*) | BQ52: =SQRT(BQ51) -> 1.039144454 | BR52: =SQRT(BR51) -> 1.060014617 | CR52: 18
BE53: no. points | BF53: 200 | BJ53: =BF53 -> 200 | BP53: moe | BQ53: =NORMSINV((100+$M$2)/200)*BQ52 -> 2.036685705 | BR53: =NORMSINV((100+$M$2)/200)*BR52 -> 2.077590473 | CR53: 19
BE54: inc x | BF54: =(BF52-BF51)/BF53 -> 0.001206274446 | BJ54: =(BJ52-BJ51)/BJ53 -> 0.001163024654 | BP54: LL | BQ54: =BQ50-BQ53 -> 107.9349085 | BR54: =BR50-BR53 -> 108.3139568 | CR54: 20
BE55: delta y | BF55: -0.02 | BJ55: =BF55 -> -0.02 | BN55: squash | BP55: UL | BQ55: =BQ50+BQ53 -> 112.0082799 | BR55: =BR50+BR53 -> 112.4691377 | CR55: 21
BE56: index | BF56: from end | BG56: x | BH56: y | BI56: bar | BJ56: from end | BK56: x | BL56: y | BM56: bar | BN56: y disp | BP56: m0 | BQ56: =$W$1 -> 100 | BR56: =$W$1 -> 100 | CR56: 22
BE57: 0 | BF57: =1-ABS($BB$38-BG57)/$BK$38 -> 0 | BG57: =IF($BP$3,BF51,NA()) -> 0.5488169999 | BH57: =IF($BP$3,BJ39,NA()) -> 32 | BI57: =MAX($BF$43*BF57-$BF$55,0) -> 0.02 | BJ57: =1-ABS($BB$42-BK57)/$BK$42 -> 0 | BK57: =IF($BP$3,BJ51,NA()) -> 0.5858102107 | BL57: =IF($BP$3,BJ43,NA()) -> 36 | BM57: =MAX($BF$43*BJ57-$BJ$55,0) -> 0.02 | BN57: =IF($BP$3,CA37,NA()) -> 22 | BP57: z | BQ57: =(BQ50-BQ56)/BQ52 -> 9.595965413 | BR57: =(BR50-BR56)/BR52 -> 9.803211275 | CR57: 23
BE58: 1 | BF58: =1-ABS($BB$38-BG58)/$BK$38 -> 0.01 | BG58: =IF($BP$3,BG57+$BF$54,NA()) -> 0.5500232743 | BH58: =BH57 -> 32 | BI58: 0.024 | BJ58: =1-ABS($BB$42-BK58)/$BK$42 -> 0.01 | BK58: =IF($BP$3,BK57+$BJ$54,NA()) -> 0.5869732353 | BL58: =BL57 -> 36 | BM58: 0.024 | BN58: =BN57 -> 22 | BP58: p | BQ58: =2*(1-NORMSDIST(ABS(BQ57))) -> 0 | BR58: =2*(1-NORMSDIST(ABS(BR57))) -> 0 | CR58: 24
BE59: 2 | BF59: 0.02 | BG59: 0.5512295488 | BH59: 32 | BI59: 0.028 | BJ59: 0.02 | BK59: 0.58813626 | BL59: 36 | BM59: 0.028 | BN59: 22 | BP59: I^2 | BQ59: =MAX(0,(BQ45-BQ44)/BQ45) -> 0.191954195 | BR59: =MAX(0,(BR45-BR44)/BR45) -> 0.2731049396 | CR59: 25
BE60: 3 | BF60: 0.03 | BG60: 0.5524358232 | BH60: 32 | BI60: 0.032 | BJ60: 0.03 | BK60: 0.5892992846 | BL60: 36 | BM60: 0.032 | BN60: 22 | BP60: For CI on T^2 | CR60: 26
BE61: 4 | BF61: 0.04 | BG61: 0.5536420977 | BH61: 32 | BI61: 0.036 | BJ61: 0.04 | BK61: 0.5904623093 | BL61: 36 | BM61: 0.036 | BN61: 22 | BP61: B1 | BQ61: =0.5*(LN(BQ45)-LN(BQ44))/(SQRT(2*BQ45)-SQRT(2*BQ44-1)) -> 0.1375316344 | BR61: =0.5*(LN(BR45)-LN(BR44))/(SQRT(2*BR45)-SQRT(2*BR44-1)) -> 0.135949989 | CR61: 27
BE62: 5 | BF62: 0.05 | BG62: 0.5548483721 | BH62: 32 | BI62: 0.04 | BJ62: 0.05 | BK62: 0.5916253339 | BL62: 36 | BM62: 0.04 | BN62: 22 | BP62: B2 | BQ62: =SQRT(1/(2*(BQ44-1)*(1-(1/(3*(BQ44-1)^2))))) -> 0.1667524668 | BR62: =SQRT(1/(2*(BR44-1)*(1-(1/(3*(BR44-1)^2))))) -> 0.1622963675 | CR62: 28
BE63: 6 | BF63: 0.06 | BG63: 0.5560546466 | BH63: 32 | BI63: 0.044 | BJ63: 0.06 | BK63: 0.5927883586 | BL63: 36 | BM63: 0.044 | BN63: 22 | BP63: B | BQ63: =IF(BQ45>(BQ44+1),BQ61,BQ62) -> 0.1375316344 | BR63: =IF(BR45>(BR44+1),BR61,BR62) -> 0.135949989 | CR63: 29
BE64: 7 | BF64: 0.07 | BG64: 0.557260921 | BH64: 32 | BI64: 0.048 | BJ64: 0.07 | BK64: 0.5939513833 | BL64: 36 | BM64: 0.048 | BN64: 22 | BP64: L | BQ64: =EXP(0.5*LN(BQ45/BQ44)-NORMSINV((100+$M$2)/200)*BQ63) -> 0.8496007176 | BR64: =EXP(0.5*LN(BR45/BR44)-NORMSINV((100+$M$2)/200)*BR63) -> 0.8985521771 | CR64: 30
BE65: 8 | BF65: 0.08 | BG65: 0.5584671954 | BH65: 32 | BI65: 0.052 | BJ65: 0.08 | BK65: 0.5951144079 | BL65: 36 | BM65: 0.052 | BN65: 22 | BP65: U | BQ65: =EXP(0.5*LN(BQ45/BQ44)+NORMSINV((100+$M$2)/200)*BQ63) -> 1.456629662 | BR65: =EXP(0.5*LN(BR45/BR44)+NORMSINV((100+$M$2)/200)*BR63) -> 1.531034516
BE66: 9 | BF66: 0.09 | BG66: 0.5596734699 | BH66: 32 | BI66: 0.056 | BJ66: 0.09 | BK66: 0.5962774326 | BL66: 36 | BM66: 0.056 | BN66: 22 | BP66: LL T^2 | BQ66: =MAX(0,BQ44*(BQ64^2-1)/BQ47) -> 0 | BR66: =MAX(0,BR44*(BR64^2-1)/BR47) -> 0
BE67: 10 | BF67: 0.1 | BG67: 0.5608797443 | BH67: 32 | BI67: 0.06 | BJ67: 0.1 | BK67: 0.5974404572 | BL67: 36 | BM67: 0.06 | BN67: 22 | BP67: UL T^2 | BQ67: =MAX(0,BQ44*(BQ65^2-1)/BQ47) -> 19.26106179 | BR67: =MAX(0,BR44*(BR65^2-1)/BR47) -> 22.51562759
BE68: 11 | BF68: 0.11 | BG68: 0.5620860188 | BH68: 32 | BI68: 0.064 | BJ68: 0.11 | BK68: 0.5986034819 | BL68: 36 | BM68: 0.064 | BN68: 22 | BP68: LL T | BQ68: =SQRT(BQ66) -> 0 | BR68: =SQRT(BR66) -> 0
BE69: 12 | BF69: 0.12 | BG69: 0.5632922932 | BH69: 32 | BI69: 0.068 | BJ69: 0.12 | BK69: 0.5997665065 | BL69: 36 | BM69: 0.068 | BN69: 22 | BP69: UL T | BQ69: =SQRT(BQ67) -> 4.38874262 | BR69: =SQRT(BR67) -> 4.745063497
BE70: 13 | BF70: 0.13 | BG70: 0.5644985677 | BH70: 32 | BI70: 0.072 | BJ70: 0.13 | BK70: 0.6009295312 | BL70: 36 | BM70: 0.072 | BN70: 22
BE71: 14 | BF71: 0.14 | BG71: 0.5657048421 | BH71: 32 | BI71: 0.076 | BJ71: 0.14 | BK71: 0.6020925558 | BL71: 36 | BM71: 0.076 | BN71: 22
BE72: 15 | BF72: 0.15 | BG72: 0.5669111166 | BH72: 32 | BI72: 0.08 | BJ72: 0.15 | BK72: 0.6032555805 | BL72: 36 | BM72: 0.08 | BN72: 22
BE73: 16 | BF73: 0.16 | BG73: 0.568117391 | BH73: 32 | BI73: 0.084 | BJ73: 0.16 | BK73: 0.6044186051 | BL73: 36 | BM73: 0.084 | BN73: 22
BE74: 17 | BF74: 0.17 | BG74: 0.5693236655 | BH74: 32 | BI74: 0.088 | BJ74: 0.17 | BK74: 0.6055816298 | BL74: 36 | BM74: 0.088 | BN74: 22
BE75: 18 | BF75: 0.18 | BG75: 0.5705299399 | BH75: 32 | BI75: 0.092 | BJ75: 0.18 | BK75: 0.6067446544 | BL75: 36 | BM75: 0.092 | BN75: 22
BE76: 19 | BF76: 0.19 | BG76: 0.5717362143 | BH76: 32 | BI76: 0.096 | BJ76: 0.19 | BK76: 0.6079076791 | BL76: 36 | BM76: 0.096 | BN76: 22
BE77: 20 | BF77: 0.2 | BG77: 0.5729424888 | BH77: 32 | BI77: 0.1 | BJ77: 0.2 | BK77: 0.6090707038 | BL77: 36 | BM77: 0.1 | BN77: 22
BE78: 21 | BF78: 0.21 | BG78: 0.5741487632 | BH78: 32 | BI78: 0.104 | BJ78: 0.21 | BK78: 0.6102337284 | BL78: 36 | BM78: 0.104 | BN78: 22
BE79: 22 | BF79: 0.22 | BG79: 0.5753550377 | BH79: 32 | BI79: 0.108 | BJ79: 0.22 | BK79: 0.6113967531 | BL79: 36 | BM79: 0.108 | BN79: 22
BE80: 23 | BF80: 0.23 | BG80: 0.5765613121 | BH80: 32 | BI80: 0.112 | BJ80: 0.23 | BK80: 0.6125597777 | BL80: 36 | BM80: 0.112 | BN80: 22
BE81: 24 | BF81: 0.24 | BG81: 0.5777675866 | BH81: 32 | BI81: 0.116 | BJ81: 0.24 | BK81: 0.6137228024 | BL81: 36 | BM81: 0.116 | BN81: 22
BE82: 25 | BF82: 0.25 | BG82: 0.578973861 | BH82: 32 | BI82: 0.12 | BJ82: 0.25 | BK82: 0.614885827 | BL82: 36 | BM82: 0.12 | BN82: 22
BE83: 26 | BF83: 0.26 | BG83: 0.5801801355 | BH83: 32 | BI83: 0.124 | BJ83: 0.26 | BK83: 0.6160488517 | BL83: 36 | BM83: 0.124 | BN83: 22
BE84: 27 | BF84: 0.27 | BG84: 0.5813864099 | BH84: 32 | BI84: 0.128 | BJ84: 0.27 | BK84: 0.6172118763 | BL84: 36 | BM84: 0.128 | BN84: 22
BE85: 28 | BF85: 0.28 | BG85: 0.5825926844 | BH85: 32 | BI85: 0.132 | BJ85: 0.28 | BK85: 0.618374901 | BL85: 36 | BM85: 0.132 | BN85: 22
BE86: 29 | BF86: 0.29 | BG86: 0.5837989588 | BH86: 32 | BI86: 0.136 | BJ86: 0.29 | BK86: 0.6195379256 | BL86: 36 | BM86: 0.136 | BN86: 22
BE87: 30 | BF87: 0.3 | BG87: 0.5850052333 | BH87: 32 | BI87: 0.14 | BJ87: 0.3 | BK87: 0.6207009503 | BL87: 36 | BM87: 0.14 | BN87: 22
BE88: 31 | BF88: 0.31 | BG88: 0.5862115077 | BH88: 32 | BI88: 0.144 | BJ88: 0.31 | BK88: 0.6218639749 | BL88: 36 | BM88: 0.144 | BN88: 22
BE89: 32 | BF89: 0.32 | BG89: 0.5874177821 | BH89: 32 | BI89: 0.148 | BJ89: 0.32 | BK89: 0.6230269996 | BL89: 36 | BM89: 0.148 | BN89: 22
BE90: 33 | BF90: 0.33 | BG90: =IF($BP$3,BG89+$BF$54,NA()) -> 0.5886240566 | BH90: =BH89 -> 32 | BI90: 0.152 | BJ90: 0.33 | BK90: =IF($BP$3,BK89+$BJ$54,NA()) -> 0.6241900243 | BL90: =BL89 -> 36 | BM90: 0.152 | BN90: =BN89 -> 22
BE91: 34 | BF91: 0.34 | BG91: 0.589830331 | BH91: 32 | BI91: 0.156 | BJ91: 0.34 | BK91: 0.6253530489 | BL91: 36 | BM91: 0.156 | BN91: 22
BE92: 35 | BF92: 0.35 | BG92: 0.5910366055 | BH92: 32 | BI92: 0.16 | BJ92: 0.35 | BK92: 0.6265160736 | BL92: 36 | BM92: 0.16 | BN92: 22
BE93: 36 | BF93: 0.36 | BG93: 0.5922428799 | BH93: 32 | BI93: 0.164 | BJ93: 0.36 | BK93: 0.6276790982 | BL93: 36 | BM93: 0.164 | BN93: 22
BE94: 37 | BF94: 0.37 | BG94: 0.5934491544 | BH94: 32 | BI94: 0.168 | BJ94: 0.37 | BK94: 0.6288421229 | BL94: 36 | BM94: 0.168 | BN94: 22
BE95: 38 | BF95: 0.38 | BG95: 0.5946554288 | BH95: 32 | BI95: 0.172 | BJ95: 0.38 | BK95: 0.6300051475 | BL95: 36 | BM95: 0.172 | BN95: 22
BE96: 39 | BF96: 0.39 | BG96: 0.5958617033 | BH96: 32 | BI96: 0.176 | BJ96: 0.39 | BK96: 0.6311681722 | BL96: 36 | BM96: 0.176 | BN96: 22
BE97: 40 | BF97: 0.4 | BG97: 0.5970679777 | BH97: 32 | BI97: 0.18 | BJ97: 0.4 | BK97: 0.6323311968 | BL97: 36 | BM97: 0.18 | BN97: 22
BE98: 41 | BF98: 0.41 | BG98: 0.5982742522 | BH98: 32 | BI98: 0.184 | BJ98: 0.41 | BK98: 0.6334942215 | BL98: 36 | BM98: 0.184 | BN98: 22
BE99: 42 | BF99: 0.42 | BG99: 0.5994805266 | BH99: 32 | BI99: 0.188 | BJ99: 0.42 | BK99: 0.6346572461 | BL99: 36 | BM99: 0.188 | BN99: 22
BE100: 43 | BF100: 0.43 | BG100: 0.600686801 | BH100: 32 | BI100: 0.192 | BJ100: 0.43 | BK100: 0.6358202708 | BL100: 36 | BM100: 0.192 | BN100: 22
BE101: 44 | BF101: 0.44 | BG101: 0.6018930755 | BH101: 32 | BI101: 0.196 | BJ101: 0.44 | BK101: 0.6369832954 | BL101: 36 | BM101: 0.196 | BN101: 22
BE102: 45 | BF102: 0.45 | BG102: 0.6030993499 | BH102: 32 | BI102: 0.2 | BJ102: 0.45 | BK102: 0.6381463201 | BL102: 36 | BM102: 0.2 | BN102: 22
BE103: 46 | BF103: 0.46 | BG103: 0.6043056244 | BH103: 32 | BI103: 0.204 | BJ103: 0.46 | BK103: 0.6393093448 | BL103: 36 | BM103: 0.204 | BN103: 22
BE104: 47 | BF104: 0.47 | BG104: 0.6055118988 | BH104: 32 | BI104: 0.208 | BJ104: 0.47 | BK104: 0.6404723694 | BL104: 36 | BM104: 0.208 | BN104: 22
BE105: 48 | BF105: 0.48 | BG105: 0.6067181733 | BH105: 32 | BI105: 0.212 | BJ105: 0.48 | BK105: 0.6416353941 | BL105: 36 | BM105: 0.212 | BN105: 22
BE106: 49 | BF106: 0.49 | BG106: 0.6079244477 | BH106: 32 | BI106: 0.216 | BJ106: 0.49 | BK106: 0.6427984187 | BL106: 36 | BM106: 0.216 | BN106: 22
BE107: 50 | BF107: 0.5 | BG107: 0.6091307222 | BH107: 32 | BI107: 0.22 | BJ107: 0.5 | BK107: 0.6439614434 | BL107: 36 | BM107: 0.22 | BN107: 22
BE108: 51 | BF108: 0.51 | BG108: 0.6103369966 | BH108: 32 | BI108: 0.224 | BJ108: 0.51 | BK108: 0.645124468 | BL108: 36 | BM108: 0.224 | BN108: 22
BE109: 52 | BF109: 0.52 | BG109: 0.6115432711 | BH109: 32 | BI109: 0.228 | BJ109: 0.52 | BK109: 0.6462874927 | BL109: 36 | BM109: 0.228 | BN109: 22
BE110: 53 | BF110: 0.53 | BG110: 0.6127495455 | BH110: 32 | BI110: 0.232 | BJ110: 0.53 | BK110: 0.6474505173 | BL110: 36 | BM110: 0.232 | BN110: 22
BE111: 54 | BF111: 0.54 | BG111: 0.6139558199 | BH111: 32 | BI111: 0.236 | BJ111: 0.54 | BK111: 0.648613542 | BL111: 36 | BM111: 0.236 | BN111: 22
BE112: 55 | BF112: 0.55 | BG112: 0.6151620944 | BH112: 32 | BI112: 0.24 | BJ112: 0.55 | BK112: 0.6497765666 | BL112: 36 | BM112: 0.24 | BN112: 22
BE113: 56 | BF113: 0.56 | BG113: 0.6163683688 | BH113: 32 | BI113: 0.244 | BJ113: 0.56 | BK113: 0.6509395913 | BL113: 36 | BM113: 0.244 | BN113: 22
BE114: 57 | BF114: 0.57 | BG114: 0.6175746433 | BH114: 32 | BI114: 0.248 | BJ114: 0.57 | BK114: 0.6521026159 | BL114: 36 | BM114: 0.248 | BN114: 22
BE115: 58 | BF115: 0.58 | BG115: 0.6187809177 | BH115: 32 | BI115: 0.252 | BJ115: 0.58 | BK115: 0.6532656406 | BL115: 36 | BM115: 0.252 | BN115: 22
BE116: 59 | BF116: 0.59 | BG116: 0.6199871922 | BH116: 32 | BI116: 0.256 | BJ116: 0.59 | BK116: 0.6544286653 | BL116: 36 | BM116: 0.256 | BN116: 22
BE117: 60 | BF117: 0.6 | BG117: 0.6211934666 | BH117: 32 | BI117: 0.26 | BJ117: 0.6 | BK117: 0.6555916899 | BL117: 36 | BM117: 0.26 | BN117: 22
BE118: 61 | BF118: 0.61 | BG118: 0.6223997411 | BH118: 32 | BI118: 0.264 | BJ118: 0.61 | BK118: 0.6567547146 | BL118: 36 | BM118: 0.264 | BN118: 22
BE119: 62 | BF119: 0.62 | BG119: 0.6236060155 | BH119: 32 | BI119: 0.268 | BJ119: 0.62 | BK119: 0.6579177392 | BL119: 36 | BM119: 0.268 | BN119: 22
BE120: 63 | BF120: 0.63 | BG120: 0.62481229 | BH120: 32 | BI120: 0.272 | BJ120: 0.63 | BK120: 0.6590807639 | BL120: 36 | BM120: 0.272 | BN120: 22
BE121: 64 | BF121: 0.64 | BG121: 0.6260185644 | BH121: 32 | BI121: =MAX($BF$43*BF121-$BF$55,0) -> 0.276 | BJ121: 0.64 | BK121: 0.6602437885 | BL121: 36 | BM121: =MAX($BF$43*BJ121-$BJ$55,0) -> 0.276 | BN121: 22
BE122: 65 | BF122: =1-ABS($BB$38-BG122)/$BK$38 -> 0.65 | BG122: =IF($BP$3,BG121+$BF$54,NA()) -> 0.6272248388 | BH122: =BH121 -> 32 | BI122: 0.28 | BJ122: =1-ABS($BB$42-BK122)/$BK$42 -> 0.65 | BK122: =IF($BP$3,BK121+$BJ$54,NA()) -> 0.6614068132 | BL122: =BL121 -> 36 | BM122: 0.28 | BN122: =BN121 -> 22
BE123: 66 | BF123: 0.66 | BG123: 0.6284311133 | BH123: 32 | BI123: 0.284 | BJ123: 0.66 | BK123: 0.6625698378 | BL123: 36 | BM123: 0.284 | BN123: 22
BE124: 67 | BF124: 0.67 | BG124: 0.6296373877 | BH124: 32 | BI124: 0.288 | BJ124: 0.67 | BK124: 0.6637328625 | BL124: 36 | BM124: 0.288 | BN124: 22
BE125: 68 | BF125: 0.68 | BG125: 0.6308436622 | BH125: 32 | BI125: 0.292 | BJ125: 0.68 | BK125: 0.6648958871 | BL125: 36 | BM125: 0.292 | BN125: 22
BE126: 69 | BF126: 0.69 | BG126: 0.6320499366 | BH126: 32 | BI126: 0.296 | BJ126: 0.69 | BK126: 0.6660589118 | BL126: 36 | BM126: 0.296 | BN126: 22
BE127: 70 | BF127: 0.7 | BG127: 0.6332562111 | BH127: 32 | BI127: 0.3 | BJ127: 0.7 | BK127: 0.6672219364 | BL127: 36 | BM127: 0.3 | BN127: 22
BE128: 71 | BF128: 0.71 | BG128: 0.6344624855 | BH128: 32 | BI128: 0.304 | BJ128: 0.71 | BK128: 0.6683849611 | BL128: 36 | BM128: 0.304 | BN128: 22
BE129: 72 | BF129: 0.72 | BG129: 0.63566876 | BH129: 32 | BI129: 0.308 | BJ129: 0.72 | BK129: 0.6695479858 | BL129: 36 | BM129: 0.308 | BN129: 22
BE130: 73 | BF130: 0.73 | BG130: 0.6368750344 | BH130: 32 | BI130: 0.312 | BJ130: 0.73 | BK130: 0.6707110104 | BL130: 36 | BM130: 0.312 | BN130: 22
BE131: 74 | BF131: 0.74 | BG131: 0.6380813089 | BH131: 32 | BI131: 0.316 | BJ131: 0.74 | BK131: 0.6718740351 | BL131: 36 | BM131: 0.316 | BN131: 22
BE132: 75 | BF132: 0.75 | BG132: 0.6392875833 | BH132: 32 | BI132: 0.32 | BJ132: 0.75 | BK132: 0.6730370597 | BL132: 36 | BM132: 0.32 | BN132: 22
BE133: 76 | BF133: 0.76 | BG133: 0.6404938577 | BH133: 32 | BI133: 0.324 | BJ133: 0.76 | BK133: 0.6742000844 | BL133: 36 | BM133: 0.324 | BN133: 22
BE134: 77 | BF134: 0.77 | BG134: 0.6417001322 | BH134: 32 | BI134: 0.328 | BJ134: 0.77 | BK134: 0.675363109 | BL134: 36 | BM134: 0.328 | BN134: 22
BE135: 78 | BF135: 0.78 | BG135: 0.6429064066 | BH135: 32 | BI135: 0.332 | BJ135: 0.78 | BK135: 0.6765261337 | BL135: 36 | BM135: 0.332 | BN135: 22
BE136: 79 | BF136: 0.79 | BG136: 0.6441126811 | BH136: 32 | BI136: 0.336 | BJ136: 0.79 | BK136: 0.6776891583 | BL136: 36 | BM136: 0.336 | BN136: 22
BE137: 80 | BF137: 0.8 | BG137: 0.6453189555 | BH137: 32 | BI137: 0.34 | BJ137: 0.8 | BK137: 0.678852183 | BL137: 36 | BM137: 0.34 | BN137: 22
BE138: 81 | BF138: 0.81 | BG138: 0.64652523 | BH138: 32 | BI138: 0.344 | BJ138: 0.81 | BK138: 0.6800152076 | BL138: 36 | BM138: 0.344 | BN138: 22
BE139: 82 | BF139: 0.82 | BG139: 0.6477315044 | BH139: 32 | BI139: 0.348 | BJ139: 0.82 | BK139: 0.6811782323 | BL139: 36 | BM139: 0.348 | BN139: 22
BE140: 83 | BF140: 0.83 | BG140: 0.6489377789 | BH140: 32 | BI140: 0.352 | BJ140: 0.83 | BK140: 0.6823412569 | BL140: 36 | BM140: 0.352 | BN140: 22
BE141: 84 | BF141: 0.84 | BG141: 0.6501440533 | BH141: 32 | BI141: 0.356 | BJ141: 0.84 | BK141: 0.6835042816 | BL141: 36 | BM141: 0.356 | BN141: 22
BE142: 85 | BF142: 0.85 | BG142: 0.6513503278 | BH142: 32 | BI142: 0.36 | BJ142: 0.85 | BK142: 0.6846673062 | BL142: 36 | BM142: 0.36 | BN142: 22
BE143: 86 | BF143: 0.86 | BG143: 0.6525566022 | BH143: 32 | BI143: 0.364 | BJ143: 0.86 | BK143: 0.6858303309 | BL143: 36 | BM143: 0.364 | BN143: 22
BE144: 87 | BF144: 0.87 | BG144: 0.6537628767 | BH144: 32 | BI144: 0.368 | BJ144: 0.87 | BK144: 0.6869933556 | BL144: 36 | BM144: 0.368 | BN144: 22
BE145: 88 | BF145: 0.88 | BG145: 0.6549691511 | BH145: 32 | BI145: 0.372 | BJ145: 0.88 | BK145: 0.6881563802 | BL145: 36 | BM145: 0.372 | BN145: 22
BE146: 89 | BF146: 0.89 | BG146: 0.6561754255 | BH146: 32 | BI146: 0.376 | BJ146: 0.89 | BK146: 0.6893194049 | BL146: 36 | BM146: 0.376 | BN146: 22
BE147: 90 | BF147: 0.9 | BG147: 0.6573817 | BH147: 32 | BI147: 0.38 | BJ147: 0.9 | BK147: 0.6904824295 | BL147: 36 | BM147: 0.38 | BN147: 22
BE148: 91 | BF148: 0.91 | BG148: 0.6585879744 | BH148: 32 | BI148: 0.384 | BJ148: 0.91 | BK148: 0.6916454542 | BL148: 36 | BM148: 0.384 | BN148: 22
BE149: 92 | BF149: 0.92 | BG149: 0.6597942489 | BH149: 32 | BI149: 0.388 | BJ149: 0.92 | BK149: 0.6928084788 | BL149: 36 | BM149: 0.388 | BN149: 22
BE150: 93 | BF150: 0.93 | BG150: 0.6610005233 | BH150: 32 | BI150: 0.392 | BJ150: 0.93 | BK150: 0.6939715035 | BL150: 36 | BM150: 0.392 | BN150: 22
BE151: 94 | BF151: 0.94 | BG151: 0.6622067978 | BH151: 32 | BI151: 0.396 | BJ151: 0.94 | BK151: 0.6951345281 | BL151: 36 | BM151: 0.396 | BN151: 22
BE152: 95 | BF152: 0.95 | BG152: 0.6634130722 | BH152: 32 | BI152: 0.4 | BJ152: 0.95 | BK152: 0.6962975528 | BL152: 36 | BM152: 0.4 | BN152: 22
BE153: 96 | BF153: 0.96 | BG153: 0.6646193467 | BH153: 32 | BI153: 0.404 | BJ153: 0.96 | BK153: 0.6974605774 | BL153: 36 | BM153: 0.404 | BN153: 22
BE154: 97 | BF154: 0.97 | BG154: =IF($BP$3,BG153+$BF$54,NA()) -> 0.6658256211 | BH154: =BH153 -> 32 | BI154: 0.408 | BJ154: 0.97 | BK154: =IF($BP$3,BK153+$BJ$54,NA()) -> 0.6986236021 | BL154: =BL153 -> 36 | BM154: 0.408 | BN154: =BN153 -> 22
BE155: 98 | BF155: 0.98 | BG155: 0.6670318956 | BH155: 32 | BI155: 0.412 | BJ155: 0.98 | BK155: 0.6997866267 | BL155: 36 | BM155: 0.412 | BN155: 22
BE156: 99 | BF156: 0.99 | BG156: 0.66823817 | BH156: 32 | BI156: 0.416 | BJ156: 0.99 | BK156: 0.7009496514 | BL156: 36 | BM156: 0.416 | BN156: 22
BE157: 100 | BF157: 1 | BG157: 0.6694444444 | BH157: 32 | BI157: 0.42 | BJ157: 1 | BK157: 0.7021126761 | BL157: 36 | BM157: 0.42 | BN157: 22
BE158: 101 | BF158: 0.99 | BG158: 0.6706507189 | BH158: 32 | BI158: 0.416 | BJ158: 0.99 | BK158: 0.7032757007 | BL158: 36 | BM158: 0.416 | BN158: 22
BE159: 102 | BF159: 0.98 | BG159: 0.6718569933 | BH159: 32 | BI159: 0.412 | BJ159: 0.98 | BK159: 0.7044387254 | BL159: 36 | BM159: 0.412 | BN159: 22
BE160: 103 | BF160: 0.97 | BG160: 0.6730632678 | BH160: 32 | BI160: 0.408 | BJ160: 0.97 | BK160: 0.70560175 | BL160: 36 | BM160: 0.408 | BN160: 22
BE161: 104 | BF161: 0.96 | BG161: 0.6742695422 | BH161: 32 | BI161: 0.404 | BJ161: 0.96 | BK161: 0.7067647747 | BL161: 36 | BM161: 0.404 | BN161: 22
BE162: 105 | BF162: 0.95 | BG162: 0.6754758167 | BH162: 32 | BI162: 0.4 | BJ162: 0.95 | BK162: 0.7079277993 | BL162: 36 | BM162: 0.4 | BN162: 22
BE163: 106 | BF163: 0.94 | BG163: 0.6766820911 | BH163: 32 | BI163: 0.396 | BJ163: 0.94 | BK163: 0.709090824 | BL163: 36 | BM163: 0.396 | BN163: 22
BE164: 107 | BF164: 0.93 | BG164: 0.6778883656 | BH164: 32 | BI164: 0.392 | BJ164: 0.93 | BK164: 0.7102538486 | BL164: 36 | BM164: 0.392 | BN164: 22
BE165: 108 | BF165: 0.92 | BG165: 0.67909464 | BH165: 32 | BI165: 0.388 | BJ165: 0.92 | BK165: 0.7114168733 | BL165: 36 | BM165: 0.388 | BN165: 22
BE166: 109 | BF166: 0.91 | BG166: 0.6803009145 | BH166: 32 | BI166: 0.384 | BJ166: 0.91 | BK166: 0.7125798979 | BL166: 36 | BM166: 0.384 | BN166: 22
BE167: 110 | BF167: 0.9 | BG167: 0.6815071889 | BH167: 32 | BI167: 0.38 | BJ167: 0.9 | BK167: 0.7137429226 | BL167: 36 | BM167: 0.38 | BN167: 22
BE168: 111 | BF168: 0.89 | BG168: 0.6827134633 | BH168: 32 | BI168: 0.376 | BJ168: 0.89 | BK168: 0.7149059472 | BL168: 36 | BM168: 0.376 | BN168: 22
BE169: 112 | BF169: 0.88 | BG169: 0.6839197378 | BH169: 32 | BI169: 0.372 | BJ169: 0.88 | BK169: 0.7160689719 | BL169: 36 | BM169: 0.372 | BN169: 22
BE170: 113 | BF170: 0.87 | BG170: 0.6851260122 | BH170: 32 | BI170: 0.368 | BJ170: 0.87 | BK170: 0.7172319966 | BL170: 36 | BM170: 0.368 | BN170: 22
BE171: 114 | BF171: 0.86 | BG171: 0.6863322867 | BH171: 32 | BI171: 0.364 | BJ171: 0.86 | BK171: 0.7183950212 | BL171: 36 | BM171: 0.364 | BN171: 22
BE172: 115 | BF172: 0.85 | BG172: 0.6875385611 | BH172: 32 | BI172: 0.36 | BJ172: 0.85 | BK172: 0.7195580459 | BL172: 36 | BM172: 0.36 | BN172: 22
BE173: 116 | BF173: 0.84 | BG173: 0.6887448356 | BH173: 32 | BI173: 0.356 | BJ173: 0.84 | BK173: 0.7207210705 | BL173: 36 | BM173: 0.356 | BN173: 22
BE174: 117 | BF174: 0.83 | BG174: 0.68995111 | BH174: 32 | BI174: 0.352 | BJ174: 0.83 | BK174: 0.7218840952 | BL174: 36 | BM174: 0.352 | BN174: 22
BE175: 118 | BF175: 0.82 | BG175: 0.6911573845 | BH175: 32 | BI175: 0.348 | BJ175: 0.82 | BK175: 0.7230471198 | BL175: 36 | BM175: 0.348 | BN175: 22
BE176: 119 | BF176: 0.81 | BG176: 0.6923636589 | BH176: 32 | BI176: 0.344 | BJ176: 0.81 | BK176: 0.7242101445 | BL176: 36 | BM176: 0.344 | BN176: 22
BE177: 120 | BF177: 0.8 | BG177: 0.6935699334 | BH177: 32 | BI177: 0.34 | BJ177: 0.8 | BK177: 0.7253731691 | BL177: 36 | BM177: 0.34 | BN177: 22
BE178: 121 | BF178: 0.79 | BG178: 0.6947762078 | BH178: 32 | BI178: 0.336 | BJ178: 0.79 | BK178: 0.7265361938 | BL178: 36 | BM178: 0.336 | BN178: 22
BE179: 122 | BF179: 0.78 | BG179: 0.6959824822 | BH179: 32 | BI179: 0.332 | BJ179: 0.78 | BK179: 0.7276992184 | BL179: 36 | BM179: 0.332 | BN179: 22
BE180: 123 | BF180: 0.77 | BG180: 0.6971887567 | BH180: 32 | BI180: 0.328 | BJ180: 0.77 | BK180: 0.7288622431 | BL180: 36 | BM180: 0.328 | BN180: 22
BE181: 124 | BF181: 0.76 | BG181: 0.6983950311 | BH181: 32 | BI181: 0.324 | BJ181: 0.76 | BK181: 0.7300252677 | BL181: 36 | BM181: 0.324 | BN181: 22
BE182: 125 | BF182: 0.75 | BG182: 0.6996013056 | BH182: 32 | BI182: 0.32 | BJ182: 0.75 | BK182: 0.7311882924 | BL182: 36 | BM182: 0.32 | BN182: 22
BE183: 126 | BF183: 0.74 | BG183: 0.70080758 | BH183: 32 | BI183: 0.316 | BJ183: 0.74 | BK183: 0.7323513171 | BL183: 36 | BM183: 0.316 | BN183: 22
BE184: 127 | BF184: 0.73 | BG184: 0.7020138545 | BH184: 32 | BI184: 0.312 | BJ184: 0.73 | BK184: 0.7335143417 | BL184: 36 | BM184: 0.312 | BN184: 22
BE185: 128 | BF185: 0.72 | BG185: 0.7032201289 | BH185: 32 | BI185: =MAX($BF$43*BF185-$BF$55,0) -> 0.308 | BJ185: 0.72 | BK185: 0.7346773664 | BL185: 36 | BM185: =MAX($BF$43*BJ185-$BJ$55,0) -> 0.308 | BN185: 22
BE186: 129 | BF186: =1-ABS($BB$38-BG186)/$BK$38 -> 0.71 | BG186: =IF($BP$3,BG185+$BF$54,NA()) -> 0.7044264034 | BH186: =BH185 -> 32 | BI186: 0.304 | BJ186: =1-ABS($BB$42-BK186)/$BK$42 -> 0.71 | BK186: =IF($BP$3,BK185+$BJ$54,NA()) -> 0.735840391 | BL186: =BL185 -> 36 | BM186: 0.304 | BN186: =BN185 -> 22
BE187: 130 | BF187: 0.7 | BG187: 0.7056326778 | BH187: 32 | BI187: 0.3 | BJ187: 0.7 | BK187: 0.7370034157 | BL187: 36 | BM187: 0.3 | BN187: 22
BE188: 131 | BF188: 0.69 | BG188: 0.7068389523 | BH188: 32 | BI188: 0.296 | BJ188: 0.69 | BK188: 0.7381664403 | BL188: 36 | BM188: 0.296 | BN188: 22
BE189: 132 | BF189: 0.68 | BG189: 0.7080452267 | BH189: 32 | BI189: 0.292 | BJ189: 0.68 | BK189: 0.739329465 | BL189: 36 | BM189: 0.292 | BN189: 22
BE190: 133 | BF190: 0.67 | BG190: 0.7092515011 | BH190: 32 | BI190: 0.288 | BJ190: 0.67 | BK190: 0.7404924896 | BL190: 36 | BM190: 0.288 | BN190: 22
BE191: 134 | BF191: 0.66 | BG191: 0.7104577756 | BH191: 32 | BI191: 0.284 | BJ191: 0.66 | BK191: 0.7416555143 | BL191: 36 | BM191: 0.284 | BN191: 22
BE192: 135 | BF192: 0.65 | BG192: 0.71166405 | BH192: 32 | BI192: 0.28 | BJ192: 0.65 | BK192: 0.7428185389 | BL192: 36 | BM192: 0.28 | BN192: 22
BE193: 136 | BF193: 0.64 | BG193: 0.7128703245 | BH193: 32 | BI193: 0.276 | BJ193: 0.64 | BK193: 0.7439815636 | BL193: 36 | BM193: 0.276 | BN193: 22
BE194: 137 | BF194: 0.63 | BG194: 0.7140765989 | BH194: 32 | BI194: 0.272 | BJ194: 0.63 | BK194: 0.7451445882 | BL194: 36 | BM194: 0.272 | BN194: 22
BE195: 138 | BF195: 0.62 | BG195: 0.7152828734 | BH195: 32 | BI195: 0.268 | BJ195: 0.62 | BK195: 0.7463076129 | BL195: 36 | BM195: 0.268 | BN195: 22
BE196: 139 | BF196: 0.61 | BG196: 0.7164891478 | BH196: 32 | BI196: 0.264 | BJ196: 0.61 | BK196: 0.7474706376 | BL196: 36 | BM196: 0.264 | BN196: 22
BE197: 140 | BF197: 0.6 | BG197: 0.7176954223 | BH197: 32 | BI197: 0.26 | BJ197: 0.6 | BK197: 0.7486336622 | BL197: 36 | BM197: 0.26 | BN197: 22
BE198: 141 | BF198: 0.59 | BG198: 0.7189016967 | BH198: 32 | BI198: 0.256 | BJ198: 0.59 | BK198: 0.7497966869 | BL198: 36 | BM198: 0.256 | BN198: 22
BE199: 142 | BF199: 0.58 | BG199: 0.7201079712 | BH199: 32 | BI199: 0.252 | BJ199: 0.58 | BK199: 0.7509597115 | BL199: 36 | BM199: 0.252 | BN199: 22
BE200: 143 | BF200: 0.57 | BG200: 0.7213142456 | BH200: 32 | BI200: 0.248 | BJ200: 0.57 | BK200: 0.7521227362 | BL200: 36 | BM200: 0.248 | BN200: 22
... 57 more rows

Sheet d single group
T1: Meta-Analysis of d | AE1: 4 | AG1: 8 | AT1: 17 ►► | AU1: Scroll right for additional forest plot | BA1: Forest plot showing only studies with data, plus meta-analysis as at 5 | BV1: 1=d,2=dunb | BW1: 2 | CB1: show m0 line? | CC1: TRUE | CE1: MA model? | CF1: 2 | CG1: 1=fixed, 2=random
T2: for a single group | Y2: 3 C | Z2: 95 | AG2: Display zero line | BV2: use dunb? | BW2: =(BW1=2) -> TRUE | CD2: =IF(Y4="","",Y4)&"" ->  | CG2: squash | CJ2: Influence weighted? | CK2: TRUE | CL2: Show MA1 | CM2: =IF(COUNT(CB7:CB36)>1,TRUE,FALSE) -> TRUE
I3: targ p L | J3: targ p U | V3: 6 | W3: Display by weightings | AK3: =Z2/1000000 -> 9.5e-05 | AL3: =$AK$3 -> 9.5e-05 | AM3: 9.5e-05 | AN3: 9.5e-05 | AO3: 9.5e-05 | AP3: 9.5e-05 | AQ3: 9.5e-05 | AR3: 9.5e-05 | AS3: 9.5e-05 | AT3: 9.5e-05 | AU3: 9.5e-05 | AV3: 9.5e-05 | BV3: for bold | BW3: =IF(BW2,-999,999) -> -999 | BX3: =IF(BW2,"A","Z") -> A | BZ3: m0 | CA3: 0 | CD3: =IF(AND(CA3<>"",CC1),CA3,NA()) -> 0 | CE3: 0 | CF3: 33 | CG3: =CP37+0.5 -> 22.5 | CJ3: results as diamond | CK3: TRUE
I4: =(100-Z2)/200 -> 0.025 | J4: =I4 -> 0.025 | S4: 9 | V4: 1 | X4: Click for ES 2 | AB4: 14 | AC4: Variance | AE4: 15 | AI4: 7 Study | AK4: =$AK$3 -> 9.5e-05 | AV4: =$AK$3 -> 9.5e-05 | AW4: 16 CI | AY4: 18 | BW4: C OK? | BX4: =(L37=O37) -> TRUE | CB4: some t? | CD4: for NHST | CE4: TRUE | CH4: fixed or
B5: Calculate CIs using noncentral t | L5: put | O5: grab | U5: Study | AB5: Study | AC5: of chosen | AE5: CI for d | AI5: weighting | AK5: 9.5e-05 | AV5: 9.5e-05 | AW5: MOE | AY5: MOEav | BV5: Data the | BW5: For include | BX5: Display | BZ5: Display | CA5: Valid | CB5: =IF(COUNT(CB7:CB36)=0,FALSE,TRUE) -> TRUE | CC5: Means | CD5: for display | CE5: Bars for | CF5: display | CH5: random | CI5: Random effects model | CL5: First 30 | CO5: squash | CP5: squash | CQ5: Weighted means, green | DA5: Weighted means, green, squashed | DK5: squash
A6: ncp | B6: sqrtN12 | C6: apxncpL | D6: apxncpU | E6: tail L now | F6: tail U now | G6: ncp L | H6: ncp U | I6: tbz L | J6: tbz U | K6: d | L6: N1 | N6: d | O6: N1 | R6: =IF(CE4,"t","") -> t | S6: =IF(CE4,"p","") -> p | U6: no. | V6: Study name | W6: d | X6: dunb | Y6: N | Z6: df | AB6: in? | AC6: ES | AE6: LL | AF6: =IF($Y$4<>"",$Y$4,"") ->  | AG6: UL | AI6: % | AK6: 9.5e-05 | AV6: 9.5e-05 | AW6: lower | AX6: upper | BU6: J | BV6: same? | BW6: checkboxes | BX6: CIs? | BZ6: mean? | CA6: ES | CB6: t | CC6: ES | CD6: y disp | CE6: low | CF6: hi | CG6: Weight | CH6: Weight | CI6: Wt x M | CJ6: Wt^2 | CK6: WtxM^2 | CL6: V* | CM6: W* | CN6: W* x M | CO6: means | CP6: y disp | CQ6: 3 | CR6: 4 | CS6: 6 | CT6: 7 | CU6: 9 | CV6: 10 | CW6: 12 | CX6: 13 | CY6: 15 | DA6: 3 | DB6: 4 | DC6: 6 | DD6: 7 | DE6: 9 | DF6: 10 | DG6: 12 | DH6: 13 | DI6: 15 | DJ6: disp? | DK6: y disp
A7: =IF(BZ7,W7/B7,"") -> 2.34520788 | B7: =IF(BZ7,SQRT(1/Y7),"") -> 0.2132007164 | C7: =IF(BZ7,W7/B7-TINV((100-$Z$2)/100,Z7),"") -> 0.2655940352 | D7: =IF(BZ7,W7/B7+TINV((100-$Z$2)/100,Z7),"") -> 4.424821725 | E7: =IF(BZ7,1-nct(A7,G7,Z7),"") -> 0.02500000048 | F7: =IF(BZ7,nct(A7,H7,Z7),"") -> 0.02500000021 | G7: 0.2376930748 | H7: 4.403440569 | I7: =1000000*(E7-$I$4) -> 0.0004756386604 | J7: =1000000*(F7-$J$4) -> 0.0002114148995 | K7: 0.5 | L7: 22 | N7: =W7 -> 0.5 | O7: =Y7 -> 22 | R7: =IF(AND($CB$5,$CE$4,CB7<>"",$CA$3<>""), CB7,"") -> 2.211083194 | S7: =IF(R7<>"",TDIST(ABS(CB7),Y7-1,2),"") -> 0.03825674545 | T7: =IF(R7<>"",IF(S7<0.001,"***",(IF(S7<0.01,"**",(IF(S7<0.05,"*",(IF(S7<0.1,"?","ns"))))))),"") -> * | U7: 1 | V7: study 1 | W7: 0.5 | X7: =IF(BZ7,W7*BU7,"") -> 0.4818911261 | Y7: 22 | Z7: =IF(BZ7,Y7-1,"") -> 21 | AC7: =IF(BZ7,IF($BW$2,BU7*BU7*(1+W7^2/2)/Y7,(1+W7^2/2)/Y7),"") -> 0.04749935266 | AD7: [ | AE7: =IF(BX7,G7*B7,"") -> 0.05067633382 | AF7: , | AG7: =IF(BX7,H7*B7,"") -> 0.9388166837 | AH7: ] | AI7: =IF(AND(CG7<>"",$CM$2),IF(fixedrandom=1,100*CG7/$CG$37,100*CM7/$CM$37),"") -> 5.586350293 | AK7: 9.5e-05 | AV7: 9.5e-05 | AW7: =IF(BX7,IF($BW$2,X7-AE7,W7-AE7),"") -> 0.4312147923 | AX7: =IF(BX7,IF($BW$2,AG7-X7,AG7-W7),"") -> 0.4569255576 | AY7: =IF(AW7<>"",(AW7+AX7)/2,"") -> 0.444070175 | BU7: =IF(BZ7,EXP(GAMMALN(Z7/2))/(SQRT(Z7/2)*EXP(GAMMALN(Z7/2-0.5))),"") -> 0.9637822523 | BV7: =AND(K7=N7,L7=O7) -> TRUE | BW7: TRUE | BX7: =AND(BV7,BZ7,ISNUMBER(I7),$BX$4) -> TRUE | BY7: 1 | BZ7: =AND(BW7,ABS(W7<=8),W7<>"",Y7>5,Y7<202) -> TRUE | CA7: =IF(BZ7,IF($BW$2,X7,W7),"") -> 0.4818911261 | CB7: =IF(BZ7,(W7-$CA$3)/SQRT((1+W7^2/2)/Y7),"") -> 2.211083194 | CC7: =IF(AND(NOT($CK$2),BZ7),IF($BW$2,X7,W7),NA()) ->  | CD7: =IF(BZ7,BY7,NA()) -> 1 | CE7: =IF(AW7<>"",AW7,NA()) -> 0.4312147923 | CF7: =IF(AX7<>"",AX7,NA()) -> 0.4569255576 | CG7: =IF(BZ7,1/AC7,"") -> 21.05291849 | CH7: =IF(fixedrandom=1,CG7,CM7) -> 0.5590854226 | CI7: =IF(BZ7,CA7*CG7,"") -> 10.1452146 | CJ7: =IF(BZ7,CG7*CG7,"") -> 443.225377 | CK7: =IF(BZ7,CA7^2*CG7,"") -> 4.888888889 | CL7: =IF(CG7<>"",1/CG7+$CD$47,"") -> 1.788635439 | CM7: =IF(CG7<>"",1/CL7,"") -> 0.5590854226 | CN7: =IF(CG7<>"",CM7*CA7,"") -> 0.2694183039 | CO7: =IF(AND(NOT($CK$2),BZ7),IF($BW$2,X7,W7),NA()) ->  | CP7: =DK7 -> 1 | CQ7: =IF(AND(CH7<=$CR$40,$CK$2),IF($BW$2,X7,W7),NA()) ->  | CR7: =IF(AND(CH7>$CR$40,CH7<=$CR$41,$CK$2),IF($BW$2,X7,W7),NA()) ->  | CS7: =IF(AND(CH7>$CR$41,CH7<=$CR$42,$CK$2),IF($BW$2,X7,W7),NA()) ->  | CT7: =IF(AND(CH7>$CR$42,CH7<=$CR$43,$CK$2),IF($BW$2,X7,W7),NA()) ->  | CU7: =IF(AND(CH7>$CR$43,CH7<=$CR$44,$CK$2),IF($BW$2,X7,W7),NA()) ->  | CV7: =IF(AND(CH7>$CR$44,CH7<=$CR$45,$CK$2),IF($BW$2,X7,W7),NA()) ->  | CW7: =IF(AND(CH7>$CR$45,CH7<=$CR$46,$CK$2),IF($BW$2,X7,W7),NA()) ->  | CX7: =IF(AND(CH7>$CR$46,CH7<=$CR$47,$CK$2),IF($BW$2,X7,W7),NA()) ->  | CY7: =IF(AND(CH7<>"",CH7>$CR$47,$CK$2),IF($BW$2,X7,W7),NA()) -> 0.4818911261 | CZ7: 1 | DA7: =IF(AND(CH7<=$CR$40,$CK$2),IF($BW$2,X7,W7),NA()) ->  | DB7: =IF(AND(CH7>$CR$40,CH7<=$CR$41,$CK$2),IF($BW$2,X7,W7),NA()) ->  | DC7: =IF(AND(CH7>$CR$41,CH7<=$CR$42,$CK$2),IF($BW$2,X7,W7),NA()) ->  | DD7: =IF(AND(CH7>$CR$42,CH7<=$CR$43,$CK$2),IF($BW$2,X7,W7),NA()) ->  | DE7: =IF(AND(CH7>$CR$43,CH7<=$CR$44,$CK$2),IF($BW$2,X7,W7),NA()) ->  | DF7: =IF(AND(CH7>$CR$44,CH7<=$CR$45,$CK$2),IF($BW$2,X7,W7),NA()) ->  | DG7: =IF(AND(CH7>$CR$45,CH7<=$CR$46,$CK$2),IF($BW$2,X7,W7),NA()) ->  | DH7: =IF(AND(CH7>$CR$46,CH7<=$CR$47,$CK$2),IF($BW$2,X7,W7),NA()) ->  | DI7: =IF(AND(CH7<>"",CH7>$CR$47,$CK$2),IF($BW$2,X7,W7),NA()) -> 0.4818911261 | DJ7: =IF(CB7="",0,1) -> 1 | DK7: =IF(DJ7=0,NA(),SUM($DJ$7:DJ7)) -> 1
A8: 1.658312395 | B8: 0.3015113446 | C8: -0.5698264568 | D8: 3.886451247 | E8: 0.02500000001 | F8: 0.025 | G8: -0.4647578199 | H8: 3.709362639 | I8: 5.427124028e-06 | J8: -1.072961164e-06 | K8: 0.5 | L8: 11 | N8: 0.5 | O8: 11 | R8: 1.56347192 | S8: 0.1490069732 | T8: ns | U8: 2 | V8: study 2 | W8: 0.5 | X8: =IF(BZ8,W8*BU8,"") -> 0.461372804 | Y8: 11 | Z8: 10 | AC8: 0.08708108085 | AD8: [ | AE8: =IF(BX8,G8*B8,"") -> -0.1401297552 | AF8: , | AG8: =IF(BX8,H8*B8,"") -> 1.118414917 | AH8: ] | AI8: 5.465403283 | AK8: 9.5e-05 | AV8: 9.5e-05 | AW8: 0.6015025592 | AX8: 0.6570421128 | AY8: =IF(AW8<>"",(AW8+AX8)/2,"") -> 0.629272336 | BU8: =IF(BZ8,EXP(GAMMALN(Z8/2))/(SQRT(Z8/2)*EXP(GAMMALN(Z8/2-0.5))),"") -> 0.9227456081 | BV8: TRUE | BW8: TRUE | BX8: TRUE | BY8: 2 | BZ8: TRUE | CA8: 0.461372804 | CB8: =IF(BZ8,(W8-$CA$3)/SQRT((1+W8^2/2)/Y8),"") -> 1.56347192 | CD8: 2 | CE8: 0.6015025592 | CF8: 0.6570421128 | CG8: 11.48355062 | CH8: 0.5469809704 | CI8: 5.29819795 | CJ8: 131.8719349 | CK8: 2.444444444 | CL8: 1.828217167 | CM8: 0.5469809704 | CN8: 0.2523621441 | CP8: 2 | CY8: 0.461372804 | CZ8: 2 | DI8: 0.461372804 | DJ8: 1 | DK8: =IF(DJ8=0,NA(),SUM($DJ$7:DJ8)) -> 2
A9: 7.589466384 | B9: 0.158113883 | C9: 5.566775464 | D9: 9.612157304 | E9: 0.02500000001 | F9: 0.025 | G9: 4.980280406 | H9: 10.1412288 | I9: 5.605758913e-06 | J9: 2.249034292e-07 | K9: 1.2 | L9: 40 | N9: 1.2 | O9: 40 | R9: 5.786913866 | S9: 1.023859057e-06 | T9: *** | U9: 3 | V9: study 3 | W9: 1.2 | X9: 1.176749086 | Y9: 40 | Z9: 39 | AC9: 0.04134982759 | AD9: [ | AE9: 0.7874514735 | AF9: , | AG9: 1.603469065 | AH9: ] | AI9: 5.60562304 | AK9: 9.5e-05 | AV9: 9.5e-05 | AW9: 0.3892976129 | AX9: 0.4267199784 | AY9: 0.4080087957 | BU9: 0.9806242387 | BV9: TRUE | BW9: TRUE | BX9: TRUE | BY9: 3 | BZ9: TRUE | CA9: 1.176749086 | CB9: 5.786913866 | CD9: 3 | CE9: 0.3892976129 | CF9: 0.4267199784 | CG9: 24.18389769 | CH9: 0.5610142512 | CI9: 28.45837951 | CJ9: 584.8609075 | CK9: 33.48837209 | CL9: 1.782485913 | CM9: 0.5610142512 | CN9: 0.6601730076 | CP9: 3 | CY9: 1.176749086 | CZ9: 3 | DI9: 1.176749086 | DJ9: 1 | DK9: =IF(DJ9=0,NA(),SUM($DJ$7:DJ9)) -> 3
A10: 7.155417528 | B10: 0.1118033989 | C10: 5.164967318 | D10: 9.145867738 | E10: 0.02500000002 | F10: 0.025 | G10: 4.883696483 | H10: 9.392467186 | I10: 2.498725532e-05 | J10: 7.183489914e-07 | K10: 0.8 | L10: 80 | N10: 0.8 | O10: 80 | R10: 6.227991553 | S10: 2.140078702e-08 | T10: *** | U10: 4 | V10: study 4 | W10: 0.8 | X10: 0.7923769094 | Y10: 80 | Z10: 79 | AC10: 0.0161870457 | AD10: [ | AE10: 0.5460138658 | AF10: , | AG10: 1.050109755 | AH10: ] | AI10: 5.68588891 | AK10: 9.5e-05 | AV10: 9.5e-05 | AW10: 0.2463630436 | AX10: 0.2577328458 | AY10: 0.2520479447 | BU10: 0.9904711368 | BV10: TRUE | BW10: TRUE | BX10: TRUE | BY10: 4 | BZ10: TRUE | CA10: 0.7923769094 | CB10: 6.227991553 | CD10: 4 | CE10: 0.2463630436 | CF10: 0.2577328458 | CG10: 61.77779556 | CH10: 0.5690473095 | CI10: 48.95129871 | CJ10: 3816.496024 | CK10: 38.78787879 | CL10: 1.757323132 | CM10: 0.5690473095 | CN10: 0.4508999485 | CP10: 4 | CY10: 0.7923769094 | CZ10: 4 | DI10: 0.7923769094 | DJ10: 1 | DK10: =IF(DJ10=0,NA(),SUM($DJ$7:DJ10)) -> 4
A11: 9.192388155 | B11: 0.1414213562 | C11: 7.182812918 | D11: 11.20196339 | E11: 0.02500000004 | F11: 0.025 | G11: 6.495103282 | H11: 11.83760901 | I11: 3.665825282e-05 | J11: 2.929111814e-06 | K11: 1.3 | L11: 50 | N11: 1.3 | O11: 50 | R11: 6.767529682 | S11: 1.52043111e-08 | T11: *** | U11: 5 | V11: study 5 | W11: 1.3 | X11: 1.27998283 | Y11: 50 | Z11: 49 | AC11: 0.03577238941 | AD11: [ | AE11: 0.9185463151 | AF11: , | AG11: 1.674090721 | AH11: ] | AI11: 5.623218215 | AK11: 9.5e-05 | AV11: 9.5e-05 | AW11: 0.3614365153 | AX11: 0.3941078902 | AY11: 0.3777722027 | BU11: 0.9846021772 | BV11: TRUE | BW11: TRUE | BX11: TRUE | BY11: 5 | BZ11: TRUE | CA11: 1.27998283 | CB11: 6.767529682 | CD11: 5 | CE11: 0.3614365153 | CF11: 0.3941078902 | CG11: 27.95452069 | CH11: 0.5627751873 | CI11: 35.78130652 | CJ11: 781.4552272 | CK11: 45.79945799 | CL11: 1.776908475 | CM11: 0.5627751873 | CN11: 0.7203425771 | CP11: 5 | CY11: 1.27998283 | CZ11: 5 | DI11: 1.27998283 | DJ11: 1 | DK11: =IF(DJ11=0,NA(),SUM($DJ$7:DJ11)) -> 5
A12: 4.489988864 | B12: 0.2672612419 | C12: 2.329620208 | D12: 6.650357521 | E12: 0.02500000006 | F12: 0.02500000016 | G12: 1.841822234 | H12: 7.040891997 | I12: 5.594127245e-05 | J12: 0.0001636767527 | K12: 1.2 | L12: 14 | N12: 1.2 | O12: 14 | R12: 3.423584413 | S12: 0.004532265332 | T12: ** | U12: 6 | V12: study 6 | W12: 1.2 | X12: 1.129178961 | Y12: 14 | Z12: 13 | AC12: 0.1087836119 | AD12: [ | AE12: 0.4922476976 | AF12: , | AG12: 1.881757539 | AH12: ] | AI12: 5.401285319 | AK12: 9.5e-05 | AV12: 9.5e-05 | AW12: 0.6369312633 | AX12: 0.7525785782 | AY12: 0.6947549208 | BU12: 0.9409824675 | BV12: TRUE | BW12: TRUE | BX12: TRUE | BY12: 6 | BZ12: TRUE | CA12: 1.129178961 | CB12: 3.423584413 | CD12: 6 | CE12: 0.6369312633 | CF12: 0.7525785782 | CG12: 9.192561106 | CH12: 0.5405640046 | CI12: 10.3800466 | CJ12: 84.50317969 | CK12: 11.72093023 | CL12: 1.849919698 | CM12: 0.5405640046 | CN12: 0.610393501 | CP12: 6 | CY12: 1.129178961 | CZ12: 6 | DI12: 1.129178961 | DJ12: 1 | DK12: =IF(DJ12=0,NA(),SUM($DJ$7:DJ12)) -> 6
A13: 7.416198487 | B13: 0.1348399725 | C13: 5.411319199 | D13: 9.421077775 | E13: 0.025 | F13: 0.02500000016 | G13: 4.987102797 | H13: 9.798886543 | I13: 4.842654056e-08 | J13: 0.000162463494 | K13: 1 | L13: 55 | N13: 1 | O13: 55 | R13: 6.055300708 | S13: 1.390240177e-07 | T13: *** | U13: 7 | V13: study 7 | W13: 1 | X13: 0.9860356509 | Y13: 55 | Z13: 54 | AC13: 0.02651635377 | AD13: [ | AE13: 0.6724608039 | AF13: , | AG13: 1.321281592 | AH13: ] | AI13: 5.652663318 | AK13: 9.5e-05 | AV13: 9.5e-05 | AW13: 0.313574847 | AX13: 0.335245941 | AY13: 0.324410394 | BU13: 0.9860356509 | BV13: TRUE | BW13: TRUE | BX13: TRUE | BY13: 7 | BZ13: TRUE | CA13: 0.9860356509 | CB13: 6.055300708 | CD13: 7 | CE13: 0.313574847 | CF13: 0.335245941 | CG13: 37.71257574 | CH13: 0.5657220716 | CI13: 37.18594417 | CJ13: 1422.238369 | CK13: 36.66666667 | CL13: 1.76765244 | CM13: 0.5657220716 | CN13: 0.5578221311 | CP13: 7 | CY13: 0.9860356509 | CZ13: 7 | DI13: 0.9860356509 | DJ13: 1 | DK13: =IF(DJ13=0,NA(),SUM($DJ$7:DJ13)) -> 7
A14: 11.48912529 | B14: 0.174077656 | C14: 9.45219195 | D14: 13.52605864 | E14: 0.02500000001 | F14: 0.025 | G14: 8.038362912 | H14: 14.87740184 | I14: 7.916688138e-06 | J14: 7.491507414e-07 | K14: 2 | L14: 33 | N14: 2 | O14: 33 | R14: 6.633249581 | S14: 1.758615282e-07 | T14: *** | U14: 8 | V14: study 8 | W14: 2 | X14: 1.952693521 | Y14: 33 | Z14: 32 | AC14: 0.08665936332 | AD14: [ | AE14: 1.399299373 | AF14: , | AG14: 2.589823239 | AH14: ] | AI14: 5.466664287 | AK14: 9.5e-05 | AV14: 9.5e-05 | AW14: 0.5533941473 | AX14: 0.6371297179 | AY14: 0.5952619326 | BU14: 0.9763467604 | BV14: TRUE | BW14: TRUE | BX14: TRUE | BY14: 8 | BZ14: TRUE | CA14: 1.952693521 | CB14: 6.633249581 | CD14: 8 | CE14: 0.5533941473 | CF14: 0.6371297179 | CG14: 11.53943396 | CH14: 0.5471071724 | CI14: 22.53297793 | CJ14: 133.1585361 | CK14: 44 | CL14: 1.827795449 | CM14: 0.5471071724 | CN14: 1.068332631 | CP14: 8 | CY14: 1.952693521 | CZ14: 8 | DI14: 1.952693521 | DJ14: 1 | DK14: =IF(DJ14=0,NA(),SUM($DJ$7:DJ14)) -> 8
A15: 27.71281292 | B15: 0.2886751346 | C15: 25.51182776 | D15: 29.91379808 | E15: 0.025 | F15: 0.025 | G15: 16.13425619 | H15: 39.27192992 | I15: 9.839004611e-07 | J15: 9.125339373e-08 | K15: 8 | L15: 12 | N15: 8 | O15: 12 | R15: 4.824181513 | S15: 0.0005323019896 | T15: *** | U15: 9 | V15: study 9 | W15: 8 | X15: 7.43967848 | Y15: 12 | Z15: 11 | AC15: 2.378269432 | AD15: [ | AE15: 4.657558577 | AF15: , | AG15: 11.33682965 | AH15: ] | AI15: 2.425579143 | AK15: 9.5e-05 | AV15: 9.5e-05 | AW15: 2.782119903 | AX15: 3.897151175 | AY15: 3.339635539 | BU15: 0.92995981 | BV15: TRUE | BW15: TRUE | BX15: TRUE | BY15: 9 | BZ15: TRUE | CA15: 7.43967848 | CB15: 4.824181513 | CD15: 9 | CE15: 2.782119903 | CF15: 3.897151175 | CG15: 0.420473806 | CH15: 0.2427534739 | CI15: 3.128189926 | CJ15: 0.1767982215 | CK15: 23.27272727 | CL15: 4.119405518 | CM15: 0.2427534739 | CN15: 1.806007796 | CP15: 9 | CV15: 7.43967848 | CZ15: 9 | DF15: 7.43967848 | DJ15: 1 | DK15: =IF(DJ15=0,NA(),SUM($DJ$7:DJ15)) -> 9
A16: -9.949874371 | B16: 0.3015113446 | C16: -12.17801322 | D16: -7.721735519 | E16: 0.02500000038 | F16: 0.02500000002 | G16: -14.62895109 | H16: -5.194244592 | I16: 0.0003819064162 | J16: 2.170897143e-05 | K16: -3 | L16: 11 | N16: -3 | O16: 11 | R16: -4.242640687 | S16: 0.001709271567 | T16: ** | U16: 10 | V16: study 10 | W16: -3 | X16: -2.768236824 | Y16: 11 | Z16: 10 | AC16: 0.4257297286 | AD16: [ | AE16: -4.410794712 | AF16: , | AG16: -1.566123671 | AH16: ] | AI16: 4.611242671 | AK16: 9.5e-05 | AV16: 9.5e-05 | AW16: 1.642557888 | AX16: 1.202113153 | AY16: 1.42233552 | BU16: 0.9227456081 | BV16: TRUE | BW16: TRUE | BX16: TRUE | BY16: 10 | BZ16: TRUE | CA16: -2.768236824 | CB16: -4.242640687 | CD16: 10 | CE16: 1.642557888 | CF16: 1.202113153 | CG16: 2.348908081 | CH16: 0.4614960434 | CI16: -6.502333848 | CJ16: 5.517369175 | CK16: 18 | CL16: 2.166865814 | CM16: 0.4614960434 | CN16: -1.277530342 | CP16: 10 | CX16: -2.768236824 | CZ16: 10 | DH16: -2.768236824 | DJ16: 1 | DK16: =IF(DJ16=0,NA(),SUM($DJ$7:DJ16)) -> 10
A17: -4.582575695 | B17: 0.2182178902 | C17: -6.668539142 | D17: -2.496612248 | E17: 0.02500000001 | F17: 0.025 | G17: -6.959557682 | H17: -2.129831615 | I17: 8.838284271e-06 | J17: 3.228667333e-08 | K17: -1 | L17: 21 | N17: -1 | O17: 21 | R17: -3.741657387 | S17: 0.001286134533 | T17: ** | U17: 11 | V17: study 11 | W17: -1 | X17: -0.9619445337 | Y17: 21 | Z17: 20 | AC17: 0.06609552043 | AD17: [ | AE17: -1.518699994 | AF17: , | AG17: -0.4647673615 | AH17: ] | AI17: 5.528867507 | AK17: 9.5e-05 | AV17: 9.5e-05 | AW17: 0.5567554605 | AX17: 0.4971771722 | AY17: 0.5269663164 | BU17: 0.9619445337 | BV17: TRUE | BW17: TRUE | BX17: TRUE | BY17: 11 | BZ17: TRUE | CA17: -0.9619445337 | CB17: -3.741657387 | CD17: 11 | CE17: 0.5567554605 | CF17: 0.4971771722 | CG17: 15.12961837 | CH17: 0.5533325095 | CI17: -14.55385369 | CJ17: 228.905352 | CK17: 14 | CL17: 1.807231606 | CM17: 0.5533325095 | CN17: -0.5322751829 | CP17: 11 | CY17: -0.9619445337 | CZ17: 11 | DI17: -0.9619445337 | DJ17: 1 | DK17: =IF(DJ17=0,NA(),SUM($DJ$7:DJ17)) -> 11
A18: -16.24807681 | B18: 0.123091491 | C18: -18.24521472 | D18: -14.2509389 | E18: 0.025 | F18: 0.02500000001 | G18: -19.63276722 | H18: -12.81857818 | I18: 1.038856501e-06 | J18: 6.196841651e-06 | K18: -2 | L18: 66 | N18: -2 | O18: 66 | R18: -9.38083152 | S18: 1.062829277e-13 | T18: *** | U18: 12 | V18: study 12 | W18: -2 | X18: -1.976819018 | Y18: 66 | Z18: 65 | AC18: 0.04440697079 | AD18: [ | AE18: -2.416626589 | AF18: , | AG18: -1.5778579 | AH18: ] | AI18: 5.596025292 | AK18: 9.5e-05 | AV18: 9.5e-05 | AW18: 0.4398075715 | AX18: 0.3989611179 | AY18: 0.4193843447 | BU18: 0.9884095089 | BV18: TRUE | BW18: TRUE | BX18: TRUE | BY18: 12 | BZ18: TRUE | CA18: -1.976819018 | CB18: -9.38083152 | CD18: 12 | CE18: 0.4398075715 | CF18: 0.3989611179 | CG18: 22.51898705 | CH18: 0.5600537026 | CI18: -44.51596186 | CJ18: 507.1047776 | CK18: 88 | CL18: 1.785543057 | CM18: 0.5600537026 | CN18: -1.10712481 | CP18: 12 | CY18: -1.976819018 | CZ18: 12 | DI18: -1.976819018 | DJ18: 1 | DK18: =IF(DJ18=0,NA(),SUM($DJ$7:DJ18)) -> 12
A19: -48.57610009 | B19: 0.1348399725 | C19: -50.58097938 | D19: -46.5712208 | E19: 0.02500000002 | F19: 0.02500000003 | G19: -57.90064138 | H19: -39.21517399 | I19: 2.156343853e-05 | J19: 3.086189637e-05 | K19: -6.55 | L19: 55 | N19: -6.55 | O19: 55 | R19: -10.25185327 | S19: 2.814269857e-14 | T19: *** | U19: 13 | V19: study 13 | W19: -6.55 | X19: -6.458533514 | Y19: 55 | Z19: 54 | AC19: 0.3968835251 | AD19: [ | AE19: -7.807320891 | AF19: , | AG19: -5.287772982 | AH19: ] | AI19: 4.673457649 | AK19: 9.5e-05 | AV19: 9.5e-05 | AW19: 1.348787377 | AX19: 1.170760532 | AY19: 1.259773954 | BU19: 0.9860356509 | BV19: TRUE | BW19: TRUE | BX19: TRUE | BY19: 13 | BZ19: TRUE | CA19: -6.458533514 | CB19: -10.25185327 | CD19: 13 | CE19: 1.348787377 | CF19: 1.170760532 | CG19: 2.519630916 | CH19: 0.4677225573 | CI19: -16.27312072 | CJ19: 6.348539955 | CK19: 105.1004955 | CL19: 2.138019611 | CM19: 0.4677225573 | CN19: -3.020801812 | CP19: 13 | CX19: -6.458533514 | CZ19: 13 | DH19: -6.458533514 | DJ19: 1 | DK19: =IF(DJ19=0,NA(),SUM($DJ$7:DJ19)) -> 13
A20: 8.623224455 | B20: 0.1507556723 | C20: 6.606532256 | D20: 10.63991665 | E20: 0.02500000004 | F20: 0.025 | G20: 5.922982585 | H20: 11.26796763 | I20: 3.656543818e-05 | J20: 2.557936502e-06 | K20: 1.3 | L20: 44 | N20: 1.3 | O20: 44 | R20: 6.348505575 | S20: 1.137310954e-07 | T20: *** | U20: 14 | V20: study 14 | W20: 1.3 | X20: 1.277170644 | Y20: 44 | Z20: 43 | AC20: 0.0404720166 | AD20: [ | AE20: 0.8929232216 | AF20: , | AG20: 1.698710036 | AH20: ] | AI20: 5.60838497 | AK20: 9.5e-05 | AV20: 9.5e-05 | AW20: 0.3842474223 | AX20: 0.421539392 | AY20: 0.4028934071 | BU20: 0.9824389568 | BV20: TRUE | BW20: TRUE | BX20: TRUE | BY20: 14 | BZ20: TRUE | CA20: 1.277170644 | CB20: 6.348505575 | CD20: 14 | CE20: 0.3842474223 | CF20: 0.421539392 | CG20: 24.70843027 | CH20: 0.5612906669 | CI20: 31.55688179 | CJ20: 610.5065262 | CK20: 40.30352304 | CL20: 1.781608102 | CM20: 0.5612906669 | CN20: 0.7168639624 | CP20: 14 | CY20: 1.277170644 | CZ20: 14 | DI20: 1.277170644 | DJ20: 1 | DK20: =IF(DJ20=0,NA(),SUM($DJ$7:DJ20)) -> 14
A21: 12.06358156 | B21: 0.174077656 | C21: 10.02664821 | D21: 14.1005149 | E21: 0.02500000002 | F21: 0.025 | G21: 8.497551951 | H21: 15.56785492 | I21: 1.95625946e-05 | J21: 2.203761479e-06 | K21: 2.1 | L21: 33 | N21: 2.1 | O21: 33 | R21: 6.738484717 | S21: 1.30346557e-07 | T21: *** | U21: 15 | V21: study 15 | W21: 2.1 | X21: 2.050328197 | Y21: 33 | Z21: 32 | AC21: 0.09258108648 | AD21: [ | AE21: 1.479233925 | AF21: , | AG21: 2.710015692 | AH21: ] | AI21: 5.449010489 | AK21: 9.5e-05 | AV21: 9.5e-05 | AW21: 0.5710942718 | AX21: 0.6596874953 | AY21: 0.6153908835 | BU21: 0.9763467604 | BV21: TRUE | BW21: TRUE | BX21: TRUE | BY21: 15 | BZ21: TRUE | CA21: 2.050328197 | CB21: 6.738484717 | CD21: 15 | CE21: 0.5710942718 | CF21: 0.6596874953 | CG21: 10.80134224 | CH21: 0.5453403693 | CI21: 22.14629656 | CJ21: 116.6689942 | CK21: 45.40717629 | CL21: 1.833717172 | CM21: 0.5453403693 | CN21: 1.118126736 | CP21: 15 | CY21: 2.050328197 | CZ21: 15 | DI21: 2.050328197 | DJ21: 1 | DK21: =IF(DJ21=0,NA(),SUM($DJ$7:DJ21)) -> 15
A22: 8.442748368 | B22: 0.2132007164 | C22: 6.363134523 | D22: 10.52236221 | E22: 0.025 | F22: 0.025 | G22: 5.199117118 | H22: 11.609182 | I22: 1.921816872e-06 | J22: 2.361999485e-08 | K22: 1.8 | L22: 22 | N22: 1.8 | O22: 22 | R22: 5.215947361 | S22: 3.605884604e-05 | T22: *** | U22: 16 | V22: study 16 | W22: 1.8 | X22: 1.734808054 | Y22: 22 | Z22: 21 | AC22: 0.1106207146 | AD22: [ | AE22: 1.108455494 | AF22: , | AG22: 2.475085918 | AH22: ] | AI22: 5.395926777 | AK22: 9.5e-05 | AV22: 9.5e-05 | AW22: 0.62635256 | AX22: 0.7402778636 | AY22: 0.6833152118 | BU22: 0.9637822523 | BV22: TRUE | BW22: TRUE | BX22: TRUE | BY22: 16 | BZ22: TRUE | CA22: 1.734808054 | CB22: 5.215947361 | CD22: 16 | CE22: 0.62635256 | CF22: 0.7402778636 | CG22: 9.039898207 | CH22: 0.5400277184 | CI22: 15.68248822 | CJ22: 81.7197596 | CK22: 27.20610687 | CL22: 1.8517568 | CM22: 0.5400277184 | CN22: 0.9368444353 | CP22: 16 | CY22: 1.734808054 | CZ22: 16 | DI22: 1.734808054 | DJ22: 1 | DK22: =IF(DJ22=0,NA(),SUM($DJ$7:DJ22)) -> 16
A23: 4.898979486 | B23: 0.4082482905 | C23: 2.32839765 | D23: 7.469561321 | E23: 0.02500000019 | F23: 0.02500000001 | G23: 1.306991385 | H23: 8.374975338 | I23: 0.0001882564313 | J23: 9.258638994e-06 | K23: 2 | L23: 6 | N23: 2 | O23: 6 | R23: 2.828427125 | S23: 0.03674259801 | T23: * | U23: 17 | V23: study 17 | W23: 2 | X23: 1.681497365 | Y23: 6 | Z23: 5 | AC23: 0.3534291735 | AD23: [ | AE23: 0.5335769985 | AF23: , | AG23: 3.419069364 | AH23: ] | AI23: 4.770414319 | AK23: 9.5e-05 | AV23: 9.5e-05 | AW23: 1.147920366 | AX23: 1.737572 | AY23: 1.442746183 | BU23: 0.8407486825 | BV23: TRUE | BW23: TRUE | BX23: TRUE | BY23: 17 | BZ23: TRUE | CA23: 1.681497365 | CB23: 2.828427125 | CD23: 17 | CE23: 1.147920366 | CF23: 1.737572 | CG23: 2.829421211 | CH23: 0.4774260413 | CI23: 4.75766431 | CJ23: 8.005624387 | CK23: 8 | CL23: 2.094565259 | CM23: 0.4774260413 | CN23: 0.8027906304 | CP23: 17 | CX23: 1.681497365 | CZ23: 17 | DH23: 1.681497365 | DJ23: 1 | DK23: =IF(DJ23=0,NA(),SUM($DJ$7:DJ23)) -> 17
A24: 7.937253933 | B24: 0.377964473 | C24: 5.490342082 | D24: 10.38416578 | E24: 0.02500000003 | F24: 0.02500000026 | G24: 3.116038998 | H24: 12.68874336 | I24: 2.932511872e-05 | J24: 0.0002593308172 | K24: 3 | L24: 7 | N24: 3 | O24: 7 | R24: 3.384456449 | S24: 0.01477631259 | T24: * | U24: 18 | V24: study 18 | W24: 3 | X24: 2.605880063 | Y24: 7 | Z24: 6 | AC24: 0.5928311108 | AD24: [ | AE24: 1.177752038 | AF24: , | AG24: 4.795894198 | AH24: ] | AI24: 4.281098774 | AK24: 9.5e-05 | AV24: 9.5e-05 | AW24: 1.428128026 | AX24: 2.190014134 | AY24: 1.80907108 | BU24: 0.8686266878 | BV24: TRUE | BW24: TRUE | BX24: TRUE | BY24: 18 | BZ24: TRUE | CA24: 2.605880063 | CB24: 3.384456449 | CD24: 18 | CE24: 1.428128026 | CF24: 2.190014134 | CG24: 1.686821055 | CH24: 0.4284550363 | CI24: 4.395653359 | CJ24: 2.845365273 | CK24: 11.45454545 | CL24: 2.333967197 | CM24: 0.4284550363 | CN24: 1.116502437 | CP24: 18 | CX24: 2.605880063 | CZ24: 18 | DH24: 2.605880063 | DJ24: 1 | DK24: =IF(DJ24=0,NA(),SUM($DJ$7:DJ24)) -> 18
A25: 11.3137085 | B25: 0.3535533906 | C25: 8.949084247 | D25: 13.67833275 | E25: 0.02500000075 | F25: 0.025 | G25: 5.185757784 | H25: 17.39851192 | I25: 0.0007502025876 | J25: 4.564737477e-06 | K25: 4 | L25: 8 | N25: 4 | O25: 8 | R25: 3.771236166 | S25: 0.006971654944 | T25: ** | U25: 19 | V25: study 19 | W25: 4 | X25: 3.552811631 | Y25: 8 | Z25: 7 | AC25: 0.8875174558 | AD25: [ | AE25: 1.833442247 | AF25: , | AG25: 6.151302881 | AH25: ] | AI25: 3.80116434 | AK25: 9.5e-05 | AV25: 9.5e-05 | AW25: 1.719369383 | AX25: 2.598491251 | AY25: 2.158930317 | BU25: 0.8882029077 | BV25: TRUE | BW25: TRUE | BX25: TRUE | BY25: 19 | BZ25: TRUE | CA25: 3.552811631 | CB25: 3.771236166 | CD25: 19 | CE25: 1.719369383 | CF25: 2.598491251 | CG25: 1.126738402 | CH25: 0.3804228987 | CI25: 4.0030893 | CJ25: 1.269539427 | CK25: 14.22222222 | CL25: 2.628653542 | CM25: 0.3804228987 | CN25: 1.351570899 | CP25: 19 | CW25: 3.552811631 | CZ25: 19 | DG25: 3.552811631 | DJ25: 1 | DK25: =IF(DJ25=0,NA(),SUM($DJ$7:DJ25)) -> 19
A26: 15 | B26: 0.3333333333 | C26: 12.69399586 | D26: 17.30600414 | E26: 0.025 | F26: 0.02500000011 | G26: 7.529512592 | H26: 22.4413347 | I26: 9.228035003e-08 | J26: 0.0001122078021 | K26: 5 | L26: 9 | N26: 5 | O26: 9 | R26: 4.082482905 | S26: 0.003522020859 | T26: ** | U26: 20 | V26: study 20 | W26: 5 | X26: 4.513516668 | Y26: 9 | Z26: 8 | AC26: 1.222309963 | AD26: [ | AE26: 2.509837531 | AF26: , | AG26: 7.4804449 | AH26: ] | AI26: 3.371731403 | AK26: 9.5e-05 | AV26: 9.5e-05 | AW26: 2.003679138 | AX26: 2.966928232 | AY26: 2.485303685 | BU26: 0.9027033337 | BV26: TRUE | BW26: TRUE | BX26: TRUE | BY26: 20 | BZ26: TRUE | CA26: 4.513516668 | CB26: 4.082482905 | CD26: 20 | CE26: 2.003679138 | CF26: 2.966928232 | CG26: 0.8181230869 | CH26: 0.3374449825 | CI26: 3.692612189 | CJ26: 0.6693253853 | CK26: 16.66666667 | CL26: 2.963446049 | CM26: 0.3374449825 | CN26: 1.523063553 | CP26: 20 | CW26: 4.513516668 | CZ26: 20 | DG26: 4.513516668 | DJ26: 1 | DK26: =IF(DJ26=0,NA(),SUM($DJ$7:DJ26)) -> 20
K27: 0 | L27: 0 | N27: 0 | O27: 0 | U27: 21 | V27: study 21 | AD27: [ | AF27: , | AH27: ] | AK27: 9.5e-05 | AV27: 9.5e-05 | BV27: TRUE | BW27: TRUE | BX27: FALSE | BY27: 21 | BZ27: FALSE | CZ27: 21 | DJ27: 0 | DK27: =IF(DJ27=0,NA(),SUM($DJ$7:DJ27)) -> 
K28: 0 | L28: 0 | N28: 0 | O28: 0 | U28: 22 | V28: study 22 | AD28: [ | AF28: , | AH28: ] | AK28: 9.5e-05 | AV28: 9.5e-05 | BV28: TRUE | BW28: TRUE | BX28: FALSE | BY28: 22 | BZ28: FALSE | CZ28: 22 | DJ28: 0 | DK28: =IF(DJ28=0,NA(),SUM($DJ$7:DJ28)) -> 
K29: 0 | L29: 0 | N29: 0 | O29: 0 | U29: 23 | V29: study 23 | AD29: [ | AF29: , | AH29: ] | AK29: 9.5e-05 | AV29: 9.5e-05 | BV29: TRUE | BW29: TRUE | BX29: FALSE | BY29: 23 | BZ29: FALSE | CZ29: 23 | DJ29: 0 | DK29: =IF(DJ29=0,NA(),SUM($DJ$7:DJ29)) -> 
K30: 0 | L30: 0 | N30: 0 | O30: 0 | U30: 24 | V30: study 24 | AD30: [ | AF30: , | AH30: ] | AK30: 9.5e-05 | AV30: 9.5e-05 | BV30: TRUE | BW30: TRUE | BX30: FALSE | BY30: 24 | BZ30: FALSE | CZ30: 24 | DJ30: 0 | DK30: =IF(DJ30=0,NA(),SUM($DJ$7:DJ30)) -> 
K31: 0 | L31: 0 | N31: 0 | O31: 0 | U31: 25 | V31: study 25 | AD31: [ | AF31: , | AH31: ] | AK31: 9.5e-05 | AV31: 9.5e-05 | BV31: TRUE | BW31: TRUE | BX31: FALSE | BY31: 25 | BZ31: FALSE | CZ31: 25 | DJ31: 0 | DK31: =IF(DJ31=0,NA(),SUM($DJ$7:DJ31)) -> 
K32: 0 | L32: 0 | N32: 0 | O32: 0 | U32: 26 | V32: study 26 | AD32: [ | AF32: , | AH32: ] | AK32: 9.5e-05 | AV32: 9.5e-05 | BV32: TRUE | BW32: TRUE | BX32: FALSE | BY32: 26 | BZ32: FALSE | CZ32: 26 | DJ32: 0 | DK32: =IF(DJ32=0,NA(),SUM($DJ$7:DJ32)) -> 
K33: 0 | L33: 0 | N33: 0 | O33: 0 | U33: 27 | V33: study 27 | AD33: [ | AF33: , | AH33: ] | AK33: 9.5e-05 | AV33: 9.5e-05 | BV33: TRUE | BW33: TRUE | BX33: FALSE | BY33: 27 | BZ33: FALSE | CZ33: 27 | DJ33: 0 | DK33: =IF(DJ33=0,NA(),SUM($DJ$7:DJ33)) -> 
K34: 0 | L34: 0 | N34: 0 | O34: 0 | U34: 28 | V34: study 28 | AD34: [ | AF34: , | AH34: ] | AK34: 9.5e-05 | AV34: 9.5e-05 | BV34: TRUE | BW34: TRUE | BX34: FALSE | BY34: 28 | BZ34: FALSE | CZ34: 28 | DJ34: 0 | DK34: =IF(DJ34=0,NA(),SUM($DJ$7:DJ34)) -> 
K35: 0 | L35: 0 | N35: 0 | O35: 0 | U35: 29 | V35: study 29 | AD35: [ | AF35: , | AH35: ] | AK35: 9.5e-05 | AV35: 9.5e-05 | BV35: TRUE | BW35: TRUE | BX35: FALSE | BY35: 29 | BZ35: FALSE | CZ35: 29 | DJ35: 0 | DK35: =IF(DJ35=0,NA(),SUM($DJ$7:DJ35)) -> 
K36: 0 | L36: 0 | N36: 0 | O36: 0 | U36: 30 | V36: study 30 | AD36: [ | AF36: , | AH36: ] | AK36: 9.5e-05 | AV36: 9.5e-05 | BV36: TRUE | BW36: TRUE | BX36: FALSE | BY36: 30 | BZ36: FALSE | CZ36: 30 | DJ36: 0 | DK36: =IF(DJ36=0,NA(),SUM($DJ$7:DJ36)) -> 
K37: C | L37: 95 | N37: C | O37: =Z2 -> 95 | U37: 5 | V37: =IF(CB5,IF(fixedrandom=1,"Fixed effect ","Random effects "),"") -> Random effects | W37: d | X37: dunb | AC37: Variance | AE37: 10 | AG37: Result as diamond | AK37: 9.5e-05 | AV37: 9.5e-05 | CD37: SE of mean | CE37: =IF($CB$5,SQRT(1/SUM(CG7:CG36)),"") -> 0.05784642622 | CG37: =SUM(CG7:CG36) -> 298.8456465 | CH37: Total | CI37: =SUM(CI7:CI36) -> 206.2509715 | CJ37: 8967.547527 | CK37: 629.4301024 | CL37: 41.88371744 | CM37: 10.00806239 | CN37: 8.023782547 | CP37: 22 | DK37: =IF(CB5,SUM(DJ7:DJ36)+2,NA()) -> 22
R38: =IF(AND($CB$5,$CE$4,CC39<>""), IF(fixedrandom=1,CC39,CD55),"") -> 2.536320596 | S38: =IF(R38<>"",2*(1-NORMSDIST(ABS(R38))),"") -> 0.01120241257 | T38: =IF(R38<>"",IF(S38<0.001,"***",(IF(S38<0.01,"**",(IF(S38<0.05,"*",(IF(S38<0.1,"?","ns"))))))),"") -> * | V38: Overall effect size: | W38: =IF(AND($CB$5,$CM$2),IF(fixedrandom=1,SUMPRODUCT(CA7:CA36,CG7:CG36)/SUM(CG7:CG36),CD49),"") -> 0.8017318672 | AC38: =IF($CM$2,IF(fixedrandom=1,CE37^2,CD50),"") -> 0.09991944105 | AD38: [ | AE38: =IF(CC39<>"",W38-AW38,"") -> 0.1821865354 | AF38: , | AG38: =IF(CC39<>"",W38+AW38,"") -> 1.421277199 | AH38: ] | AK38: 9.5e-05 | AV38: 9.5e-05 | AW38: =IF(CC39<>"",CF39,"") -> 0.6195453318 | AX38: =IF(CC39<>"",CF39,"") -> 0.6195453318 | BY38: half height | BZ38: 0.4 | CC38: z | CF38: bars | CI38: max weight | CJ38: =IF(fixedrandom=1,MAX(CG7:CG36),MAX(CM7:CM36)) -> 0.5690473095 | CO38: squash disp of MA non-diamond | CP38: =IF(AND(NOT(CK3),CC39<>""),CP37,NA()) ->  | CQ38: For sizes of squares on weighted means
Y39: 12 T.... | Z39: =IF(ISNUMBER(CD47),SQRT(CD47),"") -> 1.319521158 | AA39: =IF($Y$4<>"",$Y$4,"") ->  | AF39: Heterogeneity | AG39: Q | AI39: =IF(ISNUMBER(CD44),CD44,"") -> 487.0841665 | BV39: L end | BW39: =CD40-CF39 -> 0.1821865354 | BX39: upper diamond | BZ39: squash | CC39: =IF($CB$5,(W38-$CA$3)/CE37,"") -> 13.85966117 | CD39: =IF(AND($CB$5,$CM$2),IF(NOT(CK3),W38,NA()),NA()) ->  | CE39: =IF(AND(NOT(CK3),CC39<>""),32,32) -> 32 | CF39: =IF(CC39<>"",IF(fixedrandom=1,NORMSINV((100+$Z$2)/200)*CE37,CD52),NA()) -> 0.6195453318 | CQ39: 0 | CR39: bin ends | CS39: dot size | CT39: Influence
